Workbook

Sheet INTRO
B2: PC Joint Reporting Form v.3.1
B4: The purpose of this template Joint Reporting Form (JRF) - available as an Excel file - is to provide national health authorities and data managers with a standardized tool to address these reporting challenges, facilitate integration and thereby further contribute to improving overall programme management. This template aims to standardize national reporting of programme implementation outcomes, improve availability and coordination of preventive chemotherapy data across the World Health Organization regions. National authorities are requested to complete this form for submission to the World Health Organization any time before 15 August of the current year for reporting data on PC interventions implemented during the previous year.
B6: Structure of the application (worksheets):
B8: INTRO | C8: This worksheet includes guides on how to complete the joint reporting form and information about status of PC for endemic diseases in the country
B9: COUNTRY_INFO | C9: This worksheet includes information about administrative structure of the country, population by age group, status of endemicity for each disease, population requiring PC, planned interventions and interventions implemented
B10: MDA1, MDA2, MDA3, T1, T2 and T3 | C10: These worksheets include information about endemic districts targeted for treatment with specified PC medicines, treatment plan, and number of people who received treatment by age group
B11: DISTRICT | C11: This worksheet includes summary of people treated by disease at the level of implementation. If data by gender is available, it requires to enter.
B12: SUMMARY | C12: This worksheet includes summary of people treated by disease and by PC intervention. Before generating the report (run macros) please select the disease for which you need the report. Follow the same rule to generate various reports. This worksheet should be printed and submitted as a Joint Report (see the instruction for submission in the SUMMARY worksheet).
B14: Instruction for data entry
B16: Most of the cells in the above-mentioned worksheets include formula that are calculated automatically according to the treatment policy recommended by WHO for each disease. See the link http://www.who.int/neglected_diseases/preventive_chemotherapy/pct_manual/en/index.html
B18: Please enter your data into the cells according to their colour code:
C20: White - cell is not protected. Please enter the value of the requested indicator.
C22: Yellow - cell is protected and includes name of indicator. No data entry required.
C24: Orange - cell is not protected and includes a drop-down menu. Please select the value from the drop-down list.
C27: Green - cell is not protected and includes formula. Please change the value only if your data are different from those that are calculated automatically.
C30: Blue - cell is protected and includes formula. No data entry required.
B32: Country data
B34: COUNTRY | E34: Kenya
B36: Year of reporting data | E36: 2018
B38: Is country endemic for lymphatic filariasis (LF)? | E38: Endemic
B40: Is country endemic for onchocerciasis (ONCHO)? | E40: Non-endemic
B42: Is country endemic for soil-transmitted helminthiases (STH)? | E42: Endemic
B44: Is country endemic for schistosomiasis (SCH)? | E44: Endemic
B46: How many administrative units in the country? | E46: 290
B47: If demographical data at the second administrative level are not available by age group, please enter the proportion (%) of population by age group in the country. If data are available, please leave these cells blank.
B48: 1-4 years age | C48: Preschool-age children (PreSAC) | E48: 0.15
B49: 5-14 years age | C49: School-age children (SAC) | E49: 0.28
B50: 15 years + | C50: Adults | E50: 0.535

Sheet COUNTRY_INFO
A1: COUNTRY INFORMATION
A2: Administrative structure, population by age group, endemicity status, planned interventions and interventions implemented
A4: TOTAL | D4: =SUM(D$9:D$1000) -> 48023943 | E4: =SUM(E$9:E$1000) -> 7203599 | F4: =SUM(F$9:F$1000) -> 13446707 | G4: =SUM(G$9:G$1000) -> 25692806 | L4: =SUM(L$9:L$1000) -> 3902759 | M4: =SUM(M$9:M$1000) -> 0 | N4: =SUM(N$9:N$1000) -> 7861127 | O4: =SUM(O$9:O$1000) -> 3504501.3
A6: Country administrative structure | D6: Population | H6: Endemicity | L6: Population requiring PC | P6: Number of treatment rounds planned for the year | T6: PC implemented | V6: Click to see the recommended strategy
A7: Country | B7: Province/State | C7: District | D7: Total | E7: PreSAC | F7: SAC | G7: Adults | H7: LF | I7: Oncho | J7: STH | K7: SCH | L7: LF | M7: Oncho | N7: STH | O7: SCH | P7: LF | Q7: Oncho | R7: STH | S7: SCH | T7: ROUND 1 | U7: ROUND2 | Y7: IU_ID | Z7: IU_Name
A9: =IF(INTRO!$E$34<>0,INTRO!$E$34,"") -> Kenya | B9: Baringo | C9: Baringo Central | D9: 100358 | E9: =IF(INTRO!$E$48="","",ROUND($D9*INTRO!$E$48,0)) -> 15054 | F9: =IF(INTRO!$E$49="","",ROUND($D9*INTRO!$E$49,0)) -> 28100 | G9: =IF(INTRO!$E$50="","",ROUND($D9*INTRO!$E$50,0)) -> 53692 | H9: 0 | I9: 0 | J9: 4 | K9: 4 | L9: =IF(INTRO!$E$38="Endemic", IF($H9>0, IF($H9=4,"Unknown", IF($H9=99,"Stopped", $D9)), 0),"Not required") -> 0 | M9: 0 | N9: =IF(INTRO!$E$42="Endemic", IF(AND($J9>1,$J9<5), IF($J9=4, "Unknown", E9+F9), 0),"Not required") -> Unknown | O9: =IF(INTRO!$E$44="Endemic", IF(AND($K9>0,$K9<5), IF($K9=4,"Unknown", IF($K9=1, $F9*0.33, IF($K9=2, $F9*0.5+$G9*0.2, SUM(F9:G9)))), 0),"Not required") -> Unknown | P9: 0 | Q9: 0 | R9: 0 | S9: 0 | Y9: 54001 | Z9: Baringo Central | AB9: ='MDA2'!M9 -> 0
A10: =IF(INTRO!$E$34<>0,INTRO!$E$34,"") -> Kenya | B10: Baringo | C10: Baringo North | D10: 119164 | E10: =IF(INTRO!$E$48="","",ROUND($D10*INTRO!$E$48,0)) -> 17875 | F10: =IF(INTRO!$E$49="","",ROUND($D10*INTRO!$E$49,0)) -> 33366 | G10: =IF(INTRO!$E$50="","",ROUND($D10*INTRO!$E$50,0)) -> 63753 | H10: 0 | I10: 0 | J10: 4 | K10: 4 | L10: =IF(INTRO!$E$38="Endemic", IF($H10>0, IF($H10=4,"Unknown", IF($H10=99,"Stopped", $D10)), 0),"Not required") -> 0 | M10: 0 | N10: =IF(INTRO!$E$42="Endemic", IF(AND($J10>1,$J10<5), IF($J10=4, "Unknown", E10+F10), 0),"Not required") -> Unknown | O10: =IF(INTRO!$E$44="Endemic", IF(AND($K10>0,$K10<5), IF($K10=4,"Unknown", IF($K10=1, $F10*0.33, IF($K10=2, $F10*0.5+$G10*0.2, SUM(F10:G10)))), 0),"Not required") -> Unknown | P10: 0 | Q10: 0 | R10: 0 | S10: 0 | Y10: 54002 | Z10: Baringo North | AB10: ='MDA2'!M10 -> 0
A11: =IF(INTRO!$E$34<>0,INTRO!$E$34,"") -> Kenya | B11: Baringo | C11: Baringo South | D11: 102546 | E11: =IF(INTRO!$E$48="","",ROUND($D11*INTRO!$E$48,0)) -> 15382 | F11: =IF(INTRO!$E$49="","",ROUND($D11*INTRO!$E$49,0)) -> 28713 | G11: =IF(INTRO!$E$50="","",ROUND($D11*INTRO!$E$50,0)) -> 54862 | H11: 0 | I11: 0 | J11: 4 | K11: 4 | L11: =IF(INTRO!$E$38="Endemic", IF($H11>0, IF($H11=4,"Unknown", IF($H11=99,"Stopped", $D11)), 0),"Not required") -> 0 | M11: 0 | N11: =IF(INTRO!$E$42="Endemic", IF(AND($J11>1,$J11<5), IF($J11=4, "Unknown", E11+F11), 0),"Not required") -> Unknown | O11: =IF(INTRO!$E$44="Endemic", IF(AND($K11>0,$K11<5), IF($K11=4,"Unknown", IF($K11=1, $F11*0.33, IF($K11=2, $F11*0.5+$G11*0.2, SUM(F11:G11)))), 0),"Not required") -> Unknown | P11: 0 | Q11: 0 | R11: 0 | S11: 0 | Y11: 54003 | Z11: Baringo South | AB11: ='MDA2'!M11 -> 0
A12: =IF(INTRO!$E$34<>0,INTRO!$E$34,"") -> Kenya | B12: Baringo | C12: Eldama Ravine | D12: 133078 | E12: =IF(INTRO!$E$48="","",ROUND($D12*INTRO!$E$48,0)) -> 19962 | F12: =IF(INTRO!$E$49="","",ROUND($D12*INTRO!$E$49,0)) -> 37262 | G12: =IF(INTRO!$E$50="","",ROUND($D12*INTRO!$E$50,0)) -> 71197 | H12: 0 | I12: 0 | J12: 4 | K12: 4 | L12: =IF(INTRO!$E$38="Endemic", IF($H12>0, IF($H12=4,"Unknown", IF($H12=99,"Stopped", $D12)), 0),"Not required") -> 0 | M12: 0 | N12: =IF(INTRO!$E$42="Endemic", IF(AND($J12>1,$J12<5), IF($J12=4, "Unknown", E12+F12), 0),"Not required") -> Unknown | O12: =IF(INTRO!$E$44="Endemic", IF(AND($K12>0,$K12<5), IF($K12=4,"Unknown", IF($K12=1, $F12*0.33, IF($K12=2, $F12*0.5+$G12*0.2, SUM(F12:G12)))), 0),"Not required") -> Unknown | P12: 0 | Q12: 0 | R12: 0 | S12: 0 | Y12: 54004 | Z12: Eldama Ravine | AB12: ='MDA2'!M12 -> 0
A13: =IF(INTRO!$E$34<>0,INTRO!$E$34,"") -> Kenya | B13: Baringo | C13: Mogotio | D13: 76827 | E13: =IF(INTRO!$E$48="","",ROUND($D13*INTRO!$E$48,0)) -> 11524 | F13: =IF(INTRO!$E$49="","",ROUND($D13*INTRO!$E$49,0)) -> 21512 | G13: =IF(INTRO!$E$50="","",ROUND($D13*INTRO!$E$50,0)) -> 41102 | H13: 0 | I13: 0 | J13: 4 | K13: 4 | L13: =IF(INTRO!$E$38="Endemic", IF($H13>0, IF($H13=4,"Unknown", IF($H13=99,"Stopped", $D13)), 0),"Not required") -> 0 | M13: 0 | N13: =IF(INTRO!$E$42="Endemic", IF(AND($J13>1,$J13<5), IF($J13=4, "Unknown", E13+F13), 0),"Not required") -> Unknown | O13: =IF(INTRO!$E$44="Endemic", IF(AND($K13>0,$K13<5), IF($K13=4,"Unknown", IF($K13=1, $F13*0.33, IF($K13=2, $F13*0.5+$G13*0.2, SUM(F13:G13)))), 0),"Not required") -> Unknown | P13: 0 | Q13: 0 | R13: 0 | S13: 0 | Y13: 54005 | Z13: Mogotio | AB13: ='MDA2'!M13 -> 0
A14: =IF(INTRO!$E$34<>0,INTRO!$E$34,"") -> Kenya | B14: Baringo | C14: Tiaty | D14: 168729 | E14: =IF(INTRO!$E$48="","",ROUND($D14*INTRO!$E$48,0)) -> 25309 | F14: =IF(INTRO!$E$49="","",ROUND($D14*INTRO!$E$49,0)) -> 47244 | G14: =IF(INTRO!$E$50="","",ROUND($D14*INTRO!$E$50,0)) -> 90270 | H14: 0 | I14: 0 | J14: 4 | K14: 4 | L14: =IF(INTRO!$E$38="Endemic", IF($H14>0, IF($H14=4,"Unknown", IF($H14=99,"Stopped", $D14)), 0),"Not required") -> 0 | M14: 0 | N14: =IF(INTRO!$E$42="Endemic", IF(AND($J14>1,$J14<5), IF($J14=4, "Unknown", E14+F14), 0),"Not required") -> Unknown | O14: =IF(INTRO!$E$44="Endemic", IF(AND($K14>0,$K14<5), IF($K14=4,"Unknown", IF($K14=1, $F14*0.33, IF($K14=2, $F14*0.5+$G14*0.2, SUM(F14:G14)))), 0),"Not required") -> Unknown | P14: 0 | Q14: 0 | R14: 0 | S14: 0 | Y14: 54006 | Z14: Tiaty | AB14: ='MDA2'!M14 -> 0
A15: =IF(INTRO!$E$34<>0,INTRO!$E$34,"") -> Kenya | B15: Bomet | C15: Bomet Central | D15: 159954 | E15: =IF(INTRO!$E$48="","",ROUND($D15*INTRO!$E$48,0)) -> 23993 | F15: =IF(INTRO!$E$49="","",ROUND($D15*INTRO!$E$49,0)) -> 44787 | G15: =IF(INTRO!$E$50="","",ROUND($D15*INTRO!$E$50,0)) -> 85575 | H15: 0 | I15: 0 | J15: 2 | K15: 4 | L15: =IF(INTRO!$E$38="Endemic", IF($H15>0, IF($H15=4,"Unknown", IF($H15=99,"Stopped", $D15)), 0),"Not required") -> 0 | M15: 0 | N15: =IF(INTRO!$E$42="Endemic", IF(AND($J15>1,$J15<5), IF($J15=4, "Unknown", E15+F15), 0),"Not required") -> 68780 | O15: =IF(INTRO!$E$44="Endemic", IF(AND($K15>0,$K15<5), IF($K15=4,"Unknown", IF($K15=1, $F15*0.33, IF($K15=2, $F15*0.5+$G15*0.2, SUM(F15:G15)))), 0),"Not required") -> Unknown | P15: 0 | Q15: 0 | R15: 1 | S15: 0 | W15: T3 | Y15: 54007 | Z15: Bomet Central | AB15: ='MDA2'!M15 -> 0
A16: =IF(INTRO!$E$34<>0,INTRO!$E$34,"") -> Kenya | B16: Bomet | C16: Bomet East | D16: 160856 | E16: =IF(INTRO!$E$48="","",ROUND($D16*INTRO!$E$48,0)) -> 24128 | F16: =IF(INTRO!$E$49="","",ROUND($D16*INTRO!$E$49,0)) -> 45040 | G16: =IF(INTRO!$E$50="","",ROUND($D16*INTRO!$E$50,0)) -> 86058 | H16: 0 | I16: 0 | J16: 2 | K16: 4 | L16: =IF(INTRO!$E$38="Endemic", IF($H16>0, IF($H16=4,"Unknown", IF($H16=99,"Stopped", $D16)), 0),"Not required") -> 0 | M16: 0 | N16: =IF(INTRO!$E$42="Endemic", IF(AND($J16>1,$J16<5), IF($J16=4, "Unknown", E16+F16), 0),"Not required") -> 69168 | O16: =IF(INTRO!$E$44="Endemic", IF(AND($K16>0,$K16<5), IF($K16=4,"Unknown", IF($K16=1, $F16*0.33, IF($K16=2, $F16*0.5+$G16*0.2, SUM(F16:G16)))), 0),"Not required") -> Unknown | P16: 0 | Q16: 0 | R16: 1 | S16: 0 | W16: T3 | Y16: 54008 | Z16: Bomet East | AB16: ='MDA2'!M16 -> 0
A17: =IF(INTRO!$E$34<>0,INTRO!$E$34,"") -> Kenya | B17: Bomet | C17: Chepalungu | D17: 206736 | E17: =IF(INTRO!$E$48="","",ROUND($D17*INTRO!$E$48,0)) -> 31010 | F17: =IF(INTRO!$E$49="","",ROUND($D17*INTRO!$E$49,0)) -> 57886 | G17: =IF(INTRO!$E$50="","",ROUND($D17*INTRO!$E$50,0)) -> 110604 | H17: 0 | I17: 0 | J17: 2 | K17: 4 | L17: =IF(INTRO!$E$38="Endemic", IF($H17>0, IF($H17=4,"Unknown", IF($H17=99,"Stopped", $D17)), 0),"Not required") -> 0 | M17: 0 | N17: =IF(INTRO!$E$42="Endemic", IF(AND($J17>1,$J17<5), IF($J17=4, "Unknown", E17+F17), 0),"Not required") -> 88896 | O17: =IF(INTRO!$E$44="Endemic", IF(AND($K17>0,$K17<5), IF($K17=4,"Unknown", IF($K17=1, $F17*0.33, IF($K17=2, $F17*0.5+$G17*0.2, SUM(F17:G17)))), 0),"Not required") -> Unknown | P17: 0 | Q17: 0 | R17: 1 | S17: 0 | W17: T3 | Y17: 54009 | Z17: Chepalungu | AB17: ='MDA2'!M17 -> 0
A18: =IF(INTRO!$E$34<>0,INTRO!$E$34,"") -> Kenya | B18: Bomet | C18: Konoin | D18: 183825 | E18: =IF(INTRO!$E$48="","",ROUND($D18*INTRO!$E$48,0)) -> 27574 | F18: =IF(INTRO!$E$49="","",ROUND($D18*INTRO!$E$49,0)) -> 51471 | G18: =IF(INTRO!$E$50="","",ROUND($D18*INTRO!$E$50,0)) -> 98346 | H18: 0 | I18: 0 | J18: 2 | K18: 4 | L18: =IF(INTRO!$E$38="Endemic", IF($H18>0, IF($H18=4,"Unknown", IF($H18=99,"Stopped", $D18)), 0),"Not required") -> 0 | M18: 0 | N18: =IF(INTRO!$E$42="Endemic", IF(AND($J18>1,$J18<5), IF($J18=4, "Unknown", E18+F18), 0),"Not required") -> 79045 | O18: =IF(INTRO!$E$44="Endemic", IF(AND($K18>0,$K18<5), IF($K18=4,"Unknown", IF($K18=1, $F18*0.33, IF($K18=2, $F18*0.5+$G18*0.2, SUM(F18:G18)))), 0),"Not required") -> Unknown | P18: 0 | Q18: 0 | R18: 1 | S18: 0 | W18: T3 | Y18: 54010 | Z18: Konoin | AB18: ='MDA2'!M18 -> 0
A19: =IF(INTRO!$E$34<>0,INTRO!$E$34,"") -> Kenya | B19: Bomet | C19: Sotik | D19: 211473 | E19: =IF(INTRO!$E$48="","",ROUND($D19*INTRO!$E$48,0)) -> 31721 | F19: =IF(INTRO!$E$49="","",ROUND($D19*INTRO!$E$49,0)) -> 59212 | G19: =IF(INTRO!$E$50="","",ROUND($D19*INTRO!$E$50,0)) -> 113138 | H19: 0 | I19: 0 | J19: 2 | K19: 4 | L19: =IF(INTRO!$E$38="Endemic", IF($H19>0, IF($H19=4,"Unknown", IF($H19=99,"Stopped", $D19)), 0),"Not required") -> 0 | M19: 0 | N19: =IF(INTRO!$E$42="Endemic", IF(AND($J19>1,$J19<5), IF($J19=4, "Unknown", E19+F19), 0),"Not required") -> 90933 | O19: =IF(INTRO!$E$44="Endemic", IF(AND($K19>0,$K19<5), IF($K19=4,"Unknown", IF($K19=1, $F19*0.33, IF($K19=2, $F19*0.5+$G19*0.2, SUM(F19:G19)))), 0),"Not required") -> Unknown | P19: 0 | Q19: 0 | R19: 1 | S19: 0 | W19: T3 | Y19: 54011 | Z19: Sotik | AB19: ='MDA2'!M19 -> 0
A20: =IF(INTRO!$E$34<>0,INTRO!$E$34,"") -> Kenya | B20: Bungoma | C20: Bumula | D20: 227948 | E20: =IF(INTRO!$E$48="","",ROUND($D20*INTRO!$E$48,0)) -> 34192 | F20: =IF(INTRO!$E$49="","",ROUND($D20*INTRO!$E$49,0)) -> 63825 | G20: =IF(INTRO!$E$50="","",ROUND($D20*INTRO!$E$50,0)) -> 121952 | H20: 0 | I20: 0 | J20: 3 | K20: 4 | L20: =IF(INTRO!$E$38="Endemic", IF($H20>0, IF($H20=4,"Unknown", IF($H20=99,"Stopped", $D20)), 0),"Not required") -> 0 | M20: 0 | N20: =IF(INTRO!$E$42="Endemic", IF(AND($J20>1,$J20<5), IF($J20=4, "Unknown", E20+F20), 0),"Not required") -> 98017 | O20: =IF(INTRO!$E$44="Endemic", IF(AND($K20>0,$K20<5), IF($K20=4,"Unknown", IF($K20=1, $F20*0.33, IF($K20=2, $F20*0.5+$G20*0.2, SUM(F20:G20)))), 0),"Not required") -> Unknown | P20: 0 | Q20: 0 | R20: 1 | S20: 0 | W20: T3 | Y20: 54012 | Z20: Bumula | AB20: ='MDA2'!M20 -> 0
A21: =IF(INTRO!$E$34<>0,INTRO!$E$34,"") -> Kenya | B21: Bungoma | C21: Kabucchai | D21: 179091 | E21: =IF(INTRO!$E$48="","",ROUND($D21*INTRO!$E$48,0)) -> 26864 | F21: =IF(INTRO!$E$49="","",ROUND($D21*INTRO!$E$49,0)) -> 50145 | G21: =IF(INTRO!$E$50="","",ROUND($D21*INTRO!$E$50,0)) -> 95814 | H21: 0 | I21: 0 | J21: 3 | K21: 4 | L21: =IF(INTRO!$E$38="Endemic", IF($H21>0, IF($H21=4,"Unknown", IF($H21=99,"Stopped", $D21)), 0),"Not required") -> 0 | M21: 0 | N21: =IF(INTRO!$E$42="Endemic", IF(AND($J21>1,$J21<5), IF($J21=4, "Unknown", E21+F21), 0),"Not required") -> 77009 | O21: =IF(INTRO!$E$44="Endemic", IF(AND($K21>0,$K21<5), IF($K21=4,"Unknown", IF($K21=1, $F21*0.33, IF($K21=2, $F21*0.5+$G21*0.2, SUM(F21:G21)))), 0),"Not required") -> Unknown | P21: 0 | Q21: 0 | R21: 1 | S21: 0 | W21: T3 | Y21: 54013 | Z21: Kabucchai | AB21: ='MDA2'!M21 -> 0
A22: =IF(INTRO!$E$34<>0,INTRO!$E$34,"") -> Kenya | B22: Bungoma | C22: Kanduyi | D22: 286242 | E22: =IF(INTRO!$E$48="","",ROUND($D22*INTRO!$E$48,0)) -> 42936 | F22: =IF(INTRO!$E$49="","",ROUND($D22*INTRO!$E$49,0)) -> 80148 | G22: =IF(INTRO!$E$50="","",ROUND($D22*INTRO!$E$50,0)) -> 153139 | H22: 0 | I22: 0 | J22: 3 | K22: 4 | L22: =IF(INTRO!$E$38="Endemic", IF($H22>0, IF($H22=4,"Unknown", IF($H22=99,"Stopped", $D22)), 0),"Not required") -> 0 | M22: 0 | N22: =IF(INTRO!$E$42="Endemic", IF(AND($J22>1,$J22<5), IF($J22=4, "Unknown", E22+F22), 0),"Not required") -> 123084 | O22: =IF(INTRO!$E$44="Endemic", IF(AND($K22>0,$K22<5), IF($K22=4,"Unknown", IF($K22=1, $F22*0.33, IF($K22=2, $F22*0.5+$G22*0.2, SUM(F22:G22)))), 0),"Not required") -> Unknown | P22: 0 | Q22: 0 | R22: 1 | S22: 0 | W22: T3 | Y22: 54014 | Z22: Kanduyi | AB22: ='MDA2'!M22 -> 0
A23: =IF(INTRO!$E$34<>0,INTRO!$E$34,"") -> Kenya | B23: Bungoma | C23: Kimilili | D23: 167316 | E23: =IF(INTRO!$E$48="","",ROUND($D23*INTRO!$E$48,0)) -> 25097 | F23: =IF(INTRO!$E$49="","",ROUND($D23*INTRO!$E$49,0)) -> 46848 | G23: =IF(INTRO!$E$50="","",ROUND($D23*INTRO!$E$50,0)) -> 89514 | H23: 0 | I23: 0 | J23: 3 | K23: 4 | L23: =IF(INTRO!$E$38="Endemic", IF($H23>0, IF($H23=4,"Unknown", IF($H23=99,"Stopped", $D23)), 0),"Not required") -> 0 | M23: 0 | N23: =IF(INTRO!$E$42="Endemic", IF(AND($J23>1,$J23<5), IF($J23=4, "Unknown", E23+F23), 0),"Not required") -> 71945 | O23: =IF(INTRO!$E$44="Endemic", IF(AND($K23>0,$K23<5), IF($K23=4,"Unknown", IF($K23=1, $F23*0.33, IF($K23=2, $F23*0.5+$G23*0.2, SUM(F23:G23)))), 0),"Not required") -> Unknown | P23: 0 | Q23: 0 | R23: 1 | S23: 0 | W23: T3 | Y23: 54015 | Z23: Kimilili | AB23: ='MDA2'!M23 -> 0
A24: =IF(INTRO!$E$34<>0,INTRO!$E$34,"") -> Kenya | B24: Bungoma | C24: Mount Elgon | D24: 218718 | E24: =IF(INTRO!$E$48="","",ROUND($D24*INTRO!$E$48,0)) -> 32808 | F24: =IF(INTRO!$E$49="","",ROUND($D24*INTRO!$E$49,0)) -> 61241 | G24: =IF(INTRO!$E$50="","",ROUND($D24*INTRO!$E$50,0)) -> 117014 | H24: 0 | I24: 0 | J24: 3 | K24: 4 | L24: =IF(INTRO!$E$38="Endemic", IF($H24>0, IF($H24=4,"Unknown", IF($H24=99,"Stopped", $D24)), 0),"Not required") -> 0 | M24: 0 | N24: =IF(INTRO!$E$42="Endemic", IF(AND($J24>1,$J24<5), IF($J24=4, "Unknown", E24+F24), 0),"Not required") -> 94049 | O24: =IF(INTRO!$E$44="Endemic", IF(AND($K24>0,$K24<5), IF($K24=4,"Unknown", IF($K24=1, $F24*0.33, IF($K24=2, $F24*0.5+$G24*0.2, SUM(F24:G24)))), 0),"Not required") -> Unknown | P24: 0 | Q24: 0 | R24: 1 | S24: 0 | W24: T3 | Y24: 54016 | Z24: Mount Elgon | AB24: ='MDA2'!M24 -> 0
A25: =IF(INTRO!$E$34<>0,INTRO!$E$34,"") -> Kenya | B25: Bungoma | C25: Sirisia | D25: 130375 | E25: =IF(INTRO!$E$48="","",ROUND($D25*INTRO!$E$48,0)) -> 19556 | F25: =IF(INTRO!$E$49="","",ROUND($D25*INTRO!$E$49,0)) -> 36505 | G25: =IF(INTRO!$E$50="","",ROUND($D25*INTRO!$E$50,0)) -> 69751 | H25: 0 | I25: 0 | J25: 3 | K25: 4 | L25: =IF(INTRO!$E$38="Endemic", IF($H25>0, IF($H25=4,"Unknown", IF($H25=99,"Stopped", $D25)), 0),"Not required") -> 0 | M25: 0 | N25: =IF(INTRO!$E$42="Endemic", IF(AND($J25>1,$J25<5), IF($J25=4, "Unknown", E25+F25), 0),"Not required") -> 56061 | O25: =IF(INTRO!$E$44="Endemic", IF(AND($K25>0,$K25<5), IF($K25=4,"Unknown", IF($K25=1, $F25*0.33, IF($K25=2, $F25*0.5+$G25*0.2, SUM(F25:G25)))), 0),"Not required") -> Unknown | P25: 0 | Q25: 0 | R25: 1 | S25: 0 | W25: T3 | Y25: 54017 | Z25: Sirisia | AB25: ='MDA2'!M25 -> 0
A26: =IF(INTRO!$E$34<>0,INTRO!$E$34,"") -> Kenya | B26: Bungoma | C26: Tongaren | D26: 237977 | E26: =IF(INTRO!$E$48="","",ROUND($D26*INTRO!$E$48,0)) -> 35697 | F26: =IF(INTRO!$E$49="","",ROUND($D26*INTRO!$E$49,0)) -> 66634 | G26: =IF(INTRO!$E$50="","",ROUND($D26*INTRO!$E$50,0)) -> 127318 | H26: 0 | I26: 0 | J26: 3 | K26: 4 | L26: =IF(INTRO!$E$38="Endemic", IF($H26>0, IF($H26=4,"Unknown", IF($H26=99,"Stopped", $D26)), 0),"Not required") -> 0 | M26: 0 | N26: =IF(INTRO!$E$42="Endemic", IF(AND($J26>1,$J26<5), IF($J26=4, "Unknown", E26+F26), 0),"Not required") -> 102331 | O26: =IF(INTRO!$E$44="Endemic", IF(AND($K26>0,$K26<5), IF($K26=4,"Unknown", IF($K26=1, $F26*0.33, IF($K26=2, $F26*0.5+$G26*0.2, SUM(F26:G26)))), 0),"Not required") -> Unknown | P26: 0 | Q26: 0 | R26: 1 | S26: 0 | W26: T3 | Y26: 54018 | Z26: Tongaren | AB26: ='MDA2'!M26 -> 0
A27: =IF(INTRO!$E$34<>0,INTRO!$E$34,"") -> Kenya | B27: Bungoma | C27: Webuye East | D27: 128951 | E27: =IF(INTRO!$E$48="","",ROUND($D27*INTRO!$E$48,0)) -> 19343 | F27: =IF(INTRO!$E$49="","",ROUND($D27*INTRO!$E$49,0)) -> 36106 | G27: =IF(INTRO!$E$50="","",ROUND($D27*INTRO!$E$50,0)) -> 68989 | H27: 0 | I27: 0 | J27: 3 | K27: 4 | L27: =IF(INTRO!$E$38="Endemic", IF($H27>0, IF($H27=4,"Unknown", IF($H27=99,"Stopped", $D27)), 0),"Not required") -> 0 | M27: 0 | N27: =IF(INTRO!$E$42="Endemic", IF(AND($J27>1,$J27<5), IF($J27=4, "Unknown", E27+F27), 0),"Not required") -> 55449 | O27: =IF(INTRO!$E$44="Endemic", IF(AND($K27>0,$K27<5), IF($K27=4,"Unknown", IF($K27=1, $F27*0.33, IF($K27=2, $F27*0.5+$G27*0.2, SUM(F27:G27)))), 0),"Not required") -> Unknown | P27: 0 | Q27: 0 | R27: 1 | S27: 0 | W27: T3 | Y27: 54019 | Z27: Webuye East | AB27: ='MDA2'!M27 -> 0
A28: =IF(INTRO!$E$34<>0,INTRO!$E$34,"") -> Kenya | B28: Bungoma | C28: Webuye West | D28: 161986 | E28: =IF(INTRO!$E$48="","",ROUND($D28*INTRO!$E$48,0)) -> 24298 | F28: =IF(INTRO!$E$49="","",ROUND($D28*INTRO!$E$49,0)) -> 45356 | G28: =IF(INTRO!$E$50="","",ROUND($D28*INTRO!$E$50,0)) -> 86663 | H28: 0 | I28: 0 | J28: 3 | K28: 4 | L28: =IF(INTRO!$E$38="Endemic", IF($H28>0, IF($H28=4,"Unknown", IF($H28=99,"Stopped", $D28)), 0),"Not required") -> 0 | M28: 0 | N28: =IF(INTRO!$E$42="Endemic", IF(AND($J28>1,$J28<5), IF($J28=4, "Unknown", E28+F28), 0),"Not required") -> 69654 | O28: =IF(INTRO!$E$44="Endemic", IF(AND($K28>0,$K28<5), IF($K28=4,"Unknown", IF($K28=1, $F28*0.33, IF($K28=2, $F28*0.5+$G28*0.2, SUM(F28:G28)))), 0),"Not required") -> Unknown | P28: 0 | Q28: 0 | R28: 1 | S28: 0 | W28: T3 | Y28: 54020 | Z28: Webuye West | AB28: ='MDA2'!M28 -> 0
A29: =IF(INTRO!$E$34<>0,INTRO!$E$34,"") -> Kenya | B29: Busia | C29: Budalangi | D29: 85055 | E29: =IF(INTRO!$E$48="","",ROUND($D29*INTRO!$E$48,0)) -> 12758 | F29: =IF(INTRO!$E$49="","",ROUND($D29*INTRO!$E$49,0)) -> 23815 | G29: =IF(INTRO!$E$50="","",ROUND($D29*INTRO!$E$50,0)) -> 45504 | H29: 0 | I29: 0 | J29: 2 | K29: 2 | L29: =IF(INTRO!$E$38="Endemic", IF($H29>0, IF($H29=4,"Unknown", IF($H29=99,"Stopped", $D29)), 0),"Not required") -> 0 | M29: 0 | N29: =IF(INTRO!$E$42="Endemic", IF(AND($J29>1,$J29<5), IF($J29=4, "Unknown", E29+F29), 0),"Not required") -> 36573 | O29: =IF(INTRO!$E$44="Endemic", IF(AND($K29>0,$K29<5), IF($K29=4,"Unknown", IF($K29=1, $F29*0.33, IF($K29=2, $F29*0.5+$G29*0.2, SUM(F29:G29)))), 0),"Not required") -> 21008.3 | P29: 0 | Q29: 0 | R29: 1 | S29: 0 | W29: T1 | Y29: 54021 | Z29: Budalangi | AB29: ='MDA2'!M29 -> 0
A30: =IF(INTRO!$E$34<>0,INTRO!$E$34,"") -> Kenya | B30: Busia | C30: Butula | D30: 154586 | E30: =IF(INTRO!$E$48="","",ROUND($D30*INTRO!$E$48,0)) -> 23188 | F30: =IF(INTRO!$E$49="","",ROUND($D30*INTRO!$E$49,0)) -> 43284 | G30: =IF(INTRO!$E$50="","",ROUND($D30*INTRO!$E$50,0)) -> 82704 | H30: 0 | I30: 0 | J30: 2 | K30: 2 | L30: =IF(INTRO!$E$38="Endemic", IF($H30>0, IF($H30=4,"Unknown", IF($H30=99,"Stopped", $D30)), 0),"Not required") -> 0 | M30: 0 | N30: =IF(INTRO!$E$42="Endemic", IF(AND($J30>1,$J30<5), IF($J30=4, "Unknown", E30+F30), 0),"Not required") -> 66472 | O30: =IF(INTRO!$E$44="Endemic", IF(AND($K30>0,$K30<5), IF($K30=4,"Unknown", IF($K30=1, $F30*0.33, IF($K30=2, $F30*0.5+$G30*0.2, SUM(F30:G30)))), 0),"Not required") -> 38182.8 | P30: 0 | Q30: 0 | R30: 1 | S30: 0 | W30: T3 | Y30: 54022 | Z30: Butula | AB30: ='MDA2'!M30 -> 0
A31: =IF(INTRO!$E$34<>0,INTRO!$E$34,"") -> Kenya | B31: Busia | C31: Funyula | D31: 119239 | E31: =IF(INTRO!$E$48="","",ROUND($D31*INTRO!$E$48,0)) -> 17886 | F31: =IF(INTRO!$E$49="","",ROUND($D31*INTRO!$E$49,0)) -> 33387 | G31: =IF(INTRO!$E$50="","",ROUND($D31*INTRO!$E$50,0)) -> 63793 | H31: 0 | I31: 0 | J31: 2 | K31: 2 | L31: =IF(INTRO!$E$38="Endemic", IF($H31>0, IF($H31=4,"Unknown", IF($H31=99,"Stopped", $D31)), 0),"Not required") -> 0 | M31: 0 | N31: =IF(INTRO!$E$42="Endemic", IF(AND($J31>1,$J31<5), IF($J31=4, "Unknown", E31+F31), 0),"Not required") -> 51273 | O31: =IF(INTRO!$E$44="Endemic", IF(AND($K31>0,$K31<5), IF($K31=4,"Unknown", IF($K31=1, $F31*0.33, IF($K31=2, $F31*0.5+$G31*0.2, SUM(F31:G31)))), 0),"Not required") -> 29452.1 | P31: 0 | Q31: 0 | R31: 1 | S31: 0 | W31: T1 | Y31: 54023 | Z31: Funyula | AB31: ='MDA2'!M31 -> 0
A32: =IF(INTRO!$E$34<>0,INTRO!$E$34,"") -> Kenya | B32: Busia | C32: Matayos | D32: 139176 | E32: =IF(INTRO!$E$48="","",ROUND($D32*INTRO!$E$48,0)) -> 20876 | F32: =IF(INTRO!$E$49="","",ROUND($D32*INTRO!$E$49,0)) -> 38969 | G32: =IF(INTRO!$E$50="","",ROUND($D32*INTRO!$E$50,0)) -> 74459 | H32: 0 | I32: 0 | J32: 2 | K32: 2 | L32: =IF(INTRO!$E$38="Endemic", IF($H32>0, IF($H32=4,"Unknown", IF($H32=99,"Stopped", $D32)), 0),"Not required") -> 0 | M32: 0 | N32: =IF(INTRO!$E$42="Endemic", IF(AND($J32>1,$J32<5), IF($J32=4, "Unknown", E32+F32), 0),"Not required") -> 59845 | O32: =IF(INTRO!$E$44="Endemic", IF(AND($K32>0,$K32<5), IF($K32=4,"Unknown", IF($K32=1, $F32*0.33, IF($K32=2, $F32*0.5+$G32*0.2, SUM(F32:G32)))), 0),"Not required") -> 34376.3 | P32: 0 | Q32: 0 | R32: 1 | S32: 0 | W32: T1 | Y32: 54024 | Z32: Matayos | AB32: ='MDA2'!M32 -> 0
A33: =IF(INTRO!$E$34<>0,INTRO!$E$34,"") -> Kenya | B33: Busia | C33: Nambale | D33: 120117 | E33: =IF(INTRO!$E$48="","",ROUND($D33*INTRO!$E$48,0)) -> 18018 | F33: =IF(INTRO!$E$49="","",ROUND($D33*INTRO!$E$49,0)) -> 33633 | G33: =IF(INTRO!$E$50="","",ROUND($D33*INTRO!$E$50,0)) -> 64263 | H33: 0 | I33: 0 | J33: 2 | K33: 2 | L33: =IF(INTRO!$E$38="Endemic", IF($H33>0, IF($H33=4,"Unknown", IF($H33=99,"Stopped", $D33)), 0),"Not required") -> 0 | M33: 0 | N33: =IF(INTRO!$E$42="Endemic", IF(AND($J33>1,$J33<5), IF($J33=4, "Unknown", E33+F33), 0),"Not required") -> 51651 | O33: =IF(INTRO!$E$44="Endemic", IF(AND($K33>0,$K33<5), IF($K33=4,"Unknown", IF($K33=1, $F33*0.33, IF($K33=2, $F33*0.5+$G33*0.2, SUM(F33:G33)))), 0),"Not required") -> 29669.1 | P33: 0 | Q33: 0 | R33: 1 | S33: 0 | W33: T3 | Y33: 54025 | Z33: Nambale | AB33: ='MDA2'!M33 -> 0
A34: =IF(INTRO!$E$34<>0,INTRO!$E$34,"") -> Kenya | B34: Busia | C34: Teso North | D34: 148235 | E34: =IF(INTRO!$E$48="","",ROUND($D34*INTRO!$E$48,0)) -> 22235 | F34: =IF(INTRO!$E$49="","",ROUND($D34*INTRO!$E$49,0)) -> 41506 | G34: =IF(INTRO!$E$50="","",ROUND($D34*INTRO!$E$50,0)) -> 79306 | H34: 0 | I34: 0 | J34: 2 | K34: 2 | L34: =IF(INTRO!$E$38="Endemic", IF($H34>0, IF($H34=4,"Unknown", IF($H34=99,"Stopped", $D34)), 0),"Not required") -> 0 | M34: 0 | N34: =IF(INTRO!$E$42="Endemic", IF(AND($J34>1,$J34<5), IF($J34=4, "Unknown", E34+F34), 0),"Not required") -> 63741 | O34: =IF(INTRO!$E$44="Endemic", IF(AND($K34>0,$K34<5), IF($K34=4,"Unknown", IF($K34=1, $F34*0.33, IF($K34=2, $F34*0.5+$G34*0.2, SUM(F34:G34)))), 0),"Not required") -> 36614.2 | P34: 0 | Q34: 0 | R34: 1 | S34: 0 | W34: T3 | Y34: 54026 | Z34: Teso North | AB34: ='MDA2'!M34 -> 0
A35: =IF(INTRO!$E$34<>0,INTRO!$E$34,"") -> Kenya | B35: Busia | C35: Teso South | D35: 173594 | E35: =IF(INTRO!$E$48="","",ROUND($D35*INTRO!$E$48,0)) -> 26039 | F35: =IF(INTRO!$E$49="","",ROUND($D35*INTRO!$E$49,0)) -> 48606 | G35: =IF(INTRO!$E$50="","",ROUND($D35*INTRO!$E$50,0)) -> 92873 | H35: 0 | I35: 0 | J35: 2 | K35: 2 | L35: =IF(INTRO!$E$38="Endemic", IF($H35>0, IF($H35=4,"Unknown", IF($H35=99,"Stopped", $D35)), 0),"Not required") -> 0 | M35: 0 | N35: =IF(INTRO!$E$42="Endemic", IF(AND($J35>1,$J35<5), IF($J35=4, "Unknown", E35+F35), 0),"Not required") -> 74645 | O35: =IF(INTRO!$E$44="Endemic", IF(AND($K35>0,$K35<5), IF($K35=4,"Unknown", IF($K35=1, $F35*0.33, IF($K35=2, $F35*0.5+$G35*0.2, SUM(F35:G35)))), 0),"Not required") -> 42877.6 | P35: 0 | Q35: 0 | R35: 1 | S35: 0 | W35: T3 | Y35: 54027 | Z35: Teso South | AB35: ='MDA2'!M35 -> 0
A36: =IF(INTRO!$E$34<>0,INTRO!$E$34,"") -> Kenya | B36: Elgeyo Marakwet | C36: Keiyo North | D36: 92655 | E36: =IF(INTRO!$E$48="","",ROUND($D36*INTRO!$E$48,0)) -> 13898 | F36: =IF(INTRO!$E$49="","",ROUND($D36*INTRO!$E$49,0)) -> 25943 | G36: =IF(INTRO!$E$50="","",ROUND($D36*INTRO!$E$50,0)) -> 49570 | H36: 0 | I36: 0 | J36: 4 | K36: 4 | L36: =IF(INTRO!$E$38="Endemic", IF($H36>0, IF($H36=4,"Unknown", IF($H36=99,"Stopped", $D36)), 0),"Not required") -> 0 | M36: 0 | N36: =IF(INTRO!$E$42="Endemic", IF(AND($J36>1,$J36<5), IF($J36=4, "Unknown", E36+F36), 0),"Not required") -> Unknown | O36: =IF(INTRO!$E$44="Endemic", IF(AND($K36>0,$K36<5), IF($K36=4,"Unknown", IF($K36=1, $F36*0.33, IF($K36=2, $F36*0.5+$G36*0.2, SUM(F36:G36)))), 0),"Not required") -> Unknown | P36: 0 | Q36: 0 | R36: 0 | S36: 0 | Y36: 54028 | Z36: Keiyo North | AB36: ='MDA2'!M36 -> 0
A37: =IF(INTRO!$E$34<>0,INTRO!$E$34,"") -> Kenya | B37: Elgeyo Marakwet | C37: Keiyo South | D37: 137445 | E37: =IF(INTRO!$E$48="","",ROUND($D37*INTRO!$E$48,0)) -> 20617 | F37: =IF(INTRO!$E$49="","",ROUND($D37*INTRO!$E$49,0)) -> 38485 | G37: =IF(INTRO!$E$50="","",ROUND($D37*INTRO!$E$50,0)) -> 73533 | H37: 0 | I37: 0 | J37: 4 | K37: 4 | L37: =IF(INTRO!$E$38="Endemic", IF($H37>0, IF($H37=4,"Unknown", IF($H37=99,"Stopped", $D37)), 0),"Not required") -> 0 | M37: 0 | N37: =IF(INTRO!$E$42="Endemic", IF(AND($J37>1,$J37<5), IF($J37=4, "Unknown", E37+F37), 0),"Not required") -> Unknown | O37: =IF(INTRO!$E$44="Endemic", IF(AND($K37>0,$K37<5), IF($K37=4,"Unknown", IF($K37=1, $F37*0.33, IF($K37=2, $F37*0.5+$G37*0.2, SUM(F37:G37)))), 0),"Not required") -> Unknown | P37: 0 | Q37: 0 | R37: 0 | S37: 0 | Y37: 54029 | Z37: Keiyo South | AB37: ='MDA2'!M37 -> 0
A38: =IF(INTRO!$E$34<>0,INTRO!$E$34,"") -> Kenya | B38: Elgeyo Marakwet | C38: Marakwet East | D38: 100266 | E38: =IF(INTRO!$E$48="","",ROUND($D38*INTRO!$E$48,0)) -> 15040 | F38: =IF(INTRO!$E$49="","",ROUND($D38*INTRO!$E$49,0)) -> 28074 | G38: =IF(INTRO!$E$50="","",ROUND($D38*INTRO!$E$50,0)) -> 53642 | H38: 0 | I38: 0 | J38: 4 | K38: 4 | L38: =IF(INTRO!$E$38="Endemic", IF($H38>0, IF($H38=4,"Unknown", IF($H38=99,"Stopped", $D38)), 0),"Not required") -> 0 | M38: 0 | N38: =IF(INTRO!$E$42="Endemic", IF(AND($J38>1,$J38<5), IF($J38=4, "Unknown", E38+F38), 0),"Not required") -> Unknown | O38: =IF(INTRO!$E$44="Endemic", IF(AND($K38>0,$K38<5), IF($K38=4,"Unknown", IF($K38=1, $F38*0.33, IF($K38=2, $F38*0.5+$G38*0.2, SUM(F38:G38)))), 0),"Not required") -> Unknown | P38: 0 | Q38: 0 | R38: 0 | S38: 0 | Y38: 54030 | Z38: Marakwet East | AB38: ='MDA2'!M38 -> 0
A39: =IF(INTRO!$E$34<>0,INTRO!$E$34,"") -> Kenya | B39: Elgeyo Marakwet | C39: Marakwet West | D39: 137676 | E39: =IF(INTRO!$E$48="","",ROUND($D39*INTRO!$E$48,0)) -> 20651 | F39: =IF(INTRO!$E$49="","",ROUND($D39*INTRO!$E$49,0)) -> 38549 | G39: =IF(INTRO!$E$50="","",ROUND($D39*INTRO!$E$50,0)) -> 73657 | H39: 0 | I39: 0 | J39: 4 | K39: 4 | L39: =IF(INTRO!$E$38="Endemic", IF($H39>0, IF($H39=4,"Unknown", IF($H39=99,"Stopped", $D39)), 0),"Not required") -> 0 | M39: 0 | N39: =IF(INTRO!$E$42="Endemic", IF(AND($J39>1,$J39<5), IF($J39=4, "Unknown", E39+F39), 0),"Not required") -> Unknown | O39: =IF(INTRO!$E$44="Endemic", IF(AND($K39>0,$K39<5), IF($K39=4,"Unknown", IF($K39=1, $F39*0.33, IF($K39=2, $F39*0.5+$G39*0.2, SUM(F39:G39)))), 0),"Not required") -> Unknown | P39: 0 | Q39: 0 | R39: 0 | S39: 0 | Y39: 54031 | Z39: Marakwet West | AB39: ='MDA2'!M39 -> 0
A40: =IF(INTRO!$E$34<>0,INTRO!$E$34,"") -> Kenya | B40: Embu | C40: Manyatta | D40: 192246 | E40: =IF(INTRO!$E$48="","",ROUND($D40*INTRO!$E$48,0)) -> 28837 | F40: =IF(INTRO!$E$49="","",ROUND($D40*INTRO!$E$49,0)) -> 53829 | G40: =IF(INTRO!$E$50="","",ROUND($D40*INTRO!$E$50,0)) -> 102852 | H40: 0 | I40: 0 | J40: 4 | K40: 4 | L40: =IF(INTRO!$E$38="Endemic", IF($H40>0, IF($H40=4,"Unknown", IF($H40=99,"Stopped", $D40)), 0),"Not required") -> 0 | M40: 0 | N40: =IF(INTRO!$E$42="Endemic", IF(AND($J40>1,$J40<5), IF($J40=4, "Unknown", E40+F40), 0),"Not required") -> Unknown | O40: =IF(INTRO!$E$44="Endemic", IF(AND($K40>0,$K40<5), IF($K40=4,"Unknown", IF($K40=1, $F40*0.33, IF($K40=2, $F40*0.5+$G40*0.2, SUM(F40:G40)))), 0),"Not required") -> Unknown | P40: 0 | Q40: 0 | R40: 0 | S40: 0 | Y40: 54033 | Z40: Manyatta | AB40: ='MDA2'!M40 -> 0
A41: =IF(INTRO!$E$34<>0,INTRO!$E$34,"") -> Kenya | B41: Embu | C41: Mbeere North | D41: 112313 | E41: =IF(INTRO!$E$48="","",ROUND($D41*INTRO!$E$48,0)) -> 16847 | F41: =IF(INTRO!$E$49="","",ROUND($D41*INTRO!$E$49,0)) -> 31448 | G41: =IF(INTRO!$E$50="","",ROUND($D41*INTRO!$E$50,0)) -> 60087 | H41: 0 | I41: 0 | J41: 4 | K41: 4 | L41: =IF(INTRO!$E$38="Endemic", IF($H41>0, IF($H41=4,"Unknown", IF($H41=99,"Stopped", $D41)), 0),"Not required") -> 0 | M41: 0 | N41: =IF(INTRO!$E$42="Endemic", IF(AND($J41>1,$J41<5), IF($J41=4, "Unknown", E41+F41), 0),"Not required") -> Unknown | O41: =IF(INTRO!$E$44="Endemic", IF(AND($K41>0,$K41<5), IF($K41=4,"Unknown", IF($K41=1, $F41*0.33, IF($K41=2, $F41*0.5+$G41*0.2, SUM(F41:G41)))), 0),"Not required") -> Unknown | P41: 0 | Q41: 0 | R41: 0 | S41: 0 | Y41: 54035 | Z41: Mbeere North | AB41: ='MDA2'!M41 -> 0
A42: =IF(INTRO!$E$34<>0,INTRO!$E$34,"") -> Kenya | B42: Embu | C42: Mbeere South | D42: 164257 | E42: =IF(INTRO!$E$48="","",ROUND($D42*INTRO!$E$48,0)) -> 24639 | F42: =IF(INTRO!$E$49="","",ROUND($D42*INTRO!$E$49,0)) -> 45992 | G42: =IF(INTRO!$E$50="","",ROUND($D42*INTRO!$E$50,0)) -> 87877 | H42: 0 | I42: 0 | J42: 4 | K42: 4 | L42: =IF(INTRO!$E$38="Endemic", IF($H42>0, IF($H42=4,"Unknown", IF($H42=99,"Stopped", $D42)), 0),"Not required") -> 0 | M42: 0 | N42: =IF(INTRO!$E$42="Endemic", IF(AND($J42>1,$J42<5), IF($J42=4, "Unknown", E42+F42), 0),"Not required") -> Unknown | O42: =IF(INTRO!$E$44="Endemic", IF(AND($K42>0,$K42<5), IF($K42=4,"Unknown", IF($K42=1, $F42*0.33, IF($K42=2, $F42*0.5+$G42*0.2, SUM(F42:G42)))), 0),"Not required") -> Unknown | P42: 0 | Q42: 0 | R42: 0 | S42: 0 | Y42: 54032 | Z42: Mbeere South | AB42: ='MDA2'!M42 -> 0
A43: =IF(INTRO!$E$34<>0,INTRO!$E$34,"") -> Kenya | B43: Embu | C43: Runyenjes | D43: 180673 | E43: =IF(INTRO!$E$48="","",ROUND($D43*INTRO!$E$48,0)) -> 27101 | F43: =IF(INTRO!$E$49="","",ROUND($D43*INTRO!$E$49,0)) -> 50588 | G43: =IF(INTRO!$E$50="","",ROUND($D43*INTRO!$E$50,0)) -> 96660 | H43: 0 | I43: 0 | J43: 4 | K43: 4 | L43: =IF(INTRO!$E$38="Endemic", IF($H43>0, IF($H43=4,"Unknown", IF($H43=99,"Stopped", $D43)), 0),"Not required") -> 0 | M43: 0 | N43: =IF(INTRO!$E$42="Endemic", IF(AND($J43>1,$J43<5), IF($J43=4, "Unknown", E43+F43), 0),"Not required") -> Unknown | O43: =IF(INTRO!$E$44="Endemic", IF(AND($K43>0,$K43<5), IF($K43=4,"Unknown", IF($K43=1, $F43*0.33, IF($K43=2, $F43*0.5+$G43*0.2, SUM(F43:G43)))), 0),"Not required") -> Unknown | P43: 0 | Q43: 0 | R43: 0 | S43: 0 | Y43: 54034 | Z43: Runyenjes | AB43: ='MDA2'!M43 -> 0
A44: =IF(INTRO!$E$34<>0,INTRO!$E$34,"") -> Kenya | B44: Garissa | C44: Balambala | D44: 77977 | E44: =IF(INTRO!$E$48="","",ROUND($D44*INTRO!$E$48,0)) -> 11697 | F44: =IF(INTRO!$E$49="","",ROUND($D44*INTRO!$E$49,0)) -> 21834 | G44: =IF(INTRO!$E$50="","",ROUND($D44*INTRO!$E$50,0)) -> 41718 | H44: 0 | I44: 0 | J44: 5 | K44: 4 | L44: =IF(INTRO!$E$38="Endemic", IF($H44>0, IF($H44=4,"Unknown", IF($H44=99,"Stopped", $D44)), 0),"Not required") -> 0 | M44: 0 | N44: =IF(INTRO!$E$42="Endemic", IF(AND($J44>1,$J44<5), IF($J44=4, "Unknown", E44+F44), 0),"Not required") -> 0 | O44: =IF(INTRO!$E$44="Endemic", IF(AND($K44>0,$K44<5), IF($K44=4,"Unknown", IF($K44=1, $F44*0.33, IF($K44=2, $F44*0.5+$G44*0.2, SUM(F44:G44)))), 0),"Not required") -> Unknown | P44: 0 | Q44: 0 | R44: 0 | S44: 0 | W44: T1 | Y44: 54036 | Z44: Balambala | AB44: ='MDA2'!M44 -> 0
A45: =IF(INTRO!$E$34<>0,INTRO!$E$34,"") -> Kenya | B45: Garissa | C45: Dadaab | D45: 67547 | E45: =IF(INTRO!$E$48="","",ROUND($D45*INTRO!$E$48,0)) -> 10132 | F45: =IF(INTRO!$E$49="","",ROUND($D45*INTRO!$E$49,0)) -> 18913 | G45: =IF(INTRO!$E$50="","",ROUND($D45*INTRO!$E$50,0)) -> 36138 | H45: 0 | I45: 0 | J45: 5 | K45: 4 | L45: =IF(INTRO!$E$38="Endemic", IF($H45>0, IF($H45=4,"Unknown", IF($H45=99,"Stopped", $D45)), 0),"Not required") -> 0 | M45: 0 | N45: =IF(INTRO!$E$42="Endemic", IF(AND($J45>1,$J45<5), IF($J45=4, "Unknown", E45+F45), 0),"Not required") -> 0 | O45: =IF(INTRO!$E$44="Endemic", IF(AND($K45>0,$K45<5), IF($K45=4,"Unknown", IF($K45=1, $F45*0.33, IF($K45=2, $F45*0.5+$G45*0.2, SUM(F45:G45)))), 0),"Not required") -> Unknown | P45: 0 | Q45: 0 | R45: 0 | S45: 0 | W45: T1 | Y45: 54037 | Z45: Dadaab | AB45: ='MDA2'!M45 -> 0
A46: =IF(INTRO!$E$34<>0,INTRO!$E$34,"") -> Kenya | B46: Garissa | C46: Fafi | D46: 38902 | E46: =IF(INTRO!$E$48="","",ROUND($D46*INTRO!$E$48,0)) -> 5835 | F46: =IF(INTRO!$E$49="","",ROUND($D46*INTRO!$E$49,0)) -> 10893 | G46: =IF(INTRO!$E$50="","",ROUND($D46*INTRO!$E$50,0)) -> 20813 | H46: 0 | I46: 0 | J46: 5 | K46: 4 | L46: =IF(INTRO!$E$38="Endemic", IF($H46>0, IF($H46=4,"Unknown", IF($H46=99,"Stopped", $D46)), 0),"Not required") -> 0 | M46: 0 | N46: =IF(INTRO!$E$42="Endemic", IF(AND($J46>1,$J46<5), IF($J46=4, "Unknown", E46+F46), 0),"Not required") -> 0 | O46: =IF(INTRO!$E$44="Endemic", IF(AND($K46>0,$K46<5), IF($K46=4,"Unknown", IF($K46=1, $F46*0.33, IF($K46=2, $F46*0.5+$G46*0.2, SUM(F46:G46)))), 0),"Not required") -> Unknown | P46: 0 | Q46: 0 | R46: 0 | S46: 0 | W46: T1 | Y46: 54039 | Z46: Fafi | AB46: ='MDA2'!M46 -> 0
A47: =IF(INTRO!$E$34<>0,INTRO!$E$34,"") -> Kenya | B47: Garissa | C47: Garisa Township | D47: 133443 | E47: =IF(INTRO!$E$48="","",ROUND($D47*INTRO!$E$48,0)) -> 20016 | F47: =IF(INTRO!$E$49="","",ROUND($D47*INTRO!$E$49,0)) -> 37364 | G47: =IF(INTRO!$E$50="","",ROUND($D47*INTRO!$E$50,0)) -> 71392 | H47: 0 | I47: 0 | J47: 5 | K47: 4 | L47: =IF(INTRO!$E$38="Endemic", IF($H47>0, IF($H47=4,"Unknown", IF($H47=99,"Stopped", $D47)), 0),"Not required") -> 0 | M47: 0 | N47: =IF(INTRO!$E$42="Endemic", IF(AND($J47>1,$J47<5), IF($J47=4, "Unknown", E47+F47), 0),"Not required") -> 0 | O47: =IF(INTRO!$E$44="Endemic", IF(AND($K47>0,$K47<5), IF($K47=4,"Unknown", IF($K47=1, $F47*0.33, IF($K47=2, $F47*0.5+$G47*0.2, SUM(F47:G47)))), 0),"Not required") -> Unknown | P47: 0 | Q47: 0 | R47: 0 | S47: 0 | W47: T1 | Y47: 54038 | Z47: Garisa Township | AB47: ='MDA2'!M47 -> 0
A48: =IF(INTRO!$E$34<>0,INTRO!$E$34,"") -> Kenya | B48: Garissa | C48: Ijara | D48: 115814 | E48: =IF(INTRO!$E$48="","",ROUND($D48*INTRO!$E$48,0)) -> 17372 | F48: =IF(INTRO!$E$49="","",ROUND($D48*INTRO!$E$49,0)) -> 32428 | G48: =IF(INTRO!$E$50="","",ROUND($D48*INTRO!$E$50,0)) -> 61960 | H48: 0 | I48: 0 | J48: 5 | K48: 4 | L48: =IF(INTRO!$E$38="Endemic", IF($H48>0, IF($H48=4,"Unknown", IF($H48=99,"Stopped", $D48)), 0),"Not required") -> 0 | M48: 0 | N48: =IF(INTRO!$E$42="Endemic", IF(AND($J48>1,$J48<5), IF($J48=4, "Unknown", E48+F48), 0),"Not required") -> 0 | O48: =IF(INTRO!$E$44="Endemic", IF(AND($K48>0,$K48<5), IF($K48=4,"Unknown", IF($K48=1, $F48*0.33, IF($K48=2, $F48*0.5+$G48*0.2, SUM(F48:G48)))), 0),"Not required") -> Unknown | P48: 0 | Q48: 0 | R48: 0 | S48: 0 | W48: T1 | Y48: 54040 | Z48: Ijara | AB48: ='MDA2'!M48 -> 0
A49: =IF(INTRO!$E$34<>0,INTRO!$E$34,"") -> Kenya | B49: Garissa | C49: Lagdera | D49: 105633 | E49: =IF(INTRO!$E$48="","",ROUND($D49*INTRO!$E$48,0)) -> 15845 | F49: =IF(INTRO!$E$49="","",ROUND($D49*INTRO!$E$49,0)) -> 29577 | G49: =IF(INTRO!$E$50="","",ROUND($D49*INTRO!$E$50,0)) -> 56514 | H49: 0 | I49: 0 | J49: 5 | K49: 4 | L49: =IF(INTRO!$E$38="Endemic", IF($H49>0, IF($H49=4,"Unknown", IF($H49=99,"Stopped", $D49)), 0),"Not required") -> 0 | M49: 0 | N49: =IF(INTRO!$E$42="Endemic", IF(AND($J49>1,$J49<5), IF($J49=4, "Unknown", E49+F49), 0),"Not required") -> 0 | O49: =IF(INTRO!$E$44="Endemic", IF(AND($K49>0,$K49<5), IF($K49=4,"Unknown", IF($K49=1, $F49*0.33, IF($K49=2, $F49*0.5+$G49*0.2, SUM(F49:G49)))), 0),"Not required") -> Unknown | P49: 0 | Q49: 0 | R49: 0 | S49: 0 | W49: T1 | Y49: 54041 | Z49: Lagdera | AB49: ='MDA2'!M49 -> 0
A50: =IF(INTRO!$E$34<>0,INTRO!$E$34,"") -> Kenya | B50: Homa Bay | C50: Homabay Town | D50: 119347 | E50: =IF(INTRO!$E$48="","",ROUND($D50*INTRO!$E$48,0)) -> 17902 | F50: =IF(INTRO!$E$49="","",ROUND($D50*INTRO!$E$49,0)) -> 33417 | G50: =IF(INTRO!$E$50="","",ROUND($D50*INTRO!$E$50,0)) -> 63851 | H50: 0 | I50: 0 | J50: 2 | K50: 2 | L50: =IF(INTRO!$E$38="Endemic", IF($H50>0, IF($H50=4,"Unknown", IF($H50=99,"Stopped", $D50)), 0),"Not required") -> 0 | M50: 0 | N50: =IF(INTRO!$E$42="Endemic", IF(AND($J50>1,$J50<5), IF($J50=4, "Unknown", E50+F50), 0),"Not required") -> 51319 | O50: =IF(INTRO!$E$44="Endemic", IF(AND($K50>0,$K50<5), IF($K50=4,"Unknown", IF($K50=1, $F50*0.33, IF($K50=2, $F50*0.5+$G50*0.2, SUM(F50:G50)))), 0),"Not required") -> 29478.7 | P50: 0 | Q50: 0 | R50: 1 | S50: 0 | W50: T1 | Y50: 54042 | Z50: Homabay Town | AB50: ='MDA2'!M50 -> 0
A51: =IF(INTRO!$E$34<>0,INTRO!$E$34,"") -> Kenya | B51: Homa Bay | C51: Kabondo Kasipul | D51: 136792 | E51: =IF(INTRO!$E$48="","",ROUND($D51*INTRO!$E$48,0)) -> 20519 | F51: =IF(INTRO!$E$49="","",ROUND($D51*INTRO!$E$49,0)) -> 38302 | G51: =IF(INTRO!$E$50="","",ROUND($D51*INTRO!$E$50,0)) -> 73184 | H51: 0 | I51: 0 | J51: 2 | K51: 2 | L51: =IF(INTRO!$E$38="Endemic", IF($H51>0, IF($H51=4,"Unknown", IF($H51=99,"Stopped", $D51)), 0),"Not required") -> 0 | M51: 0 | N51: =IF(INTRO!$E$42="Endemic", IF(AND($J51>1,$J51<5), IF($J51=4, "Unknown", E51+F51), 0),"Not required") -> 58821 | O51: =IF(INTRO!$E$44="Endemic", IF(AND($K51>0,$K51<5), IF($K51=4,"Unknown", IF($K51=1, $F51*0.33, IF($K51=2, $F51*0.5+$G51*0.2, SUM(F51:G51)))), 0),"Not required") -> 33787.8 | P51: 0 | Q51: 0 | R51: 1 | S51: 0 | Y51: 54043 | Z51: Kabondo Kasipul | AB51: ='MDA2'!M51 -> 0
A52: =IF(INTRO!$E$34<>0,INTRO!$E$34,"") -> Kenya | B52: Homa Bay | C52: Karachuonyo | D52: 205604 | E52: =IF(INTRO!$E$48="","",ROUND($D52*INTRO!$E$48,0)) -> 30841 | F52: =IF(INTRO!$E$49="","",ROUND($D52*INTRO!$E$49,0)) -> 57569 | G52: =IF(INTRO!$E$50="","",ROUND($D52*INTRO!$E$50,0)) -> 109998 | H52: 0 | I52: 0 | J52: 2 | K52: 2 | L52: =IF(INTRO!$E$38="Endemic", IF($H52>0, IF($H52=4,"Unknown", IF($H52=99,"Stopped", $D52)), 0),"Not required") -> 0 | M52: 0 | N52: =IF(INTRO!$E$42="Endemic", IF(AND($J52>1,$J52<5), IF($J52=4, "Unknown", E52+F52), 0),"Not required") -> 88410 | O52: =IF(INTRO!$E$44="Endemic", IF(AND($K52>0,$K52<5), IF($K52=4,"Unknown", IF($K52=1, $F52*0.33, IF($K52=2, $F52*0.5+$G52*0.2, SUM(F52:G52)))), 0),"Not required") -> 50784.1 | P52: 0 | Q52: 0 | R52: 1 | S52: 0 | W52: T1 | Y52: 54044 | Z52: Karachuonyo | AB52: ='MDA2'!M52 -> 0
A53: =IF(INTRO!$E$34<>0,INTRO!$E$34,"") -> Kenya | B53: Homa Bay | C53: Kasipul | D53: 142750 | E53: =IF(INTRO!$E$48="","",ROUND($D53*INTRO!$E$48,0)) -> 21413 | F53: =IF(INTRO!$E$49="","",ROUND($D53*INTRO!$E$49,0)) -> 39970 | G53: =IF(INTRO!$E$50="","",ROUND($D53*INTRO!$E$50,0)) -> 76371 | H53: 0 | I53: 0 | J53: 2 | K53: 2 | L53: =IF(INTRO!$E$38="Endemic", IF($H53>0, IF($H53=4,"Unknown", IF($H53=99,"Stopped", $D53)), 0),"Not required") -> 0 | M53: 0 | N53: =IF(INTRO!$E$42="Endemic", IF(AND($J53>1,$J53<5), IF($J53=4, "Unknown", E53+F53), 0),"Not required") -> 61383 | O53: =IF(INTRO!$E$44="Endemic", IF(AND($K53>0,$K53<5), IF($K53=4,"Unknown", IF($K53=1, $F53*0.33, IF($K53=2, $F53*0.5+$G53*0.2, SUM(F53:G53)))), 0),"Not required") -> 35259.2 | P53: 0 | Q53: 0 | R53: 1 | S53: 0 | W53: T1 | Y53: 54045 | Z53: Kasipul | AB53: ='MDA2'!M53 -> 0
A54: =IF(INTRO!$E$34<>0,INTRO!$E$34,"") -> Kenya | B54: Homa Bay | C54: Mbita | D54: 140867 | E54: =IF(INTRO!$E$48="","",ROUND($D54*INTRO!$E$48,0)) -> 21130 | F54: =IF(INTRO!$E$49="","",ROUND($D54*INTRO!$E$49,0)) -> 39443 | G54: =IF(INTRO!$E$50="","",ROUND($D54*INTRO!$E$50,0)) -> 75364 | H54: 0 | I54: 0 | J54: 2 | K54: 2 | L54: =IF(INTRO!$E$38="Endemic", IF($H54>0, IF($H54=4,"Unknown", IF($H54=99,"Stopped", $D54)), 0),"Not required") -> 0 | M54: 0 | N54: =IF(INTRO!$E$42="Endemic", IF(AND($J54>1,$J54<5), IF($J54=4, "Unknown", E54+F54), 0),"Not required") -> 60573 | O54: =IF(INTRO!$E$44="Endemic", IF(AND($K54>0,$K54<5), IF($K54=4,"Unknown", IF($K54=1, $F54*0.33, IF($K54=2, $F54*0.5+$G54*0.2, SUM(F54:G54)))), 0),"Not required") -> 34794.3 | P54: 0 | Q54: 0 | R54: 1 | S54: 0 | W54: T1 | Y54: 54048 | Z54: Mbita | AB54: ='MDA2'!M54 -> 0
A55: =IF(INTRO!$E$34<>0,INTRO!$E$34,"") -> Kenya | B55: Homa Bay | C55: Ndhiwa | D55: 219373 | E55: =IF(INTRO!$E$48="","",ROUND($D55*INTRO!$E$48,0)) -> 32906 | F55: =IF(INTRO!$E$49="","",ROUND($D55*INTRO!$E$49,0)) -> 61424 | G55: =IF(INTRO!$E$50="","",ROUND($D55*INTRO!$E$50,0)) -> 117365 | H55: 0 | I55: 0 | J55: 2 | K55: 2 | L55: =IF(INTRO!$E$38="Endemic", IF($H55>0, IF($H55=4,"Unknown", IF($H55=99,"Stopped", $D55)), 0),"Not required") -> 0 | M55: 0 | N55: =IF(INTRO!$E$42="Endemic", IF(AND($J55>1,$J55<5), IF($J55=4, "Unknown", E55+F55), 0),"Not required") -> 94330 | O55: =IF(INTRO!$E$44="Endemic", IF(AND($K55>0,$K55<5), IF($K55=4,"Unknown", IF($K55=1, $F55*0.33, IF($K55=2, $F55*0.5+$G55*0.2, SUM(F55:G55)))), 0),"Not required") -> 54185 | P55: 0 | Q55: 0 | R55: 1 | S55: 0 | W55: T1 | Y55: 54046 | Z55: Ndhiwa | AB55: ='MDA2'!M55 -> 0
A56: =IF(INTRO!$E$34<>0,INTRO!$E$34,"") -> Kenya | B56: Homa Bay | C56: Rangwe | D56: 124781 | E56: =IF(INTRO!$E$48="","",ROUND($D56*INTRO!$E$48,0)) -> 18717 | F56: =IF(INTRO!$E$49="","",ROUND($D56*INTRO!$E$49,0)) -> 34939 | G56: =IF(INTRO!$E$50="","",ROUND($D56*INTRO!$E$50,0)) -> 66758 | H56: 0 | I56: 0 | J56: 2 | K56: 2 | L56: =IF(INTRO!$E$38="Endemic", IF($H56>0, IF($H56=4,"Unknown", IF($H56=99,"Stopped", $D56)), 0),"Not required") -> 0 | M56: 0 | N56: =IF(INTRO!$E$42="Endemic", IF(AND($J56>1,$J56<5), IF($J56=4, "Unknown", E56+F56), 0),"Not required") -> 53656 | O56: =IF(INTRO!$E$44="Endemic", IF(AND($K56>0,$K56<5), IF($K56=4,"Unknown", IF($K56=1, $F56*0.33, IF($K56=2, $F56*0.5+$G56*0.2, SUM(F56:G56)))), 0),"Not required") -> 30821.1 | P56: 0 | Q56: 0 | R56: 1 | S56: 0 | Y56: 54047 | Z56: Rangwe | AB56: ='MDA2'!M56 -> 0
A57: =IF(INTRO!$E$34<>0,INTRO!$E$34,"") -> Kenya | B57: Homa Bay | C57: Suba | D57: 130485 | E57: =IF(INTRO!$E$48="","",ROUND($D57*INTRO!$E$48,0)) -> 19573 | F57: =IF(INTRO!$E$49="","",ROUND($D57*INTRO!$E$49,0)) -> 36536 | G57: =IF(INTRO!$E$50="","",ROUND($D57*INTRO!$E$50,0)) -> 69809 | H57: 0 | I57: 0 | J57: 2 | K57: 2 | L57: =IF(INTRO!$E$38="Endemic", IF($H57>0, IF($H57=4,"Unknown", IF($H57=99,"Stopped", $D57)), 0),"Not required") -> 0 | M57: 0 | N57: =IF(INTRO!$E$42="Endemic", IF(AND($J57>1,$J57<5), IF($J57=4, "Unknown", E57+F57), 0),"Not required") -> 56109 | O57: =IF(INTRO!$E$44="Endemic", IF(AND($K57>0,$K57<5), IF($K57=4,"Unknown", IF($K57=1, $F57*0.33, IF($K57=2, $F57*0.5+$G57*0.2, SUM(F57:G57)))), 0),"Not required") -> 32229.8 | P57: 0 | Q57: 0 | R57: 1 | S57: 0 | W57: T1 | Y57: 54049 | Z57: Suba | AB57: ='MDA2'!M57 -> 0
A58: =IF(INTRO!$E$34<>0,INTRO!$E$34,"") -> Kenya | B58: Isiolo | C58: Isiolo North | D58: 188851 | E58: =IF(INTRO!$E$48="","",ROUND($D58*INTRO!$E$48,0)) -> 28328 | F58: =IF(INTRO!$E$49="","",ROUND($D58*INTRO!$E$49,0)) -> 52878 | G58: =IF(INTRO!$E$50="","",ROUND($D58*INTRO!$E$50,0)) -> 101035 | H58: 0 | I58: 0 | J58: 4 | K58: 4 | L58: =IF(INTRO!$E$38="Endemic", IF($H58>0, IF($H58=4,"Unknown", IF($H58=99,"Stopped", $D58)), 0),"Not required") -> 0 | M58: 0 | N58: =IF(INTRO!$E$42="Endemic", IF(AND($J58>1,$J58<5), IF($J58=4, "Unknown", E58+F58), 0),"Not required") -> Unknown | O58: =IF(INTRO!$E$44="Endemic", IF(AND($K58>0,$K58<5), IF($K58=4,"Unknown", IF($K58=1, $F58*0.33, IF($K58=2, $F58*0.5+$G58*0.2, SUM(F58:G58)))), 0),"Not required") -> Unknown | P58: 0 | Q58: 0 | R58: 0 | S58: 0 | Y58: 54050 | Z58: Isiolo North | AB58: ='MDA2'!M58 -> 0
A59: =IF(INTRO!$E$34<>0,INTRO!$E$34,"") -> Kenya | B59: Isiolo | C59: Isiolo South | D59: 54580 | E59: =IF(INTRO!$E$48="","",ROUND($D59*INTRO!$E$48,0)) -> 8187 | F59: =IF(INTRO!$E$49="","",ROUND($D59*INTRO!$E$49,0)) -> 15282 | G59: =IF(INTRO!$E$50="","",ROUND($D59*INTRO!$E$50,0)) -> 29200 | H59: 0 | I59: 0 | J59: 4 | K59: 4 | L59: =IF(INTRO!$E$38="Endemic", IF($H59>0, IF($H59=4,"Unknown", IF($H59=99,"Stopped", $D59)), 0),"Not required") -> 0 | M59: 0 | N59: =IF(INTRO!$E$42="Endemic", IF(AND($J59>1,$J59<5), IF($J59=4, "Unknown", E59+F59), 0),"Not required") -> Unknown | O59: =IF(INTRO!$E$44="Endemic", IF(AND($K59>0,$K59<5), IF($K59=4,"Unknown", IF($K59=1, $F59*0.33, IF($K59=2, $F59*0.5+$G59*0.2, SUM(F59:G59)))), 0),"Not required") -> Unknown | P59: 0 | Q59: 0 | R59: 0 | S59: 0 | Y59: 54051 | Z59: Isiolo South | AB59: ='MDA2'!M59 -> 0
A60: =IF(INTRO!$E$34<>0,INTRO!$E$34,"") -> Kenya | B60: Kajiado | C60: Kajiado Central | D60: 131204 | E60: =IF(INTRO!$E$48="","",ROUND($D60*INTRO!$E$48,0)) -> 19681 | F60: =IF(INTRO!$E$49="","",ROUND($D60*INTRO!$E$49,0)) -> 36737 | G60: =IF(INTRO!$E$50="","",ROUND($D60*INTRO!$E$50,0)) -> 70194 | H60: 0 | I60: 0 | J60: 5 | K60: 4 | L60: =IF(INTRO!$E$38="Endemic", IF($H60>0, IF($H60=4,"Unknown", IF($H60=99,"Stopped", $D60)), 0),"Not required") -> 0 | M60: 0 | N60: =IF(INTRO!$E$42="Endemic", IF(AND($J60>1,$J60<5), IF($J60=4, "Unknown", E60+F60), 0),"Not required") -> 0 | O60: =IF(INTRO!$E$44="Endemic", IF(AND($K60>0,$K60<5), IF($K60=4,"Unknown", IF($K60=1, $F60*0.33, IF($K60=2, $F60*0.5+$G60*0.2, SUM(F60:G60)))), 0),"Not required") -> Unknown | P60: 0 | Q60: 0 | R60: 0 | S60: 0 | Y60: 54052 | Z60: Kajiado Central | AB60: ='MDA2'!M60 -> 0
A61: =IF(INTRO!$E$34<>0,INTRO!$E$34,"") -> Kenya | B61: Kajiado | C61: Kajiado East | D61: 169912 | E61: =IF(INTRO!$E$48="","",ROUND($D61*INTRO!$E$48,0)) -> 25487 | F61: =IF(INTRO!$E$49="","",ROUND($D61*INTRO!$E$49,0)) -> 47575 | G61: =IF(INTRO!$E$50="","",ROUND($D61*INTRO!$E$50,0)) -> 90903 | H61: 0 | I61: 0 | J61: 5 | K61: 4 | L61: =IF(INTRO!$E$38="Endemic", IF($H61>0, IF($H61=4,"Unknown", IF($H61=99,"Stopped", $D61)), 0),"Not required") -> 0 | M61: 0 | N61: =IF(INTRO!$E$42="Endemic", IF(AND($J61>1,$J61<5), IF($J61=4, "Unknown", E61+F61), 0),"Not required") -> 0 | O61: =IF(INTRO!$E$44="Endemic", IF(AND($K61>0,$K61<5), IF($K61=4,"Unknown", IF($K61=1, $F61*0.33, IF($K61=2, $F61*0.5+$G61*0.2, SUM(F61:G61)))), 0),"Not required") -> Unknown | P61: 0 | Q61: 0 | R61: 0 | S61: 0 | Y61: 54053 | Z61: Kajiado East | AB61: ='MDA2'!M61 -> 0
A62: =IF(INTRO!$E$34<>0,INTRO!$E$34,"") -> Kenya | B62: Kajiado | C62: Kajiado North | D62: 244627 | E62: =IF(INTRO!$E$48="","",ROUND($D62*INTRO!$E$48,0)) -> 36694 | F62: =IF(INTRO!$E$49="","",ROUND($D62*INTRO!$E$49,0)) -> 68496 | G62: =IF(INTRO!$E$50="","",ROUND($D62*INTRO!$E$50,0)) -> 130875 | H62: 0 | I62: 0 | J62: 5 | K62: 4 | L62: =IF(INTRO!$E$38="Endemic", IF($H62>0, IF($H62=4,"Unknown", IF($H62=99,"Stopped", $D62)), 0),"Not required") -> 0 | M62: 0 | N62: =IF(INTRO!$E$42="Endemic", IF(AND($J62>1,$J62<5), IF($J62=4, "Unknown", E62+F62), 0),"Not required") -> 0 | O62: =IF(INTRO!$E$44="Endemic", IF(AND($K62>0,$K62<5), IF($K62=4,"Unknown", IF($K62=1, $F62*0.33, IF($K62=2, $F62*0.5+$G62*0.2, SUM(F62:G62)))), 0),"Not required") -> Unknown | P62: 0 | Q62: 0 | R62: 0 | S62: 0 | Y62: 54054 | Z62: Kajiado North | AB62: ='MDA2'!M62 -> 0
A63: =IF(INTRO!$E$34<>0,INTRO!$E$34,"") -> Kenya | B63: Kajiado | C63: Kajiado South | D63: 172228 | E63: =IF(INTRO!$E$48="","",ROUND($D63*INTRO!$E$48,0)) -> 25834 | F63: =IF(INTRO!$E$49="","",ROUND($D63*INTRO!$E$49,0)) -> 48224 | G63: =IF(INTRO!$E$50="","",ROUND($D63*INTRO!$E$50,0)) -> 92142 | H63: 0 | I63: 0 | J63: 5 | K63: 4 | L63: =IF(INTRO!$E$38="Endemic", IF($H63>0, IF($H63=4,"Unknown", IF($H63=99,"Stopped", $D63)), 0),"Not required") -> 0 | M63: 0 | N63: =IF(INTRO!$E$42="Endemic", IF(AND($J63>1,$J63<5), IF($J63=4, "Unknown", E63+F63), 0),"Not required") -> 0 | O63: =IF(INTRO!$E$44="Endemic", IF(AND($K63>0,$K63<5), IF($K63=4,"Unknown", IF($K63=1, $F63*0.33, IF($K63=2, $F63*0.5+$G63*0.2, SUM(F63:G63)))), 0),"Not required") -> Unknown | P63: 0 | Q63: 0 | R63: 0 | S63: 0 | Y63: 54055 | Z63: Kajiado South | AB63: ='MDA2'!M63 -> 0
A64: =IF(INTRO!$E$34<>0,INTRO!$E$34,"") -> Kenya | B64: Kajiado | C64: Kajiado West | D64: 146171 | E64: =IF(INTRO!$E$48="","",ROUND($D64*INTRO!$E$48,0)) -> 21926 | F64: =IF(INTRO!$E$49="","",ROUND($D64*INTRO!$E$49,0)) -> 40928 | G64: =IF(INTRO!$E$50="","",ROUND($D64*INTRO!$E$50,0)) -> 78201 | H64: 0 | I64: 0 | J64: 5 | K64: 4 | L64: =IF(INTRO!$E$38="Endemic", IF($H64>0, IF($H64=4,"Unknown", IF($H64=99,"Stopped", $D64)), 0),"Not required") -> 0 | M64: 0 | N64: =IF(INTRO!$E$42="Endemic", IF(AND($J64>1,$J64<5), IF($J64=4, "Unknown", E64+F64), 0),"Not required") -> 0 | O64: =IF(INTRO!$E$44="Endemic", IF(AND($K64>0,$K64<5), IF($K64=4,"Unknown", IF($K64=1, $F64*0.33, IF($K64=2, $F64*0.5+$G64*0.2, SUM(F64:G64)))), 0),"Not required") -> Unknown | P64: 0 | Q64: 0 | R64: 0 | S64: 0 | Y64: 54056 | Z64: Kajiado West | AB64: ='MDA2'!M64 -> 0
A65: =IF(INTRO!$E$34<>0,INTRO!$E$34,"") -> Kenya | B65: Kakamega | C65: Butere | D65: 177782 | E65: =IF(INTRO!$E$48="","",ROUND($D65*INTRO!$E$48,0)) -> 26667 | F65: =IF(INTRO!$E$49="","",ROUND($D65*INTRO!$E$49,0)) -> 49779 | G65: =IF(INTRO!$E$50="","",ROUND($D65*INTRO!$E$50,0)) -> 95113 | H65: 0 | I65: 0 | J65: 3 | K65: 4 | L65: =IF(INTRO!$E$38="Endemic", IF($H65>0, IF($H65=4,"Unknown", IF($H65=99,"Stopped", $D65)), 0),"Not required") -> 0 | M65: 0 | N65: =IF(INTRO!$E$42="Endemic", IF(AND($J65>1,$J65<5), IF($J65=4, "Unknown", E65+F65), 0),"Not required") -> 76446 | O65: =IF(INTRO!$E$44="Endemic", IF(AND($K65>0,$K65<5), IF($K65=4,"Unknown", IF($K65=1, $F65*0.33, IF($K65=2, $F65*0.5+$G65*0.2, SUM(F65:G65)))), 0),"Not required") -> Unknown | P65: 0 | Q65: 0 | R65: 1 | S65: 0 | W65: T3 | Y65: 54057 | Z65: Butere | AB65: ='MDA2'!M65 -> 0
A66: =IF(INTRO!$E$34<>0,INTRO!$E$34,"") -> Kenya | B66: Kakamega | C66: Ikolmani | D66: 132428 | E66: =IF(INTRO!$E$48="","",ROUND($D66*INTRO!$E$48,0)) -> 19864 | F66: =IF(INTRO!$E$49="","",ROUND($D66*INTRO!$E$49,0)) -> 37080 | G66: =IF(INTRO!$E$50="","",ROUND($D66*INTRO!$E$50,0)) -> 70849 | H66: 0 | I66: 0 | J66: 3 | K66: 4 | L66: =IF(INTRO!$E$38="Endemic", IF($H66>0, IF($H66=4,"Unknown", IF($H66=99,"Stopped", $D66)), 0),"Not required") -> 0 | M66: 0 | N66: =IF(INTRO!$E$42="Endemic", IF(AND($J66>1,$J66<5), IF($J66=4, "Unknown", E66+F66), 0),"Not required") -> 56944 | O66: =IF(INTRO!$E$44="Endemic", IF(AND($K66>0,$K66<5), IF($K66=4,"Unknown", IF($K66=1, $F66*0.33, IF($K66=2, $F66*0.5+$G66*0.2, SUM(F66:G66)))), 0),"Not required") -> Unknown | P66: 0 | Q66: 0 | R66: 1 | S66: 0 | W66: T3 | Y66: 54058 | Z66: Ikolmani | AB66: ='MDA2'!M66 -> 0
A67: =IF(INTRO!$E$34<>0,INTRO!$E$34,"") -> Kenya | B67: Kakamega | C67: Khwisero | D67: 130475 | E67: =IF(INTRO!$E$48="","",ROUND($D67*INTRO!$E$48,0)) -> 19571 | F67: =IF(INTRO!$E$49="","",ROUND($D67*INTRO!$E$49,0)) -> 36533 | G67: =IF(INTRO!$E$50="","",ROUND($D67*INTRO!$E$50,0)) -> 69804 | H67: 0 | I67: 0 | J67: 3 | K67: 4 | L67: =IF(INTRO!$E$38="Endemic", IF($H67>0, IF($H67=4,"Unknown", IF($H67=99,"Stopped", $D67)), 0),"Not required") -> 0 | M67: 0 | N67: =IF(INTRO!$E$42="Endemic", IF(AND($J67>1,$J67<5), IF($J67=4, "Unknown", E67+F67), 0),"Not required") -> 56104 | O67: =IF(INTRO!$E$44="Endemic", IF(AND($K67>0,$K67<5), IF($K67=4,"Unknown", IF($K67=1, $F67*0.33, IF($K67=2, $F67*0.5+$G67*0.2, SUM(F67:G67)))), 0),"Not required") -> Unknown | P67: 0 | Q67: 0 | R67: 1 | S67: 0 | W67: T3 | Y67: 54059 | Z67: Khwisero | AB67: ='MDA2'!M67 -> 0
A68: =IF(INTRO!$E$34<>0,INTRO!$E$34,"") -> Kenya | B68: Kakamega | C68: Likuyani | D68: 158985 | E68: =IF(INTRO!$E$48="","",ROUND($D68*INTRO!$E$48,0)) -> 23848 | F68: =IF(INTRO!$E$49="","",ROUND($D68*INTRO!$E$49,0)) -> 44516 | G68: =IF(INTRO!$E$50="","",ROUND($D68*INTRO!$E$50,0)) -> 85057 | H68: 0 | I68: 0 | J68: 3 | K68: 4 | L68: =IF(INTRO!$E$38="Endemic", IF($H68>0, IF($H68=4,"Unknown", IF($H68=99,"Stopped", $D68)), 0),"Not required") -> 0 | M68: 0 | N68: =IF(INTRO!$E$42="Endemic", IF(AND($J68>1,$J68<5), IF($J68=4, "Unknown", E68+F68), 0),"Not required") -> 68364 | O68: =IF(INTRO!$E$44="Endemic", IF(AND($K68>0,$K68<5), IF($K68=4,"Unknown", IF($K68=1, $F68*0.33, IF($K68=2, $F68*0.5+$G68*0.2, SUM(F68:G68)))), 0),"Not required") -> Unknown | P68: 0 | Q68: 0 | R68: 1 | S68: 0 | W68: T3 | Y68: 54060 | Z68: Likuyani | AB68: ='MDA2'!M68 -> 0
A69: =IF(INTRO!$E$34<>0,INTRO!$E$34,"") -> Kenya | B69: Kakamega | C69: Lugari | D69: 212513 | E69: =IF(INTRO!$E$48="","",ROUND($D69*INTRO!$E$48,0)) -> 31877 | F69: =IF(INTRO!$E$49="","",ROUND($D69*INTRO!$E$49,0)) -> 59504 | G69: =IF(INTRO!$E$50="","",ROUND($D69*INTRO!$E$50,0)) -> 113694 | H69: 0 | I69: 0 | J69: 3 | K69: 4 | L69: =IF(INTRO!$E$38="Endemic", IF($H69>0, IF($H69=4,"Unknown", IF($H69=99,"Stopped", $D69)), 0),"Not required") -> 0 | M69: 0 | N69: =IF(INTRO!$E$42="Endemic", IF(AND($J69>1,$J69<5), IF($J69=4, "Unknown", E69+F69), 0),"Not required") -> 91381 | O69: =IF(INTRO!$E$44="Endemic", IF(AND($K69>0,$K69<5), IF($K69=4,"Unknown", IF($K69=1, $F69*0.33, IF($K69=2, $F69*0.5+$G69*0.2, SUM(F69:G69)))), 0),"Not required") -> Unknown | P69: 0 | Q69: 0 | R69: 1 | S69: 0 | W69: T3 | Y69: 54061 | Z69: Lugari | AB69: ='MDA2'!M69 -> 0
A70: =IF(INTRO!$E$34<>0,INTRO!$E$34,"") -> Kenya | B70: Kakamega | C70: Lurambi | D70: 196579 | E70: =IF(INTRO!$E$48="","",ROUND($D70*INTRO!$E$48,0)) -> 29487 | F70: =IF(INTRO!$E$49="","",ROUND($D70*INTRO!$E$49,0)) -> 55042 | G70: =IF(INTRO!$E$50="","",ROUND($D70*INTRO!$E$50,0)) -> 105170 | H70: 0 | I70: 0 | J70: 3 | K70: 4 | L70: =IF(INTRO!$E$38="Endemic", IF($H70>0, IF($H70=4,"Unknown", IF($H70=99,"Stopped", $D70)), 0),"Not required") -> 0 | M70: 0 | N70: =IF(INTRO!$E$42="Endemic", IF(AND($J70>1,$J70<5), IF($J70=4, "Unknown", E70+F70), 0),"Not required") -> 84529 | O70: =IF(INTRO!$E$44="Endemic", IF(AND($K70>0,$K70<5), IF($K70=4,"Unknown", IF($K70=1, $F70*0.33, IF($K70=2, $F70*0.5+$G70*0.2, SUM(F70:G70)))), 0),"Not required") -> Unknown | P70: 0 | Q70: 0 | R70: 1 | S70: 0 | W70: T3 | Y70: 54062 | Z70: Lurambi | AB70: ='MDA2'!M70 -> 0
A71: =IF(INTRO!$E$34<>0,INTRO!$E$34,"") -> Kenya | B71: Kakamega | C71: Malava | D71: 260669 | E71: =IF(INTRO!$E$48="","",ROUND($D71*INTRO!$E$48,0)) -> 39100 | F71: =IF(INTRO!$E$49="","",ROUND($D71*INTRO!$E$49,0)) -> 72987 | G71: =IF(INTRO!$E$50="","",ROUND($D71*INTRO!$E$50,0)) -> 139458 | H71: 0 | I71: 0 | J71: 3 | K71: 4 | L71: =IF(INTRO!$E$38="Endemic", IF($H71>0, IF($H71=4,"Unknown", IF($H71=99,"Stopped", $D71)), 0),"Not required") -> 0 | M71: 0 | N71: =IF(INTRO!$E$42="Endemic", IF(AND($J71>1,$J71<5), IF($J71=4, "Unknown", E71+F71), 0),"Not required") -> 112087 | O71: =IF(INTRO!$E$44="Endemic", IF(AND($K71>0,$K71<5), IF($K71=4,"Unknown", IF($K71=1, $F71*0.33, IF($K71=2, $F71*0.5+$G71*0.2, SUM(F71:G71)))), 0),"Not required") -> Unknown | P71: 0 | Q71: 0 | R71: 1 | S71: 0 | W71: T3 | Y71: 54063 | Z71: Malava | AB71: ='MDA2'!M71 -> 0
A72: =IF(INTRO!$E$34<>0,INTRO!$E$34,"") -> Kenya | B72: Kakamega | C72: Matungu | D72: 186487 | E72: =IF(INTRO!$E$48="","",ROUND($D72*INTRO!$E$48,0)) -> 27973 | F72: =IF(INTRO!$E$49="","",ROUND($D72*INTRO!$E$49,0)) -> 52216 | G72: =IF(INTRO!$E$50="","",ROUND($D72*INTRO!$E$50,0)) -> 99771 | H72: 0 | I72: 0 | J72: 3 | K72: 4 | L72: =IF(INTRO!$E$38="Endemic", IF($H72>0, IF($H72=4,"Unknown", IF($H72=99,"Stopped", $D72)), 0),"Not required") -> 0 | M72: 0 | N72: =IF(INTRO!$E$42="Endemic", IF(AND($J72>1,$J72<5), IF($J72=4, "Unknown", E72+F72), 0),"Not required") -> 80189 | O72: =IF(INTRO!$E$44="Endemic", IF(AND($K72>0,$K72<5), IF($K72=4,"Unknown", IF($K72=1, $F72*0.33, IF($K72=2, $F72*0.5+$G72*0.2, SUM(F72:G72)))), 0),"Not required") -> Unknown | P72: 0 | Q72: 0 | R72: 1 | S72: 0 | W72: T3 | Y72: 54064 | Z72: Matungu | AB72: ='MDA2'!M72 -> 0
A73: =IF(INTRO!$E$34<>0,INTRO!$E$34,"") -> Kenya | B73: Kakamega | C73: Mumias East | D73: 128221 | E73: =IF(INTRO!$E$48="","",ROUND($D73*INTRO!$E$48,0)) -> 19233 | F73: =IF(INTRO!$E$49="","",ROUND($D73*INTRO!$E$49,0)) -> 35902 | G73: =IF(INTRO!$E$50="","",ROUND($D73*INTRO!$E$50,0)) -> 68598 | H73: 0 | I73: 0 | J73: 3 | K73: 4 | L73: =IF(INTRO!$E$38="Endemic", IF($H73>0, IF($H73=4,"Unknown", IF($H73=99,"Stopped", $D73)), 0),"Not required") -> 0 | M73: 0 | N73: =IF(INTRO!$E$42="Endemic", IF(AND($J73>1,$J73<5), IF($J73=4, "Unknown", E73+F73), 0),"Not required") -> 55135 | O73: =IF(INTRO!$E$44="Endemic", IF(AND($K73>0,$K73<5), IF($K73=4,"Unknown", IF($K73=1, $F73*0.33, IF($K73=2, $F73*0.5+$G73*0.2, SUM(F73:G73)))), 0),"Not required") -> Unknown | P73: 0 | Q73: 0 | R73: 1 | S73: 0 | W73: T3 | Y73: 54065 | Z73: Mumias East | AB73: ='MDA2'!M73 -> 0
A74: =IF(INTRO!$E$34<>0,INTRO!$E$34,"") -> Kenya | B74: Kakamega | C74: Mumias West | D74: 141696 | E74: =IF(INTRO!$E$48="","",ROUND($D74*INTRO!$E$48,0)) -> 21254 | F74: =IF(INTRO!$E$49="","",ROUND($D74*INTRO!$E$49,0)) -> 39675 | G74: =IF(INTRO!$E$50="","",ROUND($D74*INTRO!$E$50,0)) -> 75807 | H74: 0 | I74: 0 | J74: 3 | K74: 4 | L74: =IF(INTRO!$E$38="Endemic", IF($H74>0, IF($H74=4,"Unknown", IF($H74=99,"Stopped", $D74)), 0),"Not required") -> 0 | M74: 0 | N74: =IF(INTRO!$E$42="Endemic", IF(AND($J74>1,$J74<5), IF($J74=4, "Unknown", E74+F74), 0),"Not required") -> 60929 | O74: =IF(INTRO!$E$44="Endemic", IF(AND($K74>0,$K74<5), IF($K74=4,"Unknown", IF($K74=1, $F74*0.33, IF($K74=2, $F74*0.5+$G74*0.2, SUM(F74:G74)))), 0),"Not required") -> Unknown | P74: 0 | Q74: 0 | R74: 1 | S74: 0 | W74: T3 | Y74: 54066 | Z74: Mumias West | AB74: ='MDA2'!M74 -> 0
A75: =IF(INTRO!$E$34<>0,INTRO!$E$34,"") -> Kenya | B75: Kakamega | C75: Navakholo | D75: 174934 | E75: =IF(INTRO!$E$48="","",ROUND($D75*INTRO!$E$48,0)) -> 26240 | F75: =IF(INTRO!$E$49="","",ROUND($D75*INTRO!$E$49,0)) -> 48982 | G75: =IF(INTRO!$E$50="","",ROUND($D75*INTRO!$E$50,0)) -> 93590 | H75: 0 | I75: 0 | J75: 3 | K75: 4 | L75: =IF(INTRO!$E$38="Endemic", IF($H75>0, IF($H75=4,"Unknown", IF($H75=99,"Stopped", $D75)), 0),"Not required") -> 0 | M75: 0 | N75: =IF(INTRO!$E$42="Endemic", IF(AND($J75>1,$J75<5), IF($J75=4, "Unknown", E75+F75), 0),"Not required") -> 75222 | O75: =IF(INTRO!$E$44="Endemic", IF(AND($K75>0,$K75<5), IF($K75=4,"Unknown", IF($K75=1, $F75*0.33, IF($K75=2, $F75*0.5+$G75*0.2, SUM(F75:G75)))), 0),"Not required") -> Unknown | P75: 0 | Q75: 0 | R75: 1 | S75: 0 | W75: T3 | Y75: 54067 | Z75: Navakholo | AB75: ='MDA2'!M75 -> 0
A76: =IF(INTRO!$E$34<>0,INTRO!$E$34,"") -> Kenya | B76: Kakamega | C76: Shinayalu | D76: 201345 | E76: =IF(INTRO!$E$48="","",ROUND($D76*INTRO!$E$48,0)) -> 30202 | F76: =IF(INTRO!$E$49="","",ROUND($D76*INTRO!$E$49,0)) -> 56377 | G76: =IF(INTRO!$E$50="","",ROUND($D76*INTRO!$E$50,0)) -> 107720 | H76: 0 | I76: 0 | J76: 3 | K76: 4 | L76: =IF(INTRO!$E$38="Endemic", IF($H76>0, IF($H76=4,"Unknown", IF($H76=99,"Stopped", $D76)), 0),"Not required") -> 0 | M76: 0 | N76: =IF(INTRO!$E$42="Endemic", IF(AND($J76>1,$J76<5), IF($J76=4, "Unknown", E76+F76), 0),"Not required") -> 86579 | O76: =IF(INTRO!$E$44="Endemic", IF(AND($K76>0,$K76<5), IF($K76=4,"Unknown", IF($K76=1, $F76*0.33, IF($K76=2, $F76*0.5+$G76*0.2, SUM(F76:G76)))), 0),"Not required") -> Unknown | P76: 0 | Q76: 0 | R76: 1 | S76: 0 | W76: T3 | Y76: 54068 | Z76: Shinayalu | AB76: ='MDA2'!M76 -> 0
A77: =IF(INTRO!$E$34<>0,INTRO!$E$34,"") -> Kenya | B77: Kericho | C77: Ainamoi | D77: 176087 | E77: =IF(INTRO!$E$48="","",ROUND($D77*INTRO!$E$48,0)) -> 26413 | F77: =IF(INTRO!$E$49="","",ROUND($D77*INTRO!$E$49,0)) -> 49304 | G77: =IF(INTRO!$E$50="","",ROUND($D77*INTRO!$E$50,0)) -> 94207 | H77: 0 | I77: 0 | J77: 2 | K77: 4 | L77: =IF(INTRO!$E$38="Endemic", IF($H77>0, IF($H77=4,"Unknown", IF($H77=99,"Stopped", $D77)), 0),"Not required") -> 0 | M77: 0 | N77: =IF(INTRO!$E$42="Endemic", IF(AND($J77>1,$J77<5), IF($J77=4, "Unknown", E77+F77), 0),"Not required") -> 75717 | O77: =IF(INTRO!$E$44="Endemic", IF(AND($K77>0,$K77<5), IF($K77=4,"Unknown", IF($K77=1, $F77*0.33, IF($K77=2, $F77*0.5+$G77*0.2, SUM(F77:G77)))), 0),"Not required") -> Unknown | P77: 0 | Q77: 0 | R77: 1 | S77: 0 | W77: T3 | Y77: 54069 | Z77: Ainamoi | AB77: ='MDA2'!M77 -> 0
A78: =IF(INTRO!$E$34<>0,INTRO!$E$34,"") -> Kenya | B78: Kericho | C78: Belgut | D78: 162122 | E78: =IF(INTRO!$E$48="","",ROUND($D78*INTRO!$E$48,0)) -> 24318 | F78: =IF(INTRO!$E$49="","",ROUND($D78*INTRO!$E$49,0)) -> 45394 | G78: =IF(INTRO!$E$50="","",ROUND($D78*INTRO!$E$50,0)) -> 86735 | H78: 0 | I78: 0 | J78: 2 | K78: 4 | L78: =IF(INTRO!$E$38="Endemic", IF($H78>0, IF($H78=4,"Unknown", IF($H78=99,"Stopped", $D78)), 0),"Not required") -> 0 | M78: 0 | N78: =IF(INTRO!$E$42="Endemic", IF(AND($J78>1,$J78<5), IF($J78=4, "Unknown", E78+F78), 0),"Not required") -> 69712 | O78: =IF(INTRO!$E$44="Endemic", IF(AND($K78>0,$K78<5), IF($K78=4,"Unknown", IF($K78=1, $F78*0.33, IF($K78=2, $F78*0.5+$G78*0.2, SUM(F78:G78)))), 0),"Not required") -> Unknown | P78: 0 | Q78: 0 | R78: 1 | S78: 0 | W78: T3 | Y78: 54070 | Z78: Belgut | AB78: ='MDA2'!M78 -> 0
A79: =IF(INTRO!$E$34<>0,INTRO!$E$34,"") -> Kenya | B79: Kericho | C79: Bureti | D79: 210719 | E79: =IF(INTRO!$E$48="","",ROUND($D79*INTRO!$E$48,0)) -> 31608 | F79: =IF(INTRO!$E$49="","",ROUND($D79*INTRO!$E$49,0)) -> 59001 | G79: =IF(INTRO!$E$50="","",ROUND($D79*INTRO!$E$50,0)) -> 112735 | H79: 0 | I79: 0 | J79: 2 | K79: 4 | L79: =IF(INTRO!$E$38="Endemic", IF($H79>0, IF($H79=4,"Unknown", IF($H79=99,"Stopped", $D79)), 0),"Not required") -> 0 | M79: 0 | N79: =IF(INTRO!$E$42="Endemic", IF(AND($J79>1,$J79<5), IF($J79=4, "Unknown", E79+F79), 0),"Not required") -> 90609 | O79: =IF(INTRO!$E$44="Endemic", IF(AND($K79>0,$K79<5), IF($K79=4,"Unknown", IF($K79=1, $F79*0.33, IF($K79=2, $F79*0.5+$G79*0.2, SUM(F79:G79)))), 0),"Not required") -> Unknown | P79: 0 | Q79: 0 | R79: 1 | S79: 0 | W79: T3 | Y79: 54071 | Z79: Bureti | AB79: ='MDA2'!M79 -> 0
A80: =IF(INTRO!$E$34<>0,INTRO!$E$34,"") -> Kenya | B80: Kericho | C80: Kipkelion East | D80: 136416 | E80: =IF(INTRO!$E$48="","",ROUND($D80*INTRO!$E$48,0)) -> 20462 | F80: =IF(INTRO!$E$49="","",ROUND($D80*INTRO!$E$49,0)) -> 38196 | G80: =IF(INTRO!$E$50="","",ROUND($D80*INTRO!$E$50,0)) -> 72983 | H80: 0 | I80: 0 | J80: 2 | K80: 4 | L80: =IF(INTRO!$E$38="Endemic", IF($H80>0, IF($H80=4,"Unknown", IF($H80=99,"Stopped", $D80)), 0),"Not required") -> 0 | M80: 0 | N80: =IF(INTRO!$E$42="Endemic", IF(AND($J80>1,$J80<5), IF($J80=4, "Unknown", E80+F80), 0),"Not required") -> 58658 | O80: =IF(INTRO!$E$44="Endemic", IF(AND($K80>0,$K80<5), IF($K80=4,"Unknown", IF($K80=1, $F80*0.33, IF($K80=2, $F80*0.5+$G80*0.2, SUM(F80:G80)))), 0),"Not required") -> Unknown | P80: 0 | Q80: 0 | R80: 1 | S80: 0 | W80: T3 | Y80: 54072 | Z80: Kipkelion East | AB80: ='MDA2'!M80 -> 0
A81: =IF(INTRO!$E$34<>0,INTRO!$E$34,"") -> Kenya | B81: Kericho | C81: Kipkelion West | D81: 125319 | E81: =IF(INTRO!$E$48="","",ROUND($D81*INTRO!$E$48,0)) -> 18798 | F81: =IF(INTRO!$E$49="","",ROUND($D81*INTRO!$E$49,0)) -> 35089 | G81: =IF(INTRO!$E$50="","",ROUND($D81*INTRO!$E$50,0)) -> 67046 | H81: 0 | I81: 0 | J81: 2 | K81: 4 | L81: =IF(INTRO!$E$38="Endemic", IF($H81>0, IF($H81=4,"Unknown", IF($H81=99,"Stopped", $D81)), 0),"Not required") -> 0 | M81: 0 | N81: =IF(INTRO!$E$42="Endemic", IF(AND($J81>1,$J81<5), IF($J81=4, "Unknown", E81+F81), 0),"Not required") -> 53887 | O81: =IF(INTRO!$E$44="Endemic", IF(AND($K81>0,$K81<5), IF($K81=4,"Unknown", IF($K81=1, $F81*0.33, IF($K81=2, $F81*0.5+$G81*0.2, SUM(F81:G81)))), 0),"Not required") -> Unknown | P81: 0 | Q81: 0 | R81: 1 | S81: 0 | W81: T3 | Y81: 54073 | Z81: Kipkelion West | AB81: ='MDA2'!M81 -> 0
A82: =IF(INTRO!$E$34<>0,INTRO!$E$34,"") -> Kenya | B82: Kericho | C82: Sigowet-Soin | D82: 132724 | E82: =IF(INTRO!$E$48="","",ROUND($D82*INTRO!$E$48,0)) -> 19909 | F82: =IF(INTRO!$E$49="","",ROUND($D82*INTRO!$E$49,0)) -> 37163 | G82: =IF(INTRO!$E$50="","",ROUND($D82*INTRO!$E$50,0)) -> 71007 | H82: 0 | I82: 0 | J82: 2 | K82: 4 | L82: =IF(INTRO!$E$38="Endemic", IF($H82>0, IF($H82=4,"Unknown", IF($H82=99,"Stopped", $D82)), 0),"Not required") -> 0 | M82: 0 | N82: =IF(INTRO!$E$42="Endemic", IF(AND($J82>1,$J82<5), IF($J82=4, "Unknown", E82+F82), 0),"Not required") -> 57072 | O82: =IF(INTRO!$E$44="Endemic", IF(AND($K82>0,$K82<5), IF($K82=4,"Unknown", IF($K82=1, $F82*0.33, IF($K82=2, $F82*0.5+$G82*0.2, SUM(F82:G82)))), 0),"Not required") -> Unknown | P82: 0 | Q82: 0 | R82: 1 | S82: 0 | W82: T3 | Y82: 54074 | Z82: Sigowet-Soin | AB82: ='MDA2'!M82 -> 0
A83: =IF(INTRO!$E$34<>0,INTRO!$E$34,"") -> Kenya | B83: Kiambu | C83: Gatundu North | D83: 127758 | E83: =IF(INTRO!$E$48="","",ROUND($D83*INTRO!$E$48,0)) -> 19164 | F83: =IF(INTRO!$E$49="","",ROUND($D83*INTRO!$E$49,0)) -> 35772 | G83: =IF(INTRO!$E$50="","",ROUND($D83*INTRO!$E$50,0)) -> 68351 | H83: 0 | I83: 0 | J83: 4 | K83: 4 | L83: =IF(INTRO!$E$38="Endemic", IF($H83>0, IF($H83=4,"Unknown", IF($H83=99,"Stopped", $D83)), 0),"Not required") -> 0 | M83: 0 | N83: =IF(INTRO!$E$42="Endemic", IF(AND($J83>1,$J83<5), IF($J83=4, "Unknown", E83+F83), 0),"Not required") -> Unknown | O83: =IF(INTRO!$E$44="Endemic", IF(AND($K83>0,$K83<5), IF($K83=4,"Unknown", IF($K83=1, $F83*0.33, IF($K83=2, $F83*0.5+$G83*0.2, SUM(F83:G83)))), 0),"Not required") -> Unknown | P83: 0 | Q83: 0 | R83: 0 | S83: 0 | Y83: 54075 | Z83: Gatundu North | AB83: ='MDA2'!M83 -> 0
A84: =IF(INTRO!$E$34<>0,INTRO!$E$34,"") -> Kenya | B84: Kiambu | C84: Gatundu South | D84: 145521 | E84: =IF(INTRO!$E$48="","",ROUND($D84*INTRO!$E$48,0)) -> 21828 | F84: =IF(INTRO!$E$49="","",ROUND($D84*INTRO!$E$49,0)) -> 40746 | G84: =IF(INTRO!$E$50="","",ROUND($D84*INTRO!$E$50,0)) -> 77854 | H84: 0 | I84: 0 | J84: 4 | K84: 4 | L84: =IF(INTRO!$E$38="Endemic", IF($H84>0, IF($H84=4,"Unknown", IF($H84=99,"Stopped", $D84)), 0),"Not required") -> 0 | M84: 0 | N84: =IF(INTRO!$E$42="Endemic", IF(AND($J84>1,$J84<5), IF($J84=4, "Unknown", E84+F84), 0),"Not required") -> Unknown | O84: =IF(INTRO!$E$44="Endemic", IF(AND($K84>0,$K84<5), IF($K84=4,"Unknown", IF($K84=1, $F84*0.33, IF($K84=2, $F84*0.5+$G84*0.2, SUM(F84:G84)))), 0),"Not required") -> Unknown | P84: 0 | Q84: 0 | R84: 0 | S84: 0 | Y84: 54076 | Z84: Gatundu South | AB84: ='MDA2'!M84 -> 0
A85: =IF(INTRO!$E$34<>0,INTRO!$E$34,"") -> Kenya | B85: Kiambu | C85: Githunguri | D85: 186630 | E85: =IF(INTRO!$E$48="","",ROUND($D85*INTRO!$E$48,0)) -> 27995 | F85: =IF(INTRO!$E$49="","",ROUND($D85*INTRO!$E$49,0)) -> 52256 | G85: =IF(INTRO!$E$50="","",ROUND($D85*INTRO!$E$50,0)) -> 99847 | H85: 0 | I85: 0 | J85: 4 | K85: 4 | L85: =IF(INTRO!$E$38="Endemic", IF($H85>0, IF($H85=4,"Unknown", IF($H85=99,"Stopped", $D85)), 0),"Not required") -> 0 | M85: 0 | N85: =IF(INTRO!$E$42="Endemic", IF(AND($J85>1,$J85<5), IF($J85=4, "Unknown", E85+F85), 0),"Not required") -> Unknown | O85: =IF(INTRO!$E$44="Endemic", IF(AND($K85>0,$K85<5), IF($K85=4,"Unknown", IF($K85=1, $F85*0.33, IF($K85=2, $F85*0.5+$G85*0.2, SUM(F85:G85)))), 0),"Not required") -> Unknown | P85: 0 | Q85: 0 | R85: 0 | S85: 0 | Y85: 54077 | Z85: Githunguri | AB85: ='MDA2'!M85 -> 0
A86: =IF(INTRO!$E$34<>0,INTRO!$E$34,"") -> Kenya | B86: Kiambu | C86: Juja | D86: 149749 | E86: =IF(INTRO!$E$48="","",ROUND($D86*INTRO!$E$48,0)) -> 22462 | F86: =IF(INTRO!$E$49="","",ROUND($D86*INTRO!$E$49,0)) -> 41930 | G86: =IF(INTRO!$E$50="","",ROUND($D86*INTRO!$E$50,0)) -> 80116 | H86: 0 | I86: 0 | J86: 4 | K86: 4 | L86: =IF(INTRO!$E$38="Endemic", IF($H86>0, IF($H86=4,"Unknown", IF($H86=99,"Stopped", $D86)), 0),"Not required") -> 0 | M86: 0 | N86: =IF(INTRO!$E$42="Endemic", IF(AND($J86>1,$J86<5), IF($J86=4, "Unknown", E86+F86), 0),"Not required") -> Unknown | O86: =IF(INTRO!$E$44="Endemic", IF(AND($K86>0,$K86<5), IF($K86=4,"Unknown", IF($K86=1, $F86*0.33, IF($K86=2, $F86*0.5+$G86*0.2, SUM(F86:G86)))), 0),"Not required") -> Unknown | P86: 0 | Q86: 0 | R86: 0 | S86: 0 | Y86: 54078 | Z86: Juja | AB86: ='MDA2'!M86 -> 0
A87: =IF(INTRO!$E$34<>0,INTRO!$E$34,"") -> Kenya | B87: Kiambu | C87: Kabete | D87: 178085 | E87: =IF(INTRO!$E$48="","",ROUND($D87*INTRO!$E$48,0)) -> 26713 | F87: =IF(INTRO!$E$49="","",ROUND($D87*INTRO!$E$49,0)) -> 49864 | G87: =IF(INTRO!$E$50="","",ROUND($D87*INTRO!$E$50,0)) -> 95275 | H87: 0 | I87: 0 | J87: 4 | K87: 4 | L87: =IF(INTRO!$E$38="Endemic", IF($H87>0, IF($H87=4,"Unknown", IF($H87=99,"Stopped", $D87)), 0),"Not required") -> 0 | M87: 0 | N87: =IF(INTRO!$E$42="Endemic", IF(AND($J87>1,$J87<5), IF($J87=4, "Unknown", E87+F87), 0),"Not required") -> Unknown | O87: =IF(INTRO!$E$44="Endemic", IF(AND($K87>0,$K87<5), IF($K87=4,"Unknown", IF($K87=1, $F87*0.33, IF($K87=2, $F87*0.5+$G87*0.2, SUM(F87:G87)))), 0),"Not required") -> Unknown | P87: 0 | Q87: 0 | R87: 0 | S87: 0 | Y87: 54079 | Z87: Kabete | AB87: ='MDA2'!M87 -> 0
A88: =IF(INTRO!$E$34<>0,INTRO!$E$34,"") -> Kenya | B88: Kiambu | C88: Kiambaa | D88: 184583 | E88: =IF(INTRO!$E$48="","",ROUND($D88*INTRO!$E$48,0)) -> 27687 | F88: =IF(INTRO!$E$49="","",ROUND($D88*INTRO!$E$49,0)) -> 51683 | G88: =IF(INTRO!$E$50="","",ROUND($D88*INTRO!$E$50,0)) -> 98752 | H88: 0 | I88: 0 | J88: 4 | K88: 4 | L88: =IF(INTRO!$E$38="Endemic", IF($H88>0, IF($H88=4,"Unknown", IF($H88=99,"Stopped", $D88)), 0),"Not required") -> 0 | M88: 0 | N88: =IF(INTRO!$E$42="Endemic", IF(AND($J88>1,$J88<5), IF($J88=4, "Unknown", E88+F88), 0),"Not required") -> Unknown | O88: =IF(INTRO!$E$44="Endemic", IF(AND($K88>0,$K88<5), IF($K88=4,"Unknown", IF($K88=1, $F88*0.33, IF($K88=2, $F88*0.5+$G88*0.2, SUM(F88:G88)))), 0),"Not required") -> Unknown | P88: 0 | Q88: 0 | R88: 0 | S88: 0 | Y88: 54080 | Z88: Kiambaa | AB88: ='MDA2'!M88 -> 0
A89: =IF(INTRO!$E$34<>0,INTRO!$E$34,"") -> Kenya | B89: Kiambu | C89: Kiambu | D89: 136985 | E89: =IF(INTRO!$E$48="","",ROUND($D89*INTRO!$E$48,0)) -> 20548 | F89: =IF(INTRO!$E$49="","",ROUND($D89*INTRO!$E$49,0)) -> 38356 | G89: =IF(INTRO!$E$50="","",ROUND($D89*INTRO!$E$50,0)) -> 73287 | H89: 0 | I89: 0 | J89: 4 | K89: 4 | L89: =IF(INTRO!$E$38="Endemic", IF($H89>0, IF($H89=4,"Unknown", IF($H89=99,"Stopped", $D89)), 0),"Not required") -> 0 | M89: 0 | N89: =IF(INTRO!$E$42="Endemic", IF(AND($J89>1,$J89<5), IF($J89=4, "Unknown", E89+F89), 0),"Not required") -> Unknown | O89: =IF(INTRO!$E$44="Endemic", IF(AND($K89>0,$K89<5), IF($K89=4,"Unknown", IF($K89=1, $F89*0.33, IF($K89=2, $F89*0.5+$G89*0.2, SUM(F89:G89)))), 0),"Not required") -> Unknown | P89: 0 | Q89: 0 | R89: 0 | S89: 0 | Y89: 54081 | Z89: Kiambu | AB89: ='MDA2'!M89 -> 0
A90: =IF(INTRO!$E$34<>0,INTRO!$E$34,"") -> Kenya | B90: Kiambu | C90: Kikuyu | D90: 157962 | E90: =IF(INTRO!$E$48="","",ROUND($D90*INTRO!$E$48,0)) -> 23694 | F90: =IF(INTRO!$E$49="","",ROUND($D90*INTRO!$E$49,0)) -> 44229 | G90: =IF(INTRO!$E$50="","",ROUND($D90*INTRO!$E$50,0)) -> 84510 | H90: 0 | I90: 0 | J90: 4 | K90: 4 | L90: =IF(INTRO!$E$38="Endemic", IF($H90>0, IF($H90=4,"Unknown", IF($H90=99,"Stopped", $D90)), 0),"Not required") -> 0 | M90: 0 | N90: =IF(INTRO!$E$42="Endemic", IF(AND($J90>1,$J90<5), IF($J90=4, "Unknown", E90+F90), 0),"Not required") -> Unknown | O90: =IF(INTRO!$E$44="Endemic", IF(AND($K90>0,$K90<5), IF($K90=4,"Unknown", IF($K90=1, $F90*0.33, IF($K90=2, $F90*0.5+$G90*0.2, SUM(F90:G90)))), 0),"Not required") -> Unknown | P90: 0 | Q90: 0 | R90: 0 | S90: 0 | Y90: 54082 | Z90: Kikuyu | AB90: ='MDA2'!M90 -> 0
A91: =IF(INTRO!$E$34<>0,INTRO!$E$34,"") -> Kenya | B91: Kiambu | C91: Lari | D91: 156452 | E91: =IF(INTRO!$E$48="","",ROUND($D91*INTRO!$E$48,0)) -> 23468 | F91: =IF(INTRO!$E$49="","",ROUND($D91*INTRO!$E$49,0)) -> 43807 | G91: =IF(INTRO!$E$50="","",ROUND($D91*INTRO!$E$50,0)) -> 83702 | H91: 0 | I91: 0 | J91: 4 | K91: 4 | L91: =IF(INTRO!$E$38="Endemic", IF($H91>0, IF($H91=4,"Unknown", IF($H91=99,"Stopped", $D91)), 0),"Not required") -> 0 | M91: 0 | N91: =IF(INTRO!$E$42="Endemic", IF(AND($J91>1,$J91<5), IF($J91=4, "Unknown", E91+F91), 0),"Not required") -> Unknown | O91: =IF(INTRO!$E$44="Endemic", IF(AND($K91>0,$K91<5), IF($K91=4,"Unknown", IF($K91=1, $F91*0.33, IF($K91=2, $F91*0.5+$G91*0.2, SUM(F91:G91)))), 0),"Not required") -> Unknown | P91: 0 | Q91: 0 | R91: 0 | S91: 0 | Y91: 54083 | Z91: Lari | AB91: ='MDA2'!M91 -> 0
A92: =IF(INTRO!$E$34<>0,INTRO!$E$34,"") -> Kenya | B92: Kiambu | C92: Limuru | D92: 165435 | E92: =IF(INTRO!$E$48="","",ROUND($D92*INTRO!$E$48,0)) -> 24815 | F92: =IF(INTRO!$E$49="","",ROUND($D92*INTRO!$E$49,0)) -> 46322 | G92: =IF(INTRO!$E$50="","",ROUND($D92*INTRO!$E$50,0)) -> 88508 | H92: 0 | I92: 0 | J92: 4 | K92: 4 | L92: =IF(INTRO!$E$38="Endemic", IF($H92>0, IF($H92=4,"Unknown", IF($H92=99,"Stopped", $D92)), 0),"Not required") -> 0 | M92: 0 | N92: =IF(INTRO!$E$42="Endemic", IF(AND($J92>1,$J92<5), IF($J92=4, "Unknown", E92+F92), 0),"Not required") -> Unknown | O92: =IF(INTRO!$E$44="Endemic", IF(AND($K92>0,$K92<5), IF($K92=4,"Unknown", IF($K92=1, $F92*0.33, IF($K92=2, $F92*0.5+$G92*0.2, SUM(F92:G92)))), 0),"Not required") -> Unknown | P92: 0 | Q92: 0 | R92: 0 | S92: 0 | Y92: 54084 | Z92: Limuru | AB92: ='MDA2'!M92 -> 0
A93: =IF(INTRO!$E$34<>0,INTRO!$E$34,"") -> Kenya | B93: Kiambu | C93: Ruiru | D93: 253433 | E93: =IF(INTRO!$E$48="","",ROUND($D93*INTRO!$E$48,0)) -> 38015 | F93: =IF(INTRO!$E$49="","",ROUND($D93*INTRO!$E$49,0)) -> 70961 | G93: =IF(INTRO!$E$50="","",ROUND($D93*INTRO!$E$50,0)) -> 135587 | H93: 0 | I93: 0 | J93: 4 | K93: 4 | L93: =IF(INTRO!$E$38="Endemic", IF($H93>0, IF($H93=4,"Unknown", IF($H93=99,"Stopped", $D93)), 0),"Not required") -> 0 | M93: 0 | N93: =IF(INTRO!$E$42="Endemic", IF(AND($J93>1,$J93<5), IF($J93=4, "Unknown", E93+F93), 0),"Not required") -> Unknown | O93: =IF(INTRO!$E$44="Endemic", IF(AND($K93>0,$K93<5), IF($K93=4,"Unknown", IF($K93=1, $F93*0.33, IF($K93=2, $F93*0.5+$G93*0.2, SUM(F93:G93)))), 0),"Not required") -> Unknown | P93: 0 | Q93: 0 | R93: 0 | S93: 0 | Y93: 54085 | Z93: Ruiru | AB93: ='MDA2'!M93 -> 0
A94: =IF(INTRO!$E$34<>0,INTRO!$E$34,"") -> Kenya | B94: Kiambu | C94: Thika Town | D94: 204257 | E94: =IF(INTRO!$E$48="","",ROUND($D94*INTRO!$E$48,0)) -> 30639 | F94: =IF(INTRO!$E$49="","",ROUND($D94*INTRO!$E$49,0)) -> 57192 | G94: =IF(INTRO!$E$50="","",ROUND($D94*INTRO!$E$50,0)) -> 109277 | H94: 0 | I94: 0 | J94: 4 | K94: 4 | L94: =IF(INTRO!$E$38="Endemic", IF($H94>0, IF($H94=4,"Unknown", IF($H94=99,"Stopped", $D94)), 0),"Not required") -> 0 | M94: 0 | N94: =IF(INTRO!$E$42="Endemic", IF(AND($J94>1,$J94<5), IF($J94=4, "Unknown", E94+F94), 0),"Not required") -> Unknown | O94: =IF(INTRO!$E$44="Endemic", IF(AND($K94>0,$K94<5), IF($K94=4,"Unknown", IF($K94=1, $F94*0.33, IF($K94=2, $F94*0.5+$G94*0.2, SUM(F94:G94)))), 0),"Not required") -> Unknown | P94: 0 | Q94: 0 | R94: 0 | S94: 0 | Y94: 54086 | Z94: Thika Town | AB94: ='MDA2'!M94 -> 0
A95: =IF(INTRO!$E$34<>0,INTRO!$E$34,"") -> Kenya | B95: Kilifi | C95: Ganze | D95: 175091 | E95: =IF(INTRO!$E$48="","",ROUND($D95*INTRO!$E$48,0)) -> 26264 | F95: =IF(INTRO!$E$49="","",ROUND($D95*INTRO!$E$49,0)) -> 49025 | G95: =IF(INTRO!$E$50="","",ROUND($D95*INTRO!$E$50,0)) -> 93674 | H95: 1 | I95: 0 | J95: 2 | K95: 2 | L95: =IF(INTRO!$E$38="Endemic", IF($H95>0, IF($H95=4,"Unknown", IF($H95=99,"Stopped", $D95)), 0),"Not required") -> 175091 | M95: 0 | N95: =IF(INTRO!$E$42="Endemic", IF(AND($J95>1,$J95<5), IF($J95=4, "Unknown", E95+F95), 0),"Not required") -> 75289 | O95: =IF(INTRO!$E$44="Endemic", IF(AND($K95>0,$K95<5), IF($K95=4,"Unknown", IF($K95=1, $F95*0.33, IF($K95=2, $F95*0.5+$G95*0.2, SUM(F95:G95)))), 0),"Not required") -> 43247.3 | P95: 1 | Q95: 0 | R95: 1 | S95: 0 | T95: MDA2 (DEC+ALB) | V95: MDA 2 | W95: T1 | Y95: 54087 | Z95: Ganze | AB95: ='MDA2'!M95 -> 138523
A96: =IF(INTRO!$E$34<>0,INTRO!$E$34,"") -> Kenya | B96: Kilifi | C96: Kaloleni | D96: 195675 | E96: =IF(INTRO!$E$48="","",ROUND($D96*INTRO!$E$48,0)) -> 29351 | F96: =IF(INTRO!$E$49="","",ROUND($D96*INTRO!$E$49,0)) -> 54789 | G96: =IF(INTRO!$E$50="","",ROUND($D96*INTRO!$E$50,0)) -> 104686 | H96: 1 | I96: 0 | J96: 2 | K96: 2 | L96: =IF(INTRO!$E$38="Endemic", IF($H96>0, IF($H96=4,"Unknown", IF($H96=99,"Stopped", $D96)), 0),"Not required") -> 195675 | M96: 0 | N96: =IF(INTRO!$E$42="Endemic", IF(AND($J96>1,$J96<5), IF($J96=4, "Unknown", E96+F96), 0),"Not required") -> 84140 | O96: =IF(INTRO!$E$44="Endemic", IF(AND($K96>0,$K96<5), IF($K96=4,"Unknown", IF($K96=1, $F96*0.33, IF($K96=2, $F96*0.5+$G96*0.2, SUM(F96:G96)))), 0),"Not required") -> 48331.7 | P96: 1 | Q96: 0 | R96: 1 | S96: 0 | T96: MDA2 (DEC+ALB) | V96: MDA 2 | W96: T1 | Y96: 54088 | Z96: Kaloleni | AB96: ='MDA2'!M96 -> 185726
A97: =IF(INTRO!$E$34<>0,INTRO!$E$34,"") -> Kenya | B97: Kilifi | C97: Kilifi North | D97: 256407 | E97: =IF(INTRO!$E$48="","",ROUND($D97*INTRO!$E$48,0)) -> 38461 | F97: =IF(INTRO!$E$49="","",ROUND($D97*INTRO!$E$49,0)) -> 71794 | G97: =IF(INTRO!$E$50="","",ROUND($D97*INTRO!$E$50,0)) -> 137178 | H97: 1 | I97: 0 | J97: 2 | K97: 2 | L97: =IF(INTRO!$E$38="Endemic", IF($H97>0, IF($H97=4,"Unknown", IF($H97=99,"Stopped", $D97)), 0),"Not required") -> 256407 | M97: 0 | N97: =IF(INTRO!$E$42="Endemic", IF(AND($J97>1,$J97<5), IF($J97=4, "Unknown", E97+F97), 0),"Not required") -> 110255 | O97: =IF(INTRO!$E$44="Endemic", IF(AND($K97>0,$K97<5), IF($K97=4,"Unknown", IF($K97=1, $F97*0.33, IF($K97=2, $F97*0.5+$G97*0.2, SUM(F97:G97)))), 0),"Not required") -> 63332.6 | P97: 1 | Q97: 0 | R97: 1 | S97: 0 | T97: MDA2 (DEC+ALB) | V97: MDA 2 | W97: T3 | Y97: 54089 | Z97: Kilifi North | AB97: ='MDA2'!M97 -> 231189
A98: =IF(INTRO!$E$34<>0,INTRO!$E$34,"") -> Kenya | B98: Kilifi | C98: Kilifi South | D98: 216802 | E98: =IF(INTRO!$E$48="","",ROUND($D98*INTRO!$E$48,0)) -> 32520 | F98: =IF(INTRO!$E$49="","",ROUND($D98*INTRO!$E$49,0)) -> 60705 | G98: =IF(INTRO!$E$50="","",ROUND($D98*INTRO!$E$50,0)) -> 115989 | H98: 1 | I98: 0 | J98: 2 | K98: 2 | L98: =IF(INTRO!$E$38="Endemic", IF($H98>0, IF($H98=4,"Unknown", IF($H98=99,"Stopped", $D98)), 0),"Not required") -> 216802 | M98: 0 | N98: =IF(INTRO!$E$42="Endemic", IF(AND($J98>1,$J98<5), IF($J98=4, "Unknown", E98+F98), 0),"Not required") -> 93225 | O98: =IF(INTRO!$E$44="Endemic", IF(AND($K98>0,$K98<5), IF($K98=4,"Unknown", IF($K98=1, $F98*0.33, IF($K98=2, $F98*0.5+$G98*0.2, SUM(F98:G98)))), 0),"Not required") -> 53550.3 | P98: 1 | Q98: 0 | R98: 1 | S98: 0 | T98: MDA2 (DEC+ALB) | V98: MDA 2 | W98: T1 | Y98: 54090 | Z98: Kilifi South | AB98: ='MDA2'!M98 -> 173259
A99: =IF(INTRO!$E$34<>0,INTRO!$E$34,"") -> Kenya | B99: Kilifi | C99: Magarini | D99: 220293 | E99: =IF(INTRO!$E$48="","",ROUND($D99*INTRO!$E$48,0)) -> 33044 | F99: =IF(INTRO!$E$49="","",ROUND($D99*INTRO!$E$49,0)) -> 61682 | G99: =IF(INTRO!$E$50="","",ROUND($D99*INTRO!$E$50,0)) -> 117857 | H99: 1 | I99: 0 | J99: 2 | K99: 2 | L99: =IF(INTRO!$E$38="Endemic", IF($H99>0, IF($H99=4,"Unknown", IF($H99=99,"Stopped", $D99)), 0),"Not required") -> 220293 | M99: 0 | N99: =IF(INTRO!$E$42="Endemic", IF(AND($J99>1,$J99<5), IF($J99=4, "Unknown", E99+F99), 0),"Not required") -> 94726 | O99: =IF(INTRO!$E$44="Endemic", IF(AND($K99>0,$K99<5), IF($K99=4,"Unknown", IF($K99=1, $F99*0.33, IF($K99=2, $F99*0.5+$G99*0.2, SUM(F99:G99)))), 0),"Not required") -> 54412.4 | P99: 1 | Q99: 0 | R99: 1 | S99: 0 | T99: MDA2 (DEC+ALB) | V99: MDA 2 | W99: T1 | Y99: 54091 | Z99: Magarini | AB99: ='MDA2'!M99 -> 211046
A100: =IF(INTRO!$E$34<>0,INTRO!$E$34,"") -> Kenya | B100: Kilifi | C100: Malindi | D100: 204922 | E100: =IF(INTRO!$E$48="","",ROUND($D100*INTRO!$E$48,0)) -> 30738 | F100: =IF(INTRO!$E$49="","",ROUND($D100*INTRO!$E$49,0)) -> 57378 | G100: =IF(INTRO!$E$50="","",ROUND($D100*INTRO!$E$50,0)) -> 109633 | H100: 1 | I100: 0 | J100: 2 | K100: 2 | L100: =IF(INTRO!$E$38="Endemic", IF($H100>0, IF($H100=4,"Unknown", IF($H100=99,"Stopped", $D100)), 0),"Not required") -> 204922 | M100: 0 | N100: =IF(INTRO!$E$42="Endemic", IF(AND($J100>1,$J100<5), IF($J100=4, "Unknown", E100+F100), 0),"Not required") -> 88116 | O100: =IF(INTRO!$E$44="Endemic", IF(AND($K100>0,$K100<5), IF($K100=4,"Unknown", IF($K100=1, $F100*0.33, IF($K100=2, $F100*0.5+$G100*0.2, SUM(F100:G100)))), 0),"Not required") -> 50615.6 | P100: 1 | Q100: 0 | R100: 1 | S100: 0 | T100: MDA2 (DEC+ALB) | V100: MDA 2 | W100: T1 | Y100: 54092 | Z100: Malindi | AB100: ='MDA2'!M100 -> 173371
A101: =IF(INTRO!$E$34<>0,INTRO!$E$34,"") -> Kenya | B101: Kilifi | C101: Rabai | D101: 123100 | E101: =IF(INTRO!$E$48="","",ROUND($D101*INTRO!$E$48,0)) -> 18465 | F101: =IF(INTRO!$E$49="","",ROUND($D101*INTRO!$E$49,0)) -> 34468 | G101: =IF(INTRO!$E$50="","",ROUND($D101*INTRO!$E$50,0)) -> 65859 | H101: 1 | I101: 0 | J101: 2 | K101: 2 | L101: =IF(INTRO!$E$38="Endemic", IF($H101>0, IF($H101=4,"Unknown", IF($H101=99,"Stopped", $D101)), 0),"Not required") -> 123100 | M101: 0 | N101: =IF(INTRO!$E$42="Endemic", IF(AND($J101>1,$J101<5), IF($J101=4, "Unknown", E101+F101), 0),"Not required") -> 52933 | O101: =IF(INTRO!$E$44="Endemic", IF(AND($K101>0,$K101<5), IF($K101=4,"Unknown", IF($K101=1, $F101*0.33, IF($K101=2, $F101*0.5+$G101*0.2, SUM(F101:G101)))), 0),"Not required") -> 30405.8 | P101: 1 | Q101: 0 | R101: 1 | S101: 0 | T101: MDA2 (DEC+ALB) | V101: MDA 2 | W101: T1 | Y101: 54093 | Z101: Rabai | AB101: ='MDA2'!M101 -> 149090
A102: =IF(INTRO!$E$34<>0,INTRO!$E$34,"") -> Kenya | B102: Kirinyaga | C102: Gichugu | D102: 158133 | E102: =IF(INTRO!$E$48="","",ROUND($D102*INTRO!$E$48,0)) -> 23720 | F102: =IF(INTRO!$E$49="","",ROUND($D102*INTRO!$E$49,0)) -> 44277 | G102: =IF(INTRO!$E$50="","",ROUND($D102*INTRO!$E$50,0)) -> 84601 | H102: 0 | I102: 0 | J102: 4 | K102: 2 | L102: =IF(INTRO!$E$38="Endemic", IF($H102>0, IF($H102=4,"Unknown", IF($H102=99,"Stopped", $D102)), 0),"Not required") -> 0 | M102: 0 | N102: =IF(INTRO!$E$42="Endemic", IF(AND($J102>1,$J102<5), IF($J102=4, "Unknown", E102+F102), 0),"Not required") -> Unknown | O102: =IF(INTRO!$E$44="Endemic", IF(AND($K102>0,$K102<5), IF($K102=4,"Unknown", IF($K102=1, $F102*0.33, IF($K102=2, $F102*0.5+$G102*0.2, SUM(F102:G102)))), 0),"Not required") -> 39058.7 | P102: 0 | Q102: 0 | R102: 0 | S102: 0 | Y102: 54094 | Z102: Gichugu | AB102: ='MDA2'!M102 -> 0
A103: =IF(INTRO!$E$34<>0,INTRO!$E$34,"") -> Kenya | B103: Kirinyaga | C103: Kirinyaga Central | D103: 141816 | E103: =IF(INTRO!$E$48="","",ROUND($D103*INTRO!$E$48,0)) -> 21272 | F103: =IF(INTRO!$E$49="","",ROUND($D103*INTRO!$E$49,0)) -> 39708 | G103: =IF(INTRO!$E$50="","",ROUND($D103*INTRO!$E$50,0)) -> 75872 | H103: 0 | I103: 0 | J103: 4 | K103: 2 | L103: =IF(INTRO!$E$38="Endemic", IF($H103>0, IF($H103=4,"Unknown", IF($H103=99,"Stopped", $D103)), 0),"Not required") -> 0 | M103: 0 | N103: =IF(INTRO!$E$42="Endemic", IF(AND($J103>1,$J103<5), IF($J103=4, "Unknown", E103+F103), 0),"Not required") -> Unknown | O103: =IF(INTRO!$E$44="Endemic", IF(AND($K103>0,$K103<5), IF($K103=4,"Unknown", IF($K103=1, $F103*0.33, IF($K103=2, $F103*0.5+$G103*0.2, SUM(F103:G103)))), 0),"Not required") -> 35028.4 | P103: 0 | Q103: 0 | R103: 0 | S103: 0 | Y103: 54095 | Z103: Kirinyaga Central | AB103: ='MDA2'!M103 -> 0
A104: =IF(INTRO!$E$34<>0,INTRO!$E$34,"") -> Kenya | B104: Kirinyaga | C104: Mwea | D104: 239355 | E104: =IF(INTRO!$E$48="","",ROUND($D104*INTRO!$E$48,0)) -> 35903 | F104: =IF(INTRO!$E$49="","",ROUND($D104*INTRO!$E$49,0)) -> 67019 | G104: =IF(INTRO!$E$50="","",ROUND($D104*INTRO!$E$50,0)) -> 128055 | H104: 0 | I104: 0 | J104: 4 | K104: 2 | L104: =IF(INTRO!$E$38="Endemic", IF($H104>0, IF($H104=4,"Unknown", IF($H104=99,"Stopped", $D104)), 0),"Not required") -> 0 | M104: 0 | N104: =IF(INTRO!$E$42="Endemic", IF(AND($J104>1,$J104<5), IF($J104=4, "Unknown", E104+F104), 0),"Not required") -> Unknown | O104: =IF(INTRO!$E$44="Endemic", IF(AND($K104>0,$K104<5), IF($K104=4,"Unknown", IF($K104=1, $F104*0.33, IF($K104=2, $F104*0.5+$G104*0.2, SUM(F104:G104)))), 0),"Not required") -> 59120.5 | P104: 0 | Q104: 0 | R104: 0 | S104: 0 | W104: T1 | Y104: 54096 | Z104: Mwea | AB104: ='MDA2'!M104 -> 0
A105: =IF(INTRO!$E$34<>0,INTRO!$E$34,"") -> Kenya | B105: Kirinyaga | C105: Ndia | D105: 126213 | E105: =IF(INTRO!$E$48="","",ROUND($D105*INTRO!$E$48,0)) -> 18932 | F105: =IF(INTRO!$E$49="","",ROUND($D105*INTRO!$E$49,0)) -> 35340 | G105: =IF(INTRO!$E$50="","",ROUND($D105*INTRO!$E$50,0)) -> 67524 | H105: 0 | I105: 0 | J105: 4 | K105: 2 | L105: =IF(INTRO!$E$38="Endemic", IF($H105>0, IF($H105=4,"Unknown", IF($H105=99,"Stopped", $D105)), 0),"Not required") -> 0 | M105: 0 | N105: =IF(INTRO!$E$42="Endemic", IF(AND($J105>1,$J105<5), IF($J105=4, "Unknown", E105+F105), 0),"Not required") -> Unknown | O105: =IF(INTRO!$E$44="Endemic", IF(AND($K105>0,$K105<5), IF($K105=4,"Unknown", IF($K105=1, $F105*0.33, IF($K105=2, $F105*0.5+$G105*0.2, SUM(F105:G105)))), 0),"Not required") -> 31174.8 | P105: 0 | Q105: 0 | R105: 0 | S105: 0 | Y105: 54097 | Z105: Ndia | AB105: ='MDA2'!M105 -> 0
A106: =IF(INTRO!$E$34<>0,INTRO!$E$34,"") -> Kenya | B106: Kisii | C106: Bobasi | D106: 241178 | E106: =IF(INTRO!$E$48="","",ROUND($D106*INTRO!$E$48,0)) -> 36177 | F106: =IF(INTRO!$E$49="","",ROUND($D106*INTRO!$E$49,0)) -> 67530 | G106: =IF(INTRO!$E$50="","",ROUND($D106*INTRO!$E$50,0)) -> 129030 | H106: 0 | I106: 0 | J106: 5 | K106: 4 | L106: =IF(INTRO!$E$38="Endemic", IF($H106>0, IF($H106=4,"Unknown", IF($H106=99,"Stopped", $D106)), 0),"Not required") -> 0 | M106: 0 | N106: =IF(INTRO!$E$42="Endemic", IF(AND($J106>1,$J106<5), IF($J106=4, "Unknown", E106+F106), 0),"Not required") -> 0 | O106: =IF(INTRO!$E$44="Endemic", IF(AND($K106>0,$K106<5), IF($K106=4,"Unknown", IF($K106=1, $F106*0.33, IF($K106=2, $F106*0.5+$G106*0.2, SUM(F106:G106)))), 0),"Not required") -> Unknown | P106: 0 | Q106: 0 | R106: 0 | S106: 0 | W106: T3 | Y106: 54098 | Z106: Bobasi | AB106: ='MDA2'!M106 -> 0
A107: =IF(INTRO!$E$34<>0,INTRO!$E$34,"") -> Kenya | B107: Kisii | C107: Bomachoge Borabu | D107: 136232 | E107: =IF(INTRO!$E$48="","",ROUND($D107*INTRO!$E$48,0)) -> 20435 | F107: =IF(INTRO!$E$49="","",ROUND($D107*INTRO!$E$49,0)) -> 38145 | G107: =IF(INTRO!$E$50="","",ROUND($D107*INTRO!$E$50,0)) -> 72884 | H107: 0 | I107: 0 | J107: 5 | K107: 4 | L107: =IF(INTRO!$E$38="Endemic", IF($H107>0, IF($H107=4,"Unknown", IF($H107=99,"Stopped", $D107)), 0),"Not required") -> 0 | M107: 0 | N107: =IF(INTRO!$E$42="Endemic", IF(AND($J107>1,$J107<5), IF($J107=4, "Unknown", E107+F107), 0),"Not required") -> 0 | O107: =IF(INTRO!$E$44="Endemic", IF(AND($K107>0,$K107<5), IF($K107=4,"Unknown", IF($K107=1, $F107*0.33, IF($K107=2, $F107*0.5+$G107*0.2, SUM(F107:G107)))), 0),"Not required") -> Unknown | P107: 0 | Q107: 0 | R107: 0 | S107: 0 | W107: T3 | Y107: 54099 | Z107: Bomachoge Borabu | AB107: ='MDA2'!M107 -> 0
A108: =IF(INTRO!$E$34<>0,INTRO!$E$34,"") -> Kenya | B108: Kisii | C108: Bomachoge Chache | D108: 119214 | E108: =IF(INTRO!$E$48="","",ROUND($D108*INTRO!$E$48,0)) -> 17882 | F108: =IF(INTRO!$E$49="","",ROUND($D108*INTRO!$E$49,0)) -> 33380 | G108: =IF(INTRO!$E$50="","",ROUND($D108*INTRO!$E$50,0)) -> 63779 | H108: 0 | I108: 0 | J108: 5 | K108: 4 | L108: =IF(INTRO!$E$38="Endemic", IF($H108>0, IF($H108=4,"Unknown", IF($H108=99,"Stopped", $D108)), 0),"Not required") -> 0 | M108: 0 | N108: =IF(INTRO!$E$42="Endemic", IF(AND($J108>1,$J108<5), IF($J108=4, "Unknown", E108+F108), 0),"Not required") -> 0 | O108: =IF(INTRO!$E$44="Endemic", IF(AND($K108>0,$K108<5), IF($K108=4,"Unknown", IF($K108=1, $F108*0.33, IF($K108=2, $F108*0.5+$G108*0.2, SUM(F108:G108)))), 0),"Not required") -> Unknown | P108: 0 | Q108: 0 | R108: 0 | S108: 0 | W108: T3 | Y108: 54100 | Z108: Bomachoge Chache | AB108: ='MDA2'!M108 -> 0
A109: =IF(INTRO!$E$34<>0,INTRO!$E$34,"") -> Kenya | B109: Kisii | C109: Bonchari | D109: 145048 | E109: =IF(INTRO!$E$48="","",ROUND($D109*INTRO!$E$48,0)) -> 21757 | F109: =IF(INTRO!$E$49="","",ROUND($D109*INTRO!$E$49,0)) -> 40613 | G109: =IF(INTRO!$E$50="","",ROUND($D109*INTRO!$E$50,0)) -> 77601 | H109: 0 | I109: 0 | J109: 5 | K109: 4 | L109: =IF(INTRO!$E$38="Endemic", IF($H109>0, IF($H109=4,"Unknown", IF($H109=99,"Stopped", $D109)), 0),"Not required") -> 0 | M109: 0 | N109: =IF(INTRO!$E$42="Endemic", IF(AND($J109>1,$J109<5), IF($J109=4, "Unknown", E109+F109), 0),"Not required") -> 0 | O109: =IF(INTRO!$E$44="Endemic", IF(AND($K109>0,$K109<5), IF($K109=4,"Unknown", IF($K109=1, $F109*0.33, IF($K109=2, $F109*0.5+$G109*0.2, SUM(F109:G109)))), 0),"Not required") -> Unknown | P109: 0 | Q109: 0 | R109: 0 | S109: 0 | W109: T3 | Y109: 54101 | Z109: Bonchari | AB109: ='MDA2'!M109 -> 0
A110: =IF(INTRO!$E$34<>0,INTRO!$E$34,"") -> Kenya | B110: Kisii | C110: Kitutu Chache North | D110: 132363 | E110: =IF(INTRO!$E$48="","",ROUND($D110*INTRO!$E$48,0)) -> 19854 | F110: =IF(INTRO!$E$49="","",ROUND($D110*INTRO!$E$49,0)) -> 37062 | G110: =IF(INTRO!$E$50="","",ROUND($D110*INTRO!$E$50,0)) -> 70814 | H110: 0 | I110: 0 | J110: 5 | K110: 4 | L110: =IF(INTRO!$E$38="Endemic", IF($H110>0, IF($H110=4,"Unknown", IF($H110=99,"Stopped", $D110)), 0),"Not required") -> 0 | M110: 0 | N110: =IF(INTRO!$E$42="Endemic", IF(AND($J110>1,$J110<5), IF($J110=4, "Unknown", E110+F110), 0),"Not required") -> 0 | O110: =IF(INTRO!$E$44="Endemic", IF(AND($K110>0,$K110<5), IF($K110=4,"Unknown", IF($K110=1, $F110*0.33, IF($K110=2, $F110*0.5+$G110*0.2, SUM(F110:G110)))), 0),"Not required") -> Unknown | P110: 0 | Q110: 0 | R110: 0 | S110: 0 | W110: T3 | Y110: 54102 | Z110: Kitutu Chache North | AB110: ='MDA2'!M110 -> 0
A111: =IF(INTRO!$E$34<>0,INTRO!$E$34,"") -> Kenya | B111: Kisii | C111: Kitutu Chache South | D111: 162943 | E111: =IF(INTRO!$E$48="","",ROUND($D111*INTRO!$E$48,0)) -> 24441 | F111: =IF(INTRO!$E$49="","",ROUND($D111*INTRO!$E$49,0)) -> 45624 | G111: =IF(INTRO!$E$50="","",ROUND($D111*INTRO!$E$50,0)) -> 87175 | H111: 0 | I111: 0 | J111: 5 | K111: 4 | L111: =IF(INTRO!$E$38="Endemic", IF($H111>0, IF($H111=4,"Unknown", IF($H111=99,"Stopped", $D111)), 0),"Not required") -> 0 | M111: 0 | N111: =IF(INTRO!$E$42="Endemic", IF(AND($J111>1,$J111<5), IF($J111=4, "Unknown", E111+F111), 0),"Not required") -> 0 | O111: =IF(INTRO!$E$44="Endemic", IF(AND($K111>0,$K111<5), IF($K111=4,"Unknown", IF($K111=1, $F111*0.33, IF($K111=2, $F111*0.5+$G111*0.2, SUM(F111:G111)))), 0),"Not required") -> Unknown | P111: 0 | Q111: 0 | R111: 0 | S111: 0 | Y111: 54103 | Z111: Kitutu Chache South | AB111: ='MDA2'!M111 -> 0
A112: =IF(INTRO!$E$34<>0,INTRO!$E$34,"") -> Kenya | B112: Kisii | C112: Nyaribari Chache | D112: 164250 | E112: =IF(INTRO!$E$48="","",ROUND($D112*INTRO!$E$48,0)) -> 24638 | F112: =IF(INTRO!$E$49="","",ROUND($D112*INTRO!$E$49,0)) -> 45990 | G112: =IF(INTRO!$E$50="","",ROUND($D112*INTRO!$E$50,0)) -> 87874 | H112: 0 | I112: 0 | J112: 5 | K112: 4 | L112: =IF(INTRO!$E$38="Endemic", IF($H112>0, IF($H112=4,"Unknown", IF($H112=99,"Stopped", $D112)), 0),"Not required") -> 0 | M112: 0 | N112: =IF(INTRO!$E$42="Endemic", IF(AND($J112>1,$J112<5), IF($J112=4, "Unknown", E112+F112), 0),"Not required") -> 0 | O112: =IF(INTRO!$E$44="Endemic", IF(AND($K112>0,$K112<5), IF($K112=4,"Unknown", IF($K112=1, $F112*0.33, IF($K112=2, $F112*0.5+$G112*0.2, SUM(F112:G112)))), 0),"Not required") -> Unknown | P112: 0 | Q112: 0 | R112: 0 | S112: 0 | W112: T3 | Y112: 54104 | Z112: Nyaribari Chache | AB112: ='MDA2'!M112 -> 0
A113: =IF(INTRO!$E$34<>0,INTRO!$E$34,"") -> Kenya | B113: Kisii | C113: Nyaribari Masaba | D113: 154408 | E113: =IF(INTRO!$E$48="","",ROUND($D113*INTRO!$E$48,0)) -> 23161 | F113: =IF(INTRO!$E$49="","",ROUND($D113*INTRO!$E$49,0)) -> 43234 | G113: =IF(INTRO!$E$50="","",ROUND($D113*INTRO!$E$50,0)) -> 82608 | H113: 0 | I113: 0 | J113: 5 | K113: 4 | L113: =IF(INTRO!$E$38="Endemic", IF($H113>0, IF($H113=4,"Unknown", IF($H113=99,"Stopped", $D113)), 0),"Not required") -> 0 | M113: 0 | N113: =IF(INTRO!$E$42="Endemic", IF(AND($J113>1,$J113<5), IF($J113=4, "Unknown", E113+F113), 0),"Not required") -> 0 | O113: =IF(INTRO!$E$44="Endemic", IF(AND($K113>0,$K113<5), IF($K113=4,"Unknown", IF($K113=1, $F113*0.33, IF($K113=2, $F113*0.5+$G113*0.2, SUM(F113:G113)))), 0),"Not required") -> Unknown | P113: 0 | Q113: 0 | R113: 0 | S113: 0 | W113: T3 | Y113: 54105 | Z113: Nyaribari Masaba | AB113: ='MDA2'!M113 -> 0
A114: =IF(INTRO!$E$34<>0,INTRO!$E$34,"") -> Kenya | B114: Kisii | C114: South Mugirango | D114: 201171 | E114: =IF(INTRO!$E$48="","",ROUND($D114*INTRO!$E$48,0)) -> 30176 | F114: =IF(INTRO!$E$49="","",ROUND($D114*INTRO!$E$49,0)) -> 56328 | G114: =IF(INTRO!$E$50="","",ROUND($D114*INTRO!$E$50,0)) -> 107626 | H114: 0 | I114: 0 | J114: 5 | K114: 4 | L114: =IF(INTRO!$E$38="Endemic", IF($H114>0, IF($H114=4,"Unknown", IF($H114=99,"Stopped", $D114)), 0),"Not required") -> 0 | M114: 0 | N114: =IF(INTRO!$E$42="Endemic", IF(AND($J114>1,$J114<5), IF($J114=4, "Unknown", E114+F114), 0),"Not required") -> 0 | O114: =IF(INTRO!$E$44="Endemic", IF(AND($K114>0,$K114<5), IF($K114=4,"Unknown", IF($K114=1, $F114*0.33, IF($K114=2, $F114*0.5+$G114*0.2, SUM(F114:G114)))), 0),"Not required") -> Unknown | P114: 0 | Q114: 0 | R114: 0 | S114: 0 | W114: T3 | Y114: 54106 | Z114: South Mugirango | AB114: ='MDA2'!M114 -> 0
A115: =IF(INTRO!$E$34<>0,INTRO!$E$34,"") -> Kenya | B115: Kisumu | C115: Kisumu Central | D115: 209018 | E115: =IF(INTRO!$E$48="","",ROUND($D115*INTRO!$E$48,0)) -> 31353 | F115: =IF(INTRO!$E$49="","",ROUND($D115*INTRO!$E$49,0)) -> 58525 | G115: =IF(INTRO!$E$50="","",ROUND($D115*INTRO!$E$50,0)) -> 111825 | H115: 0 | I115: 0 | J115: 2 | K115: 2 | L115: =IF(INTRO!$E$38="Endemic", IF($H115>0, IF($H115=4,"Unknown", IF($H115=99,"Stopped", $D115)), 0),"Not required") -> 0 | M115: 0 | N115: =IF(INTRO!$E$42="Endemic", IF(AND($J115>1,$J115<5), IF($J115=4, "Unknown", E115+F115), 0),"Not required") -> 89878 | O115: =IF(INTRO!$E$44="Endemic", IF(AND($K115>0,$K115<5), IF($K115=4,"Unknown", IF($K115=1, $F115*0.33, IF($K115=2, $F115*0.5+$G115*0.2, SUM(F115:G115)))), 0),"Not required") -> 51627.5 | P115: 0 | Q115: 0 | R115: 1 | S115: 0 | W115: T1 | Y115: 54107 | Z115: Kisumu Central | AB115: ='MDA2'!M115 -> 0
A116: =IF(INTRO!$E$34<>0,INTRO!$E$34,"") -> Kenya | B116: Kisumu | C116: Kisumu East | D116: 190946 | E116: =IF(INTRO!$E$48="","",ROUND($D116*INTRO!$E$48,0)) -> 28642 | F116: =IF(INTRO!$E$49="","",ROUND($D116*INTRO!$E$49,0)) -> 53465 | G116: =IF(INTRO!$E$50="","",ROUND($D116*INTRO!$E$50,0)) -> 102156 | H116: 0 | I116: 0 | J116: 2 | K116: 2 | L116: =IF(INTRO!$E$38="Endemic", IF($H116>0, IF($H116=4,"Unknown", IF($H116=99,"Stopped", $D116)), 0),"Not required") -> 0 | M116: 0 | N116: =IF(INTRO!$E$42="Endemic", IF(AND($J116>1,$J116<5), IF($J116=4, "Unknown", E116+F116), 0),"Not required") -> 82107 | O116: =IF(INTRO!$E$44="Endemic", IF(AND($K116>0,$K116<5), IF($K116=4,"Unknown", IF($K116=1, $F116*0.33, IF($K116=2, $F116*0.5+$G116*0.2, SUM(F116:G116)))), 0),"Not required") -> 47163.7 | P116: 0 | Q116: 0 | R116: 1 | S116: 0 | W116: T1 | Y116: 54108 | Z116: Kisumu East | AB116: ='MDA2'!M116 -> 0
A117: =IF(INTRO!$E$34<>0,INTRO!$E$34,"") -> Kenya | B117: Kisumu | C117: Kisumu West | D117: 160837 | E117: =IF(INTRO!$E$48="","",ROUND($D117*INTRO!$E$48,0)) -> 24126 | F117: =IF(INTRO!$E$49="","",ROUND($D117*INTRO!$E$49,0)) -> 45034 | G117: =IF(INTRO!$E$50="","",ROUND($D117*INTRO!$E$50,0)) -> 86048 | H117: 0 | I117: 0 | J117: 2 | K117: 2 | L117: =IF(INTRO!$E$38="Endemic", IF($H117>0, IF($H117=4,"Unknown", IF($H117=99,"Stopped", $D117)), 0),"Not required") -> 0 | M117: 0 | N117: =IF(INTRO!$E$42="Endemic", IF(AND($J117>1,$J117<5), IF($J117=4, "Unknown", E117+F117), 0),"Not required") -> 69160 | O117: =IF(INTRO!$E$44="Endemic", IF(AND($K117>0,$K117<5), IF($K117=4,"Unknown", IF($K117=1, $F117*0.33, IF($K117=2, $F117*0.5+$G117*0.2, SUM(F117:G117)))), 0),"Not required") -> 39726.6 | P117: 0 | Q117: 0 | R117: 1 | S117: 0 | W117: T1 | Y117: 54109 | Z117: Kisumu West | AB117: ='MDA2'!M117 -> 0
A118: =IF(INTRO!$E$34<>0,INTRO!$E$34,"") -> Kenya | B118: Kisumu | C118: Muhoroni | D118: 183534 | E118: =IF(INTRO!$E$48="","",ROUND($D118*INTRO!$E$48,0)) -> 27530 | F118: =IF(INTRO!$E$49="","",ROUND($D118*INTRO!$E$49,0)) -> 51390 | G118: =IF(INTRO!$E$50="","",ROUND($D118*INTRO!$E$50,0)) -> 98191 | H118: 0 | I118: 0 | J118: 2 | K118: 2 | L118: =IF(INTRO!$E$38="Endemic", IF($H118>0, IF($H118=4,"Unknown", IF($H118=99,"Stopped", $D118)), 0),"Not required") -> 0 | M118: 0 | N118: =IF(INTRO!$E$42="Endemic", IF(AND($J118>1,$J118<5), IF($J118=4, "Unknown", E118+F118), 0),"Not required") -> 78920 | O118: =IF(INTRO!$E$44="Endemic", IF(AND($K118>0,$K118<5), IF($K118=4,"Unknown", IF($K118=1, $F118*0.33, IF($K118=2, $F118*0.5+$G118*0.2, SUM(F118:G118)))), 0),"Not required") -> 45333.2 | P118: 0 | Q118: 0 | R118: 1 | S118: 0 | W118: T1 | Y118: 54110 | Z118: Muhoroni | AB118: ='MDA2'!M118 -> 0
A119: =IF(INTRO!$E$34<>0,INTRO!$E$34,"") -> Kenya | B119: Kisumu | C119: Nyakach | D119: 168409 | E119: =IF(INTRO!$E$48="","",ROUND($D119*INTRO!$E$48,0)) -> 25261 | F119: =IF(INTRO!$E$49="","",ROUND($D119*INTRO!$E$49,0)) -> 47155 | G119: =IF(INTRO!$E$50="","",ROUND($D119*INTRO!$E$50,0)) -> 90099 | H119: 0 | I119: 0 | J119: 2 | K119: 2 | L119: =IF(INTRO!$E$38="Endemic", IF($H119>0, IF($H119=4,"Unknown", IF($H119=99,"Stopped", $D119)), 0),"Not required") -> 0 | M119: 0 | N119: =IF(INTRO!$E$42="Endemic", IF(AND($J119>1,$J119<5), IF($J119=4, "Unknown", E119+F119), 0),"Not required") -> 72416 | O119: =IF(INTRO!$E$44="Endemic", IF(AND($K119>0,$K119<5), IF($K119=4,"Unknown", IF($K119=1, $F119*0.33, IF($K119=2, $F119*0.5+$G119*0.2, SUM(F119:G119)))), 0),"Not required") -> 41597.3 | P119: 0 | Q119: 0 | R119: 1 | S119: 0 | W119: T1 | Y119: 54111 | Z119: Nyakach | AB119: ='MDA2'!M119 -> 0
A120: =IF(INTRO!$E$34<>0,INTRO!$E$34,"") -> Kenya | B120: Kisumu | C120: Nyando | D120: 178179 | E120: =IF(INTRO!$E$48="","",ROUND($D120*INTRO!$E$48,0)) -> 26727 | F120: =IF(INTRO!$E$49="","",ROUND($D120*INTRO!$E$49,0)) -> 49890 | G120: =IF(INTRO!$E$50="","",ROUND($D120*INTRO!$E$50,0)) -> 95326 | H120: 0 | I120: 0 | J120: 2 | K120: 2 | L120: =IF(INTRO!$E$38="Endemic", IF($H120>0, IF($H120=4,"Unknown", IF($H120=99,"Stopped", $D120)), 0),"Not required") -> 0 | M120: 0 | N120: =IF(INTRO!$E$42="Endemic", IF(AND($J120>1,$J120<5), IF($J120=4, "Unknown", E120+F120), 0),"Not required") -> 76617 | O120: =IF(INTRO!$E$44="Endemic", IF(AND($K120>0,$K120<5), IF($K120=4,"Unknown", IF($K120=1, $F120*0.33, IF($K120=2, $F120*0.5+$G120*0.2, SUM(F120:G120)))), 0),"Not required") -> 44010.2 | P120: 0 | Q120: 0 | R120: 1 | S120: 0 | W120: T1 | Y120: 54112 | Z120: Nyando | AB120: ='MDA2'!M120 -> 0
A121: =IF(INTRO!$E$34<>0,INTRO!$E$34,"") -> Kenya | B121: Kisumu | C121: Seme | D121: 125589 | E121: =IF(INTRO!$E$48="","",ROUND($D121*INTRO!$E$48,0)) -> 18838 | F121: =IF(INTRO!$E$49="","",ROUND($D121*INTRO!$E$49,0)) -> 35165 | G121: =IF(INTRO!$E$50="","",ROUND($D121*INTRO!$E$50,0)) -> 67190 | H121: 0 | I121: 0 | J121: 2 | K121: 2 | L121: =IF(INTRO!$E$38="Endemic", IF($H121>0, IF($H121=4,"Unknown", IF($H121=99,"Stopped", $D121)), 0),"Not required") -> 0 | M121: 0 | N121: =IF(INTRO!$E$42="Endemic", IF(AND($J121>1,$J121<5), IF($J121=4, "Unknown", E121+F121), 0),"Not required") -> 54003 | O121: =IF(INTRO!$E$44="Endemic", IF(AND($K121>0,$K121<5), IF($K121=4,"Unknown", IF($K121=1, $F121*0.33, IF($K121=2, $F121*0.5+$G121*0.2, SUM(F121:G121)))), 0),"Not required") -> 31020.5 | P121: 0 | Q121: 0 | R121: 1 | S121: 0 | W121: T1 | Y121: 54113 | Z121: Seme | AB121: ='MDA2'!M121 -> 0
A122: =IF(INTRO!$E$34<>0,INTRO!$E$34,"") -> Kenya | B122: Kitui | C122: Kitui Central | D122: 159899 | E122: =IF(INTRO!$E$48="","",ROUND($D122*INTRO!$E$48,0)) -> 23985 | F122: =IF(INTRO!$E$49="","",ROUND($D122*INTRO!$E$49,0)) -> 44772 | G122: =IF(INTRO!$E$50="","",ROUND($D122*INTRO!$E$50,0)) -> 85546 | H122: 0 | I122: 0 | J122: 5 | K122: 2 | L122: =IF(INTRO!$E$38="Endemic", IF($H122>0, IF($H122=4,"Unknown", IF($H122=99,"Stopped", $D122)), 0),"Not required") -> 0 | M122: 0 | N122: =IF(INTRO!$E$42="Endemic", IF(AND($J122>1,$J122<5), IF($J122=4, "Unknown", E122+F122), 0),"Not required") -> 0 | O122: =IF(INTRO!$E$44="Endemic", IF(AND($K122>0,$K122<5), IF($K122=4,"Unknown", IF($K122=1, $F122*0.33, IF($K122=2, $F122*0.5+$G122*0.2, SUM(F122:G122)))), 0),"Not required") -> 39495.2 | P122: 0 | Q122: 0 | R122: 0 | S122: 0 | W122: T1 | Y122: 54114 | Z122: Kitui Central | AB122: ='MDA2'!M122 -> 0
A123: =IF(INTRO!$E$34<>0,INTRO!$E$34,"") -> Kenya | B123: Kitui | C123: Kitui East | D123: 156354 | E123: =IF(INTRO!$E$48="","",ROUND($D123*INTRO!$E$48,0)) -> 23453 | F123: =IF(INTRO!$E$49="","",ROUND($D123*INTRO!$E$49,0)) -> 43779 | G123: =IF(INTRO!$E$50="","",ROUND($D123*INTRO!$E$50,0)) -> 83649 | H123: 0 | I123: 0 | J123: 5 | K123: 2 | L123: =IF(INTRO!$E$38="Endemic", IF($H123>0, IF($H123=4,"Unknown", IF($H123=99,"Stopped", $D123)), 0),"Not required") -> 0 | M123: 0 | N123: =IF(INTRO!$E$42="Endemic", IF(AND($J123>1,$J123<5), IF($J123=4, "Unknown", E123+F123), 0),"Not required") -> 0 | O123: =IF(INTRO!$E$44="Endemic", IF(AND($K123>0,$K123<5), IF($K123=4,"Unknown", IF($K123=1, $F123*0.33, IF($K123=2, $F123*0.5+$G123*0.2, SUM(F123:G123)))), 0),"Not required") -> 38619.3 | P123: 0 | Q123: 0 | R123: 0 | S123: 0 | Y123: 54115 | Z123: Kitui East | AB123: ='MDA2'!M123 -> 0
A124: =IF(INTRO!$E$34<>0,INTRO!$E$34,"") -> Kenya | B124: Kitui | C124: Kitui Rural | D124: 131909 | E124: =IF(INTRO!$E$48="","",ROUND($D124*INTRO!$E$48,0)) -> 19786 | F124: =IF(INTRO!$E$49="","",ROUND($D124*INTRO!$E$49,0)) -> 36935 | G124: =IF(INTRO!$E$50="","",ROUND($D124*INTRO!$E$50,0)) -> 70571 | H124: 0 | I124: 0 | J124: 5 | K124: 2 | L124: =IF(INTRO!$E$38="Endemic", IF($H124>0, IF($H124=4,"Unknown", IF($H124=99,"Stopped", $D124)), 0),"Not required") -> 0 | M124: 0 | N124: =IF(INTRO!$E$42="Endemic", IF(AND($J124>1,$J124<5), IF($J124=4, "Unknown", E124+F124), 0),"Not required") -> 0 | O124: =IF(INTRO!$E$44="Endemic", IF(AND($K124>0,$K124<5), IF($K124=4,"Unknown", IF($K124=1, $F124*0.33, IF($K124=2, $F124*0.5+$G124*0.2, SUM(F124:G124)))), 0),"Not required") -> 32581.7 | P124: 0 | Q124: 0 | R124: 0 | S124: 0 | Y124: 54116 | Z124: Kitui Rural | AB124: ='MDA2'!M124 -> 0
A125: =IF(INTRO!$E$34<>0,INTRO!$E$34,"") -> Kenya | B125: Kitui | C125: Kitui South | D125: 210214 | E125: =IF(INTRO!$E$48="","",ROUND($D125*INTRO!$E$48,0)) -> 31532 | F125: =IF(INTRO!$E$49="","",ROUND($D125*INTRO!$E$49,0)) -> 58860 | G125: =IF(INTRO!$E$50="","",ROUND($D125*INTRO!$E$50,0)) -> 112464 | H125: 0 | I125: 0 | J125: 5 | K125: 2 | L125: =IF(INTRO!$E$38="Endemic", IF($H125>0, IF($H125=4,"Unknown", IF($H125=99,"Stopped", $D125)), 0),"Not required") -> 0 | M125: 0 | N125: =IF(INTRO!$E$42="Endemic", IF(AND($J125>1,$J125<5), IF($J125=4, "Unknown", E125+F125), 0),"Not required") -> 0 | O125: =IF(INTRO!$E$44="Endemic", IF(AND($K125>0,$K125<5), IF($K125=4,"Unknown", IF($K125=1, $F125*0.33, IF($K125=2, $F125*0.5+$G125*0.2, SUM(F125:G125)))), 0),"Not required") -> 51922.8 | P125: 0 | Q125: 0 | R125: 0 | S125: 0 | Y125: 54117 | Z125: Kitui South | AB125: ='MDA2'!M125 -> 0
A126: =IF(INTRO!$E$34<>0,INTRO!$E$34,"") -> Kenya | B126: Kitui | C126: Kitui West | D126: 128091 | E126: =IF(INTRO!$E$48="","",ROUND($D126*INTRO!$E$48,0)) -> 19214 | F126: =IF(INTRO!$E$49="","",ROUND($D126*INTRO!$E$49,0)) -> 35865 | G126: =IF(INTRO!$E$50="","",ROUND($D126*INTRO!$E$50,0)) -> 68529 | H126: 0 | I126: 0 | J126: 5 | K126: 2 | L126: =IF(INTRO!$E$38="Endemic", IF($H126>0, IF($H126=4,"Unknown", IF($H126=99,"Stopped", $D126)), 0),"Not required") -> 0 | M126: 0 | N126: =IF(INTRO!$E$42="Endemic", IF(AND($J126>1,$J126<5), IF($J126=4, "Unknown", E126+F126), 0),"Not required") -> 0 | O126: =IF(INTRO!$E$44="Endemic", IF(AND($K126>0,$K126<5), IF($K126=4,"Unknown", IF($K126=1, $F126*0.33, IF($K126=2, $F126*0.5+$G126*0.2, SUM(F126:G126)))), 0),"Not required") -> 31638.3 | P126: 0 | Q126: 0 | R126: 0 | S126: 0 | W126: T1 | Y126: 54118 | Z126: Kitui West | AB126: ='MDA2'!M126 -> 0
A127: =IF(INTRO!$E$34<>0,INTRO!$E$34,"") -> Kenya | B127: Kitui | C127: Mwingi Central | D127: 148244 | E127: =IF(INTRO!$E$48="","",ROUND($D127*INTRO!$E$48,0)) -> 22237 | F127: =IF(INTRO!$E$49="","",ROUND($D127*INTRO!$E$49,0)) -> 41508 | G127: =IF(INTRO!$E$50="","",ROUND($D127*INTRO!$E$50,0)) -> 79311 | H127: 0 | I127: 0 | J127: 5 | K127: 2 | L127: =IF(INTRO!$E$38="Endemic", IF($H127>0, IF($H127=4,"Unknown", IF($H127=99,"Stopped", $D127)), 0),"Not required") -> 0 | M127: 0 | N127: =IF(INTRO!$E$42="Endemic", IF(AND($J127>1,$J127<5), IF($J127=4, "Unknown", E127+F127), 0),"Not required") -> 0 | O127: =IF(INTRO!$E$44="Endemic", IF(AND($K127>0,$K127<5), IF($K127=4,"Unknown", IF($K127=1, $F127*0.33, IF($K127=2, $F127*0.5+$G127*0.2, SUM(F127:G127)))), 0),"Not required") -> 36616.2 | P127: 0 | Q127: 0 | R127: 0 | S127: 0 | Y127: 54119 | Z127: Mwingi Central | AB127: ='MDA2'!M127 -> 0
A128: =IF(INTRO!$E$34<>0,INTRO!$E$34,"") -> Kenya | B128: Kitui | C128: Mwingi North | D128: 177509 | E128: =IF(INTRO!$E$48="","",ROUND($D128*INTRO!$E$48,0)) -> 26626 | F128: =IF(INTRO!$E$49="","",ROUND($D128*INTRO!$E$49,0)) -> 49703 | G128: =IF(INTRO!$E$50="","",ROUND($D128*INTRO!$E$50,0)) -> 94967 | H128: 0 | I128: 0 | J128: 5 | K128: 2 | L128: =IF(INTRO!$E$38="Endemic", IF($H128>0, IF($H128=4,"Unknown", IF($H128=99,"Stopped", $D128)), 0),"Not required") -> 0 | M128: 0 | N128: =IF(INTRO!$E$42="Endemic", IF(AND($J128>1,$J128<5), IF($J128=4, "Unknown", E128+F128), 0),"Not required") -> 0 | O128: =IF(INTRO!$E$44="Endemic", IF(AND($K128>0,$K128<5), IF($K128=4,"Unknown", IF($K128=1, $F128*0.33, IF($K128=2, $F128*0.5+$G128*0.2, SUM(F128:G128)))), 0),"Not required") -> 43844.9 | P128: 0 | Q128: 0 | R128: 0 | S128: 0 | Y128: 54120 | Z128: Mwingi North | AB128: ='MDA2'!M128 -> 0
A129: =IF(INTRO!$E$34<>0,INTRO!$E$34,"") -> Kenya | B129: Kitui | C129: Mwingi West | D129: 140057 | E129: =IF(INTRO!$E$48="","",ROUND($D129*INTRO!$E$48,0)) -> 21009 | F129: =IF(INTRO!$E$49="","",ROUND($D129*INTRO!$E$49,0)) -> 39216 | G129: =IF(INTRO!$E$50="","",ROUND($D129*INTRO!$E$50,0)) -> 74930 | H129: 0 | I129: 0 | J129: 5 | K129: 2 | L129: =IF(INTRO!$E$38="Endemic", IF($H129>0, IF($H129=4,"Unknown", IF($H129=99,"Stopped", $D129)), 0),"Not required") -> 0 | M129: 0 | N129: =IF(INTRO!$E$42="Endemic", IF(AND($J129>1,$J129<5), IF($J129=4, "Unknown", E129+F129), 0),"Not required") -> 0 | O129: =IF(INTRO!$E$44="Endemic", IF(AND($K129>0,$K129<5), IF($K129=4,"Unknown", IF($K129=1, $F129*0.33, IF($K129=2, $F129*0.5+$G129*0.2, SUM(F129:G129)))), 0),"Not required") -> 34594 | P129: 0 | Q129: 0 | R129: 0 | S129: 0 | Y129: 54121 | Z129: Mwingi West | AB129: ='MDA2'!M129 -> 0
A130: =IF(INTRO!$E$34<>0,INTRO!$E$34,"") -> Kenya | B130: Kwale | C130: Kinango | D130: 265593 | E130: =IF(INTRO!$E$48="","",ROUND($D130*INTRO!$E$48,0)) -> 39839 | F130: =IF(INTRO!$E$49="","",ROUND($D130*INTRO!$E$49,0)) -> 74366 | G130: =IF(INTRO!$E$50="","",ROUND($D130*INTRO!$E$50,0)) -> 142092 | H130: 1 | I130: 0 | J130: 2 | K130: 2 | L130: =IF(INTRO!$E$38="Endemic", IF($H130>0, IF($H130=4,"Unknown", IF($H130=99,"Stopped", $D130)), 0),"Not required") -> 265593 | M130: 0 | N130: =IF(INTRO!$E$42="Endemic", IF(AND($J130>1,$J130<5), IF($J130=4, "Unknown", E130+F130), 0),"Not required") -> 114205 | O130: =IF(INTRO!$E$44="Endemic", IF(AND($K130>0,$K130<5), IF($K130=4,"Unknown", IF($K130=1, $F130*0.33, IF($K130=2, $F130*0.5+$G130*0.2, SUM(F130:G130)))), 0),"Not required") -> 65601.4 | P130: 1 | Q130: 0 | R130: 1 | S130: 0 | T130: MDA2 (DEC+ALB) | V130: MDA 2 | W130: T1 | Y130: 54122 | Z130: Kinango | AB130: ='MDA2'!M130 -> 193869
A131: =IF(INTRO!$E$34<>0,INTRO!$E$34,"") -> Kenya | B131: Kwale | C131: Lunga Lunga | D131: 195167 | E131: =IF(INTRO!$E$48="","",ROUND($D131*INTRO!$E$48,0)) -> 29275 | F131: =IF(INTRO!$E$49="","",ROUND($D131*INTRO!$E$49,0)) -> 54647 | G131: =IF(INTRO!$E$50="","",ROUND($D131*INTRO!$E$50,0)) -> 104414 | H131: 1 | I131: 0 | J131: 2 | K131: 2 | L131: =IF(INTRO!$E$38="Endemic", IF($H131>0, IF($H131=4,"Unknown", IF($H131=99,"Stopped", $D131)), 0),"Not required") -> 195167 | M131: 0 | N131: =IF(INTRO!$E$42="Endemic", IF(AND($J131>1,$J131<5), IF($J131=4, "Unknown", E131+F131), 0),"Not required") -> 83922 | O131: =IF(INTRO!$E$44="Endemic", IF(AND($K131>0,$K131<5), IF($K131=4,"Unknown", IF($K131=1, $F131*0.33, IF($K131=2, $F131*0.5+$G131*0.2, SUM(F131:G131)))), 0),"Not required") -> 48206.3 | P131: 1 | Q131: 0 | R131: 1 | S131: 0 | T131: MDA2 (DEC+ALB) | V131: MDA 2 | W131: T3 | Y131: 54123 | Z131: Lunga Lunga | AB131: ='MDA2'!M131 -> 133870
A132: =IF(INTRO!$E$34<>0,INTRO!$E$34,"") -> Kenya | B132: Kwale | C132: Matuga | D132: 190776 | E132: =IF(INTRO!$E$48="","",ROUND($D132*INTRO!$E$48,0)) -> 28616 | F132: =IF(INTRO!$E$49="","",ROUND($D132*INTRO!$E$49,0)) -> 53417 | G132: =IF(INTRO!$E$50="","",ROUND($D132*INTRO!$E$50,0)) -> 102065 | H132: 1 | I132: 0 | J132: 2 | K132: 2 | L132: =IF(INTRO!$E$38="Endemic", IF($H132>0, IF($H132=4,"Unknown", IF($H132=99,"Stopped", $D132)), 0),"Not required") -> 190776 | M132: 0 | N132: =IF(INTRO!$E$42="Endemic", IF(AND($J132>1,$J132<5), IF($J132=4, "Unknown", E132+F132), 0),"Not required") -> 82033 | O132: =IF(INTRO!$E$44="Endemic", IF(AND($K132>0,$K132<5), IF($K132=4,"Unknown", IF($K132=1, $F132*0.33, IF($K132=2, $F132*0.5+$G132*0.2, SUM(F132:G132)))), 0),"Not required") -> 47121.5 | P132: 1 | Q132: 0 | R132: 1 | S132: 0 | T132: MDA2 (DEC+ALB) | V132: MDA 2 | W132: T1 | Y132: 54124 | Z132: Matuga | AB132: ='MDA2'!M132 -> 135662
A133: =IF(INTRO!$E$34<>0,INTRO!$E$34,"") -> Kenya | B133: Kwale | C133: Msambweni | D133: 168070 | E133: =IF(INTRO!$E$48="","",ROUND($D133*INTRO!$E$48,0)) -> 25211 | F133: =IF(INTRO!$E$49="","",ROUND($D133*INTRO!$E$49,0)) -> 47060 | G133: =IF(INTRO!$E$50="","",ROUND($D133*INTRO!$E$50,0)) -> 89917 | H133: 1 | I133: 0 | J133: 2 | K133: 2 | L133: =IF(INTRO!$E$38="Endemic", IF($H133>0, IF($H133=4,"Unknown", IF($H133=99,"Stopped", $D133)), 0),"Not required") -> 168070 | M133: 0 | N133: =IF(INTRO!$E$42="Endemic", IF(AND($J133>1,$J133<5), IF($J133=4, "Unknown", E133+F133), 0),"Not required") -> 72271 | O133: =IF(INTRO!$E$44="Endemic", IF(AND($K133>0,$K133<5), IF($K133=4,"Unknown", IF($K133=1, $F133*0.33, IF($K133=2, $F133*0.5+$G133*0.2, SUM(F133:G133)))), 0),"Not required") -> 41513.4 | P133: 1 | Q133: 0 | R133: 1 | S133: 0 | T133: MDA2 (DEC+ALB) | V133: MDA 2 | W133: T1 | Y133: 54125 | Z133: Msambweni | AB133: ='MDA2'!M133 -> 165148
A134: =IF(INTRO!$E$34<>0,INTRO!$E$34,"") -> Kenya | B134: Laikipia | C134: Laikipia East | D134: 138409 | E134: =IF(INTRO!$E$48="","",ROUND($D134*INTRO!$E$48,0)) -> 20761 | F134: =IF(INTRO!$E$49="","",ROUND($D134*INTRO!$E$49,0)) -> 38755 | G134: =IF(INTRO!$E$50="","",ROUND($D134*INTRO!$E$50,0)) -> 74049 | H134: 0 | I134: 0 | J134: 4 | K134: 4 | L134: =IF(INTRO!$E$38="Endemic", IF($H134>0, IF($H134=4,"Unknown", IF($H134=99,"Stopped", $D134)), 0),"Not required") -> 0 | M134: 0 | N134: =IF(INTRO!$E$42="Endemic", IF(AND($J134>1,$J134<5), IF($J134=4, "Unknown", E134+F134), 0),"Not required") -> Unknown | O134: =IF(INTRO!$E$44="Endemic", IF(AND($K134>0,$K134<5), IF($K134=4,"Unknown", IF($K134=1, $F134*0.33, IF($K134=2, $F134*0.5+$G134*0.2, SUM(F134:G134)))), 0),"Not required") -> Unknown | P134: 0 | Q134: 0 | R134: 0 | S134: 0 | Y134: 54126 | Z134: Laikipia East | AB134: ='MDA2'!M134 -> 0
A135: =IF(INTRO!$E$34<>0,INTRO!$E$34,"") -> Kenya | B135: Laikipia | C135: Laikipia North | D135: 100709 | E135: =IF(INTRO!$E$48="","",ROUND($D135*INTRO!$E$48,0)) -> 15106 | F135: =IF(INTRO!$E$49="","",ROUND($D135*INTRO!$E$49,0)) -> 28199 | G135: =IF(INTRO!$E$50="","",ROUND($D135*INTRO!$E$50,0)) -> 53879 | H135: 0 | I135: 0 | J135: 4 | K135: 4 | L135: =IF(INTRO!$E$38="Endemic", IF($H135>0, IF($H135=4,"Unknown", IF($H135=99,"Stopped", $D135)), 0),"Not required") -> 0 | M135: 0 | N135: =IF(INTRO!$E$42="Endemic", IF(AND($J135>1,$J135<5), IF($J135=4, "Unknown", E135+F135), 0),"Not required") -> Unknown | O135: =IF(INTRO!$E$44="Endemic", IF(AND($K135>0,$K135<5), IF($K135=4,"Unknown", IF($K135=1, $F135*0.33, IF($K135=2, $F135*0.5+$G135*0.2, SUM(F135:G135)))), 0),"Not required") -> Unknown | P135: 0 | Q135: 0 | R135: 0 | S135: 0 | Y135: 54127 | Z135: Laikipia North | AB135: ='MDA2'!M135 -> 0
A136: =IF(INTRO!$E$34<>0,INTRO!$E$34,"") -> Kenya | B136: Laikipia | C136: Laikipia West | D136: 253556 | E136: =IF(INTRO!$E$48="","",ROUND($D136*INTRO!$E$48,0)) -> 38033 | F136: =IF(INTRO!$E$49="","",ROUND($D136*INTRO!$E$49,0)) -> 70996 | G136: =IF(INTRO!$E$50="","",ROUND($D136*INTRO!$E$50,0)) -> 135652 | H136: 0 | I136: 0 | J136: 4 | K136: 4 | L136: =IF(INTRO!$E$38="Endemic", IF($H136>0, IF($H136=4,"Unknown", IF($H136=99,"Stopped", $D136)), 0),"Not required") -> 0 | M136: 0 | N136: =IF(INTRO!$E$42="Endemic", IF(AND($J136>1,$J136<5), IF($J136=4, "Unknown", E136+F136), 0),"Not required") -> Unknown | O136: =IF(INTRO!$E$44="Endemic", IF(AND($K136>0,$K136<5), IF($K136=4,"Unknown", IF($K136=1, $F136*0.33, IF($K136=2, $F136*0.5+$G136*0.2, SUM(F136:G136)))), 0),"Not required") -> Unknown | P136: 0 | Q136: 0 | R136: 0 | S136: 0 | Y136: 54128 | Z136: Laikipia West | AB136: ='MDA2'!M136 -> 0
A137: =IF(INTRO!$E$34<>0,INTRO!$E$34,"") -> Kenya | B137: Lamu | C137: Lamu East | D137: 23690 | E137: =IF(INTRO!$E$48="","",ROUND($D137*INTRO!$E$48,0)) -> 3554 | F137: =IF(INTRO!$E$49="","",ROUND($D137*INTRO!$E$49,0)) -> 6633 | G137: =IF(INTRO!$E$50="","",ROUND($D137*INTRO!$E$50,0)) -> 12674 | H137: 1 | I137: 0 | J137: 2 | K137: 2 | L137: =IF(INTRO!$E$38="Endemic", IF($H137>0, IF($H137=4,"Unknown", IF($H137=99,"Stopped", $D137)), 0),"Not required") -> 23690 | M137: 0 | N137: =IF(INTRO!$E$42="Endemic", IF(AND($J137>1,$J137<5), IF($J137=4, "Unknown", E137+F137), 0),"Not required") -> 10187 | O137: =IF(INTRO!$E$44="Endemic", IF(AND($K137>0,$K137<5), IF($K137=4,"Unknown", IF($K137=1, $F137*0.33, IF($K137=2, $F137*0.5+$G137*0.2, SUM(F137:G137)))), 0),"Not required") -> 5851.3 | P137: 1 | Q137: 0 | R137: 1 | S137: 0 | T137: MDA2 (DEC+ALB) | V137: MDA 2 | W137: T3 | Y137: 54129 | Z137: Lamu East | AB137: ='MDA2'!M137 -> 19428
A138: =IF(INTRO!$E$34<>0,INTRO!$E$34,"") -> Kenya | B138: Lamu | C138: Lamu West | D138: 102419 | E138: =IF(INTRO!$E$48="","",ROUND($D138*INTRO!$E$48,0)) -> 15363 | F138: =IF(INTRO!$E$49="","",ROUND($D138*INTRO!$E$49,0)) -> 28677 | G138: =IF(INTRO!$E$50="","",ROUND($D138*INTRO!$E$50,0)) -> 54794 | H138: 1 | I138: 0 | J138: 2 | K138: 2 | L138: =IF(INTRO!$E$38="Endemic", IF($H138>0, IF($H138=4,"Unknown", IF($H138=99,"Stopped", $D138)), 0),"Not required") -> 102419 | M138: 0 | N138: =IF(INTRO!$E$42="Endemic", IF(AND($J138>1,$J138<5), IF($J138=4, "Unknown", E138+F138), 0),"Not required") -> 44040 | O138: =IF(INTRO!$E$44="Endemic", IF(AND($K138>0,$K138<5), IF($K138=4,"Unknown", IF($K138=1, $F138*0.33, IF($K138=2, $F138*0.5+$G138*0.2, SUM(F138:G138)))), 0),"Not required") -> 25297.3 | P138: 1 | Q138: 0 | R138: 1 | S138: 0 | T138: MDA2 (DEC+ALB) | V138: MDA 2 | W138: T3 | Y138: 54130 | Z138: Lamu West | AB138: ='MDA2'!M138 -> 86006
A139: =IF(INTRO!$E$34<>0,INTRO!$E$34,"") -> Kenya | B139: Machakos | C139: Kangundo | D139: 119876 | E139: =IF(INTRO!$E$48="","",ROUND($D139*INTRO!$E$48,0)) -> 17981 | F139: =IF(INTRO!$E$49="","",ROUND($D139*INTRO!$E$49,0)) -> 33565 | G139: =IF(INTRO!$E$50="","",ROUND($D139*INTRO!$E$50,0)) -> 64134 | H139: 0 | I139: 0 | J139: 5 | K139: 2 | L139: =IF(INTRO!$E$38="Endemic", IF($H139>0, IF($H139=4,"Unknown", IF($H139=99,"Stopped", $D139)), 0),"Not required") -> 0 | M139: 0 | N139: =IF(INTRO!$E$42="Endemic", IF(AND($J139>1,$J139<5), IF($J139=4, "Unknown", E139+F139), 0),"Not required") -> 0 | O139: =IF(INTRO!$E$44="Endemic", IF(AND($K139>0,$K139<5), IF($K139=4,"Unknown", IF($K139=1, $F139*0.33, IF($K139=2, $F139*0.5+$G139*0.2, SUM(F139:G139)))), 0),"Not required") -> 29609.3 | P139: 0 | Q139: 0 | R139: 0 | S139: 0 | W139: T1 | Y139: 54131 | Z139: Kangundo | AB139: ='MDA2'!M139 -> 0
A140: =IF(INTRO!$E$34<>0,INTRO!$E$34,"") -> Kenya | B140: Machakos | C140: Kathiani | D140: 132785 | E140: =IF(INTRO!$E$48="","",ROUND($D140*INTRO!$E$48,0)) -> 19918 | F140: =IF(INTRO!$E$49="","",ROUND($D140*INTRO!$E$49,0)) -> 37180 | G140: =IF(INTRO!$E$50="","",ROUND($D140*INTRO!$E$50,0)) -> 71040 | H140: 0 | I140: 0 | J140: 5 | K140: 2 | L140: =IF(INTRO!$E$38="Endemic", IF($H140>0, IF($H140=4,"Unknown", IF($H140=99,"Stopped", $D140)), 0),"Not required") -> 0 | M140: 0 | N140: =IF(INTRO!$E$42="Endemic", IF(AND($J140>1,$J140<5), IF($J140=4, "Unknown", E140+F140), 0),"Not required") -> 0 | O140: =IF(INTRO!$E$44="Endemic", IF(AND($K140>0,$K140<5), IF($K140=4,"Unknown", IF($K140=1, $F140*0.33, IF($K140=2, $F140*0.5+$G140*0.2, SUM(F140:G140)))), 0),"Not required") -> 32798 | P140: 0 | Q140: 0 | R140: 0 | S140: 0 | W140: T1 | Y140: 54132 | Z140: Kathiani | AB140: ='MDA2'!M140 -> 0
A141: =IF(INTRO!$E$34<>0,INTRO!$E$34,"") -> Kenya | B141: Machakos | C141: Machakos Town | D141: 249094 | E141: =IF(INTRO!$E$48="","",ROUND($D141*INTRO!$E$48,0)) -> 37364 | F141: =IF(INTRO!$E$49="","",ROUND($D141*INTRO!$E$49,0)) -> 69746 | G141: =IF(INTRO!$E$50="","",ROUND($D141*INTRO!$E$50,0)) -> 133265 | H141: 0 | I141: 0 | J141: 5 | K141: 2 | L141: =IF(INTRO!$E$38="Endemic", IF($H141>0, IF($H141=4,"Unknown", IF($H141=99,"Stopped", $D141)), 0),"Not required") -> 0 | M141: 0 | N141: =IF(INTRO!$E$42="Endemic", IF(AND($J141>1,$J141<5), IF($J141=4, "Unknown", E141+F141), 0),"Not required") -> 0 | O141: =IF(INTRO!$E$44="Endemic", IF(AND($K141>0,$K141<5), IF($K141=4,"Unknown", IF($K141=1, $F141*0.33, IF($K141=2, $F141*0.5+$G141*0.2, SUM(F141:G141)))), 0),"Not required") -> 61526 | P141: 0 | Q141: 0 | R141: 0 | S141: 0 | W141: T1 | Y141: 54133 | Z141: Machakos Town | AB141: ='MDA2'!M141 -> 0
A142: =IF(INTRO!$E$34<>0,INTRO!$E$34,"") -> Kenya | B142: Machakos | C142: Masinga | D142: 160084 | E142: =IF(INTRO!$E$48="","",ROUND($D142*INTRO!$E$48,0)) -> 24013 | F142: =IF(INTRO!$E$49="","",ROUND($D142*INTRO!$E$49,0)) -> 44824 | G142: =IF(INTRO!$E$50="","",ROUND($D142*INTRO!$E$50,0)) -> 85645 | H142: 0 | I142: 0 | J142: 5 | K142: 2 | L142: =IF(INTRO!$E$38="Endemic", IF($H142>0, IF($H142=4,"Unknown", IF($H142=99,"Stopped", $D142)), 0),"Not required") -> 0 | M142: 0 | N142: =IF(INTRO!$E$42="Endemic", IF(AND($J142>1,$J142<5), IF($J142=4, "Unknown", E142+F142), 0),"Not required") -> 0 | O142: =IF(INTRO!$E$44="Endemic", IF(AND($K142>0,$K142<5), IF($K142=4,"Unknown", IF($K142=1, $F142*0.33, IF($K142=2, $F142*0.5+$G142*0.2, SUM(F142:G142)))), 0),"Not required") -> 39541 | P142: 0 | Q142: 0 | R142: 0 | S142: 0 | Y142: 54134 | Z142: Masinga | AB142: ='MDA2'!M142 -> 0
A143: =IF(INTRO!$E$34<>0,INTRO!$E$34,"") -> Kenya | B143: Machakos | C143: Matungulu | D143: 157995 | E143: =IF(INTRO!$E$48="","",ROUND($D143*INTRO!$E$48,0)) -> 23699 | F143: =IF(INTRO!$E$49="","",ROUND($D143*INTRO!$E$49,0)) -> 44239 | G143: =IF(INTRO!$E$50="","",ROUND($D143*INTRO!$E$50,0)) -> 84527 | H143: 0 | I143: 0 | J143: 5 | K143: 2 | L143: =IF(INTRO!$E$38="Endemic", IF($H143>0, IF($H143=4,"Unknown", IF($H143=99,"Stopped", $D143)), 0),"Not required") -> 0 | M143: 0 | N143: =IF(INTRO!$E$42="Endemic", IF(AND($J143>1,$J143<5), IF($J143=4, "Unknown", E143+F143), 0),"Not required") -> 0 | O143: =IF(INTRO!$E$44="Endemic", IF(AND($K143>0,$K143<5), IF($K143=4,"Unknown", IF($K143=1, $F143*0.33, IF($K143=2, $F143*0.5+$G143*0.2, SUM(F143:G143)))), 0),"Not required") -> 39024.9 | P143: 0 | Q143: 0 | R143: 0 | S143: 0 | W143: T1 | Y143: 54135 | Z143: Matungulu | AB143: ='MDA2'!M143 -> 0
A144: =IF(INTRO!$E$34<>0,INTRO!$E$34,"") -> Kenya | B144: Machakos | C144: Mavoko | D144: 174006 | E144: =IF(INTRO!$E$48="","",ROUND($D144*INTRO!$E$48,0)) -> 26101 | F144: =IF(INTRO!$E$49="","",ROUND($D144*INTRO!$E$49,0)) -> 48722 | G144: =IF(INTRO!$E$50="","",ROUND($D144*INTRO!$E$50,0)) -> 93093 | H144: 0 | I144: 0 | J144: 5 | K144: 2 | L144: =IF(INTRO!$E$38="Endemic", IF($H144>0, IF($H144=4,"Unknown", IF($H144=99,"Stopped", $D144)), 0),"Not required") -> 0 | M144: 0 | N144: =IF(INTRO!$E$42="Endemic", IF(AND($J144>1,$J144<5), IF($J144=4, "Unknown", E144+F144), 0),"Not required") -> 0 | O144: =IF(INTRO!$E$44="Endemic", IF(AND($K144>0,$K144<5), IF($K144=4,"Unknown", IF($K144=1, $F144*0.33, IF($K144=2, $F144*0.5+$G144*0.2, SUM(F144:G144)))), 0),"Not required") -> 42979.6 | P144: 0 | Q144: 0 | R144: 0 | S144: 0 | Y144: 54136 | Z144: Mavoko | AB144: ='MDA2'!M144 -> 0
A145: =IF(INTRO!$E$34<>0,INTRO!$E$34,"") -> Kenya | B145: Machakos | C145: Mwala | D145: 206695 | E145: =IF(INTRO!$E$48="","",ROUND($D145*INTRO!$E$48,0)) -> 31004 | F145: =IF(INTRO!$E$49="","",ROUND($D145*INTRO!$E$49,0)) -> 57875 | G145: =IF(INTRO!$E$50="","",ROUND($D145*INTRO!$E$50,0)) -> 110582 | H145: 0 | I145: 0 | J145: 5 | K145: 2 | L145: =IF(INTRO!$E$38="Endemic", IF($H145>0, IF($H145=4,"Unknown", IF($H145=99,"Stopped", $D145)), 0),"Not required") -> 0 | M145: 0 | N145: =IF(INTRO!$E$42="Endemic", IF(AND($J145>1,$J145<5), IF($J145=4, "Unknown", E145+F145), 0),"Not required") -> 0 | O145: =IF(INTRO!$E$44="Endemic", IF(AND($K145>0,$K145<5), IF($K145=4,"Unknown", IF($K145=1, $F145*0.33, IF($K145=2, $F145*0.5+$G145*0.2, SUM(F145:G145)))), 0),"Not required") -> 51053.9 | P145: 0 | Q145: 0 | R145: 0 | S145: 0 | W145: T1 | Y145: 54137 | Z145: Mwala | AB145: ='MDA2'!M145 -> 0
A146: =IF(INTRO!$E$34<>0,INTRO!$E$34,"") -> Kenya | B146: Machakos | C146: Yatta | D146: 185418 | E146: =IF(INTRO!$E$48="","",ROUND($D146*INTRO!$E$48,0)) -> 27813 | F146: =IF(INTRO!$E$49="","",ROUND($D146*INTRO!$E$49,0)) -> 51917 | G146: =IF(INTRO!$E$50="","",ROUND($D146*INTRO!$E$50,0)) -> 99199 | H146: 0 | I146: 0 | J146: 5 | K146: 2 | L146: =IF(INTRO!$E$38="Endemic", IF($H146>0, IF($H146=4,"Unknown", IF($H146=99,"Stopped", $D146)), 0),"Not required") -> 0 | M146: 0 | N146: =IF(INTRO!$E$42="Endemic", IF(AND($J146>1,$J146<5), IF($J146=4, "Unknown", E146+F146), 0),"Not required") -> 0 | O146: =IF(INTRO!$E$44="Endemic", IF(AND($K146>0,$K146<5), IF($K146=4,"Unknown", IF($K146=1, $F146*0.33, IF($K146=2, $F146*0.5+$G146*0.2, SUM(F146:G146)))), 0),"Not required") -> 45798.3 | P146: 0 | Q146: 0 | R146: 0 | S146: 0 | W146: T1 | Y146: 54138 | Z146: Yatta | AB146: ='MDA2'!M146 -> 0
A147: =IF(INTRO!$E$34<>0,INTRO!$E$34,"") -> Kenya | B147: Makueni | C147: Kaiti | D147: 152741 | E147: =IF(INTRO!$E$48="","",ROUND($D147*INTRO!$E$48,0)) -> 22911 | F147: =IF(INTRO!$E$49="","",ROUND($D147*INTRO!$E$49,0)) -> 42767 | G147: =IF(INTRO!$E$50="","",ROUND($D147*INTRO!$E$50,0)) -> 81716 | H147: 0 | I147: 0 | J147: 5 | K147: 2 | L147: =IF(INTRO!$E$38="Endemic", IF($H147>0, IF($H147=4,"Unknown", IF($H147=99,"Stopped", $D147)), 0),"Not required") -> 0 | M147: 0 | N147: =IF(INTRO!$E$42="Endemic", IF(AND($J147>1,$J147<5), IF($J147=4, "Unknown", E147+F147), 0),"Not required") -> 0 | O147: =IF(INTRO!$E$44="Endemic", IF(AND($K147>0,$K147<5), IF($K147=4,"Unknown", IF($K147=1, $F147*0.33, IF($K147=2, $F147*0.5+$G147*0.2, SUM(F147:G147)))), 0),"Not required") -> 37726.7 | P147: 0 | Q147: 0 | R147: 0 | S147: 0 | W147: T1 | Y147: 54139 | Z147: Kaiti | AB147: ='MDA2'!M147 -> 0
A148: =IF(INTRO!$E$34<>0,INTRO!$E$34,"") -> Kenya | B148: Makueni | C148: Kibwezi East | D148: 166722 | E148: =IF(INTRO!$E$48="","",ROUND($D148*INTRO!$E$48,0)) -> 25008 | F148: =IF(INTRO!$E$49="","",ROUND($D148*INTRO!$E$49,0)) -> 46682 | G148: =IF(INTRO!$E$50="","",ROUND($D148*INTRO!$E$50,0)) -> 89196 | H148: 0 | I148: 0 | J148: 5 | K148: 2 | L148: =IF(INTRO!$E$38="Endemic", IF($H148>0, IF($H148=4,"Unknown", IF($H148=99,"Stopped", $D148)), 0),"Not required") -> 0 | M148: 0 | N148: =IF(INTRO!$E$42="Endemic", IF(AND($J148>1,$J148<5), IF($J148=4, "Unknown", E148+F148), 0),"Not required") -> 0 | O148: =IF(INTRO!$E$44="Endemic", IF(AND($K148>0,$K148<5), IF($K148=4,"Unknown", IF($K148=1, $F148*0.33, IF($K148=2, $F148*0.5+$G148*0.2, SUM(F148:G148)))), 0),"Not required") -> 41180.2 | P148: 0 | Q148: 0 | R148: 0 | S148: 0 | W148: T1 | Y148: 54140 | Z148: Kibwezi East | AB148: ='MDA2'!M148 -> 0
A149: =IF(INTRO!$E$34<>0,INTRO!$E$34,"") -> Kenya | B149: Makueni | C149: Kibwezi West | D149: 209121 | E149: =IF(INTRO!$E$48="","",ROUND($D149*INTRO!$E$48,0)) -> 31368 | F149: =IF(INTRO!$E$49="","",ROUND($D149*INTRO!$E$49,0)) -> 58554 | G149: =IF(INTRO!$E$50="","",ROUND($D149*INTRO!$E$50,0)) -> 111880 | H149: 0 | I149: 0 | J149: 5 | K149: 2 | L149: =IF(INTRO!$E$38="Endemic", IF($H149>0, IF($H149=4,"Unknown", IF($H149=99,"Stopped", $D149)), 0),"Not required") -> 0 | M149: 0 | N149: =IF(INTRO!$E$42="Endemic", IF(AND($J149>1,$J149<5), IF($J149=4, "Unknown", E149+F149), 0),"Not required") -> 0 | O149: =IF(INTRO!$E$44="Endemic", IF(AND($K149>0,$K149<5), IF($K149=4,"Unknown", IF($K149=1, $F149*0.33, IF($K149=2, $F149*0.5+$G149*0.2, SUM(F149:G149)))), 0),"Not required") -> 51653 | P149: 0 | Q149: 0 | R149: 0 | S149: 0 | W149: T1 | Y149: 54141 | Z149: Kibwezi West | AB149: ='MDA2'!M149 -> 0
A150: =IF(INTRO!$E$34<>0,INTRO!$E$34,"") -> Kenya | B150: Makueni | C150: Kilome | D150: 110495 | E150: =IF(INTRO!$E$48="","",ROUND($D150*INTRO!$E$48,0)) -> 16574 | F150: =IF(INTRO!$E$49="","",ROUND($D150*INTRO!$E$49,0)) -> 30939 | G150: =IF(INTRO!$E$50="","",ROUND($D150*INTRO!$E$50,0)) -> 59115 | H150: 0 | I150: 0 | J150: 5 | K150: 2 | L150: =IF(INTRO!$E$38="Endemic", IF($H150>0, IF($H150=4,"Unknown", IF($H150=99,"Stopped", $D150)), 0),"Not required") -> 0 | M150: 0 | N150: =IF(INTRO!$E$42="Endemic", IF(AND($J150>1,$J150<5), IF($J150=4, "Unknown", E150+F150), 0),"Not required") -> 0 | O150: =IF(INTRO!$E$44="Endemic", IF(AND($K150>0,$K150<5), IF($K150=4,"Unknown", IF($K150=1, $F150*0.33, IF($K150=2, $F150*0.5+$G150*0.2, SUM(F150:G150)))), 0),"Not required") -> 27292.5 | P150: 0 | Q150: 0 | R150: 0 | S150: 0 | W150: T1 | Y150: 54142 | Z150: Kilome | AB150: ='MDA2'!M150 -> 0
A151: =IF(INTRO!$E$34<>0,INTRO!$E$34,"") -> Kenya | B151: Makueni | C151: Makueni | D151: 243061 | E151: =IF(INTRO!$E$48="","",ROUND($D151*INTRO!$E$48,0)) -> 36459 | F151: =IF(INTRO!$E$49="","",ROUND($D151*INTRO!$E$49,0)) -> 68057 | G151: =IF(INTRO!$E$50="","",ROUND($D151*INTRO!$E$50,0)) -> 130038 | H151: 0 | I151: 0 | J151: 5 | K151: 2 | L151: =IF(INTRO!$E$38="Endemic", IF($H151>0, IF($H151=4,"Unknown", IF($H151=99,"Stopped", $D151)), 0),"Not required") -> 0 | M151: 0 | N151: =IF(INTRO!$E$42="Endemic", IF(AND($J151>1,$J151<5), IF($J151=4, "Unknown", E151+F151), 0),"Not required") -> 0 | O151: =IF(INTRO!$E$44="Endemic", IF(AND($K151>0,$K151<5), IF($K151=4,"Unknown", IF($K151=1, $F151*0.33, IF($K151=2, $F151*0.5+$G151*0.2, SUM(F151:G151)))), 0),"Not required") -> 60036.1 | P151: 0 | Q151: 0 | R151: 0 | S151: 0 | W151: T1 | Y151: 54143 | Z151: Makueni | AB151: ='MDA2'!M151 -> 0
A152: =IF(INTRO!$E$34<>0,INTRO!$E$34,"") -> Kenya | B152: Makueni | C152: Mbooni | D152: 234437 | E152: =IF(INTRO!$E$48="","",ROUND($D152*INTRO!$E$48,0)) -> 35166 | F152: =IF(INTRO!$E$49="","",ROUND($D152*INTRO!$E$49,0)) -> 65642 | G152: =IF(INTRO!$E$50="","",ROUND($D152*INTRO!$E$50,0)) -> 125424 | H152: 0 | I152: 0 | J152: 5 | K152: 2 | L152: =IF(INTRO!$E$38="Endemic", IF($H152>0, IF($H152=4,"Unknown", IF($H152=99,"Stopped", $D152)), 0),"Not required") -> 0 | M152: 0 | N152: =IF(INTRO!$E$42="Endemic", IF(AND($J152>1,$J152<5), IF($J152=4, "Unknown", E152+F152), 0),"Not required") -> 0 | O152: =IF(INTRO!$E$44="Endemic", IF(AND($K152>0,$K152<5), IF($K152=4,"Unknown", IF($K152=1, $F152*0.33, IF($K152=2, $F152*0.5+$G152*0.2, SUM(F152:G152)))), 0),"Not required") -> 57905.8 | P152: 0 | Q152: 0 | R152: 0 | S152: 0 | W152: T1 | Y152: 54144 | Z152: Mbooni | AB152: ='MDA2'!M152 -> 0
A153: =IF(INTRO!$E$34<>0,INTRO!$E$34,"") -> Kenya | B153: Mandera | C153: Banissa | D153: 197653 | E153: =IF(INTRO!$E$48="","",ROUND($D153*INTRO!$E$48,0)) -> 29648 | F153: =IF(INTRO!$E$49="","",ROUND($D153*INTRO!$E$49,0)) -> 55343 | G153: =IF(INTRO!$E$50="","",ROUND($D153*INTRO!$E$50,0)) -> 105744 | H153: 0 | I153: 0 | J153: 4 | K153: 4 | L153: =IF(INTRO!$E$38="Endemic", IF($H153>0, IF($H153=4,"Unknown", IF($H153=99,"Stopped", $D153)), 0),"Not required") -> 0 | M153: 0 | N153: =IF(INTRO!$E$42="Endemic", IF(AND($J153>1,$J153<5), IF($J153=4, "Unknown", E153+F153), 0),"Not required") -> Unknown | O153: =IF(INTRO!$E$44="Endemic", IF(AND($K153>0,$K153<5), IF($K153=4,"Unknown", IF($K153=1, $F153*0.33, IF($K153=2, $F153*0.5+$G153*0.2, SUM(F153:G153)))), 0),"Not required") -> Unknown | P153: 0 | Q153: 0 | R153: 0 | S153: 0 | Y153: 54145 | Z153: Banissa | AB153: ='MDA2'!M153 -> 0
A154: =IF(INTRO!$E$34<>0,INTRO!$E$34,"") -> Kenya | B154: Mandera | C154: Lafey | D154: 172021 | E154: =IF(INTRO!$E$48="","",ROUND($D154*INTRO!$E$48,0)) -> 25803 | F154: =IF(INTRO!$E$49="","",ROUND($D154*INTRO!$E$49,0)) -> 48166 | G154: =IF(INTRO!$E$50="","",ROUND($D154*INTRO!$E$50,0)) -> 92031 | H154: 0 | I154: 0 | J154: 4 | K154: 4 | L154: =IF(INTRO!$E$38="Endemic", IF($H154>0, IF($H154=4,"Unknown", IF($H154=99,"Stopped", $D154)), 0),"Not required") -> 0 | M154: 0 | N154: =IF(INTRO!$E$42="Endemic", IF(AND($J154>1,$J154<5), IF($J154=4, "Unknown", E154+F154), 0),"Not required") -> Unknown | O154: =IF(INTRO!$E$44="Endemic", IF(AND($K154>0,$K154<5), IF($K154=4,"Unknown", IF($K154=1, $F154*0.33, IF($K154=2, $F154*0.5+$G154*0.2, SUM(F154:G154)))), 0),"Not required") -> Unknown | P154: 0 | Q154: 0 | R154: 0 | S154: 0 | Y154: 54146 | Z154: Lafey | AB154: ='MDA2'!M154 -> 0
A155: =IF(INTRO!$E$34<>0,INTRO!$E$34,"") -> Kenya | B155: Mandera | C155: Mandera East | D155: 125993 | E155: =IF(INTRO!$E$48="","",ROUND($D155*INTRO!$E$48,0)) -> 18899 | F155: =IF(INTRO!$E$49="","",ROUND($D155*INTRO!$E$49,0)) -> 35278 | G155: =IF(INTRO!$E$50="","",ROUND($D155*INTRO!$E$50,0)) -> 67406 | H155: 0 | I155: 0 | J155: 4 | K155: 4 | L155: =IF(INTRO!$E$38="Endemic", IF($H155>0, IF($H155=4,"Unknown", IF($H155=99,"Stopped", $D155)), 0),"Not required") -> 0 | M155: 0 | N155: =IF(INTRO!$E$42="Endemic", IF(AND($J155>1,$J155<5), IF($J155=4, "Unknown", E155+F155), 0),"Not required") -> Unknown | O155: =IF(INTRO!$E$44="Endemic", IF(AND($K155>0,$K155<5), IF($K155=4,"Unknown", IF($K155=1, $F155*0.33, IF($K155=2, $F155*0.5+$G155*0.2, SUM(F155:G155)))), 0),"Not required") -> Unknown | P155: 0 | Q155: 0 | R155: 0 | S155: 0 | Y155: 54147 | Z155: Mandera East | AB155: ='MDA2'!M155 -> 0
A156: =IF(INTRO!$E$34<>0,INTRO!$E$34,"") -> Kenya | B156: Mandera | C156: Mandera North | D156: 202799 | E156: =IF(INTRO!$E$48="","",ROUND($D156*INTRO!$E$48,0)) -> 30420 | F156: =IF(INTRO!$E$49="","",ROUND($D156*INTRO!$E$49,0)) -> 56784 | G156: =IF(INTRO!$E$50="","",ROUND($D156*INTRO!$E$50,0)) -> 108497 | H156: 0 | I156: 0 | J156: 4 | K156: 4 | L156: =IF(INTRO!$E$38="Endemic", IF($H156>0, IF($H156=4,"Unknown", IF($H156=99,"Stopped", $D156)), 0),"Not required") -> 0 | M156: 0 | N156: =IF(INTRO!$E$42="Endemic", IF(AND($J156>1,$J156<5), IF($J156=4, "Unknown", E156+F156), 0),"Not required") -> Unknown | O156: =IF(INTRO!$E$44="Endemic", IF(AND($K156>0,$K156<5), IF($K156=4,"Unknown", IF($K156=1, $F156*0.33, IF($K156=2, $F156*0.5+$G156*0.2, SUM(F156:G156)))), 0),"Not required") -> Unknown | P156: 0 | Q156: 0 | R156: 0 | S156: 0 | Y156: 54148 | Z156: Mandera North | AB156: ='MDA2'!M156 -> 0
A157: =IF(INTRO!$E$34<>0,INTRO!$E$34,"") -> Kenya | B157: Mandera | C157: Mandera South | D157: 289604 | E157: =IF(INTRO!$E$48="","",ROUND($D157*INTRO!$E$48,0)) -> 43441 | F157: =IF(INTRO!$E$49="","",ROUND($D157*INTRO!$E$49,0)) -> 81089 | G157: =IF(INTRO!$E$50="","",ROUND($D157*INTRO!$E$50,0)) -> 154938 | H157: 0 | I157: 0 | J157: 4 | K157: 4 | L157: =IF(INTRO!$E$38="Endemic", IF($H157>0, IF($H157=4,"Unknown", IF($H157=99,"Stopped", $D157)), 0),"Not required") -> 0 | M157: 0 | N157: =IF(INTRO!$E$42="Endemic", IF(AND($J157>1,$J157<5), IF($J157=4, "Unknown", E157+F157), 0),"Not required") -> Unknown | O157: =IF(INTRO!$E$44="Endemic", IF(AND($K157>0,$K157<5), IF($K157=4,"Unknown", IF($K157=1, $F157*0.33, IF($K157=2, $F157*0.5+$G157*0.2, SUM(F157:G157)))), 0),"Not required") -> Unknown | P157: 0 | Q157: 0 | R157: 0 | S157: 0 | Y157: 54149 | Z157: Mandera South | AB157: ='MDA2'!M157 -> 0
A158: =IF(INTRO!$E$34<>0,INTRO!$E$34,"") -> Kenya | B158: Mandera | C158: Mandera West | D158: 197783 | E158: =IF(INTRO!$E$48="","",ROUND($D158*INTRO!$E$48,0)) -> 29667 | F158: =IF(INTRO!$E$49="","",ROUND($D158*INTRO!$E$49,0)) -> 55379 | G158: =IF(INTRO!$E$50="","",ROUND($D158*INTRO!$E$50,0)) -> 105814 | H158: 0 | I158: 0 | J158: 4 | K158: 4 | L158: =IF(INTRO!$E$38="Endemic", IF($H158>0, IF($H158=4,"Unknown", IF($H158=99,"Stopped", $D158)), 0),"Not required") -> 0 | M158: 0 | N158: =IF(INTRO!$E$42="Endemic", IF(AND($J158>1,$J158<5), IF($J158=4, "Unknown", E158+F158), 0),"Not required") -> Unknown | O158: =IF(INTRO!$E$44="Endemic", IF(AND($K158>0,$K158<5), IF($K158=4,"Unknown", IF($K158=1, $F158*0.33, IF($K158=2, $F158*0.5+$G158*0.2, SUM(F158:G158)))), 0),"Not required") -> Unknown | P158: 0 | Q158: 0 | R158: 0 | S158: 0 | Y158: 54150 | Z158: Mandera West | AB158: ='MDA2'!M158 -> 0
A159: =IF(INTRO!$E$34<>0,INTRO!$E$34,"") -> Kenya | B159: Marsabit | C159: Laisamis | D159: 83017 | E159: =IF(INTRO!$E$48="","",ROUND($D159*INTRO!$E$48,0)) -> 12453 | F159: =IF(INTRO!$E$49="","",ROUND($D159*INTRO!$E$49,0)) -> 23245 | G159: =IF(INTRO!$E$50="","",ROUND($D159*INTRO!$E$50,0)) -> 44414 | H159: 0 | I159: 0 | J159: 4 | K159: 4 | L159: =IF(INTRO!$E$38="Endemic", IF($H159>0, IF($H159=4,"Unknown", IF($H159=99,"Stopped", $D159)), 0),"Not required") -> 0 | M159: 0 | N159: =IF(INTRO!$E$42="Endemic", IF(AND($J159>1,$J159<5), IF($J159=4, "Unknown", E159+F159), 0),"Not required") -> Unknown | O159: =IF(INTRO!$E$44="Endemic", IF(AND($K159>0,$K159<5), IF($K159=4,"Unknown", IF($K159=1, $F159*0.33, IF($K159=2, $F159*0.5+$G159*0.2, SUM(F159:G159)))), 0),"Not required") -> Unknown | P159: 0 | Q159: 0 | R159: 0 | S159: 0 | Y159: 54151 | Z159: Laisamis | AB159: ='MDA2'!M159 -> 0
A160: =IF(INTRO!$E$34<>0,INTRO!$E$34,"") -> Kenya | B160: Marsabit | C160: Moyale | D160: 131434 | E160: =IF(INTRO!$E$48="","",ROUND($D160*INTRO!$E$48,0)) -> 19715 | F160: =IF(INTRO!$E$49="","",ROUND($D160*INTRO!$E$49,0)) -> 36802 | G160: =IF(INTRO!$E$50="","",ROUND($D160*INTRO!$E$50,0)) -> 70317 | H160: 0 | I160: 0 | J160: 4 | K160: 4 | L160: =IF(INTRO!$E$38="Endemic", IF($H160>0, IF($H160=4,"Unknown", IF($H160=99,"Stopped", $D160)), 0),"Not required") -> 0 | M160: 0 | N160: =IF(INTRO!$E$42="Endemic", IF(AND($J160>1,$J160<5), IF($J160=4, "Unknown", E160+F160), 0),"Not required") -> Unknown | O160: =IF(INTRO!$E$44="Endemic", IF(AND($K160>0,$K160<5), IF($K160=4,"Unknown", IF($K160=1, $F160*0.33, IF($K160=2, $F160*0.5+$G160*0.2, SUM(F160:G160)))), 0),"Not required") -> Unknown | P160: 0 | Q160: 0 | R160: 0 | S160: 0 | Y160: 54152 | Z160: Moyale | AB160: ='MDA2'!M160 -> 0
A161: =IF(INTRO!$E$34<>0,INTRO!$E$34,"") -> Kenya | B161: Marsabit | C161: North Horr | D161: 95457 | E161: =IF(INTRO!$E$48="","",ROUND($D161*INTRO!$E$48,0)) -> 14319 | F161: =IF(INTRO!$E$49="","",ROUND($D161*INTRO!$E$49,0)) -> 26728 | G161: =IF(INTRO!$E$50="","",ROUND($D161*INTRO!$E$50,0)) -> 51069 | H161: 0 | I161: 0 | J161: 4 | K161: 4 | L161: =IF(INTRO!$E$38="Endemic", IF($H161>0, IF($H161=4,"Unknown", IF($H161=99,"Stopped", $D161)), 0),"Not required") -> 0 | M161: 0 | N161: =IF(INTRO!$E$42="Endemic", IF(AND($J161>1,$J161<5), IF($J161=4, "Unknown", E161+F161), 0),"Not required") -> Unknown | O161: =IF(INTRO!$E$44="Endemic", IF(AND($K161>0,$K161<5), IF($K161=4,"Unknown", IF($K161=1, $F161*0.33, IF($K161=2, $F161*0.5+$G161*0.2, SUM(F161:G161)))), 0),"Not required") -> Unknown | P161: 0 | Q161: 0 | R161: 0 | S161: 0 | Y161: 54153 | Z161: North Horr | AB161: ='MDA2'!M161 -> 0
A162: =IF(INTRO!$E$34<>0,INTRO!$E$34,"") -> Kenya | B162: Marsabit | C162: Saku | D162: 58620 | E162: =IF(INTRO!$E$48="","",ROUND($D162*INTRO!$E$48,0)) -> 8793 | F162: =IF(INTRO!$E$49="","",ROUND($D162*INTRO!$E$49,0)) -> 16414 | G162: =IF(INTRO!$E$50="","",ROUND($D162*INTRO!$E$50,0)) -> 31362 | H162: 0 | I162: 0 | J162: 4 | K162: 4 | L162: =IF(INTRO!$E$38="Endemic", IF($H162>0, IF($H162=4,"Unknown", IF($H162=99,"Stopped", $D162)), 0),"Not required") -> 0 | M162: 0 | N162: =IF(INTRO!$E$42="Endemic", IF(AND($J162>1,$J162<5), IF($J162=4, "Unknown", E162+F162), 0),"Not required") -> Unknown | O162: =IF(INTRO!$E$44="Endemic", IF(AND($K162>0,$K162<5), IF($K162=4,"Unknown", IF($K162=1, $F162*0.33, IF($K162=2, $F162*0.5+$G162*0.2, SUM(F162:G162)))), 0),"Not required") -> Unknown | P162: 0 | Q162: 0 | R162: 0 | S162: 0 | Y162: 54154 | Z162: Saku | AB162: ='MDA2'!M162 -> 0
A163: =IF(INTRO!$E$34<>0,INTRO!$E$34,"") -> Kenya | B163: Meru | C163: Buuri | D163: 170483 | E163: =IF(INTRO!$E$48="","",ROUND($D163*INTRO!$E$48,0)) -> 25572 | F163: =IF(INTRO!$E$49="","",ROUND($D163*INTRO!$E$49,0)) -> 47735 | G163: =IF(INTRO!$E$50="","",ROUND($D163*INTRO!$E$50,0)) -> 91208 | H163: 0 | I163: 0 | J163: 4 | K163: 4 | L163: =IF(INTRO!$E$38="Endemic", IF($H163>0, IF($H163=4,"Unknown", IF($H163=99,"Stopped", $D163)), 0),"Not required") -> 0 | M163: 0 | N163: =IF(INTRO!$E$42="Endemic", IF(AND($J163>1,$J163<5), IF($J163=4, "Unknown", E163+F163), 0),"Not required") -> Unknown | O163: =IF(INTRO!$E$44="Endemic", IF(AND($K163>0,$K163<5), IF($K163=4,"Unknown", IF($K163=1, $F163*0.33, IF($K163=2, $F163*0.5+$G163*0.2, SUM(F163:G163)))), 0),"Not required") -> Unknown | P163: 0 | Q163: 0 | R163: 0 | S163: 0 | Y163: 54155 | Z163: Buuri | AB163: ='MDA2'!M163 -> 0
A164: =IF(INTRO!$E$34<>0,INTRO!$E$34,"") -> Kenya | B164: Meru | C164: Central Imenti | D164: 147300 | E164: =IF(INTRO!$E$48="","",ROUND($D164*INTRO!$E$48,0)) -> 22095 | F164: =IF(INTRO!$E$49="","",ROUND($D164*INTRO!$E$49,0)) -> 41244 | G164: =IF(INTRO!$E$50="","",ROUND($D164*INTRO!$E$50,0)) -> 78806 | H164: 0 | I164: 0 | J164: 4 | K164: 4 | L164: =IF(INTRO!$E$38="Endemic", IF($H164>0, IF($H164=4,"Unknown", IF($H164=99,"Stopped", $D164)), 0),"Not required") -> 0 | M164: 0 | N164: =IF(INTRO!$E$42="Endemic", IF(AND($J164>1,$J164<5), IF($J164=4, "Unknown", E164+F164), 0),"Not required") -> Unknown | O164: =IF(INTRO!$E$44="Endemic", IF(AND($K164>0,$K164<5), IF($K164=4,"Unknown", IF($K164=1, $F164*0.33, IF($K164=2, $F164*0.5+$G164*0.2, SUM(F164:G164)))), 0),"Not required") -> Unknown | P164: 0 | Q164: 0 | R164: 0 | S164: 0 | Y164: 54156 | Z164: Central Imenti | AB164: ='MDA2'!M164 -> 0
A165: =IF(INTRO!$E$34<>0,INTRO!$E$34,"") -> Kenya | B165: Meru | C165: Igembe Central | D165: 245149 | E165: =IF(INTRO!$E$48="","",ROUND($D165*INTRO!$E$48,0)) -> 36772 | F165: =IF(INTRO!$E$49="","",ROUND($D165*INTRO!$E$49,0)) -> 68642 | G165: =IF(INTRO!$E$50="","",ROUND($D165*INTRO!$E$50,0)) -> 131155 | H165: 0 | I165: 0 | J165: 4 | K165: 4 | L165: =IF(INTRO!$E$38="Endemic", IF($H165>0, IF($H165=4,"Unknown", IF($H165=99,"Stopped", $D165)), 0),"Not required") -> 0 | M165: 0 | N165: =IF(INTRO!$E$42="Endemic", IF(AND($J165>1,$J165<5), IF($J165=4, "Unknown", E165+F165), 0),"Not required") -> Unknown | O165: =IF(INTRO!$E$44="Endemic", IF(AND($K165>0,$K165<5), IF($K165=4,"Unknown", IF($K165=1, $F165*0.33, IF($K165=2, $F165*0.5+$G165*0.2, SUM(F165:G165)))), 0),"Not required") -> Unknown | P165: 0 | Q165: 0 | R165: 0 | S165: 0 | Y165: 54157 | Z165: Igembe Central | AB165: ='MDA2'!M165 -> 0
A166: =IF(INTRO!$E$34<>0,INTRO!$E$34,"") -> Kenya | B166: Meru | C166: Igembe North | D166: 196854 | E166: =IF(INTRO!$E$48="","",ROUND($D166*INTRO!$E$48,0)) -> 29528 | F166: =IF(INTRO!$E$49="","",ROUND($D166*INTRO!$E$49,0)) -> 55119 | G166: =IF(INTRO!$E$50="","",ROUND($D166*INTRO!$E$50,0)) -> 105317 | H166: 0 | I166: 0 | J166: 4 | K166: 4 | L166: =IF(INTRO!$E$38="Endemic", IF($H166>0, IF($H166=4,"Unknown", IF($H166=99,"Stopped", $D166)), 0),"Not required") -> 0 | M166: 0 | N166: =IF(INTRO!$E$42="Endemic", IF(AND($J166>1,$J166<5), IF($J166=4, "Unknown", E166+F166), 0),"Not required") -> Unknown | O166: =IF(INTRO!$E$44="Endemic", IF(AND($K166>0,$K166<5), IF($K166=4,"Unknown", IF($K166=1, $F166*0.33, IF($K166=2, $F166*0.5+$G166*0.2, SUM(F166:G166)))), 0),"Not required") -> Unknown | P166: 0 | Q166: 0 | R166: 0 | S166: 0 | Y166: 54158 | Z166: Igembe North | AB166: ='MDA2'!M166 -> 0
A167: =IF(INTRO!$E$34<>0,INTRO!$E$34,"") -> Kenya | B167: Meru | C167: Igembe South | D167: 169010 | E167: =IF(INTRO!$E$48="","",ROUND($D167*INTRO!$E$48,0)) -> 25352 | F167: =IF(INTRO!$E$49="","",ROUND($D167*INTRO!$E$49,0)) -> 47323 | G167: =IF(INTRO!$E$50="","",ROUND($D167*INTRO!$E$50,0)) -> 90420 | H167: 0 | I167: 0 | J167: 4 | K167: 4 | L167: =IF(INTRO!$E$38="Endemic", IF($H167>0, IF($H167=4,"Unknown", IF($H167=99,"Stopped", $D167)), 0),"Not required") -> 0 | M167: 0 | N167: =IF(INTRO!$E$42="Endemic", IF(AND($J167>1,$J167<5), IF($J167=4, "Unknown", E167+F167), 0),"Not required") -> Unknown | O167: =IF(INTRO!$E$44="Endemic", IF(AND($K167>0,$K167<5), IF($K167=4,"Unknown", IF($K167=1, $F167*0.33, IF($K167=2, $F167*0.5+$G167*0.2, SUM(F167:G167)))), 0),"Not required") -> Unknown | P167: 0 | Q167: 0 | R167: 0 | S167: 0 | Y167: 54159 | Z167: Igembe South | AB167: ='MDA2'!M167 -> 0
A168: =IF(INTRO!$E$34<>0,INTRO!$E$34,"") -> Kenya | B168: Meru | C168: North Imenti | D168: 184410 | E168: =IF(INTRO!$E$48="","",ROUND($D168*INTRO!$E$48,0)) -> 27662 | F168: =IF(INTRO!$E$49="","",ROUND($D168*INTRO!$E$49,0)) -> 51635 | G168: =IF(INTRO!$E$50="","",ROUND($D168*INTRO!$E$50,0)) -> 98659 | H168: 0 | I168: 0 | J168: 4 | K168: 4 | L168: =IF(INTRO!$E$38="Endemic", IF($H168>0, IF($H168=4,"Unknown", IF($H168=99,"Stopped", $D168)), 0),"Not required") -> 0 | M168: 0 | N168: =IF(INTRO!$E$42="Endemic", IF(AND($J168>1,$J168<5), IF($J168=4, "Unknown", E168+F168), 0),"Not required") -> Unknown | O168: =IF(INTRO!$E$44="Endemic", IF(AND($K168>0,$K168<5), IF($K168=4,"Unknown", IF($K168=1, $F168*0.33, IF($K168=2, $F168*0.5+$G168*0.2, SUM(F168:G168)))), 0),"Not required") -> Unknown | P168: 0 | Q168: 0 | R168: 0 | S168: 0 | Y168: 54160 | Z168: North Imenti | AB168: ='MDA2'!M168 -> 0
A169: =IF(INTRO!$E$34<>0,INTRO!$E$34,"") -> Kenya | B169: Meru | C169: South Imenti | D169: 224678 | E169: =IF(INTRO!$E$48="","",ROUND($D169*INTRO!$E$48,0)) -> 33702 | F169: =IF(INTRO!$E$49="","",ROUND($D169*INTRO!$E$49,0)) -> 62910 | G169: =IF(INTRO!$E$50="","",ROUND($D169*INTRO!$E$50,0)) -> 120203 | H169: 0 | I169: 0 | J169: 4 | K169: 4 | L169: =IF(INTRO!$E$38="Endemic", IF($H169>0, IF($H169=4,"Unknown", IF($H169=99,"Stopped", $D169)), 0),"Not required") -> 0 | M169: 0 | N169: =IF(INTRO!$E$42="Endemic", IF(AND($J169>1,$J169<5), IF($J169=4, "Unknown", E169+F169), 0),"Not required") -> Unknown | O169: =IF(INTRO!$E$44="Endemic", IF(AND($K169>0,$K169<5), IF($K169=4,"Unknown", IF($K169=1, $F169*0.33, IF($K169=2, $F169*0.5+$G169*0.2, SUM(F169:G169)))), 0),"Not required") -> Unknown | P169: 0 | Q169: 0 | R169: 0 | S169: 0 | Y169: 54161 | Z169: South Imenti | AB169: ='MDA2'!M169 -> 0
A170: =IF(INTRO!$E$34<>0,INTRO!$E$34,"") -> Kenya | B170: Meru | C170: Tigania East | D170: 200018 | E170: =IF(INTRO!$E$48="","",ROUND($D170*INTRO!$E$48,0)) -> 30003 | F170: =IF(INTRO!$E$49="","",ROUND($D170*INTRO!$E$49,0)) -> 56005 | G170: =IF(INTRO!$E$50="","",ROUND($D170*INTRO!$E$50,0)) -> 107010 | H170: 0 | I170: 0 | J170: 4 | K170: 4 | L170: =IF(INTRO!$E$38="Endemic", IF($H170>0, IF($H170=4,"Unknown", IF($H170=99,"Stopped", $D170)), 0),"Not required") -> 0 | M170: 0 | N170: =IF(INTRO!$E$42="Endemic", IF(AND($J170>1,$J170<5), IF($J170=4, "Unknown", E170+F170), 0),"Not required") -> Unknown | O170: =IF(INTRO!$E$44="Endemic", IF(AND($K170>0,$K170<5), IF($K170=4,"Unknown", IF($K170=1, $F170*0.33, IF($K170=2, $F170*0.5+$G170*0.2, SUM(F170:G170)))), 0),"Not required") -> Unknown | P170: 0 | Q170: 0 | R170: 0 | S170: 0 | Y170: 54162 | Z170: Tigania East | AB170: ='MDA2'!M170 -> 0
A171: =IF(INTRO!$E$34<>0,INTRO!$E$34,"") -> Kenya | B171: Meru | C171: Tigania West | D171: 171381 | E171: =IF(INTRO!$E$48="","",ROUND($D171*INTRO!$E$48,0)) -> 25707 | F171: =IF(INTRO!$E$49="","",ROUND($D171*INTRO!$E$49,0)) -> 47987 | G171: =IF(INTRO!$E$50="","",ROUND($D171*INTRO!$E$50,0)) -> 91689 | H171: 0 | I171: 0 | J171: 4 | K171: 4 | L171: =IF(INTRO!$E$38="Endemic", IF($H171>0, IF($H171=4,"Unknown", IF($H171=99,"Stopped", $D171)), 0),"Not required") -> 0 | M171: 0 | N171: =IF(INTRO!$E$42="Endemic", IF(AND($J171>1,$J171<5), IF($J171=4, "Unknown", E171+F171), 0),"Not required") -> Unknown | O171: =IF(INTRO!$E$44="Endemic", IF(AND($K171>0,$K171<5), IF($K171=4,"Unknown", IF($K171=1, $F171*0.33, IF($K171=2, $F171*0.5+$G171*0.2, SUM(F171:G171)))), 0),"Not required") -> Unknown | P171: 0 | Q171: 0 | R171: 0 | S171: 0 | Y171: 54163 | Z171: Tigania West | AB171: ='MDA2'!M171 -> 0
A172: =IF(INTRO!$E$34<>0,INTRO!$E$34,"") -> Kenya | B172: Migori | C172: Awendo | D172: 137722 | E172: =IF(INTRO!$E$48="","",ROUND($D172*INTRO!$E$48,0)) -> 20658 | F172: =IF(INTRO!$E$49="","",ROUND($D172*INTRO!$E$49,0)) -> 38562 | G172: =IF(INTRO!$E$50="","",ROUND($D172*INTRO!$E$50,0)) -> 73681 | H172: 0 | I172: 0 | J172: 2 | K172: 2 | L172: =IF(INTRO!$E$38="Endemic", IF($H172>0, IF($H172=4,"Unknown", IF($H172=99,"Stopped", $D172)), 0),"Not required") -> 0 | M172: 0 | N172: =IF(INTRO!$E$42="Endemic", IF(AND($J172>1,$J172<5), IF($J172=4, "Unknown", E172+F172), 0),"Not required") -> 59220 | O172: =IF(INTRO!$E$44="Endemic", IF(AND($K172>0,$K172<5), IF($K172=4,"Unknown", IF($K172=1, $F172*0.33, IF($K172=2, $F172*0.5+$G172*0.2, SUM(F172:G172)))), 0),"Not required") -> 34017.2 | P172: 0 | Q172: 0 | R172: 1 | S172: 0 | W172: T3 | Y172: 54164 | Z172: Awendo | AB172: ='MDA2'!M172 -> 0
A173: =IF(INTRO!$E$34<>0,INTRO!$E$34,"") -> Kenya | B173: Migori | C173: Kuria East | D173: 104164 | E173: =IF(INTRO!$E$48="","",ROUND($D173*INTRO!$E$48,0)) -> 15625 | F173: =IF(INTRO!$E$49="","",ROUND($D173*INTRO!$E$49,0)) -> 29166 | G173: =IF(INTRO!$E$50="","",ROUND($D173*INTRO!$E$50,0)) -> 55728 | H173: 0 | I173: 0 | J173: 2 | K173: 2 | L173: =IF(INTRO!$E$38="Endemic", IF($H173>0, IF($H173=4,"Unknown", IF($H173=99,"Stopped", $D173)), 0),"Not required") -> 0 | M173: 0 | N173: =IF(INTRO!$E$42="Endemic", IF(AND($J173>1,$J173<5), IF($J173=4, "Unknown", E173+F173), 0),"Not required") -> 44791 | O173: =IF(INTRO!$E$44="Endemic", IF(AND($K173>0,$K173<5), IF($K173=4,"Unknown", IF($K173=1, $F173*0.33, IF($K173=2, $F173*0.5+$G173*0.2, SUM(F173:G173)))), 0),"Not required") -> 25728.6 | P173: 0 | Q173: 0 | R173: 1 | S173: 0 | W173: T3 | Y173: 54165 | Z173: Kuria East | AB173: ='MDA2'!M173 -> 0
A174: =IF(INTRO!$E$34<>0,INTRO!$E$34,"") -> Kenya | B174: Migori | C174: Kuria West | D174: 219754 | E174: =IF(INTRO!$E$48="","",ROUND($D174*INTRO!$E$48,0)) -> 32963 | F174: =IF(INTRO!$E$49="","",ROUND($D174*INTRO!$E$49,0)) -> 61531 | G174: =IF(INTRO!$E$50="","",ROUND($D174*INTRO!$E$50,0)) -> 117568 | H174: 0 | I174: 0 | J174: 2 | K174: 2 | L174: =IF(INTRO!$E$38="Endemic", IF($H174>0, IF($H174=4,"Unknown", IF($H174=99,"Stopped", $D174)), 0),"Not required") -> 0 | M174: 0 | N174: =IF(INTRO!$E$42="Endemic", IF(AND($J174>1,$J174<5), IF($J174=4, "Unknown", E174+F174), 0),"Not required") -> 94494 | O174: =IF(INTRO!$E$44="Endemic", IF(AND($K174>0,$K174<5), IF($K174=4,"Unknown", IF($K174=1, $F174*0.33, IF($K174=2, $F174*0.5+$G174*0.2, SUM(F174:G174)))), 0),"Not required") -> 54279.1 | P174: 0 | Q174: 0 | R174: 1 | S174: 0 | W174: T3 | Y174: 54166 | Z174: Kuria West | AB174: ='MDA2'!M174 -> 0
A175: =IF(INTRO!$E$34<>0,INTRO!$E$34,"") -> Kenya | B175: Migori | C175: Nyatike | D175: 183079 | E175: =IF(INTRO!$E$48="","",ROUND($D175*INTRO!$E$48,0)) -> 27462 | F175: =IF(INTRO!$E$49="","",ROUND($D175*INTRO!$E$49,0)) -> 51262 | G175: =IF(INTRO!$E$50="","",ROUND($D175*INTRO!$E$50,0)) -> 97947 | H175: 0 | I175: 0 | J175: 2 | K175: 2 | L175: =IF(INTRO!$E$38="Endemic", IF($H175>0, IF($H175=4,"Unknown", IF($H175=99,"Stopped", $D175)), 0),"Not required") -> 0 | M175: 0 | N175: =IF(INTRO!$E$42="Endemic", IF(AND($J175>1,$J175<5), IF($J175=4, "Unknown", E175+F175), 0),"Not required") -> 78724 | O175: =IF(INTRO!$E$44="Endemic", IF(AND($K175>0,$K175<5), IF($K175=4,"Unknown", IF($K175=1, $F175*0.33, IF($K175=2, $F175*0.5+$G175*0.2, SUM(F175:G175)))), 0),"Not required") -> 45220.4 | P175: 0 | Q175: 0 | R175: 1 | S175: 0 | W175: T3 | Y175: 54167 | Z175: Nyatike | AB175: ='MDA2'!M175 -> 0
A176: =IF(INTRO!$E$34<>0,INTRO!$E$34,"") -> Kenya | B176: Migori | C176: Rongo | D176: 125910 | E176: =IF(INTRO!$E$48="","",ROUND($D176*INTRO!$E$48,0)) -> 18887 | F176: =IF(INTRO!$E$49="","",ROUND($D176*INTRO!$E$49,0)) -> 35255 | G176: =IF(INTRO!$E$50="","",ROUND($D176*INTRO!$E$50,0)) -> 67362 | H176: 0 | I176: 0 | J176: 2 | K176: 2 | L176: =IF(INTRO!$E$38="Endemic", IF($H176>0, IF($H176=4,"Unknown", IF($H176=99,"Stopped", $D176)), 0),"Not required") -> 0 | M176: 0 | N176: =IF(INTRO!$E$42="Endemic", IF(AND($J176>1,$J176<5), IF($J176=4, "Unknown", E176+F176), 0),"Not required") -> 54142 | O176: =IF(INTRO!$E$44="Endemic", IF(AND($K176>0,$K176<5), IF($K176=4,"Unknown", IF($K176=1, $F176*0.33, IF($K176=2, $F176*0.5+$G176*0.2, SUM(F176:G176)))), 0),"Not required") -> 31099.9 | P176: 0 | Q176: 0 | R176: 1 | S176: 0 | W176: T1 | Y176: 54168 | Z176: Rongo | AB176: ='MDA2'!M176 -> 0
A177: =IF(INTRO!$E$34<>0,INTRO!$E$34,"") -> Kenya | B177: Migori | C177: Suna East | D177: 122384 | E177: =IF(INTRO!$E$48="","",ROUND($D177*INTRO!$E$48,0)) -> 18358 | F177: =IF(INTRO!$E$49="","",ROUND($D177*INTRO!$E$49,0)) -> 34268 | G177: =IF(INTRO!$E$50="","",ROUND($D177*INTRO!$E$50,0)) -> 65475 | H177: 0 | I177: 0 | J177: 2 | K177: 2 | L177: =IF(INTRO!$E$38="Endemic", IF($H177>0, IF($H177=4,"Unknown", IF($H177=99,"Stopped", $D177)), 0),"Not required") -> 0 | M177: 0 | N177: =IF(INTRO!$E$42="Endemic", IF(AND($J177>1,$J177<5), IF($J177=4, "Unknown", E177+F177), 0),"Not required") -> 52626 | O177: =IF(INTRO!$E$44="Endemic", IF(AND($K177>0,$K177<5), IF($K177=4,"Unknown", IF($K177=1, $F177*0.33, IF($K177=2, $F177*0.5+$G177*0.2, SUM(F177:G177)))), 0),"Not required") -> 30229 | P177: 0 | Q177: 0 | R177: 1 | S177: 0 | W177: T1 | Y177: 54169 | Z177: Suna East | AB177: ='MDA2'!M177 -> 0
A178: =IF(INTRO!$E$34<>0,INTRO!$E$34,"") -> Kenya | B178: Migori | C178: Suna West | D178: 118583 | E178: =IF(INTRO!$E$48="","",ROUND($D178*INTRO!$E$48,0)) -> 17787 | F178: =IF(INTRO!$E$49="","",ROUND($D178*INTRO!$E$49,0)) -> 33203 | G178: =IF(INTRO!$E$50="","",ROUND($D178*INTRO!$E$50,0)) -> 63442 | H178: 0 | I178: 0 | J178: 2 | K178: 2 | L178: =IF(INTRO!$E$38="Endemic", IF($H178>0, IF($H178=4,"Unknown", IF($H178=99,"Stopped", $D178)), 0),"Not required") -> 0 | M178: 0 | N178: =IF(INTRO!$E$42="Endemic", IF(AND($J178>1,$J178<5), IF($J178=4, "Unknown", E178+F178), 0),"Not required") -> 50990 | O178: =IF(INTRO!$E$44="Endemic", IF(AND($K178>0,$K178<5), IF($K178=4,"Unknown", IF($K178=1, $F178*0.33, IF($K178=2, $F178*0.5+$G178*0.2, SUM(F178:G178)))), 0),"Not required") -> 29289.9 | P178: 0 | Q178: 0 | R178: 1 | S178: 0 | W178: T1 | Y178: 54170 | Z178: Suna West | AB178: ='MDA2'!M178 -> 0
A179: =IF(INTRO!$E$34<>0,INTRO!$E$34,"") -> Kenya | B179: Migori | C179: Uriri | D179: 146311 | E179: =IF(INTRO!$E$48="","",ROUND($D179*INTRO!$E$48,0)) -> 21947 | F179: =IF(INTRO!$E$49="","",ROUND($D179*INTRO!$E$49,0)) -> 40967 | G179: =IF(INTRO!$E$50="","",ROUND($D179*INTRO!$E$50,0)) -> 78276 | H179: 0 | I179: 0 | J179: 2 | K179: 2 | L179: =IF(INTRO!$E$38="Endemic", IF($H179>0, IF($H179=4,"Unknown", IF($H179=99,"Stopped", $D179)), 0),"Not required") -> 0 | M179: 0 | N179: =IF(INTRO!$E$42="Endemic", IF(AND($J179>1,$J179<5), IF($J179=4, "Unknown", E179+F179), 0),"Not required") -> 62914 | O179: =IF(INTRO!$E$44="Endemic", IF(AND($K179>0,$K179<5), IF($K179=4,"Unknown", IF($K179=1, $F179*0.33, IF($K179=2, $F179*0.5+$G179*0.2, SUM(F179:G179)))), 0),"Not required") -> 36138.7 | P179: 0 | Q179: 0 | R179: 1 | S179: 0 | W179: T3 | Y179: 54171 | Z179: Uriri | AB179: ='MDA2'!M179 -> 0
A180: =IF(INTRO!$E$34<>0,INTRO!$E$34,"") -> Kenya | B180: Mombasa | C180: Changamwe | D180: 167725 | E180: =IF(INTRO!$E$48="","",ROUND($D180*INTRO!$E$48,0)) -> 25159 | F180: =IF(INTRO!$E$49="","",ROUND($D180*INTRO!$E$49,0)) -> 46963 | G180: =IF(INTRO!$E$50="","",ROUND($D180*INTRO!$E$50,0)) -> 89733 | H180: 1 | I180: 0 | J180: 2 | K180: 2 | L180: =IF(INTRO!$E$38="Endemic", IF($H180>0, IF($H180=4,"Unknown", IF($H180=99,"Stopped", $D180)), 0),"Not required") -> 167725 | M180: 0 | N180: =IF(INTRO!$E$42="Endemic", IF(AND($J180>1,$J180<5), IF($J180=4, "Unknown", E180+F180), 0),"Not required") -> 72122 | O180: =IF(INTRO!$E$44="Endemic", IF(AND($K180>0,$K180<5), IF($K180=4,"Unknown", IF($K180=1, $F180*0.33, IF($K180=2, $F180*0.5+$G180*0.2, SUM(F180:G180)))), 0),"Not required") -> 41428.1 | P180: 1 | Q180: 0 | R180: 1 | S180: 0 | T180: MDA2 (DEC+ALB) | V180: MDA 2 | W180: T3 | Y180: 54172 | Z180: Changamwe | AB180: ='MDA2'!M180 -> 143162
A181: =IF(INTRO!$E$34<>0,INTRO!$E$34,"") -> Kenya | B181: Mombasa | C181: Jomvu | D181: 146556 | E181: =IF(INTRO!$E$48="","",ROUND($D181*INTRO!$E$48,0)) -> 21983 | F181: =IF(INTRO!$E$49="","",ROUND($D181*INTRO!$E$49,0)) -> 41036 | G181: =IF(INTRO!$E$50="","",ROUND($D181*INTRO!$E$50,0)) -> 78407 | H181: 1 | I181: 0 | J181: 2 | K181: 2 | L181: =IF(INTRO!$E$38="Endemic", IF($H181>0, IF($H181=4,"Unknown", IF($H181=99,"Stopped", $D181)), 0),"Not required") -> 146556 | M181: 0 | N181: =IF(INTRO!$E$42="Endemic", IF(AND($J181>1,$J181<5), IF($J181=4, "Unknown", E181+F181), 0),"Not required") -> 63019 | O181: =IF(INTRO!$E$44="Endemic", IF(AND($K181>0,$K181<5), IF($K181=4,"Unknown", IF($K181=1, $F181*0.33, IF($K181=2, $F181*0.5+$G181*0.2, SUM(F181:G181)))), 0),"Not required") -> 36199.4 | P181: 1 | Q181: 0 | R181: 1 | S181: 0 | T181: MDA2 (DEC+ALB) | V181: MDA 2 | Y181: 54173 | Z181: Jomvu | AB181: ='MDA2'!M181 -> 147496
A182: =IF(INTRO!$E$34<>0,INTRO!$E$34,"") -> Kenya | B182: Mombasa | C182: Kisauni | D182: 240168 | E182: =IF(INTRO!$E$48="","",ROUND($D182*INTRO!$E$48,0)) -> 36025 | F182: =IF(INTRO!$E$49="","",ROUND($D182*INTRO!$E$49,0)) -> 67247 | G182: =IF(INTRO!$E$50="","",ROUND($D182*INTRO!$E$50,0)) -> 128490 | H182: 1 | I182: 0 | J182: 2 | K182: 2 | L182: =IF(INTRO!$E$38="Endemic", IF($H182>0, IF($H182=4,"Unknown", IF($H182=99,"Stopped", $D182)), 0),"Not required") -> 240168 | M182: 0 | N182: =IF(INTRO!$E$42="Endemic", IF(AND($J182>1,$J182<5), IF($J182=4, "Unknown", E182+F182), 0),"Not required") -> 103272 | O182: =IF(INTRO!$E$44="Endemic", IF(AND($K182>0,$K182<5), IF($K182=4,"Unknown", IF($K182=1, $F182*0.33, IF($K182=2, $F182*0.5+$G182*0.2, SUM(F182:G182)))), 0),"Not required") -> 59321.5 | P182: 1 | Q182: 0 | R182: 1 | S182: 0 | T182: MDA2 (DEC+ALB) | V182: MDA 2 | W182: T3 | Y182: 54174 | Z182: Kisauni | AB182: ='MDA2'!M182 -> 221069
A183: =IF(INTRO!$E$34<>0,INTRO!$E$34,"") -> Kenya | B183: Mombasa | C183: Likoni | D183: 209900 | E183: =IF(INTRO!$E$48="","",ROUND($D183*INTRO!$E$48,0)) -> 31485 | F183: =IF(INTRO!$E$49="","",ROUND($D183*INTRO!$E$49,0)) -> 58772 | G183: =IF(INTRO!$E$50="","",ROUND($D183*INTRO!$E$50,0)) -> 112297 | H183: 1 | I183: 0 | J183: 2 | K183: 2 | L183: =IF(INTRO!$E$38="Endemic", IF($H183>0, IF($H183=4,"Unknown", IF($H183=99,"Stopped", $D183)), 0),"Not required") -> 209900 | M183: 0 | N183: =IF(INTRO!$E$42="Endemic", IF(AND($J183>1,$J183<5), IF($J183=4, "Unknown", E183+F183), 0),"Not required") -> 90257 | O183: =IF(INTRO!$E$44="Endemic", IF(AND($K183>0,$K183<5), IF($K183=4,"Unknown", IF($K183=1, $F183*0.33, IF($K183=2, $F183*0.5+$G183*0.2, SUM(F183:G183)))), 0),"Not required") -> 51845.4 | P183: 1 | Q183: 0 | R183: 1 | S183: 0 | T183: MDA2 (DEC+ALB) | V183: MDA 2 | W183: T3 | Y183: 54175 | Z183: Likoni | AB183: ='MDA2'!M183 -> 211209
A184: =IF(INTRO!$E$34<>0,INTRO!$E$34,"") -> Kenya | B184: Mombasa | C184: Mvita | D184: 175738 | E184: =IF(INTRO!$E$48="","",ROUND($D184*INTRO!$E$48,0)) -> 26361 | F184: =IF(INTRO!$E$49="","",ROUND($D184*INTRO!$E$49,0)) -> 49207 | G184: =IF(INTRO!$E$50="","",ROUND($D184*INTRO!$E$50,0)) -> 94020 | H184: 1 | I184: 0 | J184: 2 | K184: 2 | L184: =IF(INTRO!$E$38="Endemic", IF($H184>0, IF($H184=4,"Unknown", IF($H184=99,"Stopped", $D184)), 0),"Not required") -> 175738 | M184: 0 | N184: =IF(INTRO!$E$42="Endemic", IF(AND($J184>1,$J184<5), IF($J184=4, "Unknown", E184+F184), 0),"Not required") -> 75568 | O184: =IF(INTRO!$E$44="Endemic", IF(AND($K184>0,$K184<5), IF($K184=4,"Unknown", IF($K184=1, $F184*0.33, IF($K184=2, $F184*0.5+$G184*0.2, SUM(F184:G184)))), 0),"Not required") -> 43407.5 | P184: 1 | Q184: 0 | R184: 1 | S184: 0 | T184: MDA2 (DEC+ALB) | V184: MDA 2 | Y184: 54176 | Z184: Mvita | AB184: ='MDA2'!M184 -> 191348
A185: =IF(INTRO!$E$34<>0,INTRO!$E$34,"") -> Kenya | B185: Mombasa | C185: Nyali | D185: 234357 | E185: =IF(INTRO!$E$48="","",ROUND($D185*INTRO!$E$48,0)) -> 35154 | F185: =IF(INTRO!$E$49="","",ROUND($D185*INTRO!$E$49,0)) -> 65620 | G185: =IF(INTRO!$E$50="","",ROUND($D185*INTRO!$E$50,0)) -> 125381 | H185: 1 | I185: 0 | J185: 2 | K185: 2 | L185: =IF(INTRO!$E$38="Endemic", IF($H185>0, IF($H185=4,"Unknown", IF($H185=99,"Stopped", $D185)), 0),"Not required") -> 234357 | M185: 0 | N185: =IF(INTRO!$E$42="Endemic", IF(AND($J185>1,$J185<5), IF($J185=4, "Unknown", E185+F185), 0),"Not required") -> 100774 | O185: =IF(INTRO!$E$44="Endemic", IF(AND($K185>0,$K185<5), IF($K185=4,"Unknown", IF($K185=1, $F185*0.33, IF($K185=2, $F185*0.5+$G185*0.2, SUM(F185:G185)))), 0),"Not required") -> 57886.2 | P185: 1 | Q185: 0 | R185: 1 | S185: 0 | T185: MDA2 (DEC+ALB) | V185: MDA 2 | Y185: 54177 | Z185: Nyali | AB185: ='MDA2'!M185 -> 225553
A186: =IF(INTRO!$E$34<>0,INTRO!$E$34,"") -> Kenya | B186: Murang’a | C186: Gatanga | D186: 208206 | E186: =IF(INTRO!$E$48="","",ROUND($D186*INTRO!$E$48,0)) -> 31231 | F186: =IF(INTRO!$E$49="","",ROUND($D186*INTRO!$E$49,0)) -> 58298 | G186: =IF(INTRO!$E$50="","",ROUND($D186*INTRO!$E$50,0)) -> 111390 | H186: 0 | I186: 0 | J186: 4 | K186: 4 | L186: =IF(INTRO!$E$38="Endemic", IF($H186>0, IF($H186=4,"Unknown", IF($H186=99,"Stopped", $D186)), 0),"Not required") -> 0 | M186: 0 | N186: =IF(INTRO!$E$42="Endemic", IF(AND($J186>1,$J186<5), IF($J186=4, "Unknown", E186+F186), 0),"Not required") -> Unknown | O186: =IF(INTRO!$E$44="Endemic", IF(AND($K186>0,$K186<5), IF($K186=4,"Unknown", IF($K186=1, $F186*0.33, IF($K186=2, $F186*0.5+$G186*0.2, SUM(F186:G186)))), 0),"Not required") -> Unknown | P186: 0 | Q186: 0 | R186: 0 | S186: 0 | Y186: 54178 | Z186: Gatanga | AB186: ='MDA2'!M186 -> 0
A187: =IF(INTRO!$E$34<>0,INTRO!$E$34,"") -> Kenya | B187: Murang’a | C187: Kandara | D187: 199492 | E187: =IF(INTRO!$E$48="","",ROUND($D187*INTRO!$E$48,0)) -> 29924 | F187: =IF(INTRO!$E$49="","",ROUND($D187*INTRO!$E$49,0)) -> 55858 | G187: =IF(INTRO!$E$50="","",ROUND($D187*INTRO!$E$50,0)) -> 106728 | H187: 0 | I187: 0 | J187: 4 | K187: 4 | L187: =IF(INTRO!$E$38="Endemic", IF($H187>0, IF($H187=4,"Unknown", IF($H187=99,"Stopped", $D187)), 0),"Not required") -> 0 | M187: 0 | N187: =IF(INTRO!$E$42="Endemic", IF(AND($J187>1,$J187<5), IF($J187=4, "Unknown", E187+F187), 0),"Not required") -> Unknown | O187: =IF(INTRO!$E$44="Endemic", IF(AND($K187>0,$K187<5), IF($K187=4,"Unknown", IF($K187=1, $F187*0.33, IF($K187=2, $F187*0.5+$G187*0.2, SUM(F187:G187)))), 0),"Not required") -> Unknown | P187: 0 | Q187: 0 | R187: 0 | S187: 0 | Y187: 54179 | Z187: Kandara | AB187: ='MDA2'!M187 -> 0
A188: =IF(INTRO!$E$34<>0,INTRO!$E$34,"") -> Kenya | B188: Murang’a | C188: Kangema | D188: 97584 | E188: =IF(INTRO!$E$48="","",ROUND($D188*INTRO!$E$48,0)) -> 14638 | F188: =IF(INTRO!$E$49="","",ROUND($D188*INTRO!$E$49,0)) -> 27324 | G188: =IF(INTRO!$E$50="","",ROUND($D188*INTRO!$E$50,0)) -> 52207 | H188: 0 | I188: 0 | J188: 4 | K188: 4 | L188: =IF(INTRO!$E$38="Endemic", IF($H188>0, IF($H188=4,"Unknown", IF($H188=99,"Stopped", $D188)), 0),"Not required") -> 0 | M188: 0 | N188: =IF(INTRO!$E$42="Endemic", IF(AND($J188>1,$J188<5), IF($J188=4, "Unknown", E188+F188), 0),"Not required") -> Unknown | O188: =IF(INTRO!$E$44="Endemic", IF(AND($K188>0,$K188<5), IF($K188=4,"Unknown", IF($K188=1, $F188*0.33, IF($K188=2, $F188*0.5+$G188*0.2, SUM(F188:G188)))), 0),"Not required") -> Unknown | P188: 0 | Q188: 0 | R188: 0 | S188: 0 | Y188: 54180 | Z188: Kangema | AB188: ='MDA2'!M188 -> 0
A189: =IF(INTRO!$E$34<>0,INTRO!$E$34,"") -> Kenya | B189: Murang’a | C189: Kigumo | D189: 157641 | E189: =IF(INTRO!$E$48="","",ROUND($D189*INTRO!$E$48,0)) -> 23646 | F189: =IF(INTRO!$E$49="","",ROUND($D189*INTRO!$E$49,0)) -> 44139 | G189: =IF(INTRO!$E$50="","",ROUND($D189*INTRO!$E$50,0)) -> 84338 | H189: 0 | I189: 0 | J189: 4 | K189: 4 | L189: =IF(INTRO!$E$38="Endemic", IF($H189>0, IF($H189=4,"Unknown", IF($H189=99,"Stopped", $D189)), 0),"Not required") -> 0 | M189: 0 | N189: =IF(INTRO!$E$42="Endemic", IF(AND($J189>1,$J189<5), IF($J189=4, "Unknown", E189+F189), 0),"Not required") -> Unknown | O189: =IF(INTRO!$E$44="Endemic", IF(AND($K189>0,$K189<5), IF($K189=4,"Unknown", IF($K189=1, $F189*0.33, IF($K189=2, $F189*0.5+$G189*0.2, SUM(F189:G189)))), 0),"Not required") -> Unknown | P189: 0 | Q189: 0 | R189: 0 | S189: 0 | Y189: 54181 | Z189: Kigumo | AB189: ='MDA2'!M189 -> 0
A190: =IF(INTRO!$E$34<>0,INTRO!$E$34,"") -> Kenya | B190: Murang’a | C190: Kiharu | D190: 227855 | E190: =IF(INTRO!$E$48="","",ROUND($D190*INTRO!$E$48,0)) -> 34178 | F190: =IF(INTRO!$E$49="","",ROUND($D190*INTRO!$E$49,0)) -> 63799 | G190: =IF(INTRO!$E$50="","",ROUND($D190*INTRO!$E$50,0)) -> 121902 | H190: 0 | I190: 0 | J190: 4 | K190: 4 | L190: =IF(INTRO!$E$38="Endemic", IF($H190>0, IF($H190=4,"Unknown", IF($H190=99,"Stopped", $D190)), 0),"Not required") -> 0 | M190: 0 | N190: =IF(INTRO!$E$42="Endemic", IF(AND($J190>1,$J190<5), IF($J190=4, "Unknown", E190+F190), 0),"Not required") -> Unknown | O190: =IF(INTRO!$E$44="Endemic", IF(AND($K190>0,$K190<5), IF($K190=4,"Unknown", IF($K190=1, $F190*0.33, IF($K190=2, $F190*0.5+$G190*0.2, SUM(F190:G190)))), 0),"Not required") -> Unknown | P190: 0 | Q190: 0 | R190: 0 | S190: 0 | Y190: 54182 | Z190: Kiharu | AB190: ='MDA2'!M190 -> 0
A191: =IF(INTRO!$E$34<>0,INTRO!$E$34,"") -> Kenya | B191: Murang’a | C191: Maragwa | D191: 192552 | E191: =IF(INTRO!$E$48="","",ROUND($D191*INTRO!$E$48,0)) -> 28883 | F191: =IF(INTRO!$E$49="","",ROUND($D191*INTRO!$E$49,0)) -> 53915 | G191: =IF(INTRO!$E$50="","",ROUND($D191*INTRO!$E$50,0)) -> 103015 | H191: 0 | I191: 0 | J191: 4 | K191: 4 | L191: =IF(INTRO!$E$38="Endemic", IF($H191>0, IF($H191=4,"Unknown", IF($H191=99,"Stopped", $D191)), 0),"Not required") -> 0 | M191: 0 | N191: =IF(INTRO!$E$42="Endemic", IF(AND($J191>1,$J191<5), IF($J191=4, "Unknown", E191+F191), 0),"Not required") -> Unknown | O191: =IF(INTRO!$E$44="Endemic", IF(AND($K191>0,$K191<5), IF($K191=4,"Unknown", IF($K191=1, $F191*0.33, IF($K191=2, $F191*0.5+$G191*0.2, SUM(F191:G191)))), 0),"Not required") -> Unknown | P191: 0 | Q191: 0 | R191: 0 | S191: 0 | Y191: 54183 | Z191: Maragwa | AB191: ='MDA2'!M191 -> 0
A192: =IF(INTRO!$E$34<>0,INTRO!$E$34,"") -> Kenya | B192: Murang’a | C192: Mathioya | D192: 112342 | E192: =IF(INTRO!$E$48="","",ROUND($D192*INTRO!$E$48,0)) -> 16851 | F192: =IF(INTRO!$E$49="","",ROUND($D192*INTRO!$E$49,0)) -> 31456 | G192: =IF(INTRO!$E$50="","",ROUND($D192*INTRO!$E$50,0)) -> 60103 | H192: 0 | I192: 0 | J192: 4 | K192: 4 | L192: =IF(INTRO!$E$38="Endemic", IF($H192>0, IF($H192=4,"Unknown", IF($H192=99,"Stopped", $D192)), 0),"Not required") -> 0 | M192: 0 | N192: =IF(INTRO!$E$42="Endemic", IF(AND($J192>1,$J192<5), IF($J192=4, "Unknown", E192+F192), 0),"Not required") -> Unknown | O192: =IF(INTRO!$E$44="Endemic", IF(AND($K192>0,$K192<5), IF($K192=4,"Unknown", IF($K192=1, $F192*0.33, IF($K192=2, $F192*0.5+$G192*0.2, SUM(F192:G192)))), 0),"Not required") -> Unknown | P192: 0 | Q192: 0 | R192: 0 | S192: 0 | Y192: 54184 | Z192: Mathioya | AB192: ='MDA2'!M192 -> 0
A193: =IF(INTRO!$E$34<>0,INTRO!$E$34,"") -> Kenya | B193: Nairobi | C193: Dagoretti North | D193: 227029 | E193: =IF(INTRO!$E$48="","",ROUND($D193*INTRO!$E$48,0)) -> 34054 | F193: =IF(INTRO!$E$49="","",ROUND($D193*INTRO!$E$49,0)) -> 63568 | G193: =IF(INTRO!$E$50="","",ROUND($D193*INTRO!$E$50,0)) -> 121461 | H193: 0 | I193: 0 | J193: 4 | K193: 4 | L193: =IF(INTRO!$E$38="Endemic", IF($H193>0, IF($H193=4,"Unknown", IF($H193=99,"Stopped", $D193)), 0),"Not required") -> 0 | M193: 0 | N193: =IF(INTRO!$E$42="Endemic", IF(AND($J193>1,$J193<5), IF($J193=4, "Unknown", E193+F193), 0),"Not required") -> Unknown | O193: =IF(INTRO!$E$44="Endemic", IF(AND($K193>0,$K193<5), IF($K193=4,"Unknown", IF($K193=1, $F193*0.33, IF($K193=2, $F193*0.5+$G193*0.2, SUM(F193:G193)))), 0),"Not required") -> Unknown | P193: 0 | Q193: 0 | R193: 0 | S193: 0 | Y193: 54194 | Z193: Dagoretti North | AB193: ='MDA2'!M193 -> 0
A194: =IF(INTRO!$E$34<>0,INTRO!$E$34,"") -> Kenya | B194: Nairobi | C194: Dagoretti South | D194: 228918 | E194: =IF(INTRO!$E$48="","",ROUND($D194*INTRO!$E$48,0)) -> 34338 | F194: =IF(INTRO!$E$49="","",ROUND($D194*INTRO!$E$49,0)) -> 64097 | G194: =IF(INTRO!$E$50="","",ROUND($D194*INTRO!$E$50,0)) -> 122471 | H194: 0 | I194: 0 | J194: 4 | K194: 4 | L194: =IF(INTRO!$E$38="Endemic", IF($H194>0, IF($H194=4,"Unknown", IF($H194=99,"Stopped", $D194)), 0),"Not required") -> 0 | M194: 0 | N194: =IF(INTRO!$E$42="Endemic", IF(AND($J194>1,$J194<5), IF($J194=4, "Unknown", E194+F194), 0),"Not required") -> Unknown | O194: =IF(INTRO!$E$44="Endemic", IF(AND($K194>0,$K194<5), IF($K194=4,"Unknown", IF($K194=1, $F194*0.33, IF($K194=2, $F194*0.5+$G194*0.2, SUM(F194:G194)))), 0),"Not required") -> Unknown | P194: 0 | Q194: 0 | R194: 0 | S194: 0 | Y194: 54185 | Z194: Dagoretti South | AB194: ='MDA2'!M194 -> 0
A195: =IF(INTRO!$E$34<>0,INTRO!$E$34,"") -> Kenya | B195: Nairobi | C195: Embakasi Central | D195: 243266 | E195: =IF(INTRO!$E$48="","",ROUND($D195*INTRO!$E$48,0)) -> 36490 | F195: =IF(INTRO!$E$49="","",ROUND($D195*INTRO!$E$49,0)) -> 68114 | G195: =IF(INTRO!$E$50="","",ROUND($D195*INTRO!$E$50,0)) -> 130147 | H195: 0 | I195: 0 | J195: 4 | K195: 4 | L195: =IF(INTRO!$E$38="Endemic", IF($H195>0, IF($H195=4,"Unknown", IF($H195=99,"Stopped", $D195)), 0),"Not required") -> 0 | M195: 0 | N195: =IF(INTRO!$E$42="Endemic", IF(AND($J195>1,$J195<5), IF($J195=4, "Unknown", E195+F195), 0),"Not required") -> Unknown | O195: =IF(INTRO!$E$44="Endemic", IF(AND($K195>0,$K195<5), IF($K195=4,"Unknown", IF($K195=1, $F195*0.33, IF($K195=2, $F195*0.5+$G195*0.2, SUM(F195:G195)))), 0),"Not required") -> Unknown | P195: 0 | Q195: 0 | R195: 0 | S195: 0 | Y195: 54186 | Z195: Embakasi Central | AB195: ='MDA2'!M195 -> 0
A196: =IF(INTRO!$E$34<>0,INTRO!$E$34,"") -> Kenya | B196: Nairobi | C196: Embakasi East | D196: 204226 | E196: =IF(INTRO!$E$48="","",ROUND($D196*INTRO!$E$48,0)) -> 30634 | F196: =IF(INTRO!$E$49="","",ROUND($D196*INTRO!$E$49,0)) -> 57183 | G196: =IF(INTRO!$E$50="","",ROUND($D196*INTRO!$E$50,0)) -> 109261 | H196: 0 | I196: 0 | J196: 4 | K196: 4 | L196: =IF(INTRO!$E$38="Endemic", IF($H196>0, IF($H196=4,"Unknown", IF($H196=99,"Stopped", $D196)), 0),"Not required") -> 0 | M196: 0 | N196: =IF(INTRO!$E$42="Endemic", IF(AND($J196>1,$J196<5), IF($J196=4, "Unknown", E196+F196), 0),"Not required") -> Unknown | O196: =IF(INTRO!$E$44="Endemic", IF(AND($K196>0,$K196<5), IF($K196=4,"Unknown", IF($K196=1, $F196*0.33, IF($K196=2, $F196*0.5+$G196*0.2, SUM(F196:G196)))), 0),"Not required") -> Unknown | P196: 0 | Q196: 0 | R196: 0 | S196: 0 | Y196: 54187 | Z196: Embakasi East | AB196: ='MDA2'!M196 -> 0
A197: =IF(INTRO!$E$34<>0,INTRO!$E$34,"") -> Kenya | B197: Nairobi | C197: Embakasi North | D197: 231101 | E197: =IF(INTRO!$E$48="","",ROUND($D197*INTRO!$E$48,0)) -> 34665 | F197: =IF(INTRO!$E$49="","",ROUND($D197*INTRO!$E$49,0)) -> 64708 | G197: =IF(INTRO!$E$50="","",ROUND($D197*INTRO!$E$50,0)) -> 123639 | H197: 0 | I197: 0 | J197: 4 | K197: 4 | L197: =IF(INTRO!$E$38="Endemic", IF($H197>0, IF($H197=4,"Unknown", IF($H197=99,"Stopped", $D197)), 0),"Not required") -> 0 | M197: 0 | N197: =IF(INTRO!$E$42="Endemic", IF(AND($J197>1,$J197<5), IF($J197=4, "Unknown", E197+F197), 0),"Not required") -> Unknown | O197: =IF(INTRO!$E$44="Endemic", IF(AND($K197>0,$K197<5), IF($K197=4,"Unknown", IF($K197=1, $F197*0.33, IF($K197=2, $F197*0.5+$G197*0.2, SUM(F197:G197)))), 0),"Not required") -> Unknown | P197: 0 | Q197: 0 | R197: 0 | S197: 0 | Y197: 54188 | Z197: Embakasi North | AB197: ='MDA2'!M197 -> 0
A198: =IF(INTRO!$E$34<>0,INTRO!$E$34,"") -> Kenya | B198: Nairobi | C198: Embakasi South | D198: 256500 | E198: =IF(INTRO!$E$48="","",ROUND($D198*INTRO!$E$48,0)) -> 38475 | F198: =IF(INTRO!$E$49="","",ROUND($D198*INTRO!$E$49,0)) -> 71820 | G198: =IF(INTRO!$E$50="","",ROUND($D198*INTRO!$E$50,0)) -> 137228 | H198: 0 | I198: 0 | J198: 4 | K198: 4 | L198: =IF(INTRO!$E$38="Endemic", IF($H198>0, IF($H198=4,"Unknown", IF($H198=99,"Stopped", $D198)), 0),"Not required") -> 0 | M198: 0 | N198: =IF(INTRO!$E$42="Endemic", IF(AND($J198>1,$J198<5), IF($J198=4, "Unknown", E198+F198), 0),"Not required") -> Unknown | O198: =IF(INTRO!$E$44="Endemic", IF(AND($K198>0,$K198<5), IF($K198=4,"Unknown", IF($K198=1, $F198*0.33, IF($K198=2, $F198*0.5+$G198*0.2, SUM(F198:G198)))), 0),"Not required") -> Unknown | P198: 0 | Q198: 0 | R198: 0 | S198: 0 | Y198: 54189 | Z198: Embakasi South | AB198: ='MDA2'!M198 -> 0
A199: =IF(INTRO!$E$34<>0,INTRO!$E$34,"") -> Kenya | B199: Nairobi | C199: Embakasi West | D199: 201006 | E199: =IF(INTRO!$E$48="","",ROUND($D199*INTRO!$E$48,0)) -> 30151 | F199: =IF(INTRO!$E$49="","",ROUND($D199*INTRO!$E$49,0)) -> 56282 | G199: =IF(INTRO!$E$50="","",ROUND($D199*INTRO!$E$50,0)) -> 107538 | H199: 0 | I199: 0 | J199: 4 | K199: 4 | L199: =IF(INTRO!$E$38="Endemic", IF($H199>0, IF($H199=4,"Unknown", IF($H199=99,"Stopped", $D199)), 0),"Not required") -> 0 | M199: 0 | N199: =IF(INTRO!$E$42="Endemic", IF(AND($J199>1,$J199<5), IF($J199=4, "Unknown", E199+F199), 0),"Not required") -> Unknown | O199: =IF(INTRO!$E$44="Endemic", IF(AND($K199>0,$K199<5), IF($K199=4,"Unknown", IF($K199=1, $F199*0.33, IF($K199=2, $F199*0.5+$G199*0.2, SUM(F199:G199)))), 0),"Not required") -> Unknown | P199: 0 | Q199: 0 | R199: 0 | S199: 0 | Y199: 54190 | Z199: Embakasi West | AB199: ='MDA2'!M199 -> 0
A200: =IF(INTRO!$E$34<>0,INTRO!$E$34,"") -> Kenya | B200: Nairobi | C200: Kamukunji | D200: 254452 | E200: =IF(INTRO!$E$48="","",ROUND($D200*INTRO!$E$48,0)) -> 38168 | F200: =IF(INTRO!$E$49="","",ROUND($D200*INTRO!$E$49,0)) -> 71247 | G200: =IF(INTRO!$E$50="","",ROUND($D200*INTRO!$E$50,0)) -> 136132 | H200: 0 | I200: 0 | J200: 4 | K200: 4 | L200: =IF(INTRO!$E$38="Endemic", IF($H200>0, IF($H200=4,"Unknown", IF($H200=99,"Stopped", $D200)), 0),"Not required") -> 0 | M200: 0 | N200: =IF(INTRO!$E$42="Endemic", IF(AND($J200>1,$J200<5), IF($J200=4, "Unknown", E200+F200), 0),"Not required") -> Unknown | O200: =IF(INTRO!$E$44="Endemic", IF(AND($K200>0,$K200<5), IF($K200=4,"Unknown", IF($K200=1, $F200*0.33, IF($K200=2, $F200*0.5+$G200*0.2, SUM(F200:G200)))), 0),"Not required") -> Unknown | P200: 0 | Q200: 0 | R200: 0 | S200: 0 | Y200: 54191 | Z200: Kamukunji | AB200: ='MDA2'!M200 -> 0
A201: =IF(INTRO!$E$34<>0,INTRO!$E$34,"") -> Kenya | B201: Nairobi | C201: Kasarani | D201: 216074 | E201: =IF(INTRO!$E$48="","",ROUND($D201*INTRO!$E$48,0)) -> 32411 | F201: =IF(INTRO!$E$49="","",ROUND($D201*INTRO!$E$49,0)) -> 60501 | G201: =IF(INTRO!$E$50="","",ROUND($D201*INTRO!$E$50,0)) -> 115600 | H201: 0 | I201: 0 | J201: 4 | K201: 4 | L201: =IF(INTRO!$E$38="Endemic", IF($H201>0, IF($H201=4,"Unknown", IF($H201=99,"Stopped", $D201)), 0),"Not required") -> 0 | M201: 0 | N201: =IF(INTRO!$E$42="Endemic", IF(AND($J201>1,$J201<5), IF($J201=4, "Unknown", E201+F201), 0),"Not required") -> Unknown | O201: =IF(INTRO!$E$44="Endemic", IF(AND($K201>0,$K201<5), IF($K201=4,"Unknown", IF($K201=1, $F201*0.33, IF($K201=2, $F201*0.5+$G201*0.2, SUM(F201:G201)))), 0),"Not required") -> Unknown | P201: 0 | Q201: 0 | R201: 0 | S201: 0 | Y201: 54192 | Z201: Kasarani | AB201: ='MDA2'!M201 -> 0
A202: =IF(INTRO!$E$34<>0,INTRO!$E$34,"") -> Kenya | B202: Nairobi | C202: Kibra | D202: 257333 | E202: =IF(INTRO!$E$48="","",ROUND($D202*INTRO!$E$48,0)) -> 38600 | F202: =IF(INTRO!$E$49="","",ROUND($D202*INTRO!$E$49,0)) -> 72053 | G202: =IF(INTRO!$E$50="","",ROUND($D202*INTRO!$E$50,0)) -> 137673 | H202: 0 | I202: 0 | J202: 4 | K202: 4 | L202: =IF(INTRO!$E$38="Endemic", IF($H202>0, IF($H202=4,"Unknown", IF($H202=99,"Stopped", $D202)), 0),"Not required") -> 0 | M202: 0 | N202: =IF(INTRO!$E$42="Endemic", IF(AND($J202>1,$J202<5), IF($J202=4, "Unknown", E202+F202), 0),"Not required") -> Unknown | O202: =IF(INTRO!$E$44="Endemic", IF(AND($K202>0,$K202<5), IF($K202=4,"Unknown", IF($K202=1, $F202*0.33, IF($K202=2, $F202*0.5+$G202*0.2, SUM(F202:G202)))), 0),"Not required") -> Unknown | P202: 0 | Q202: 0 | R202: 0 | S202: 0 | Y202: 54193 | Z202: Kibra | AB202: ='MDA2'!M202 -> 0
A203: =IF(INTRO!$E$34<>0,INTRO!$E$34,"") -> Kenya | B203: Nairobi | C203: Langata | D203: 225412 | E203: =IF(INTRO!$E$48="","",ROUND($D203*INTRO!$E$48,0)) -> 33812 | F203: =IF(INTRO!$E$49="","",ROUND($D203*INTRO!$E$49,0)) -> 63115 | G203: =IF(INTRO!$E$50="","",ROUND($D203*INTRO!$E$50,0)) -> 120595 | H203: 0 | I203: 0 | J203: 4 | K203: 4 | L203: =IF(INTRO!$E$38="Endemic", IF($H203>0, IF($H203=4,"Unknown", IF($H203=99,"Stopped", $D203)), 0),"Not required") -> 0 | M203: 0 | N203: =IF(INTRO!$E$42="Endemic", IF(AND($J203>1,$J203<5), IF($J203=4, "Unknown", E203+F203), 0),"Not required") -> Unknown | O203: =IF(INTRO!$E$44="Endemic", IF(AND($K203>0,$K203<5), IF($K203=4,"Unknown", IF($K203=1, $F203*0.33, IF($K203=2, $F203*0.5+$G203*0.2, SUM(F203:G203)))), 0),"Not required") -> Unknown | P203: 0 | Q203: 0 | R203: 0 | S203: 0 | Y203: 54195 | Z203: Langata | AB203: ='MDA2'!M203 -> 0
... 95 more rows

Sheet MDA1 (hidden)
A1: MDA 1 - Ivermectin (IVM) and Albendazole (ALB)
A2: Administrative structure, population requiring PC by age group, population treated by age group and coverage
A4: TOTAL | G4: =SUM(G$9:G$1000) -> 0 | H4: =SUM(H$9:H$1000) -> 0 | I4: =SUM(I$9:I$1000) -> 0 | K4: =SUM(K$9:K$1000) -> 0 | L4: =SUM(L$9:L$1000) -> 0 | M4: =SUM(M$9:M$1000) -> 0 | O4: =IF(G4<>0, IF(K4/G4*100=0, "-", K4/G4*100), " ") ->  | P4: =IF(H4<>0, IF(L4/H4*100=0, "-", L4/H4*100), " ") ->  | Q4: =IF(I4<>0, IF(M4/I4*100=0, "-", M4/I4*100), " ") -> 
D6: PC implemented | E6: Date | F6: Population targeted for MDA 1 | J6: Population treated | N6: Programme coverage (%)
A7: Country | B7: Province/State | C7: District | F7: PreSAC | G7: SAC | H7: Adults | I7: Total | J7: PreSAC | K7: SAC | L7: Adults | M7: Total | N7: PreSAC | O7: SAC | P7: Adults | Q7: Total
A9: =IF(COUNTRY_INFO!A9=0," ",COUNTRY_INFO!A9) -> Kenya | B9: =IF(COUNTRY_INFO!B9=0," ",COUNTRY_INFO!B9) -> Baringo | C9: =IF(COUNTRY_INFO!C9=0," ",COUNTRY_INFO!C9) -> Baringo Central | D9: =IF(COUNTRY_INFO!$T$9:$T$1000="MDA1 (IVM+ALB)", COUNTRY_INFO!$T$9:$T$1000, " ") ->  | I9: =SUM(F9:H9) -> 0 | M9: =SUM(J9:L9) -> 0 | O9: =IF(G9<>0, IF(K9/G9*100=0, "-", K9/G9*100), " ") ->  | P9: =IF(H9<>0, IF(L9/H9*100=0, "-", L9/H9*100), " ") -> 
A10: =IF(COUNTRY_INFO!A10=0," ",COUNTRY_INFO!A10) -> Kenya | B10: =IF(COUNTRY_INFO!B10=0," ",COUNTRY_INFO!B10) -> Baringo | C10: =IF(COUNTRY_INFO!C10=0," ",COUNTRY_INFO!C10) -> Baringo North | D10: =IF(COUNTRY_INFO!$T$9:$T$1000="MDA1 (IVM+ALB)", COUNTRY_INFO!$T$9:$T$1000, " ") ->  | I10: =SUM(F10:H10) -> 0 | M10: =SUM(J10:L10) -> 0 | O10: =IF(G10<>0, IF(K10/G10*100=0, "-", K10/G10*100), " ") ->  | P10: =IF(H10<>0, IF(L10/H10*100=0, "-", L10/H10*100), " ") ->  | Q10: =IF(I10<>0, IF(M10/I10*100=0, "-", M10/I10*100), " ") -> 
A11: =IF(COUNTRY_INFO!A11=0," ",COUNTRY_INFO!A11) -> Kenya | B11: =IF(COUNTRY_INFO!B11=0," ",COUNTRY_INFO!B11) -> Baringo | C11: =IF(COUNTRY_INFO!C11=0," ",COUNTRY_INFO!C11) -> Baringo South | D11: =IF(COUNTRY_INFO!$T$9:$T$1000="MDA1 (IVM+ALB)", COUNTRY_INFO!$T$9:$T$1000, " ") ->  | I11: 0 | M11: 0
A12: =IF(COUNTRY_INFO!A12=0," ",COUNTRY_INFO!A12) -> Kenya | B12: =IF(COUNTRY_INFO!B12=0," ",COUNTRY_INFO!B12) -> Baringo | C12: =IF(COUNTRY_INFO!C12=0," ",COUNTRY_INFO!C12) -> Eldama Ravine | D12: =IF(COUNTRY_INFO!$T$9:$T$1000="MDA1 (IVM+ALB)", COUNTRY_INFO!$T$9:$T$1000, " ") ->  | I12: 0 | M12: 0
A13: =IF(COUNTRY_INFO!A13=0," ",COUNTRY_INFO!A13) -> Kenya | B13: =IF(COUNTRY_INFO!B13=0," ",COUNTRY_INFO!B13) -> Baringo | C13: =IF(COUNTRY_INFO!C13=0," ",COUNTRY_INFO!C13) -> Mogotio | D13: =IF(COUNTRY_INFO!$T$9:$T$1000="MDA1 (IVM+ALB)", COUNTRY_INFO!$T$9:$T$1000, " ") ->  | I13: 0 | M13: 0
A14: =IF(COUNTRY_INFO!A14=0," ",COUNTRY_INFO!A14) -> Kenya | B14: =IF(COUNTRY_INFO!B14=0," ",COUNTRY_INFO!B14) -> Baringo | C14: =IF(COUNTRY_INFO!C14=0," ",COUNTRY_INFO!C14) -> Tiaty | D14: =IF(COUNTRY_INFO!$T$9:$T$1000="MDA1 (IVM+ALB)", COUNTRY_INFO!$T$9:$T$1000, " ") ->  | I14: 0 | M14: 0
A15: =IF(COUNTRY_INFO!A15=0," ",COUNTRY_INFO!A15) -> Kenya | B15: =IF(COUNTRY_INFO!B15=0," ",COUNTRY_INFO!B15) -> Bomet | C15: =IF(COUNTRY_INFO!C15=0," ",COUNTRY_INFO!C15) -> Bomet Central | D15: =IF(COUNTRY_INFO!$T$9:$T$1000="MDA1 (IVM+ALB)", COUNTRY_INFO!$T$9:$T$1000, " ") ->  | I15: 0 | M15: 0
A16: =IF(COUNTRY_INFO!A16=0," ",COUNTRY_INFO!A16) -> Kenya | B16: =IF(COUNTRY_INFO!B16=0," ",COUNTRY_INFO!B16) -> Bomet | C16: =IF(COUNTRY_INFO!C16=0," ",COUNTRY_INFO!C16) -> Bomet East | D16: =IF(COUNTRY_INFO!$T$9:$T$1000="MDA1 (IVM+ALB)", COUNTRY_INFO!$T$9:$T$1000, " ") ->  | I16: 0 | M16: 0
A17: =IF(COUNTRY_INFO!A17=0," ",COUNTRY_INFO!A17) -> Kenya | B17: =IF(COUNTRY_INFO!B17=0," ",COUNTRY_INFO!B17) -> Bomet | C17: =IF(COUNTRY_INFO!C17=0," ",COUNTRY_INFO!C17) -> Chepalungu | D17: =IF(COUNTRY_INFO!$T$9:$T$1000="MDA1 (IVM+ALB)", COUNTRY_INFO!$T$9:$T$1000, " ") ->  | I17: 0 | M17: 0
A18: =IF(COUNTRY_INFO!A18=0," ",COUNTRY_INFO!A18) -> Kenya | B18: =IF(COUNTRY_INFO!B18=0," ",COUNTRY_INFO!B18) -> Bomet | C18: =IF(COUNTRY_INFO!C18=0," ",COUNTRY_INFO!C18) -> Konoin | D18: =IF(COUNTRY_INFO!$T$9:$T$1000="MDA1 (IVM+ALB)", COUNTRY_INFO!$T$9:$T$1000, " ") ->  | I18: 0 | M18: 0
A19: =IF(COUNTRY_INFO!A19=0," ",COUNTRY_INFO!A19) -> Kenya | B19: =IF(COUNTRY_INFO!B19=0," ",COUNTRY_INFO!B19) -> Bomet | C19: =IF(COUNTRY_INFO!C19=0," ",COUNTRY_INFO!C19) -> Sotik | D19: =IF(COUNTRY_INFO!$T$9:$T$1000="MDA1 (IVM+ALB)", COUNTRY_INFO!$T$9:$T$1000, " ") ->  | I19: 0 | M19: 0
A20: =IF(COUNTRY_INFO!A20=0," ",COUNTRY_INFO!A20) -> Kenya | B20: =IF(COUNTRY_INFO!B20=0," ",COUNTRY_INFO!B20) -> Bungoma | C20: =IF(COUNTRY_INFO!C20=0," ",COUNTRY_INFO!C20) -> Bumula | D20: =IF(COUNTRY_INFO!$T$9:$T$1000="MDA1 (IVM+ALB)", COUNTRY_INFO!$T$9:$T$1000, " ") ->  | I20: 0 | M20: 0
A21: =IF(COUNTRY_INFO!A21=0," ",COUNTRY_INFO!A21) -> Kenya | B21: =IF(COUNTRY_INFO!B21=0," ",COUNTRY_INFO!B21) -> Bungoma | C21: =IF(COUNTRY_INFO!C21=0," ",COUNTRY_INFO!C21) -> Kabucchai | D21: =IF(COUNTRY_INFO!$T$9:$T$1000="MDA1 (IVM+ALB)", COUNTRY_INFO!$T$9:$T$1000, " ") ->  | I21: 0 | M21: 0
A22: =IF(COUNTRY_INFO!A22=0," ",COUNTRY_INFO!A22) -> Kenya | B22: =IF(COUNTRY_INFO!B22=0," ",COUNTRY_INFO!B22) -> Bungoma | C22: =IF(COUNTRY_INFO!C22=0," ",COUNTRY_INFO!C22) -> Kanduyi | D22: =IF(COUNTRY_INFO!$T$9:$T$1000="MDA1 (IVM+ALB)", COUNTRY_INFO!$T$9:$T$1000, " ") ->  | I22: 0 | M22: 0
A23: =IF(COUNTRY_INFO!A23=0," ",COUNTRY_INFO!A23) -> Kenya | B23: =IF(COUNTRY_INFO!B23=0," ",COUNTRY_INFO!B23) -> Bungoma | C23: =IF(COUNTRY_INFO!C23=0," ",COUNTRY_INFO!C23) -> Kimilili | D23: =IF(COUNTRY_INFO!$T$9:$T$1000="MDA1 (IVM+ALB)", COUNTRY_INFO!$T$9:$T$1000, " ") ->  | I23: 0 | M23: 0
A24: =IF(COUNTRY_INFO!A24=0," ",COUNTRY_INFO!A24) -> Kenya | B24: =IF(COUNTRY_INFO!B24=0," ",COUNTRY_INFO!B24) -> Bungoma | C24: =IF(COUNTRY_INFO!C24=0," ",COUNTRY_INFO!C24) -> Mount Elgon | D24: =IF(COUNTRY_INFO!$T$9:$T$1000="MDA1 (IVM+ALB)", COUNTRY_INFO!$T$9:$T$1000, " ") ->  | I24: 0 | M24: 0
A25: =IF(COUNTRY_INFO!A25=0," ",COUNTRY_INFO!A25) -> Kenya | B25: =IF(COUNTRY_INFO!B25=0," ",COUNTRY_INFO!B25) -> Bungoma | C25: =IF(COUNTRY_INFO!C25=0," ",COUNTRY_INFO!C25) -> Sirisia | D25: =IF(COUNTRY_INFO!$T$9:$T$1000="MDA1 (IVM+ALB)", COUNTRY_INFO!$T$9:$T$1000, " ") ->  | I25: 0 | M25: 0
A26: =IF(COUNTRY_INFO!A26=0," ",COUNTRY_INFO!A26) -> Kenya | B26: =IF(COUNTRY_INFO!B26=0," ",COUNTRY_INFO!B26) -> Bungoma | C26: =IF(COUNTRY_INFO!C26=0," ",COUNTRY_INFO!C26) -> Tongaren | D26: =IF(COUNTRY_INFO!$T$9:$T$1000="MDA1 (IVM+ALB)", COUNTRY_INFO!$T$9:$T$1000, " ") ->  | I26: 0 | M26: 0
A27: =IF(COUNTRY_INFO!A27=0," ",COUNTRY_INFO!A27) -> Kenya | B27: =IF(COUNTRY_INFO!B27=0," ",COUNTRY_INFO!B27) -> Bungoma | C27: =IF(COUNTRY_INFO!C27=0," ",COUNTRY_INFO!C27) -> Webuye East | D27: =IF(COUNTRY_INFO!$T$9:$T$1000="MDA1 (IVM+ALB)", COUNTRY_INFO!$T$9:$T$1000, " ") ->  | I27: 0 | M27: 0
A28: =IF(COUNTRY_INFO!A28=0," ",COUNTRY_INFO!A28) -> Kenya | B28: =IF(COUNTRY_INFO!B28=0," ",COUNTRY_INFO!B28) -> Bungoma | C28: =IF(COUNTRY_INFO!C28=0," ",COUNTRY_INFO!C28) -> Webuye West | D28: =IF(COUNTRY_INFO!$T$9:$T$1000="MDA1 (IVM+ALB)", COUNTRY_INFO!$T$9:$T$1000, " ") ->  | I28: 0 | M28: 0
A29: =IF(COUNTRY_INFO!A29=0," ",COUNTRY_INFO!A29) -> Kenya | B29: =IF(COUNTRY_INFO!B29=0," ",COUNTRY_INFO!B29) -> Busia | C29: =IF(COUNTRY_INFO!C29=0," ",COUNTRY_INFO!C29) -> Budalangi | D29: =IF(COUNTRY_INFO!$T$9:$T$1000="MDA1 (IVM+ALB)", COUNTRY_INFO!$T$9:$T$1000, " ") ->  | I29: 0 | M29: 0
A30: =IF(COUNTRY_INFO!A30=0," ",COUNTRY_INFO!A30) -> Kenya | B30: =IF(COUNTRY_INFO!B30=0," ",COUNTRY_INFO!B30) -> Busia | C30: =IF(COUNTRY_INFO!C30=0," ",COUNTRY_INFO!C30) -> Butula | D30: =IF(COUNTRY_INFO!$T$9:$T$1000="MDA1 (IVM+ALB)", COUNTRY_INFO!$T$9:$T$1000, " ") ->  | I30: 0 | M30: 0
A31: =IF(COUNTRY_INFO!A31=0," ",COUNTRY_INFO!A31) -> Kenya | B31: =IF(COUNTRY_INFO!B31=0," ",COUNTRY_INFO!B31) -> Busia | C31: =IF(COUNTRY_INFO!C31=0," ",COUNTRY_INFO!C31) -> Funyula | D31: =IF(COUNTRY_INFO!$T$9:$T$1000="MDA1 (IVM+ALB)", COUNTRY_INFO!$T$9:$T$1000, " ") ->  | I31: 0 | M31: 0
A32: =IF(COUNTRY_INFO!A32=0," ",COUNTRY_INFO!A32) -> Kenya | B32: =IF(COUNTRY_INFO!B32=0," ",COUNTRY_INFO!B32) -> Busia | C32: =IF(COUNTRY_INFO!C32=0," ",COUNTRY_INFO!C32) -> Matayos | D32: =IF(COUNTRY_INFO!$T$9:$T$1000="MDA1 (IVM+ALB)", COUNTRY_INFO!$T$9:$T$1000, " ") ->  | I32: 0 | M32: 0
A33: =IF(COUNTRY_INFO!A33=0," ",COUNTRY_INFO!A33) -> Kenya | B33: =IF(COUNTRY_INFO!B33=0," ",COUNTRY_INFO!B33) -> Busia | C33: =IF(COUNTRY_INFO!C33=0," ",COUNTRY_INFO!C33) -> Nambale | D33: =IF(COUNTRY_INFO!$T$9:$T$1000="MDA1 (IVM+ALB)", COUNTRY_INFO!$T$9:$T$1000, " ") ->  | I33: 0 | M33: 0
A34: =IF(COUNTRY_INFO!A34=0," ",COUNTRY_INFO!A34) -> Kenya | B34: =IF(COUNTRY_INFO!B34=0," ",COUNTRY_INFO!B34) -> Busia | C34: =IF(COUNTRY_INFO!C34=0," ",COUNTRY_INFO!C34) -> Teso North | D34: =IF(COUNTRY_INFO!$T$9:$T$1000="MDA1 (IVM+ALB)", COUNTRY_INFO!$T$9:$T$1000, " ") ->  | I34: 0 | M34: 0
A35: =IF(COUNTRY_INFO!A35=0," ",COUNTRY_INFO!A35) -> Kenya | B35: =IF(COUNTRY_INFO!B35=0," ",COUNTRY_INFO!B35) -> Busia | C35: =IF(COUNTRY_INFO!C35=0," ",COUNTRY_INFO!C35) -> Teso South | D35: =IF(COUNTRY_INFO!$T$9:$T$1000="MDA1 (IVM+ALB)", COUNTRY_INFO!$T$9:$T$1000, " ") ->  | I35: 0 | M35: 0
A36: =IF(COUNTRY_INFO!A36=0," ",COUNTRY_INFO!A36) -> Kenya | B36: =IF(COUNTRY_INFO!B36=0," ",COUNTRY_INFO!B36) -> Elgeyo Marakwet | C36: =IF(COUNTRY_INFO!C36=0," ",COUNTRY_INFO!C36) -> Keiyo North | D36: =IF(COUNTRY_INFO!$T$9:$T$1000="MDA1 (IVM+ALB)", COUNTRY_INFO!$T$9:$T$1000, " ") ->  | I36: 0 | M36: 0
A37: =IF(COUNTRY_INFO!A37=0," ",COUNTRY_INFO!A37) -> Kenya | B37: =IF(COUNTRY_INFO!B37=0," ",COUNTRY_INFO!B37) -> Elgeyo Marakwet | C37: =IF(COUNTRY_INFO!C37=0," ",COUNTRY_INFO!C37) -> Keiyo South | D37: =IF(COUNTRY_INFO!$T$9:$T$1000="MDA1 (IVM+ALB)", COUNTRY_INFO!$T$9:$T$1000, " ") ->  | I37: 0 | M37: 0
A38: =IF(COUNTRY_INFO!A38=0," ",COUNTRY_INFO!A38) -> Kenya | B38: =IF(COUNTRY_INFO!B38=0," ",COUNTRY_INFO!B38) -> Elgeyo Marakwet | C38: =IF(COUNTRY_INFO!C38=0," ",COUNTRY_INFO!C38) -> Marakwet East | D38: =IF(COUNTRY_INFO!$T$9:$T$1000="MDA1 (IVM+ALB)", COUNTRY_INFO!$T$9:$T$1000, " ") ->  | I38: 0 | M38: 0
A39: =IF(COUNTRY_INFO!A39=0," ",COUNTRY_INFO!A39) -> Kenya | B39: =IF(COUNTRY_INFO!B39=0," ",COUNTRY_INFO!B39) -> Elgeyo Marakwet | C39: =IF(COUNTRY_INFO!C39=0," ",COUNTRY_INFO!C39) -> Marakwet West | D39: =IF(COUNTRY_INFO!$T$9:$T$1000="MDA1 (IVM+ALB)", COUNTRY_INFO!$T$9:$T$1000, " ") ->  | I39: 0 | M39: 0
A40: =IF(COUNTRY_INFO!A40=0," ",COUNTRY_INFO!A40) -> Kenya | B40: =IF(COUNTRY_INFO!B40=0," ",COUNTRY_INFO!B40) -> Embu | C40: =IF(COUNTRY_INFO!C40=0," ",COUNTRY_INFO!C40) -> Manyatta | D40: =IF(COUNTRY_INFO!$T$9:$T$1000="MDA1 (IVM+ALB)", COUNTRY_INFO!$T$9:$T$1000, " ") ->  | I40: 0 | M40: 0
A41: =IF(COUNTRY_INFO!A41=0," ",COUNTRY_INFO!A41) -> Kenya | B41: =IF(COUNTRY_INFO!B41=0," ",COUNTRY_INFO!B41) -> Embu | C41: =IF(COUNTRY_INFO!C41=0," ",COUNTRY_INFO!C41) -> Mbeere North | D41: =IF(COUNTRY_INFO!$T$9:$T$1000="MDA1 (IVM+ALB)", COUNTRY_INFO!$T$9:$T$1000, " ") ->  | I41: 0 | M41: 0
A42: =IF(COUNTRY_INFO!A42=0," ",COUNTRY_INFO!A42) -> Kenya | B42: =IF(COUNTRY_INFO!B42=0," ",COUNTRY_INFO!B42) -> Embu | C42: =IF(COUNTRY_INFO!C42=0," ",COUNTRY_INFO!C42) -> Mbeere South | D42: =IF(COUNTRY_INFO!$T$9:$T$1000="MDA1 (IVM+ALB)", COUNTRY_INFO!$T$9:$T$1000, " ") ->  | I42: 0 | M42: 0
A43: =IF(COUNTRY_INFO!A43=0," ",COUNTRY_INFO!A43) -> Kenya | B43: =IF(COUNTRY_INFO!B43=0," ",COUNTRY_INFO!B43) -> Embu | C43: =IF(COUNTRY_INFO!C43=0," ",COUNTRY_INFO!C43) -> Runyenjes | D43: =IF(COUNTRY_INFO!$T$9:$T$1000="MDA1 (IVM+ALB)", COUNTRY_INFO!$T$9:$T$1000, " ") ->  | I43: 0 | M43: 0
A44: =IF(COUNTRY_INFO!A44=0," ",COUNTRY_INFO!A44) -> Kenya | B44: =IF(COUNTRY_INFO!B44=0," ",COUNTRY_INFO!B44) -> Garissa | C44: =IF(COUNTRY_INFO!C44=0," ",COUNTRY_INFO!C44) -> Balambala | D44: =IF(COUNTRY_INFO!$T$9:$T$1000="MDA1 (IVM+ALB)", COUNTRY_INFO!$T$9:$T$1000, " ") ->  | I44: 0 | M44: 0
A45: =IF(COUNTRY_INFO!A45=0," ",COUNTRY_INFO!A45) -> Kenya | B45: =IF(COUNTRY_INFO!B45=0," ",COUNTRY_INFO!B45) -> Garissa | C45: =IF(COUNTRY_INFO!C45=0," ",COUNTRY_INFO!C45) -> Dadaab | D45: =IF(COUNTRY_INFO!$T$9:$T$1000="MDA1 (IVM+ALB)", COUNTRY_INFO!$T$9:$T$1000, " ") ->  | I45: 0 | M45: 0
A46: =IF(COUNTRY_INFO!A46=0," ",COUNTRY_INFO!A46) -> Kenya | B46: =IF(COUNTRY_INFO!B46=0," ",COUNTRY_INFO!B46) -> Garissa | C46: =IF(COUNTRY_INFO!C46=0," ",COUNTRY_INFO!C46) -> Fafi | D46: =IF(COUNTRY_INFO!$T$9:$T$1000="MDA1 (IVM+ALB)", COUNTRY_INFO!$T$9:$T$1000, " ") ->  | I46: 0 | M46: 0
A47: =IF(COUNTRY_INFO!A47=0," ",COUNTRY_INFO!A47) -> Kenya | B47: =IF(COUNTRY_INFO!B47=0," ",COUNTRY_INFO!B47) -> Garissa | C47: =IF(COUNTRY_INFO!C47=0," ",COUNTRY_INFO!C47) -> Garisa Township | D47: =IF(COUNTRY_INFO!$T$9:$T$1000="MDA1 (IVM+ALB)", COUNTRY_INFO!$T$9:$T$1000, " ") ->  | I47: 0 | M47: 0
A48: =IF(COUNTRY_INFO!A48=0," ",COUNTRY_INFO!A48) -> Kenya | B48: =IF(COUNTRY_INFO!B48=0," ",COUNTRY_INFO!B48) -> Garissa | C48: =IF(COUNTRY_INFO!C48=0," ",COUNTRY_INFO!C48) -> Ijara | D48: =IF(COUNTRY_INFO!$T$9:$T$1000="MDA1 (IVM+ALB)", COUNTRY_INFO!$T$9:$T$1000, " ") ->  | I48: 0 | M48: 0
A49: =IF(COUNTRY_INFO!A49=0," ",COUNTRY_INFO!A49) -> Kenya | B49: =IF(COUNTRY_INFO!B49=0," ",COUNTRY_INFO!B49) -> Garissa | C49: =IF(COUNTRY_INFO!C49=0," ",COUNTRY_INFO!C49) -> Lagdera | D49: =IF(COUNTRY_INFO!$T$9:$T$1000="MDA1 (IVM+ALB)", COUNTRY_INFO!$T$9:$T$1000, " ") ->  | I49: 0 | M49: 0
A50: =IF(COUNTRY_INFO!A50=0," ",COUNTRY_INFO!A50) -> Kenya | B50: =IF(COUNTRY_INFO!B50=0," ",COUNTRY_INFO!B50) -> Homa Bay | C50: =IF(COUNTRY_INFO!C50=0," ",COUNTRY_INFO!C50) -> Homabay Town | D50: =IF(COUNTRY_INFO!$T$9:$T$1000="MDA1 (IVM+ALB)", COUNTRY_INFO!$T$9:$T$1000, " ") ->  | I50: 0 | M50: 0
A51: =IF(COUNTRY_INFO!A51=0," ",COUNTRY_INFO!A51) -> Kenya | B51: =IF(COUNTRY_INFO!B51=0," ",COUNTRY_INFO!B51) -> Homa Bay | C51: =IF(COUNTRY_INFO!C51=0," ",COUNTRY_INFO!C51) -> Kabondo Kasipul | D51: =IF(COUNTRY_INFO!$T$9:$T$1000="MDA1 (IVM+ALB)", COUNTRY_INFO!$T$9:$T$1000, " ") ->  | I51: 0 | M51: 0
A52: =IF(COUNTRY_INFO!A52=0," ",COUNTRY_INFO!A52) -> Kenya | B52: =IF(COUNTRY_INFO!B52=0," ",COUNTRY_INFO!B52) -> Homa Bay | C52: =IF(COUNTRY_INFO!C52=0," ",COUNTRY_INFO!C52) -> Karachuonyo | D52: =IF(COUNTRY_INFO!$T$9:$T$1000="MDA1 (IVM+ALB)", COUNTRY_INFO!$T$9:$T$1000, " ") ->  | I52: 0 | M52: 0
A53: =IF(COUNTRY_INFO!A53=0," ",COUNTRY_INFO!A53) -> Kenya | B53: =IF(COUNTRY_INFO!B53=0," ",COUNTRY_INFO!B53) -> Homa Bay | C53: =IF(COUNTRY_INFO!C53=0," ",COUNTRY_INFO!C53) -> Kasipul | D53: =IF(COUNTRY_INFO!$T$9:$T$1000="MDA1 (IVM+ALB)", COUNTRY_INFO!$T$9:$T$1000, " ") ->  | I53: 0 | M53: 0
A54: =IF(COUNTRY_INFO!A54=0," ",COUNTRY_INFO!A54) -> Kenya | B54: =IF(COUNTRY_INFO!B54=0," ",COUNTRY_INFO!B54) -> Homa Bay | C54: =IF(COUNTRY_INFO!C54=0," ",COUNTRY_INFO!C54) -> Mbita | D54: =IF(COUNTRY_INFO!$T$9:$T$1000="MDA1 (IVM+ALB)", COUNTRY_INFO!$T$9:$T$1000, " ") ->  | I54: 0 | M54: 0
A55: =IF(COUNTRY_INFO!A55=0," ",COUNTRY_INFO!A55) -> Kenya | B55: =IF(COUNTRY_INFO!B55=0," ",COUNTRY_INFO!B55) -> Homa Bay | C55: =IF(COUNTRY_INFO!C55=0," ",COUNTRY_INFO!C55) -> Ndhiwa | D55: =IF(COUNTRY_INFO!$T$9:$T$1000="MDA1 (IVM+ALB)", COUNTRY_INFO!$T$9:$T$1000, " ") ->  | I55: 0 | M55: 0
A56: =IF(COUNTRY_INFO!A56=0," ",COUNTRY_INFO!A56) -> Kenya | B56: =IF(COUNTRY_INFO!B56=0," ",COUNTRY_INFO!B56) -> Homa Bay | C56: =IF(COUNTRY_INFO!C56=0," ",COUNTRY_INFO!C56) -> Rangwe | D56: =IF(COUNTRY_INFO!$T$9:$T$1000="MDA1 (IVM+ALB)", COUNTRY_INFO!$T$9:$T$1000, " ") ->  | I56: 0 | M56: 0
A57: =IF(COUNTRY_INFO!A57=0," ",COUNTRY_INFO!A57) -> Kenya | B57: =IF(COUNTRY_INFO!B57=0," ",COUNTRY_INFO!B57) -> Homa Bay | C57: =IF(COUNTRY_INFO!C57=0," ",COUNTRY_INFO!C57) -> Suba | D57: =IF(COUNTRY_INFO!$T$9:$T$1000="MDA1 (IVM+ALB)", COUNTRY_INFO!$T$9:$T$1000, " ") ->  | I57: 0 | M57: 0
A58: =IF(COUNTRY_INFO!A58=0," ",COUNTRY_INFO!A58) -> Kenya | B58: =IF(COUNTRY_INFO!B58=0," ",COUNTRY_INFO!B58) -> Isiolo | C58: =IF(COUNTRY_INFO!C58=0," ",COUNTRY_INFO!C58) -> Isiolo North | D58: =IF(COUNTRY_INFO!$T$9:$T$1000="MDA1 (IVM+ALB)", COUNTRY_INFO!$T$9:$T$1000, " ") ->  | I58: 0 | M58: 0
A59: =IF(COUNTRY_INFO!A59=0," ",COUNTRY_INFO!A59) -> Kenya | B59: =IF(COUNTRY_INFO!B59=0," ",COUNTRY_INFO!B59) -> Isiolo | C59: =IF(COUNTRY_INFO!C59=0," ",COUNTRY_INFO!C59) -> Isiolo South | D59: =IF(COUNTRY_INFO!$T$9:$T$1000="MDA1 (IVM+ALB)", COUNTRY_INFO!$T$9:$T$1000, " ") ->  | I59: 0 | M59: 0
A60: =IF(COUNTRY_INFO!A60=0," ",COUNTRY_INFO!A60) -> Kenya | B60: =IF(COUNTRY_INFO!B60=0," ",COUNTRY_INFO!B60) -> Kajiado | C60: =IF(COUNTRY_INFO!C60=0," ",COUNTRY_INFO!C60) -> Kajiado Central | D60: =IF(COUNTRY_INFO!$T$9:$T$1000="MDA1 (IVM+ALB)", COUNTRY_INFO!$T$9:$T$1000, " ") ->  | I60: 0 | M60: 0
A61: =IF(COUNTRY_INFO!A61=0," ",COUNTRY_INFO!A61) -> Kenya | B61: =IF(COUNTRY_INFO!B61=0," ",COUNTRY_INFO!B61) -> Kajiado | C61: =IF(COUNTRY_INFO!C61=0," ",COUNTRY_INFO!C61) -> Kajiado East | D61: =IF(COUNTRY_INFO!$T$9:$T$1000="MDA1 (IVM+ALB)", COUNTRY_INFO!$T$9:$T$1000, " ") ->  | I61: 0 | M61: 0
A62: =IF(COUNTRY_INFO!A62=0," ",COUNTRY_INFO!A62) -> Kenya | B62: =IF(COUNTRY_INFO!B62=0," ",COUNTRY_INFO!B62) -> Kajiado | C62: =IF(COUNTRY_INFO!C62=0," ",COUNTRY_INFO!C62) -> Kajiado North | D62: =IF(COUNTRY_INFO!$T$9:$T$1000="MDA1 (IVM+ALB)", COUNTRY_INFO!$T$9:$T$1000, " ") ->  | I62: 0 | M62: 0
A63: =IF(COUNTRY_INFO!A63=0," ",COUNTRY_INFO!A63) -> Kenya | B63: =IF(COUNTRY_INFO!B63=0," ",COUNTRY_INFO!B63) -> Kajiado | C63: =IF(COUNTRY_INFO!C63=0," ",COUNTRY_INFO!C63) -> Kajiado South | D63: =IF(COUNTRY_INFO!$T$9:$T$1000="MDA1 (IVM+ALB)", COUNTRY_INFO!$T$9:$T$1000, " ") ->  | I63: 0 | M63: 0
A64: =IF(COUNTRY_INFO!A64=0," ",COUNTRY_INFO!A64) -> Kenya | B64: =IF(COUNTRY_INFO!B64=0," ",COUNTRY_INFO!B64) -> Kajiado | C64: =IF(COUNTRY_INFO!C64=0," ",COUNTRY_INFO!C64) -> Kajiado West | D64: =IF(COUNTRY_INFO!$T$9:$T$1000="MDA1 (IVM+ALB)", COUNTRY_INFO!$T$9:$T$1000, " ") ->  | I64: 0 | M64: 0
A65: =IF(COUNTRY_INFO!A65=0," ",COUNTRY_INFO!A65) -> Kenya | B65: =IF(COUNTRY_INFO!B65=0," ",COUNTRY_INFO!B65) -> Kakamega | C65: =IF(COUNTRY_INFO!C65=0," ",COUNTRY_INFO!C65) -> Butere | D65: =IF(COUNTRY_INFO!$T$9:$T$1000="MDA1 (IVM+ALB)", COUNTRY_INFO!$T$9:$T$1000, " ") ->  | I65: 0 | M65: 0
A66: =IF(COUNTRY_INFO!A66=0," ",COUNTRY_INFO!A66) -> Kenya | B66: =IF(COUNTRY_INFO!B66=0," ",COUNTRY_INFO!B66) -> Kakamega | C66: =IF(COUNTRY_INFO!C66=0," ",COUNTRY_INFO!C66) -> Ikolmani | D66: =IF(COUNTRY_INFO!$T$9:$T$1000="MDA1 (IVM+ALB)", COUNTRY_INFO!$T$9:$T$1000, " ") ->  | I66: 0 | M66: 0
A67: =IF(COUNTRY_INFO!A67=0," ",COUNTRY_INFO!A67) -> Kenya | B67: =IF(COUNTRY_INFO!B67=0," ",COUNTRY_INFO!B67) -> Kakamega | C67: =IF(COUNTRY_INFO!C67=0," ",COUNTRY_INFO!C67) -> Khwisero | D67: =IF(COUNTRY_INFO!$T$9:$T$1000="MDA1 (IVM+ALB)", COUNTRY_INFO!$T$9:$T$1000, " ") ->  | I67: 0 | M67: 0
A68: =IF(COUNTRY_INFO!A68=0," ",COUNTRY_INFO!A68) -> Kenya | B68: =IF(COUNTRY_INFO!B68=0," ",COUNTRY_INFO!B68) -> Kakamega | C68: =IF(COUNTRY_INFO!C68=0," ",COUNTRY_INFO!C68) -> Likuyani | D68: =IF(COUNTRY_INFO!$T$9:$T$1000="MDA1 (IVM+ALB)", COUNTRY_INFO!$T$9:$T$1000, " ") ->  | I68: 0 | M68: 0
A69: =IF(COUNTRY_INFO!A69=0," ",COUNTRY_INFO!A69) -> Kenya | B69: =IF(COUNTRY_INFO!B69=0," ",COUNTRY_INFO!B69) -> Kakamega | C69: =IF(COUNTRY_INFO!C69=0," ",COUNTRY_INFO!C69) -> Lugari | D69: =IF(COUNTRY_INFO!$T$9:$T$1000="MDA1 (IVM+ALB)", COUNTRY_INFO!$T$9:$T$1000, " ") ->  | I69: 0 | M69: 0
A70: =IF(COUNTRY_INFO!A70=0," ",COUNTRY_INFO!A70) -> Kenya | B70: =IF(COUNTRY_INFO!B70=0," ",COUNTRY_INFO!B70) -> Kakamega | C70: =IF(COUNTRY_INFO!C70=0," ",COUNTRY_INFO!C70) -> Lurambi | D70: =IF(COUNTRY_INFO!$T$9:$T$1000="MDA1 (IVM+ALB)", COUNTRY_INFO!$T$9:$T$1000, " ") ->  | I70: 0 | M70: 0
A71: =IF(COUNTRY_INFO!A71=0," ",COUNTRY_INFO!A71) -> Kenya | B71: =IF(COUNTRY_INFO!B71=0," ",COUNTRY_INFO!B71) -> Kakamega | C71: =IF(COUNTRY_INFO!C71=0," ",COUNTRY_INFO!C71) -> Malava | D71: =IF(COUNTRY_INFO!$T$9:$T$1000="MDA1 (IVM+ALB)", COUNTRY_INFO!$T$9:$T$1000, " ") ->  | I71: 0 | M71: 0
A72: =IF(COUNTRY_INFO!A72=0," ",COUNTRY_INFO!A72) -> Kenya | B72: =IF(COUNTRY_INFO!B72=0," ",COUNTRY_INFO!B72) -> Kakamega | C72: =IF(COUNTRY_INFO!C72=0," ",COUNTRY_INFO!C72) -> Matungu | D72: =IF(COUNTRY_INFO!$T$9:$T$1000="MDA1 (IVM+ALB)", COUNTRY_INFO!$T$9:$T$1000, " ") ->  | I72: 0 | M72: 0
A73: =IF(COUNTRY_INFO!A73=0," ",COUNTRY_INFO!A73) -> Kenya | B73: =IF(COUNTRY_INFO!B73=0," ",COUNTRY_INFO!B73) -> Kakamega | C73: =IF(COUNTRY_INFO!C73=0," ",COUNTRY_INFO!C73) -> Mumias East | D73: =IF(COUNTRY_INFO!$T$9:$T$1000="MDA1 (IVM+ALB)", COUNTRY_INFO!$T$9:$T$1000, " ") ->  | I73: 0 | M73: 0
A74: =IF(COUNTRY_INFO!A74=0," ",COUNTRY_INFO!A74) -> Kenya | B74: =IF(COUNTRY_INFO!B74=0," ",COUNTRY_INFO!B74) -> Kakamega | C74: =IF(COUNTRY_INFO!C74=0," ",COUNTRY_INFO!C74) -> Mumias West | D74: =IF(COUNTRY_INFO!$T$9:$T$1000="MDA1 (IVM+ALB)", COUNTRY_INFO!$T$9:$T$1000, " ") ->  | I74: =SUM(F74:H74) -> 0 | M74: =SUM(J74:L74) -> 0 | O74: =IF(G74<>0, IF(K74/G74*100=0, "-", K74/G74*100), " ") ->  | P74: =IF(H74<>0, IF(L74/H74*100=0, "-", L74/H74*100), " ") ->  | Q74: =IF(I74<>0, IF(M74/I74*100=0, "-", M74/I74*100), " ") -> 
A75: =IF(COUNTRY_INFO!A75=0," ",COUNTRY_INFO!A75) -> Kenya | B75: =IF(COUNTRY_INFO!B75=0," ",COUNTRY_INFO!B75) -> Kakamega | C75: =IF(COUNTRY_INFO!C75=0," ",COUNTRY_INFO!C75) -> Navakholo | D75: =IF(COUNTRY_INFO!$T$9:$T$1000="MDA1 (IVM+ALB)", COUNTRY_INFO!$T$9:$T$1000, " ") ->  | I75: 0 | M75: 0
A76: =IF(COUNTRY_INFO!A76=0," ",COUNTRY_INFO!A76) -> Kenya | B76: =IF(COUNTRY_INFO!B76=0," ",COUNTRY_INFO!B76) -> Kakamega | C76: =IF(COUNTRY_INFO!C76=0," ",COUNTRY_INFO!C76) -> Shinayalu | D76: =IF(COUNTRY_INFO!$T$9:$T$1000="MDA1 (IVM+ALB)", COUNTRY_INFO!$T$9:$T$1000, " ") ->  | I76: 0 | M76: 0
A77: =IF(COUNTRY_INFO!A77=0," ",COUNTRY_INFO!A77) -> Kenya | B77: =IF(COUNTRY_INFO!B77=0," ",COUNTRY_INFO!B77) -> Kericho | C77: =IF(COUNTRY_INFO!C77=0," ",COUNTRY_INFO!C77) -> Ainamoi | D77: =IF(COUNTRY_INFO!$T$9:$T$1000="MDA1 (IVM+ALB)", COUNTRY_INFO!$T$9:$T$1000, " ") ->  | I77: 0 | M77: 0
A78: =IF(COUNTRY_INFO!A78=0," ",COUNTRY_INFO!A78) -> Kenya | B78: =IF(COUNTRY_INFO!B78=0," ",COUNTRY_INFO!B78) -> Kericho | C78: =IF(COUNTRY_INFO!C78=0," ",COUNTRY_INFO!C78) -> Belgut | D78: =IF(COUNTRY_INFO!$T$9:$T$1000="MDA1 (IVM+ALB)", COUNTRY_INFO!$T$9:$T$1000, " ") ->  | I78: 0 | M78: 0
A79: =IF(COUNTRY_INFO!A79=0," ",COUNTRY_INFO!A79) -> Kenya | B79: =IF(COUNTRY_INFO!B79=0," ",COUNTRY_INFO!B79) -> Kericho | C79: =IF(COUNTRY_INFO!C79=0," ",COUNTRY_INFO!C79) -> Bureti | D79: =IF(COUNTRY_INFO!$T$9:$T$1000="MDA1 (IVM+ALB)", COUNTRY_INFO!$T$9:$T$1000, " ") ->  | I79: 0 | M79: 0
A80: =IF(COUNTRY_INFO!A80=0," ",COUNTRY_INFO!A80) -> Kenya | B80: =IF(COUNTRY_INFO!B80=0," ",COUNTRY_INFO!B80) -> Kericho | C80: =IF(COUNTRY_INFO!C80=0," ",COUNTRY_INFO!C80) -> Kipkelion East | D80: =IF(COUNTRY_INFO!$T$9:$T$1000="MDA1 (IVM+ALB)", COUNTRY_INFO!$T$9:$T$1000, " ") ->  | I80: 0 | M80: 0
A81: =IF(COUNTRY_INFO!A81=0," ",COUNTRY_INFO!A81) -> Kenya | B81: =IF(COUNTRY_INFO!B81=0," ",COUNTRY_INFO!B81) -> Kericho | C81: =IF(COUNTRY_INFO!C81=0," ",COUNTRY_INFO!C81) -> Kipkelion West | D81: =IF(COUNTRY_INFO!$T$9:$T$1000="MDA1 (IVM+ALB)", COUNTRY_INFO!$T$9:$T$1000, " ") ->  | I81: 0 | M81: 0
A82: =IF(COUNTRY_INFO!A82=0," ",COUNTRY_INFO!A82) -> Kenya | B82: =IF(COUNTRY_INFO!B82=0," ",COUNTRY_INFO!B82) -> Kericho | C82: =IF(COUNTRY_INFO!C82=0," ",COUNTRY_INFO!C82) -> Sigowet-Soin | D82: =IF(COUNTRY_INFO!$T$9:$T$1000="MDA1 (IVM+ALB)", COUNTRY_INFO!$T$9:$T$1000, " ") ->  | I82: 0 | M82: 0
A83: =IF(COUNTRY_INFO!A83=0," ",COUNTRY_INFO!A83) -> Kenya | B83: =IF(COUNTRY_INFO!B83=0," ",COUNTRY_INFO!B83) -> Kiambu | C83: =IF(COUNTRY_INFO!C83=0," ",COUNTRY_INFO!C83) -> Gatundu North | D83: =IF(COUNTRY_INFO!$T$9:$T$1000="MDA1 (IVM+ALB)", COUNTRY_INFO!$T$9:$T$1000, " ") ->  | I83: 0 | M83: 0
A84: =IF(COUNTRY_INFO!A84=0," ",COUNTRY_INFO!A84) -> Kenya | B84: =IF(COUNTRY_INFO!B84=0," ",COUNTRY_INFO!B84) -> Kiambu | C84: =IF(COUNTRY_INFO!C84=0," ",COUNTRY_INFO!C84) -> Gatundu South | D84: =IF(COUNTRY_INFO!$T$9:$T$1000="MDA1 (IVM+ALB)", COUNTRY_INFO!$T$9:$T$1000, " ") ->  | I84: 0 | M84: 0
A85: =IF(COUNTRY_INFO!A85=0," ",COUNTRY_INFO!A85) -> Kenya | B85: =IF(COUNTRY_INFO!B85=0," ",COUNTRY_INFO!B85) -> Kiambu | C85: =IF(COUNTRY_INFO!C85=0," ",COUNTRY_INFO!C85) -> Githunguri | D85: =IF(COUNTRY_INFO!$T$9:$T$1000="MDA1 (IVM+ALB)", COUNTRY_INFO!$T$9:$T$1000, " ") ->  | I85: 0 | M85: 0
A86: =IF(COUNTRY_INFO!A86=0," ",COUNTRY_INFO!A86) -> Kenya | B86: =IF(COUNTRY_INFO!B86=0," ",COUNTRY_INFO!B86) -> Kiambu | C86: =IF(COUNTRY_INFO!C86=0," ",COUNTRY_INFO!C86) -> Juja | D86: =IF(COUNTRY_INFO!$T$9:$T$1000="MDA1 (IVM+ALB)", COUNTRY_INFO!$T$9:$T$1000, " ") ->  | I86: 0 | M86: 0
A87: =IF(COUNTRY_INFO!A87=0," ",COUNTRY_INFO!A87) -> Kenya | B87: =IF(COUNTRY_INFO!B87=0," ",COUNTRY_INFO!B87) -> Kiambu | C87: =IF(COUNTRY_INFO!C87=0," ",COUNTRY_INFO!C87) -> Kabete | D87: =IF(COUNTRY_INFO!$T$9:$T$1000="MDA1 (IVM+ALB)", COUNTRY_INFO!$T$9:$T$1000, " ") ->  | I87: 0 | M87: 0
A88: =IF(COUNTRY_INFO!A88=0," ",COUNTRY_INFO!A88) -> Kenya | B88: =IF(COUNTRY_INFO!B88=0," ",COUNTRY_INFO!B88) -> Kiambu | C88: =IF(COUNTRY_INFO!C88=0," ",COUNTRY_INFO!C88) -> Kiambaa | D88: =IF(COUNTRY_INFO!$T$9:$T$1000="MDA1 (IVM+ALB)", COUNTRY_INFO!$T$9:$T$1000, " ") ->  | I88: 0 | M88: 0
A89: =IF(COUNTRY_INFO!A89=0," ",COUNTRY_INFO!A89) -> Kenya | B89: =IF(COUNTRY_INFO!B89=0," ",COUNTRY_INFO!B89) -> Kiambu | C89: =IF(COUNTRY_INFO!C89=0," ",COUNTRY_INFO!C89) -> Kiambu | D89: =IF(COUNTRY_INFO!$T$9:$T$1000="MDA1 (IVM+ALB)", COUNTRY_INFO!$T$9:$T$1000, " ") ->  | I89: 0 | M89: 0
A90: =IF(COUNTRY_INFO!A90=0," ",COUNTRY_INFO!A90) -> Kenya | B90: =IF(COUNTRY_INFO!B90=0," ",COUNTRY_INFO!B90) -> Kiambu | C90: =IF(COUNTRY_INFO!C90=0," ",COUNTRY_INFO!C90) -> Kikuyu | D90: =IF(COUNTRY_INFO!$T$9:$T$1000="MDA1 (IVM+ALB)", COUNTRY_INFO!$T$9:$T$1000, " ") ->  | I90: 0 | M90: 0
A91: =IF(COUNTRY_INFO!A91=0," ",COUNTRY_INFO!A91) -> Kenya | B91: =IF(COUNTRY_INFO!B91=0," ",COUNTRY_INFO!B91) -> Kiambu | C91: =IF(COUNTRY_INFO!C91=0," ",COUNTRY_INFO!C91) -> Lari | D91: =IF(COUNTRY_INFO!$T$9:$T$1000="MDA1 (IVM+ALB)", COUNTRY_INFO!$T$9:$T$1000, " ") ->  | I91: 0 | M91: 0
A92: =IF(COUNTRY_INFO!A92=0," ",COUNTRY_INFO!A92) -> Kenya | B92: =IF(COUNTRY_INFO!B92=0," ",COUNTRY_INFO!B92) -> Kiambu | C92: =IF(COUNTRY_INFO!C92=0," ",COUNTRY_INFO!C92) -> Limuru | D92: =IF(COUNTRY_INFO!$T$9:$T$1000="MDA1 (IVM+ALB)", COUNTRY_INFO!$T$9:$T$1000, " ") ->  | I92: 0 | M92: 0
A93: =IF(COUNTRY_INFO!A93=0," ",COUNTRY_INFO!A93) -> Kenya | B93: =IF(COUNTRY_INFO!B93=0," ",COUNTRY_INFO!B93) -> Kiambu | C93: =IF(COUNTRY_INFO!C93=0," ",COUNTRY_INFO!C93) -> Ruiru | D93: =IF(COUNTRY_INFO!$T$9:$T$1000="MDA1 (IVM+ALB)", COUNTRY_INFO!$T$9:$T$1000, " ") ->  | I93: 0 | M93: 0
A94: =IF(COUNTRY_INFO!A94=0," ",COUNTRY_INFO!A94) -> Kenya | B94: =IF(COUNTRY_INFO!B94=0," ",COUNTRY_INFO!B94) -> Kiambu | C94: =IF(COUNTRY_INFO!C94=0," ",COUNTRY_INFO!C94) -> Thika Town | D94: =IF(COUNTRY_INFO!$T$9:$T$1000="MDA1 (IVM+ALB)", COUNTRY_INFO!$T$9:$T$1000, " ") ->  | I94: 0 | M94: 0
A95: =IF(COUNTRY_INFO!A95=0," ",COUNTRY_INFO!A95) -> Kenya | B95: =IF(COUNTRY_INFO!B95=0," ",COUNTRY_INFO!B95) -> Kilifi | C95: =IF(COUNTRY_INFO!C95=0," ",COUNTRY_INFO!C95) -> Ganze | D95: =IF(COUNTRY_INFO!$T$9:$T$1000="MDA1 (IVM+ALB)", COUNTRY_INFO!$T$9:$T$1000, " ") ->  | I95: 0 | M95: 0
A96: =IF(COUNTRY_INFO!A96=0," ",COUNTRY_INFO!A96) -> Kenya | B96: =IF(COUNTRY_INFO!B96=0," ",COUNTRY_INFO!B96) -> Kilifi | C96: =IF(COUNTRY_INFO!C96=0," ",COUNTRY_INFO!C96) -> Kaloleni | D96: =IF(COUNTRY_INFO!$T$9:$T$1000="MDA1 (IVM+ALB)", COUNTRY_INFO!$T$9:$T$1000, " ") ->  | I96: 0 | M96: 0
A97: =IF(COUNTRY_INFO!A97=0," ",COUNTRY_INFO!A97) -> Kenya | B97: =IF(COUNTRY_INFO!B97=0," ",COUNTRY_INFO!B97) -> Kilifi | C97: =IF(COUNTRY_INFO!C97=0," ",COUNTRY_INFO!C97) -> Kilifi North | D97: =IF(COUNTRY_INFO!$T$9:$T$1000="MDA1 (IVM+ALB)", COUNTRY_INFO!$T$9:$T$1000, " ") ->  | I97: 0 | M97: 0
A98: =IF(COUNTRY_INFO!A98=0," ",COUNTRY_INFO!A98) -> Kenya | B98: =IF(COUNTRY_INFO!B98=0," ",COUNTRY_INFO!B98) -> Kilifi | C98: =IF(COUNTRY_INFO!C98=0," ",COUNTRY_INFO!C98) -> Kilifi South | D98: =IF(COUNTRY_INFO!$T$9:$T$1000="MDA1 (IVM+ALB)", COUNTRY_INFO!$T$9:$T$1000, " ") ->  | I98: 0 | M98: 0
A99: =IF(COUNTRY_INFO!A99=0," ",COUNTRY_INFO!A99) -> Kenya | B99: =IF(COUNTRY_INFO!B99=0," ",COUNTRY_INFO!B99) -> Kilifi | C99: =IF(COUNTRY_INFO!C99=0," ",COUNTRY_INFO!C99) -> Magarini | D99: =IF(COUNTRY_INFO!$T$9:$T$1000="MDA1 (IVM+ALB)", COUNTRY_INFO!$T$9:$T$1000, " ") ->  | I99: 0 | M99: 0
A100: =IF(COUNTRY_INFO!A100=0," ",COUNTRY_INFO!A100) -> Kenya | B100: =IF(COUNTRY_INFO!B100=0," ",COUNTRY_INFO!B100) -> Kilifi | C100: =IF(COUNTRY_INFO!C100=0," ",COUNTRY_INFO!C100) -> Malindi | D100: =IF(COUNTRY_INFO!$T$9:$T$1000="MDA1 (IVM+ALB)", COUNTRY_INFO!$T$9:$T$1000, " ") ->  | I100: 0 | M100: 0
A101: =IF(COUNTRY_INFO!A101=0," ",COUNTRY_INFO!A101) -> Kenya | B101: =IF(COUNTRY_INFO!B101=0," ",COUNTRY_INFO!B101) -> Kilifi | C101: =IF(COUNTRY_INFO!C101=0," ",COUNTRY_INFO!C101) -> Rabai | D101: =IF(COUNTRY_INFO!$T$9:$T$1000="MDA1 (IVM+ALB)", COUNTRY_INFO!$T$9:$T$1000, " ") ->  | I101: 0 | M101: 0
A102: =IF(COUNTRY_INFO!A102=0," ",COUNTRY_INFO!A102) -> Kenya | B102: =IF(COUNTRY_INFO!B102=0," ",COUNTRY_INFO!B102) -> Kirinyaga | C102: =IF(COUNTRY_INFO!C102=0," ",COUNTRY_INFO!C102) -> Gichugu | D102: =IF(COUNTRY_INFO!$T$9:$T$1000="MDA1 (IVM+ALB)", COUNTRY_INFO!$T$9:$T$1000, " ") ->  | I102: 0 | M102: 0
A103: =IF(COUNTRY_INFO!A103=0," ",COUNTRY_INFO!A103) -> Kenya | B103: =IF(COUNTRY_INFO!B103=0," ",COUNTRY_INFO!B103) -> Kirinyaga | C103: =IF(COUNTRY_INFO!C103=0," ",COUNTRY_INFO!C103) -> Kirinyaga Central | D103: =IF(COUNTRY_INFO!$T$9:$T$1000="MDA1 (IVM+ALB)", COUNTRY_INFO!$T$9:$T$1000, " ") ->  | I103: 0 | M103: 0
A104: =IF(COUNTRY_INFO!A104=0," ",COUNTRY_INFO!A104) -> Kenya | B104: =IF(COUNTRY_INFO!B104=0," ",COUNTRY_INFO!B104) -> Kirinyaga | C104: =IF(COUNTRY_INFO!C104=0," ",COUNTRY_INFO!C104) -> Mwea | D104: =IF(COUNTRY_INFO!$T$9:$T$1000="MDA1 (IVM+ALB)", COUNTRY_INFO!$T$9:$T$1000, " ") ->  | I104: 0 | M104: 0
A105: =IF(COUNTRY_INFO!A105=0," ",COUNTRY_INFO!A105) -> Kenya | B105: =IF(COUNTRY_INFO!B105=0," ",COUNTRY_INFO!B105) -> Kirinyaga | C105: =IF(COUNTRY_INFO!C105=0," ",COUNTRY_INFO!C105) -> Ndia | D105: =IF(COUNTRY_INFO!$T$9:$T$1000="MDA1 (IVM+ALB)", COUNTRY_INFO!$T$9:$T$1000, " ") ->  | I105: 0 | M105: 0
A106: =IF(COUNTRY_INFO!A106=0," ",COUNTRY_INFO!A106) -> Kenya | B106: =IF(COUNTRY_INFO!B106=0," ",COUNTRY_INFO!B106) -> Kisii | C106: =IF(COUNTRY_INFO!C106=0," ",COUNTRY_INFO!C106) -> Bobasi | D106: =IF(COUNTRY_INFO!$T$9:$T$1000="MDA1 (IVM+ALB)", COUNTRY_INFO!$T$9:$T$1000, " ") ->  | I106: 0 | M106: 0
A107: =IF(COUNTRY_INFO!A107=0," ",COUNTRY_INFO!A107) -> Kenya | B107: =IF(COUNTRY_INFO!B107=0," ",COUNTRY_INFO!B107) -> Kisii | C107: =IF(COUNTRY_INFO!C107=0," ",COUNTRY_INFO!C107) -> Bomachoge Borabu | D107: =IF(COUNTRY_INFO!$T$9:$T$1000="MDA1 (IVM+ALB)", COUNTRY_INFO!$T$9:$T$1000, " ") ->  | I107: 0 | M107: 0
A108: =IF(COUNTRY_INFO!A108=0," ",COUNTRY_INFO!A108) -> Kenya | B108: =IF(COUNTRY_INFO!B108=0," ",COUNTRY_INFO!B108) -> Kisii | C108: =IF(COUNTRY_INFO!C108=0," ",COUNTRY_INFO!C108) -> Bomachoge Chache | D108: =IF(COUNTRY_INFO!$T$9:$T$1000="MDA1 (IVM+ALB)", COUNTRY_INFO!$T$9:$T$1000, " ") ->  | I108: 0 | M108: 0
A109: =IF(COUNTRY_INFO!A109=0," ",COUNTRY_INFO!A109) -> Kenya | B109: =IF(COUNTRY_INFO!B109=0," ",COUNTRY_INFO!B109) -> Kisii | C109: =IF(COUNTRY_INFO!C109=0," ",COUNTRY_INFO!C109) -> Bonchari | D109: =IF(COUNTRY_INFO!$T$9:$T$1000="MDA1 (IVM+ALB)", COUNTRY_INFO!$T$9:$T$1000, " ") ->  | I109: 0 | M109: 0
A110: =IF(COUNTRY_INFO!A110=0," ",COUNTRY_INFO!A110) -> Kenya | B110: =IF(COUNTRY_INFO!B110=0," ",COUNTRY_INFO!B110) -> Kisii | C110: =IF(COUNTRY_INFO!C110=0," ",COUNTRY_INFO!C110) -> Kitutu Chache North | D110: =IF(COUNTRY_INFO!$T$9:$T$1000="MDA1 (IVM+ALB)", COUNTRY_INFO!$T$9:$T$1000, " ") ->  | I110: 0 | M110: 0
A111: =IF(COUNTRY_INFO!A111=0," ",COUNTRY_INFO!A111) -> Kenya | B111: =IF(COUNTRY_INFO!B111=0," ",COUNTRY_INFO!B111) -> Kisii | C111: =IF(COUNTRY_INFO!C111=0," ",COUNTRY_INFO!C111) -> Kitutu Chache South | D111: =IF(COUNTRY_INFO!$T$9:$T$1000="MDA1 (IVM+ALB)", COUNTRY_INFO!$T$9:$T$1000, " ") ->  | I111: 0 | M111: 0
A112: =IF(COUNTRY_INFO!A112=0," ",COUNTRY_INFO!A112) -> Kenya | B112: =IF(COUNTRY_INFO!B112=0," ",COUNTRY_INFO!B112) -> Kisii | C112: =IF(COUNTRY_INFO!C112=0," ",COUNTRY_INFO!C112) -> Nyaribari Chache | D112: =IF(COUNTRY_INFO!$T$9:$T$1000="MDA1 (IVM+ALB)", COUNTRY_INFO!$T$9:$T$1000, " ") ->  | I112: 0 | M112: 0
A113: =IF(COUNTRY_INFO!A113=0," ",COUNTRY_INFO!A113) -> Kenya | B113: =IF(COUNTRY_INFO!B113=0," ",COUNTRY_INFO!B113) -> Kisii | C113: =IF(COUNTRY_INFO!C113=0," ",COUNTRY_INFO!C113) -> Nyaribari Masaba | D113: =IF(COUNTRY_INFO!$T$9:$T$1000="MDA1 (IVM+ALB)", COUNTRY_INFO!$T$9:$T$1000, " ") ->  | I113: 0 | M113: 0
A114: =IF(COUNTRY_INFO!A114=0," ",COUNTRY_INFO!A114) -> Kenya | B114: =IF(COUNTRY_INFO!B114=0," ",COUNTRY_INFO!B114) -> Kisii | C114: =IF(COUNTRY_INFO!C114=0," ",COUNTRY_INFO!C114) -> South Mugirango | D114: =IF(COUNTRY_INFO!$T$9:$T$1000="MDA1 (IVM+ALB)", COUNTRY_INFO!$T$9:$T$1000, " ") ->  | I114: 0 | M114: 0
A115: =IF(COUNTRY_INFO!A115=0," ",COUNTRY_INFO!A115) -> Kenya | B115: =IF(COUNTRY_INFO!B115=0," ",COUNTRY_INFO!B115) -> Kisumu | C115: =IF(COUNTRY_INFO!C115=0," ",COUNTRY_INFO!C115) -> Kisumu Central | D115: =IF(COUNTRY_INFO!$T$9:$T$1000="MDA1 (IVM+ALB)", COUNTRY_INFO!$T$9:$T$1000, " ") ->  | I115: 0 | M115: 0
A116: =IF(COUNTRY_INFO!A116=0," ",COUNTRY_INFO!A116) -> Kenya | B116: =IF(COUNTRY_INFO!B116=0," ",COUNTRY_INFO!B116) -> Kisumu | C116: =IF(COUNTRY_INFO!C116=0," ",COUNTRY_INFO!C116) -> Kisumu East | D116: =IF(COUNTRY_INFO!$T$9:$T$1000="MDA1 (IVM+ALB)", COUNTRY_INFO!$T$9:$T$1000, " ") ->  | I116: 0 | M116: 0
A117: =IF(COUNTRY_INFO!A117=0," ",COUNTRY_INFO!A117) -> Kenya | B117: =IF(COUNTRY_INFO!B117=0," ",COUNTRY_INFO!B117) -> Kisumu | C117: =IF(COUNTRY_INFO!C117=0," ",COUNTRY_INFO!C117) -> Kisumu West | D117: =IF(COUNTRY_INFO!$T$9:$T$1000="MDA1 (IVM+ALB)", COUNTRY_INFO!$T$9:$T$1000, " ") ->  | I117: 0 | M117: 0
A118: =IF(COUNTRY_INFO!A118=0," ",COUNTRY_INFO!A118) -> Kenya | B118: =IF(COUNTRY_INFO!B118=0," ",COUNTRY_INFO!B118) -> Kisumu | C118: =IF(COUNTRY_INFO!C118=0," ",COUNTRY_INFO!C118) -> Muhoroni | D118: =IF(COUNTRY_INFO!$T$9:$T$1000="MDA1 (IVM+ALB)", COUNTRY_INFO!$T$9:$T$1000, " ") ->  | I118: 0 | M118: 0
A119: =IF(COUNTRY_INFO!A119=0," ",COUNTRY_INFO!A119) -> Kenya | B119: =IF(COUNTRY_INFO!B119=0," ",COUNTRY_INFO!B119) -> Kisumu | C119: =IF(COUNTRY_INFO!C119=0," ",COUNTRY_INFO!C119) -> Nyakach | D119: =IF(COUNTRY_INFO!$T$9:$T$1000="MDA1 (IVM+ALB)", COUNTRY_INFO!$T$9:$T$1000, " ") ->  | I119: 0 | M119: 0
A120: =IF(COUNTRY_INFO!A120=0," ",COUNTRY_INFO!A120) -> Kenya | B120: =IF(COUNTRY_INFO!B120=0," ",COUNTRY_INFO!B120) -> Kisumu | C120: =IF(COUNTRY_INFO!C120=0," ",COUNTRY_INFO!C120) -> Nyando | D120: =IF(COUNTRY_INFO!$T$9:$T$1000="MDA1 (IVM+ALB)", COUNTRY_INFO!$T$9:$T$1000, " ") ->  | I120: 0 | M120: 0
A121: =IF(COUNTRY_INFO!A121=0," ",COUNTRY_INFO!A121) -> Kenya | B121: =IF(COUNTRY_INFO!B121=0," ",COUNTRY_INFO!B121) -> Kisumu | C121: =IF(COUNTRY_INFO!C121=0," ",COUNTRY_INFO!C121) -> Seme | D121: =IF(COUNTRY_INFO!$T$9:$T$1000="MDA1 (IVM+ALB)", COUNTRY_INFO!$T$9:$T$1000, " ") ->  | I121: 0 | M121: 0
A122: =IF(COUNTRY_INFO!A122=0," ",COUNTRY_INFO!A122) -> Kenya | B122: =IF(COUNTRY_INFO!B122=0," ",COUNTRY_INFO!B122) -> Kitui | C122: =IF(COUNTRY_INFO!C122=0," ",COUNTRY_INFO!C122) -> Kitui Central | D122: =IF(COUNTRY_INFO!$T$9:$T$1000="MDA1 (IVM+ALB)", COUNTRY_INFO!$T$9:$T$1000, " ") ->  | I122: 0 | M122: 0
A123: =IF(COUNTRY_INFO!A123=0," ",COUNTRY_INFO!A123) -> Kenya | B123: =IF(COUNTRY_INFO!B123=0," ",COUNTRY_INFO!B123) -> Kitui | C123: =IF(COUNTRY_INFO!C123=0," ",COUNTRY_INFO!C123) -> Kitui East | D123: =IF(COUNTRY_INFO!$T$9:$T$1000="MDA1 (IVM+ALB)", COUNTRY_INFO!$T$9:$T$1000, " ") ->  | I123: 0 | M123: 0
A124: =IF(COUNTRY_INFO!A124=0," ",COUNTRY_INFO!A124) -> Kenya | B124: =IF(COUNTRY_INFO!B124=0," ",COUNTRY_INFO!B124) -> Kitui | C124: =IF(COUNTRY_INFO!C124=0," ",COUNTRY_INFO!C124) -> Kitui Rural | D124: =IF(COUNTRY_INFO!$T$9:$T$1000="MDA1 (IVM+ALB)", COUNTRY_INFO!$T$9:$T$1000, " ") ->  | I124: 0 | M124: 0
A125: =IF(COUNTRY_INFO!A125=0," ",COUNTRY_INFO!A125) -> Kenya | B125: =IF(COUNTRY_INFO!B125=0," ",COUNTRY_INFO!B125) -> Kitui | C125: =IF(COUNTRY_INFO!C125=0," ",COUNTRY_INFO!C125) -> Kitui South | D125: =IF(COUNTRY_INFO!$T$9:$T$1000="MDA1 (IVM+ALB)", COUNTRY_INFO!$T$9:$T$1000, " ") ->  | I125: 0 | M125: 0
A126: =IF(COUNTRY_INFO!A126=0," ",COUNTRY_INFO!A126) -> Kenya | B126: =IF(COUNTRY_INFO!B126=0," ",COUNTRY_INFO!B126) -> Kitui | C126: =IF(COUNTRY_INFO!C126=0," ",COUNTRY_INFO!C126) -> Kitui West | D126: =IF(COUNTRY_INFO!$T$9:$T$1000="MDA1 (IVM+ALB)", COUNTRY_INFO!$T$9:$T$1000, " ") ->  | I126: 0 | M126: 0
A127: =IF(COUNTRY_INFO!A127=0," ",COUNTRY_INFO!A127) -> Kenya | B127: =IF(COUNTRY_INFO!B127=0," ",COUNTRY_INFO!B127) -> Kitui | C127: =IF(COUNTRY_INFO!C127=0," ",COUNTRY_INFO!C127) -> Mwingi Central | D127: =IF(COUNTRY_INFO!$T$9:$T$1000="MDA1 (IVM+ALB)", COUNTRY_INFO!$T$9:$T$1000, " ") ->  | I127: 0 | M127: 0
A128: =IF(COUNTRY_INFO!A128=0," ",COUNTRY_INFO!A128) -> Kenya | B128: =IF(COUNTRY_INFO!B128=0," ",COUNTRY_INFO!B128) -> Kitui | C128: =IF(COUNTRY_INFO!C128=0," ",COUNTRY_INFO!C128) -> Mwingi North | D128: =IF(COUNTRY_INFO!$T$9:$T$1000="MDA1 (IVM+ALB)", COUNTRY_INFO!$T$9:$T$1000, " ") ->  | I128: 0 | M128: 0
A129: =IF(COUNTRY_INFO!A129=0," ",COUNTRY_INFO!A129) -> Kenya | B129: =IF(COUNTRY_INFO!B129=0," ",COUNTRY_INFO!B129) -> Kitui | C129: =IF(COUNTRY_INFO!C129=0," ",COUNTRY_INFO!C129) -> Mwingi West | D129: =IF(COUNTRY_INFO!$T$9:$T$1000="MDA1 (IVM+ALB)", COUNTRY_INFO!$T$9:$T$1000, " ") ->  | I129: 0 | M129: 0
A130: =IF(COUNTRY_INFO!A130=0," ",COUNTRY_INFO!A130) -> Kenya | B130: =IF(COUNTRY_INFO!B130=0," ",COUNTRY_INFO!B130) -> Kwale | C130: =IF(COUNTRY_INFO!C130=0," ",COUNTRY_INFO!C130) -> Kinango | D130: =IF(COUNTRY_INFO!$T$9:$T$1000="MDA1 (IVM+ALB)", COUNTRY_INFO!$T$9:$T$1000, " ") ->  | I130: 0 | M130: 0
A131: =IF(COUNTRY_INFO!A131=0," ",COUNTRY_INFO!A131) -> Kenya | B131: =IF(COUNTRY_INFO!B131=0," ",COUNTRY_INFO!B131) -> Kwale | C131: =IF(COUNTRY_INFO!C131=0," ",COUNTRY_INFO!C131) -> Lunga Lunga | D131: =IF(COUNTRY_INFO!$T$9:$T$1000="MDA1 (IVM+ALB)", COUNTRY_INFO!$T$9:$T$1000, " ") ->  | I131: 0 | M131: 0
A132: =IF(COUNTRY_INFO!A132=0," ",COUNTRY_INFO!A132) -> Kenya | B132: =IF(COUNTRY_INFO!B132=0," ",COUNTRY_INFO!B132) -> Kwale | C132: =IF(COUNTRY_INFO!C132=0," ",COUNTRY_INFO!C132) -> Matuga | D132: =IF(COUNTRY_INFO!$T$9:$T$1000="MDA1 (IVM+ALB)", COUNTRY_INFO!$T$9:$T$1000, " ") ->  | I132: 0 | M132: 0
A133: =IF(COUNTRY_INFO!A133=0," ",COUNTRY_INFO!A133) -> Kenya | B133: =IF(COUNTRY_INFO!B133=0," ",COUNTRY_INFO!B133) -> Kwale | C133: =IF(COUNTRY_INFO!C133=0," ",COUNTRY_INFO!C133) -> Msambweni | D133: =IF(COUNTRY_INFO!$T$9:$T$1000="MDA1 (IVM+ALB)", COUNTRY_INFO!$T$9:$T$1000, " ") ->  | I133: 0 | M133: 0
A134: =IF(COUNTRY_INFO!A134=0," ",COUNTRY_INFO!A134) -> Kenya | B134: =IF(COUNTRY_INFO!B134=0," ",COUNTRY_INFO!B134) -> Laikipia | C134: =IF(COUNTRY_INFO!C134=0," ",COUNTRY_INFO!C134) -> Laikipia East | D134: =IF(COUNTRY_INFO!$T$9:$T$1000="MDA1 (IVM+ALB)", COUNTRY_INFO!$T$9:$T$1000, " ") ->  | I134: 0 | M134: 0
A135: =IF(COUNTRY_INFO!A135=0," ",COUNTRY_INFO!A135) -> Kenya | B135: =IF(COUNTRY_INFO!B135=0," ",COUNTRY_INFO!B135) -> Laikipia | C135: =IF(COUNTRY_INFO!C135=0," ",COUNTRY_INFO!C135) -> Laikipia North | D135: =IF(COUNTRY_INFO!$T$9:$T$1000="MDA1 (IVM+ALB)", COUNTRY_INFO!$T$9:$T$1000, " ") ->  | I135: 0 | M135: 0
A136: =IF(COUNTRY_INFO!A136=0," ",COUNTRY_INFO!A136) -> Kenya | B136: =IF(COUNTRY_INFO!B136=0," ",COUNTRY_INFO!B136) -> Laikipia | C136: =IF(COUNTRY_INFO!C136=0," ",COUNTRY_INFO!C136) -> Laikipia West | D136: =IF(COUNTRY_INFO!$T$9:$T$1000="MDA1 (IVM+ALB)", COUNTRY_INFO!$T$9:$T$1000, " ") ->  | I136: 0 | M136: 0
A137: =IF(COUNTRY_INFO!A137=0," ",COUNTRY_INFO!A137) -> Kenya | B137: =IF(COUNTRY_INFO!B137=0," ",COUNTRY_INFO!B137) -> Lamu | C137: =IF(COUNTRY_INFO!C137=0," ",COUNTRY_INFO!C137) -> Lamu East | D137: =IF(COUNTRY_INFO!$T$9:$T$1000="MDA1 (IVM+ALB)", COUNTRY_INFO!$T$9:$T$1000, " ") ->  | I137: 0 | M137: 0
A138: =IF(COUNTRY_INFO!A138=0," ",COUNTRY_INFO!A138) -> Kenya | B138: =IF(COUNTRY_INFO!B138=0," ",COUNTRY_INFO!B138) -> Lamu | C138: =IF(COUNTRY_INFO!C138=0," ",COUNTRY_INFO!C138) -> Lamu West | D138: =IF(COUNTRY_INFO!$T$9:$T$1000="MDA1 (IVM+ALB)", COUNTRY_INFO!$T$9:$T$1000, " ") ->  | I138: =SUM(F138:H138) -> 0 | M138: =SUM(J138:L138) -> 0 | O138: =IF(G138<>0, IF(K138/G138*100=0, "-", K138/G138*100), " ") ->  | P138: =IF(H138<>0, IF(L138/H138*100=0, "-", L138/H138*100), " ") ->  | Q138: =IF(I138<>0, IF(M138/I138*100=0, "-", M138/I138*100), " ") -> 
A139: =IF(COUNTRY_INFO!A139=0," ",COUNTRY_INFO!A139) -> Kenya | B139: =IF(COUNTRY_INFO!B139=0," ",COUNTRY_INFO!B139) -> Machakos | C139: =IF(COUNTRY_INFO!C139=0," ",COUNTRY_INFO!C139) -> Kangundo | D139: =IF(COUNTRY_INFO!$T$9:$T$1000="MDA1 (IVM+ALB)", COUNTRY_INFO!$T$9:$T$1000, " ") ->  | I139: 0 | M139: 0
A140: =IF(COUNTRY_INFO!A140=0," ",COUNTRY_INFO!A140) -> Kenya | B140: =IF(COUNTRY_INFO!B140=0," ",COUNTRY_INFO!B140) -> Machakos | C140: =IF(COUNTRY_INFO!C140=0," ",COUNTRY_INFO!C140) -> Kathiani | D140: =IF(COUNTRY_INFO!$T$9:$T$1000="MDA1 (IVM+ALB)", COUNTRY_INFO!$T$9:$T$1000, " ") ->  | I140: 0 | M140: 0
A141: =IF(COUNTRY_INFO!A141=0," ",COUNTRY_INFO!A141) -> Kenya | B141: =IF(COUNTRY_INFO!B141=0," ",COUNTRY_INFO!B141) -> Machakos | C141: =IF(COUNTRY_INFO!C141=0," ",COUNTRY_INFO!C141) -> Machakos Town | D141: =IF(COUNTRY_INFO!$T$9:$T$1000="MDA1 (IVM+ALB)", COUNTRY_INFO!$T$9:$T$1000, " ") ->  | I141: 0 | M141: 0
A142: =IF(COUNTRY_INFO!A142=0," ",COUNTRY_INFO!A142) -> Kenya | B142: =IF(COUNTRY_INFO!B142=0," ",COUNTRY_INFO!B142) -> Machakos | C142: =IF(COUNTRY_INFO!C142=0," ",COUNTRY_INFO!C142) -> Masinga | D142: =IF(COUNTRY_INFO!$T$9:$T$1000="MDA1 (IVM+ALB)", COUNTRY_INFO!$T$9:$T$1000, " ") ->  | I142: 0 | M142: 0
A143: =IF(COUNTRY_INFO!A143=0," ",COUNTRY_INFO!A143) -> Kenya | B143: =IF(COUNTRY_INFO!B143=0," ",COUNTRY_INFO!B143) -> Machakos | C143: =IF(COUNTRY_INFO!C143=0," ",COUNTRY_INFO!C143) -> Matungulu | D143: =IF(COUNTRY_INFO!$T$9:$T$1000="MDA1 (IVM+ALB)", COUNTRY_INFO!$T$9:$T$1000, " ") ->  | I143: 0 | M143: 0
A144: =IF(COUNTRY_INFO!A144=0," ",COUNTRY_INFO!A144) -> Kenya | B144: =IF(COUNTRY_INFO!B144=0," ",COUNTRY_INFO!B144) -> Machakos | C144: =IF(COUNTRY_INFO!C144=0," ",COUNTRY_INFO!C144) -> Mavoko | D144: =IF(COUNTRY_INFO!$T$9:$T$1000="MDA1 (IVM+ALB)", COUNTRY_INFO!$T$9:$T$1000, " ") ->  | I144: 0 | M144: 0
A145: =IF(COUNTRY_INFO!A145=0," ",COUNTRY_INFO!A145) -> Kenya | B145: =IF(COUNTRY_INFO!B145=0," ",COUNTRY_INFO!B145) -> Machakos | C145: =IF(COUNTRY_INFO!C145=0," ",COUNTRY_INFO!C145) -> Mwala | D145: =IF(COUNTRY_INFO!$T$9:$T$1000="MDA1 (IVM+ALB)", COUNTRY_INFO!$T$9:$T$1000, " ") ->  | I145: 0 | M145: 0
A146: =IF(COUNTRY_INFO!A146=0," ",COUNTRY_INFO!A146) -> Kenya | B146: =IF(COUNTRY_INFO!B146=0," ",COUNTRY_INFO!B146) -> Machakos | C146: =IF(COUNTRY_INFO!C146=0," ",COUNTRY_INFO!C146) -> Yatta | D146: =IF(COUNTRY_INFO!$T$9:$T$1000="MDA1 (IVM+ALB)", COUNTRY_INFO!$T$9:$T$1000, " ") ->  | I146: 0 | M146: 0
A147: =IF(COUNTRY_INFO!A147=0," ",COUNTRY_INFO!A147) -> Kenya | B147: =IF(COUNTRY_INFO!B147=0," ",COUNTRY_INFO!B147) -> Makueni | C147: =IF(COUNTRY_INFO!C147=0," ",COUNTRY_INFO!C147) -> Kaiti | D147: =IF(COUNTRY_INFO!$T$9:$T$1000="MDA1 (IVM+ALB)", COUNTRY_INFO!$T$9:$T$1000, " ") ->  | I147: 0 | M147: 0
A148: =IF(COUNTRY_INFO!A148=0," ",COUNTRY_INFO!A148) -> Kenya | B148: =IF(COUNTRY_INFO!B148=0," ",COUNTRY_INFO!B148) -> Makueni | C148: =IF(COUNTRY_INFO!C148=0," ",COUNTRY_INFO!C148) -> Kibwezi East | D148: =IF(COUNTRY_INFO!$T$9:$T$1000="MDA1 (IVM+ALB)", COUNTRY_INFO!$T$9:$T$1000, " ") ->  | I148: 0 | M148: 0
A149: =IF(COUNTRY_INFO!A149=0," ",COUNTRY_INFO!A149) -> Kenya | B149: =IF(COUNTRY_INFO!B149=0," ",COUNTRY_INFO!B149) -> Makueni | C149: =IF(COUNTRY_INFO!C149=0," ",COUNTRY_INFO!C149) -> Kibwezi West | D149: =IF(COUNTRY_INFO!$T$9:$T$1000="MDA1 (IVM+ALB)", COUNTRY_INFO!$T$9:$T$1000, " ") ->  | I149: 0 | M149: 0
A150: =IF(COUNTRY_INFO!A150=0," ",COUNTRY_INFO!A150) -> Kenya | B150: =IF(COUNTRY_INFO!B150=0," ",COUNTRY_INFO!B150) -> Makueni | C150: =IF(COUNTRY_INFO!C150=0," ",COUNTRY_INFO!C150) -> Kilome | D150: =IF(COUNTRY_INFO!$T$9:$T$1000="MDA1 (IVM+ALB)", COUNTRY_INFO!$T$9:$T$1000, " ") ->  | I150: 0 | M150: 0
A151: =IF(COUNTRY_INFO!A151=0," ",COUNTRY_INFO!A151) -> Kenya | B151: =IF(COUNTRY_INFO!B151=0," ",COUNTRY_INFO!B151) -> Makueni | C151: =IF(COUNTRY_INFO!C151=0," ",COUNTRY_INFO!C151) -> Makueni | D151: =IF(COUNTRY_INFO!$T$9:$T$1000="MDA1 (IVM+ALB)", COUNTRY_INFO!$T$9:$T$1000, " ") ->  | I151: 0 | M151: 0
A152: =IF(COUNTRY_INFO!A152=0," ",COUNTRY_INFO!A152) -> Kenya | B152: =IF(COUNTRY_INFO!B152=0," ",COUNTRY_INFO!B152) -> Makueni | C152: =IF(COUNTRY_INFO!C152=0," ",COUNTRY_INFO!C152) -> Mbooni | D152: =IF(COUNTRY_INFO!$T$9:$T$1000="MDA1 (IVM+ALB)", COUNTRY_INFO!$T$9:$T$1000, " ") ->  | I152: 0 | M152: 0
A153: =IF(COUNTRY_INFO!A153=0," ",COUNTRY_INFO!A153) -> Kenya | B153: =IF(COUNTRY_INFO!B153=0," ",COUNTRY_INFO!B153) -> Mandera | C153: =IF(COUNTRY_INFO!C153=0," ",COUNTRY_INFO!C153) -> Banissa | D153: =IF(COUNTRY_INFO!$T$9:$T$1000="MDA1 (IVM+ALB)", COUNTRY_INFO!$T$9:$T$1000, " ") ->  | I153: 0 | M153: 0
A154: =IF(COUNTRY_INFO!A154=0," ",COUNTRY_INFO!A154) -> Kenya | B154: =IF(COUNTRY_INFO!B154=0," ",COUNTRY_INFO!B154) -> Mandera | C154: =IF(COUNTRY_INFO!C154=0," ",COUNTRY_INFO!C154) -> Lafey | D154: =IF(COUNTRY_INFO!$T$9:$T$1000="MDA1 (IVM+ALB)", COUNTRY_INFO!$T$9:$T$1000, " ") ->  | I154: 0 | M154: 0
A155: =IF(COUNTRY_INFO!A155=0," ",COUNTRY_INFO!A155) -> Kenya | B155: =IF(COUNTRY_INFO!B155=0," ",COUNTRY_INFO!B155) -> Mandera | C155: =IF(COUNTRY_INFO!C155=0," ",COUNTRY_INFO!C155) -> Mandera East | D155: =IF(COUNTRY_INFO!$T$9:$T$1000="MDA1 (IVM+ALB)", COUNTRY_INFO!$T$9:$T$1000, " ") ->  | I155: 0 | M155: 0
A156: =IF(COUNTRY_INFO!A156=0," ",COUNTRY_INFO!A156) -> Kenya | B156: =IF(COUNTRY_INFO!B156=0," ",COUNTRY_INFO!B156) -> Mandera | C156: =IF(COUNTRY_INFO!C156=0," ",COUNTRY_INFO!C156) -> Mandera North | D156: =IF(COUNTRY_INFO!$T$9:$T$1000="MDA1 (IVM+ALB)", COUNTRY_INFO!$T$9:$T$1000, " ") ->  | I156: 0 | M156: 0
A157: =IF(COUNTRY_INFO!A157=0," ",COUNTRY_INFO!A157) -> Kenya | B157: =IF(COUNTRY_INFO!B157=0," ",COUNTRY_INFO!B157) -> Mandera | C157: =IF(COUNTRY_INFO!C157=0," ",COUNTRY_INFO!C157) -> Mandera South | D157: =IF(COUNTRY_INFO!$T$9:$T$1000="MDA1 (IVM+ALB)", COUNTRY_INFO!$T$9:$T$1000, " ") ->  | I157: 0 | M157: 0
A158: =IF(COUNTRY_INFO!A158=0," ",COUNTRY_INFO!A158) -> Kenya | B158: =IF(COUNTRY_INFO!B158=0," ",COUNTRY_INFO!B158) -> Mandera | C158: =IF(COUNTRY_INFO!C158=0," ",COUNTRY_INFO!C158) -> Mandera West | D158: =IF(COUNTRY_INFO!$T$9:$T$1000="MDA1 (IVM+ALB)", COUNTRY_INFO!$T$9:$T$1000, " ") ->  | I158: 0 | M158: 0
A159: =IF(COUNTRY_INFO!A159=0," ",COUNTRY_INFO!A159) -> Kenya | B159: =IF(COUNTRY_INFO!B159=0," ",COUNTRY_INFO!B159) -> Marsabit | C159: =IF(COUNTRY_INFO!C159=0," ",COUNTRY_INFO!C159) -> Laisamis | D159: =IF(COUNTRY_INFO!$T$9:$T$1000="MDA1 (IVM+ALB)", COUNTRY_INFO!$T$9:$T$1000, " ") ->  | I159: 0 | M159: 0
A160: =IF(COUNTRY_INFO!A160=0," ",COUNTRY_INFO!A160) -> Kenya | B160: =IF(COUNTRY_INFO!B160=0," ",COUNTRY_INFO!B160) -> Marsabit | C160: =IF(COUNTRY_INFO!C160=0," ",COUNTRY_INFO!C160) -> Moyale | D160: =IF(COUNTRY_INFO!$T$9:$T$1000="MDA1 (IVM+ALB)", COUNTRY_INFO!$T$9:$T$1000, " ") ->  | I160: 0 | M160: 0
A161: =IF(COUNTRY_INFO!A161=0," ",COUNTRY_INFO!A161) -> Kenya | B161: =IF(COUNTRY_INFO!B161=0," ",COUNTRY_INFO!B161) -> Marsabit | C161: =IF(COUNTRY_INFO!C161=0," ",COUNTRY_INFO!C161) -> North Horr | D161: =IF(COUNTRY_INFO!$T$9:$T$1000="MDA1 (IVM+ALB)", COUNTRY_INFO!$T$9:$T$1000, " ") ->  | I161: 0 | M161: 0
A162: =IF(COUNTRY_INFO!A162=0," ",COUNTRY_INFO!A162) -> Kenya | B162: =IF(COUNTRY_INFO!B162=0," ",COUNTRY_INFO!B162) -> Marsabit | C162: =IF(COUNTRY_INFO!C162=0," ",COUNTRY_INFO!C162) -> Saku | D162: =IF(COUNTRY_INFO!$T$9:$T$1000="MDA1 (IVM+ALB)", COUNTRY_INFO!$T$9:$T$1000, " ") ->  | I162: 0 | M162: 0
A163: =IF(COUNTRY_INFO!A163=0," ",COUNTRY_INFO!A163) -> Kenya | B163: =IF(COUNTRY_INFO!B163=0," ",COUNTRY_INFO!B163) -> Meru | C163: =IF(COUNTRY_INFO!C163=0," ",COUNTRY_INFO!C163) -> Buuri | D163: =IF(COUNTRY_INFO!$T$9:$T$1000="MDA1 (IVM+ALB)", COUNTRY_INFO!$T$9:$T$1000, " ") ->  | I163: 0 | M163: 0
A164: =IF(COUNTRY_INFO!A164=0," ",COUNTRY_INFO!A164) -> Kenya | B164: =IF(COUNTRY_INFO!B164=0," ",COUNTRY_INFO!B164) -> Meru | C164: =IF(COUNTRY_INFO!C164=0," ",COUNTRY_INFO!C164) -> Central Imenti | D164: =IF(COUNTRY_INFO!$T$9:$T$1000="MDA1 (IVM+ALB)", COUNTRY_INFO!$T$9:$T$1000, " ") ->  | I164: 0 | M164: 0
A165: =IF(COUNTRY_INFO!A165=0," ",COUNTRY_INFO!A165) -> Kenya | B165: =IF(COUNTRY_INFO!B165=0," ",COUNTRY_INFO!B165) -> Meru | C165: =IF(COUNTRY_INFO!C165=0," ",COUNTRY_INFO!C165) -> Igembe Central | D165: =IF(COUNTRY_INFO!$T$9:$T$1000="MDA1 (IVM+ALB)", COUNTRY_INFO!$T$9:$T$1000, " ") ->  | I165: 0 | M165: 0
A166: =IF(COUNTRY_INFO!A166=0," ",COUNTRY_INFO!A166) -> Kenya | B166: =IF(COUNTRY_INFO!B166=0," ",COUNTRY_INFO!B166) -> Meru | C166: =IF(COUNTRY_INFO!C166=0," ",COUNTRY_INFO!C166) -> Igembe North | D166: =IF(COUNTRY_INFO!$T$9:$T$1000="MDA1 (IVM+ALB)", COUNTRY_INFO!$T$9:$T$1000, " ") ->  | I166: 0 | M166: 0
A167: =IF(COUNTRY_INFO!A167=0," ",COUNTRY_INFO!A167) -> Kenya | B167: =IF(COUNTRY_INFO!B167=0," ",COUNTRY_INFO!B167) -> Meru | C167: =IF(COUNTRY_INFO!C167=0," ",COUNTRY_INFO!C167) -> Igembe South | D167: =IF(COUNTRY_INFO!$T$9:$T$1000="MDA1 (IVM+ALB)", COUNTRY_INFO!$T$9:$T$1000, " ") ->  | I167: 0 | M167: 0
A168: =IF(COUNTRY_INFO!A168=0," ",COUNTRY_INFO!A168) -> Kenya | B168: =IF(COUNTRY_INFO!B168=0," ",COUNTRY_INFO!B168) -> Meru | C168: =IF(COUNTRY_INFO!C168=0," ",COUNTRY_INFO!C168) -> North Imenti | D168: =IF(COUNTRY_INFO!$T$9:$T$1000="MDA1 (IVM+ALB)", COUNTRY_INFO!$T$9:$T$1000, " ") ->  | I168: 0 | M168: 0
A169: =IF(COUNTRY_INFO!A169=0," ",COUNTRY_INFO!A169) -> Kenya | B169: =IF(COUNTRY_INFO!B169=0," ",COUNTRY_INFO!B169) -> Meru | C169: =IF(COUNTRY_INFO!C169=0," ",COUNTRY_INFO!C169) -> South Imenti | D169: =IF(COUNTRY_INFO!$T$9:$T$1000="MDA1 (IVM+ALB)", COUNTRY_INFO!$T$9:$T$1000, " ") ->  | I169: 0 | M169: 0
A170: =IF(COUNTRY_INFO!A170=0," ",COUNTRY_INFO!A170) -> Kenya | B170: =IF(COUNTRY_INFO!B170=0," ",COUNTRY_INFO!B170) -> Meru | C170: =IF(COUNTRY_INFO!C170=0," ",COUNTRY_INFO!C170) -> Tigania East | D170: =IF(COUNTRY_INFO!$T$9:$T$1000="MDA1 (IVM+ALB)", COUNTRY_INFO!$T$9:$T$1000, " ") ->  | I170: 0 | M170: 0
A171: =IF(COUNTRY_INFO!A171=0," ",COUNTRY_INFO!A171) -> Kenya | B171: =IF(COUNTRY_INFO!B171=0," ",COUNTRY_INFO!B171) -> Meru | C171: =IF(COUNTRY_INFO!C171=0," ",COUNTRY_INFO!C171) -> Tigania West | D171: =IF(COUNTRY_INFO!$T$9:$T$1000="MDA1 (IVM+ALB)", COUNTRY_INFO!$T$9:$T$1000, " ") ->  | I171: 0 | M171: 0
A172: =IF(COUNTRY_INFO!A172=0," ",COUNTRY_INFO!A172) -> Kenya | B172: =IF(COUNTRY_INFO!B172=0," ",COUNTRY_INFO!B172) -> Migori | C172: =IF(COUNTRY_INFO!C172=0," ",COUNTRY_INFO!C172) -> Awendo | D172: =IF(COUNTRY_INFO!$T$9:$T$1000="MDA1 (IVM+ALB)", COUNTRY_INFO!$T$9:$T$1000, " ") ->  | I172: 0 | M172: 0
A173: =IF(COUNTRY_INFO!A173=0," ",COUNTRY_INFO!A173) -> Kenya | B173: =IF(COUNTRY_INFO!B173=0," ",COUNTRY_INFO!B173) -> Migori | C173: =IF(COUNTRY_INFO!C173=0," ",COUNTRY_INFO!C173) -> Kuria East | D173: =IF(COUNTRY_INFO!$T$9:$T$1000="MDA1 (IVM+ALB)", COUNTRY_INFO!$T$9:$T$1000, " ") ->  | I173: 0 | M173: 0
A174: =IF(COUNTRY_INFO!A174=0," ",COUNTRY_INFO!A174) -> Kenya | B174: =IF(COUNTRY_INFO!B174=0," ",COUNTRY_INFO!B174) -> Migori | C174: =IF(COUNTRY_INFO!C174=0," ",COUNTRY_INFO!C174) -> Kuria West | D174: =IF(COUNTRY_INFO!$T$9:$T$1000="MDA1 (IVM+ALB)", COUNTRY_INFO!$T$9:$T$1000, " ") ->  | I174: 0 | M174: 0
A175: =IF(COUNTRY_INFO!A175=0," ",COUNTRY_INFO!A175) -> Kenya | B175: =IF(COUNTRY_INFO!B175=0," ",COUNTRY_INFO!B175) -> Migori | C175: =IF(COUNTRY_INFO!C175=0," ",COUNTRY_INFO!C175) -> Nyatike | D175: =IF(COUNTRY_INFO!$T$9:$T$1000="MDA1 (IVM+ALB)", COUNTRY_INFO!$T$9:$T$1000, " ") ->  | I175: 0 | M175: 0
A176: =IF(COUNTRY_INFO!A176=0," ",COUNTRY_INFO!A176) -> Kenya | B176: =IF(COUNTRY_INFO!B176=0," ",COUNTRY_INFO!B176) -> Migori | C176: =IF(COUNTRY_INFO!C176=0," ",COUNTRY_INFO!C176) -> Rongo | D176: =IF(COUNTRY_INFO!$T$9:$T$1000="MDA1 (IVM+ALB)", COUNTRY_INFO!$T$9:$T$1000, " ") ->  | I176: 0 | M176: 0
A177: =IF(COUNTRY_INFO!A177=0," ",COUNTRY_INFO!A177) -> Kenya | B177: =IF(COUNTRY_INFO!B177=0," ",COUNTRY_INFO!B177) -> Migori | C177: =IF(COUNTRY_INFO!C177=0," ",COUNTRY_INFO!C177) -> Suna East | D177: =IF(COUNTRY_INFO!$T$9:$T$1000="MDA1 (IVM+ALB)", COUNTRY_INFO!$T$9:$T$1000, " ") ->  | I177: 0 | M177: 0
A178: =IF(COUNTRY_INFO!A178=0," ",COUNTRY_INFO!A178) -> Kenya | B178: =IF(COUNTRY_INFO!B178=0," ",COUNTRY_INFO!B178) -> Migori | C178: =IF(COUNTRY_INFO!C178=0," ",COUNTRY_INFO!C178) -> Suna West | D178: =IF(COUNTRY_INFO!$T$9:$T$1000="MDA1 (IVM+ALB)", COUNTRY_INFO!$T$9:$T$1000, " ") ->  | I178: 0 | M178: 0
A179: =IF(COUNTRY_INFO!A179=0," ",COUNTRY_INFO!A179) -> Kenya | B179: =IF(COUNTRY_INFO!B179=0," ",COUNTRY_INFO!B179) -> Migori | C179: =IF(COUNTRY_INFO!C179=0," ",COUNTRY_INFO!C179) -> Uriri | D179: =IF(COUNTRY_INFO!$T$9:$T$1000="MDA1 (IVM+ALB)", COUNTRY_INFO!$T$9:$T$1000, " ") ->  | I179: 0 | M179: 0
A180: =IF(COUNTRY_INFO!A180=0," ",COUNTRY_INFO!A180) -> Kenya | B180: =IF(COUNTRY_INFO!B180=0," ",COUNTRY_INFO!B180) -> Mombasa | C180: =IF(COUNTRY_INFO!C180=0," ",COUNTRY_INFO!C180) -> Changamwe | D180: =IF(COUNTRY_INFO!$T$9:$T$1000="MDA1 (IVM+ALB)", COUNTRY_INFO!$T$9:$T$1000, " ") ->  | I180: 0 | M180: 0
A181: =IF(COUNTRY_INFO!A181=0," ",COUNTRY_INFO!A181) -> Kenya | B181: =IF(COUNTRY_INFO!B181=0," ",COUNTRY_INFO!B181) -> Mombasa | C181: =IF(COUNTRY_INFO!C181=0," ",COUNTRY_INFO!C181) -> Jomvu | D181: =IF(COUNTRY_INFO!$T$9:$T$1000="MDA1 (IVM+ALB)", COUNTRY_INFO!$T$9:$T$1000, " ") ->  | I181: 0 | M181: 0
A182: =IF(COUNTRY_INFO!A182=0," ",COUNTRY_INFO!A182) -> Kenya | B182: =IF(COUNTRY_INFO!B182=0," ",COUNTRY_INFO!B182) -> Mombasa | C182: =IF(COUNTRY_INFO!C182=0," ",COUNTRY_INFO!C182) -> Kisauni | D182: =IF(COUNTRY_INFO!$T$9:$T$1000="MDA1 (IVM+ALB)", COUNTRY_INFO!$T$9:$T$1000, " ") ->  | I182: 0 | M182: 0
A183: =IF(COUNTRY_INFO!A183=0," ",COUNTRY_INFO!A183) -> Kenya | B183: =IF(COUNTRY_INFO!B183=0," ",COUNTRY_INFO!B183) -> Mombasa | C183: =IF(COUNTRY_INFO!C183=0," ",COUNTRY_INFO!C183) -> Likoni | D183: =IF(COUNTRY_INFO!$T$9:$T$1000="MDA1 (IVM+ALB)", COUNTRY_INFO!$T$9:$T$1000, " ") ->  | I183: 0 | M183: 0
A184: =IF(COUNTRY_INFO!A184=0," ",COUNTRY_INFO!A184) -> Kenya | B184: =IF(COUNTRY_INFO!B184=0," ",COUNTRY_INFO!B184) -> Mombasa | C184: =IF(COUNTRY_INFO!C184=0," ",COUNTRY_INFO!C184) -> Mvita | D184: =IF(COUNTRY_INFO!$T$9:$T$1000="MDA1 (IVM+ALB)", COUNTRY_INFO!$T$9:$T$1000, " ") ->  | I184: 0 | M184: 0
A185: =IF(COUNTRY_INFO!A185=0," ",COUNTRY_INFO!A185) -> Kenya | B185: =IF(COUNTRY_INFO!B185=0," ",COUNTRY_INFO!B185) -> Mombasa | C185: =IF(COUNTRY_INFO!C185=0," ",COUNTRY_INFO!C185) -> Nyali | D185: =IF(COUNTRY_INFO!$T$9:$T$1000="MDA1 (IVM+ALB)", COUNTRY_INFO!$T$9:$T$1000, " ") ->  | I185: 0 | M185: 0
A186: =IF(COUNTRY_INFO!A186=0," ",COUNTRY_INFO!A186) -> Kenya | B186: =IF(COUNTRY_INFO!B186=0," ",COUNTRY_INFO!B186) -> Murang’a | C186: =IF(COUNTRY_INFO!C186=0," ",COUNTRY_INFO!C186) -> Gatanga | D186: =IF(COUNTRY_INFO!$T$9:$T$1000="MDA1 (IVM+ALB)", COUNTRY_INFO!$T$9:$T$1000, " ") ->  | I186: 0 | M186: 0
A187: =IF(COUNTRY_INFO!A187=0," ",COUNTRY_INFO!A187) -> Kenya | B187: =IF(COUNTRY_INFO!B187=0," ",COUNTRY_INFO!B187) -> Murang’a | C187: =IF(COUNTRY_INFO!C187=0," ",COUNTRY_INFO!C187) -> Kandara | D187: =IF(COUNTRY_INFO!$T$9:$T$1000="MDA1 (IVM+ALB)", COUNTRY_INFO!$T$9:$T$1000, " ") ->  | I187: 0 | M187: 0
A188: =IF(COUNTRY_INFO!A188=0," ",COUNTRY_INFO!A188) -> Kenya | B188: =IF(COUNTRY_INFO!B188=0," ",COUNTRY_INFO!B188) -> Murang’a | C188: =IF(COUNTRY_INFO!C188=0," ",COUNTRY_INFO!C188) -> Kangema | D188: =IF(COUNTRY_INFO!$T$9:$T$1000="MDA1 (IVM+ALB)", COUNTRY_INFO!$T$9:$T$1000, " ") ->  | I188: 0 | M188: 0
A189: =IF(COUNTRY_INFO!A189=0," ",COUNTRY_INFO!A189) -> Kenya | B189: =IF(COUNTRY_INFO!B189=0," ",COUNTRY_INFO!B189) -> Murang’a | C189: =IF(COUNTRY_INFO!C189=0," ",COUNTRY_INFO!C189) -> Kigumo | D189: =IF(COUNTRY_INFO!$T$9:$T$1000="MDA1 (IVM+ALB)", COUNTRY_INFO!$T$9:$T$1000, " ") ->  | I189: 0 | M189: 0
A190: =IF(COUNTRY_INFO!A190=0," ",COUNTRY_INFO!A190) -> Kenya | B190: =IF(COUNTRY_INFO!B190=0," ",COUNTRY_INFO!B190) -> Murang’a | C190: =IF(COUNTRY_INFO!C190=0," ",COUNTRY_INFO!C190) -> Kiharu | D190: =IF(COUNTRY_INFO!$T$9:$T$1000="MDA1 (IVM+ALB)", COUNTRY_INFO!$T$9:$T$1000, " ") ->  | I190: 0 | M190: 0
A191: =IF(COUNTRY_INFO!A191=0," ",COUNTRY_INFO!A191) -> Kenya | B191: =IF(COUNTRY_INFO!B191=0," ",COUNTRY_INFO!B191) -> Murang’a | C191: =IF(COUNTRY_INFO!C191=0," ",COUNTRY_INFO!C191) -> Maragwa | D191: =IF(COUNTRY_INFO!$T$9:$T$1000="MDA1 (IVM+ALB)", COUNTRY_INFO!$T$9:$T$1000, " ") ->  | I191: 0 | M191: 0
A192: =IF(COUNTRY_INFO!A192=0," ",COUNTRY_INFO!A192) -> Kenya | B192: =IF(COUNTRY_INFO!B192=0," ",COUNTRY_INFO!B192) -> Murang’a | C192: =IF(COUNTRY_INFO!C192=0," ",COUNTRY_INFO!C192) -> Mathioya | D192: =IF(COUNTRY_INFO!$T$9:$T$1000="MDA1 (IVM+ALB)", COUNTRY_INFO!$T$9:$T$1000, " ") ->  | I192: 0 | M192: 0
A193: =IF(COUNTRY_INFO!A193=0," ",COUNTRY_INFO!A193) -> Kenya | B193: =IF(COUNTRY_INFO!B193=0," ",COUNTRY_INFO!B193) -> Nairobi | C193: =IF(COUNTRY_INFO!C193=0," ",COUNTRY_INFO!C193) -> Dagoretti North | D193: =IF(COUNTRY_INFO!$T$9:$T$1000="MDA1 (IVM+ALB)", COUNTRY_INFO!$T$9:$T$1000, " ") ->  | I193: 0 | M193: 0
A194: =IF(COUNTRY_INFO!A194=0," ",COUNTRY_INFO!A194) -> Kenya | B194: =IF(COUNTRY_INFO!B194=0," ",COUNTRY_INFO!B194) -> Nairobi | C194: =IF(COUNTRY_INFO!C194=0," ",COUNTRY_INFO!C194) -> Dagoretti South | D194: =IF(COUNTRY_INFO!$T$9:$T$1000="MDA1 (IVM+ALB)", COUNTRY_INFO!$T$9:$T$1000, " ") ->  | I194: 0 | M194: 0
A195: =IF(COUNTRY_INFO!A195=0," ",COUNTRY_INFO!A195) -> Kenya | B195: =IF(COUNTRY_INFO!B195=0," ",COUNTRY_INFO!B195) -> Nairobi | C195: =IF(COUNTRY_INFO!C195=0," ",COUNTRY_INFO!C195) -> Embakasi Central | D195: =IF(COUNTRY_INFO!$T$9:$T$1000="MDA1 (IVM+ALB)", COUNTRY_INFO!$T$9:$T$1000, " ") ->  | I195: 0 | M195: 0
A196: =IF(COUNTRY_INFO!A196=0," ",COUNTRY_INFO!A196) -> Kenya | B196: =IF(COUNTRY_INFO!B196=0," ",COUNTRY_INFO!B196) -> Nairobi | C196: =IF(COUNTRY_INFO!C196=0," ",COUNTRY_INFO!C196) -> Embakasi East | D196: =IF(COUNTRY_INFO!$T$9:$T$1000="MDA1 (IVM+ALB)", COUNTRY_INFO!$T$9:$T$1000, " ") ->  | I196: 0 | M196: 0
A197: =IF(COUNTRY_INFO!A197=0," ",COUNTRY_INFO!A197) -> Kenya | B197: =IF(COUNTRY_INFO!B197=0," ",COUNTRY_INFO!B197) -> Nairobi | C197: =IF(COUNTRY_INFO!C197=0," ",COUNTRY_INFO!C197) -> Embakasi North | D197: =IF(COUNTRY_INFO!$T$9:$T$1000="MDA1 (IVM+ALB)", COUNTRY_INFO!$T$9:$T$1000, " ") ->  | I197: 0 | M197: 0
A198: =IF(COUNTRY_INFO!A198=0," ",COUNTRY_INFO!A198) -> Kenya | B198: =IF(COUNTRY_INFO!B198=0," ",COUNTRY_INFO!B198) -> Nairobi | C198: =IF(COUNTRY_INFO!C198=0," ",COUNTRY_INFO!C198) -> Embakasi South | D198: =IF(COUNTRY_INFO!$T$9:$T$1000="MDA1 (IVM+ALB)", COUNTRY_INFO!$T$9:$T$1000, " ") ->  | I198: 0 | M198: 0
A199: =IF(COUNTRY_INFO!A199=0," ",COUNTRY_INFO!A199) -> Kenya | B199: =IF(COUNTRY_INFO!B199=0," ",COUNTRY_INFO!B199) -> Nairobi | C199: =IF(COUNTRY_INFO!C199=0," ",COUNTRY_INFO!C199) -> Embakasi West | D199: =IF(COUNTRY_INFO!$T$9:$T$1000="MDA1 (IVM+ALB)", COUNTRY_INFO!$T$9:$T$1000, " ") ->  | I199: 0 | M199: 0
A200: =IF(COUNTRY_INFO!A200=0," ",COUNTRY_INFO!A200) -> Kenya | B200: =IF(COUNTRY_INFO!B200=0," ",COUNTRY_INFO!B200) -> Nairobi | C200: =IF(COUNTRY_INFO!C200=0," ",COUNTRY_INFO!C200) -> Kamukunji | D200: =IF(COUNTRY_INFO!$T$9:$T$1000="MDA1 (IVM+ALB)", COUNTRY_INFO!$T$9:$T$1000, " ") ->  | I200: 0 | M200: 0
A201: =IF(COUNTRY_INFO!A201=0," ",COUNTRY_INFO!A201) -> Kenya | B201: =IF(COUNTRY_INFO!B201=0," ",COUNTRY_INFO!B201) -> Nairobi | C201: =IF(COUNTRY_INFO!C201=0," ",COUNTRY_INFO!C201) -> Kasarani | D201: =IF(COUNTRY_INFO!$T$9:$T$1000="MDA1 (IVM+ALB)", COUNTRY_INFO!$T$9:$T$1000, " ") ->  | I201: 0 | M201: 0
A202: =IF(COUNTRY_INFO!A202=0," ",COUNTRY_INFO!A202) -> Kenya | B202: =IF(COUNTRY_INFO!B202=0," ",COUNTRY_INFO!B202) -> Nairobi | C202: =IF(COUNTRY_INFO!C202=0," ",COUNTRY_INFO!C202) -> Kibra | D202: =IF(COUNTRY_INFO!$T$9:$T$1000="MDA1 (IVM+ALB)", COUNTRY_INFO!$T$9:$T$1000, " ") ->  | I202: =SUM(F202:H202) -> 0 | M202: =SUM(J202:L202) -> 0 | O202: =IF(G202<>0, IF(K202/G202*100=0, "-", K202/G202*100), " ") ->  | P202: =IF(H202<>0, IF(L202/H202*100=0, "-", L202/H202*100), " ") ->  | Q202: =IF(I202<>0, IF(M202/I202*100=0, "-", M202/I202*100), " ") -> 
A203: =IF(COUNTRY_INFO!A203=0," ",COUNTRY_INFO!A203) -> Kenya | B203: =IF(COUNTRY_INFO!B203=0," ",COUNTRY_INFO!B203) -> Nairobi | C203: =IF(COUNTRY_INFO!C203=0," ",COUNTRY_INFO!C203) -> Langata | D203: =IF(COUNTRY_INFO!$T$9:$T$1000="MDA1 (IVM+ALB)", COUNTRY_INFO!$T$9:$T$1000, " ") ->  | I203: 0 | M203: 0
... 95 more rows

Sheet MDA2
A1: MDA 2 - Diethylcarbamazine citrate (DEC) + Albendazole (ALB)
A2: Administrative structure, population requiring PC by age group, population treated by age group and coverage
A4: TOTAL | F4: =SUM(F$9:F$1000) -> 585414 | G4: =SUM(G$9:G$1000) -> 1092773 | H4: 2087977 | I4: 3766164 | J4: 415985 | K4: 1305685 | L4: 1743437 | M4: 3465107 | N4: =IF(F4<>0, IF(J4/F4*100=0, "-", J4/F4*100), " ") -> 71.05825962 | O4: =IF(G4<>0, IF(K4/G4*100=0, "-", K4/G4*100), " ") -> 119.4836439 | P4: =IF(H4<>0, IF(L4/H4*100=0, "-", L4/H4*100), " ") -> 83.49886038 | Q4: =IF(I4<>0, IF(M4/I4*100=0, "-", M4/I4*100), " ") -> 92.00626951
D6: PC implemented | E6: Date | F6: Population targeted for MDA 2 | J6: Population treated | N6: Programme coverage (%)
A7: Country | B7: Province/State | C7: District | F7: PreSAC | G7: SAC | H7: Adults | I7: Total | J7: PreSAC | K7: SAC | L7: Adults | M7: Total | N7: PreSAC | O7: SAC | P7: Adults | Q7: Total
A9: =IF(COUNTRY_INFO!A9=0," ",COUNTRY_INFO!A9) -> Kenya | B9: =IF(COUNTRY_INFO!B9=0," ",COUNTRY_INFO!B9) -> Baringo | C9: =IF(COUNTRY_INFO!C9=0," ",COUNTRY_INFO!C9) -> Baringo Central | D9: =IF(COUNTRY_INFO!$T$9:$T$1000="MDA2 (DEC+ALB)", COUNTRY_INFO!$T$9:$T$1000, " ") ->  | I9: =SUM(F9:H9) -> 0 | M9: =SUM(J9:L9) -> 0 | N9: =IF(F9<>0, IF(J9/F9*100=0, "-", J9/F9*100), " ") -> 
A10: =IF(COUNTRY_INFO!A10=0," ",COUNTRY_INFO!A10) -> Kenya | B10: =IF(COUNTRY_INFO!B10=0," ",COUNTRY_INFO!B10) -> Baringo | C10: =IF(COUNTRY_INFO!C10=0," ",COUNTRY_INFO!C10) -> Baringo North | D10: =IF(COUNTRY_INFO!$T$9:$T$1000="MDA2 (DEC+ALB)", COUNTRY_INFO!$T$9:$T$1000, " ") ->  | I10: =SUM(F10:H10) -> 0 | M10: =SUM(J10:L10) -> 0 | N10: =IF(F10<>0, IF(J10/F10*100=0, "-", J10/F10*100), " ") ->  | O10: =IF(G10<>0, IF(K10/G10*100=0, "-", K10/G10*100), " ") ->  | P10: =IF(H10<>0, IF(L10/H10*100=0, "-", L10/H10*100), " ") ->  | Q10: =IF(I10<>0, IF(M10/I10*100=0, "-", M10/I10*100), " ") -> 
A11: =IF(COUNTRY_INFO!A11=0," ",COUNTRY_INFO!A11) -> Kenya | B11: =IF(COUNTRY_INFO!B11=0," ",COUNTRY_INFO!B11) -> Baringo | C11: =IF(COUNTRY_INFO!C11=0," ",COUNTRY_INFO!C11) -> Baringo South | D11: =IF(COUNTRY_INFO!$T$9:$T$1000="MDA2 (DEC+ALB)", COUNTRY_INFO!$T$9:$T$1000, " ") ->  | I11: 0 | M11: 0
A12: =IF(COUNTRY_INFO!A12=0," ",COUNTRY_INFO!A12) -> Kenya | B12: =IF(COUNTRY_INFO!B12=0," ",COUNTRY_INFO!B12) -> Baringo | C12: =IF(COUNTRY_INFO!C12=0," ",COUNTRY_INFO!C12) -> Eldama Ravine | D12: =IF(COUNTRY_INFO!$T$9:$T$1000="MDA2 (DEC+ALB)", COUNTRY_INFO!$T$9:$T$1000, " ") ->  | I12: 0 | M12: 0
A13: =IF(COUNTRY_INFO!A13=0," ",COUNTRY_INFO!A13) -> Kenya | B13: =IF(COUNTRY_INFO!B13=0," ",COUNTRY_INFO!B13) -> Baringo | C13: =IF(COUNTRY_INFO!C13=0," ",COUNTRY_INFO!C13) -> Mogotio | D13: =IF(COUNTRY_INFO!$T$9:$T$1000="MDA2 (DEC+ALB)", COUNTRY_INFO!$T$9:$T$1000, " ") ->  | I13: 0 | M13: 0
A14: =IF(COUNTRY_INFO!A14=0," ",COUNTRY_INFO!A14) -> Kenya | B14: =IF(COUNTRY_INFO!B14=0," ",COUNTRY_INFO!B14) -> Baringo | C14: =IF(COUNTRY_INFO!C14=0," ",COUNTRY_INFO!C14) -> Tiaty | D14: =IF(COUNTRY_INFO!$T$9:$T$1000="MDA2 (DEC+ALB)", COUNTRY_INFO!$T$9:$T$1000, " ") ->  | I14: 0 | M14: 0
A15: =IF(COUNTRY_INFO!A15=0," ",COUNTRY_INFO!A15) -> Kenya | B15: =IF(COUNTRY_INFO!B15=0," ",COUNTRY_INFO!B15) -> Bomet | C15: =IF(COUNTRY_INFO!C15=0," ",COUNTRY_INFO!C15) -> Bomet Central | D15: =IF(COUNTRY_INFO!$T$9:$T$1000="MDA2 (DEC+ALB)", COUNTRY_INFO!$T$9:$T$1000, " ") ->  | I15: 0 | M15: 0
A16: =IF(COUNTRY_INFO!A16=0," ",COUNTRY_INFO!A16) -> Kenya | B16: =IF(COUNTRY_INFO!B16=0," ",COUNTRY_INFO!B16) -> Bomet | C16: =IF(COUNTRY_INFO!C16=0," ",COUNTRY_INFO!C16) -> Bomet East | D16: =IF(COUNTRY_INFO!$T$9:$T$1000="MDA2 (DEC+ALB)", COUNTRY_INFO!$T$9:$T$1000, " ") ->  | I16: 0 | M16: 0
A17: =IF(COUNTRY_INFO!A17=0," ",COUNTRY_INFO!A17) -> Kenya | B17: =IF(COUNTRY_INFO!B17=0," ",COUNTRY_INFO!B17) -> Bomet | C17: =IF(COUNTRY_INFO!C17=0," ",COUNTRY_INFO!C17) -> Chepalungu | D17: =IF(COUNTRY_INFO!$T$9:$T$1000="MDA2 (DEC+ALB)", COUNTRY_INFO!$T$9:$T$1000, " ") ->  | I17: 0 | M17: 0
A18: =IF(COUNTRY_INFO!A18=0," ",COUNTRY_INFO!A18) -> Kenya | B18: =IF(COUNTRY_INFO!B18=0," ",COUNTRY_INFO!B18) -> Bomet | C18: =IF(COUNTRY_INFO!C18=0," ",COUNTRY_INFO!C18) -> Konoin | D18: =IF(COUNTRY_INFO!$T$9:$T$1000="MDA2 (DEC+ALB)", COUNTRY_INFO!$T$9:$T$1000, " ") ->  | I18: 0 | M18: 0
A19: =IF(COUNTRY_INFO!A19=0," ",COUNTRY_INFO!A19) -> Kenya | B19: =IF(COUNTRY_INFO!B19=0," ",COUNTRY_INFO!B19) -> Bomet | C19: =IF(COUNTRY_INFO!C19=0," ",COUNTRY_INFO!C19) -> Sotik | D19: =IF(COUNTRY_INFO!$T$9:$T$1000="MDA2 (DEC+ALB)", COUNTRY_INFO!$T$9:$T$1000, " ") ->  | I19: 0 | M19: 0
A20: =IF(COUNTRY_INFO!A20=0," ",COUNTRY_INFO!A20) -> Kenya | B20: =IF(COUNTRY_INFO!B20=0," ",COUNTRY_INFO!B20) -> Bungoma | C20: =IF(COUNTRY_INFO!C20=0," ",COUNTRY_INFO!C20) -> Bumula | D20: =IF(COUNTRY_INFO!$T$9:$T$1000="MDA2 (DEC+ALB)", COUNTRY_INFO!$T$9:$T$1000, " ") ->  | I20: 0 | M20: 0
A21: =IF(COUNTRY_INFO!A21=0," ",COUNTRY_INFO!A21) -> Kenya | B21: =IF(COUNTRY_INFO!B21=0," ",COUNTRY_INFO!B21) -> Bungoma | C21: =IF(COUNTRY_INFO!C21=0," ",COUNTRY_INFO!C21) -> Kabucchai | D21: =IF(COUNTRY_INFO!$T$9:$T$1000="MDA2 (DEC+ALB)", COUNTRY_INFO!$T$9:$T$1000, " ") ->  | I21: 0 | M21: 0
A22: =IF(COUNTRY_INFO!A22=0," ",COUNTRY_INFO!A22) -> Kenya | B22: =IF(COUNTRY_INFO!B22=0," ",COUNTRY_INFO!B22) -> Bungoma | C22: =IF(COUNTRY_INFO!C22=0," ",COUNTRY_INFO!C22) -> Kanduyi | D22: =IF(COUNTRY_INFO!$T$9:$T$1000="MDA2 (DEC+ALB)", COUNTRY_INFO!$T$9:$T$1000, " ") ->  | I22: 0 | M22: 0
A23: =IF(COUNTRY_INFO!A23=0," ",COUNTRY_INFO!A23) -> Kenya | B23: =IF(COUNTRY_INFO!B23=0," ",COUNTRY_INFO!B23) -> Bungoma | C23: =IF(COUNTRY_INFO!C23=0," ",COUNTRY_INFO!C23) -> Kimilili | D23: =IF(COUNTRY_INFO!$T$9:$T$1000="MDA2 (DEC+ALB)", COUNTRY_INFO!$T$9:$T$1000, " ") ->  | I23: 0 | M23: 0
A24: =IF(COUNTRY_INFO!A24=0," ",COUNTRY_INFO!A24) -> Kenya | B24: =IF(COUNTRY_INFO!B24=0," ",COUNTRY_INFO!B24) -> Bungoma | C24: =IF(COUNTRY_INFO!C24=0," ",COUNTRY_INFO!C24) -> Mount Elgon | D24: =IF(COUNTRY_INFO!$T$9:$T$1000="MDA2 (DEC+ALB)", COUNTRY_INFO!$T$9:$T$1000, " ") ->  | I24: 0 | M24: 0
A25: =IF(COUNTRY_INFO!A25=0," ",COUNTRY_INFO!A25) -> Kenya | B25: =IF(COUNTRY_INFO!B25=0," ",COUNTRY_INFO!B25) -> Bungoma | C25: =IF(COUNTRY_INFO!C25=0," ",COUNTRY_INFO!C25) -> Sirisia | D25: =IF(COUNTRY_INFO!$T$9:$T$1000="MDA2 (DEC+ALB)", COUNTRY_INFO!$T$9:$T$1000, " ") ->  | I25: 0 | M25: 0
A26: =IF(COUNTRY_INFO!A26=0," ",COUNTRY_INFO!A26) -> Kenya | B26: =IF(COUNTRY_INFO!B26=0," ",COUNTRY_INFO!B26) -> Bungoma | C26: =IF(COUNTRY_INFO!C26=0," ",COUNTRY_INFO!C26) -> Tongaren | D26: =IF(COUNTRY_INFO!$T$9:$T$1000="MDA2 (DEC+ALB)", COUNTRY_INFO!$T$9:$T$1000, " ") ->  | I26: 0 | M26: 0
A27: =IF(COUNTRY_INFO!A27=0," ",COUNTRY_INFO!A27) -> Kenya | B27: =IF(COUNTRY_INFO!B27=0," ",COUNTRY_INFO!B27) -> Bungoma | C27: =IF(COUNTRY_INFO!C27=0," ",COUNTRY_INFO!C27) -> Webuye East | D27: =IF(COUNTRY_INFO!$T$9:$T$1000="MDA2 (DEC+ALB)", COUNTRY_INFO!$T$9:$T$1000, " ") ->  | I27: 0 | M27: 0
A28: =IF(COUNTRY_INFO!A28=0," ",COUNTRY_INFO!A28) -> Kenya | B28: =IF(COUNTRY_INFO!B28=0," ",COUNTRY_INFO!B28) -> Bungoma | C28: =IF(COUNTRY_INFO!C28=0," ",COUNTRY_INFO!C28) -> Webuye West | D28: =IF(COUNTRY_INFO!$T$9:$T$1000="MDA2 (DEC+ALB)", COUNTRY_INFO!$T$9:$T$1000, " ") ->  | I28: 0 | M28: 0
A29: =IF(COUNTRY_INFO!A29=0," ",COUNTRY_INFO!A29) -> Kenya | B29: =IF(COUNTRY_INFO!B29=0," ",COUNTRY_INFO!B29) -> Busia | C29: =IF(COUNTRY_INFO!C29=0," ",COUNTRY_INFO!C29) -> Budalangi | D29: =IF(COUNTRY_INFO!$T$9:$T$1000="MDA2 (DEC+ALB)", COUNTRY_INFO!$T$9:$T$1000, " ") ->  | I29: 0 | M29: 0
A30: =IF(COUNTRY_INFO!A30=0," ",COUNTRY_INFO!A30) -> Kenya | B30: =IF(COUNTRY_INFO!B30=0," ",COUNTRY_INFO!B30) -> Busia | C30: =IF(COUNTRY_INFO!C30=0," ",COUNTRY_INFO!C30) -> Butula | D30: =IF(COUNTRY_INFO!$T$9:$T$1000="MDA2 (DEC+ALB)", COUNTRY_INFO!$T$9:$T$1000, " ") ->  | I30: 0 | M30: 0
A31: =IF(COUNTRY_INFO!A31=0," ",COUNTRY_INFO!A31) -> Kenya | B31: =IF(COUNTRY_INFO!B31=0," ",COUNTRY_INFO!B31) -> Busia | C31: =IF(COUNTRY_INFO!C31=0," ",COUNTRY_INFO!C31) -> Funyula | D31: =IF(COUNTRY_INFO!$T$9:$T$1000="MDA2 (DEC+ALB)", COUNTRY_INFO!$T$9:$T$1000, " ") ->  | I31: 0 | M31: 0
A32: =IF(COUNTRY_INFO!A32=0," ",COUNTRY_INFO!A32) -> Kenya | B32: =IF(COUNTRY_INFO!B32=0," ",COUNTRY_INFO!B32) -> Busia | C32: =IF(COUNTRY_INFO!C32=0," ",COUNTRY_INFO!C32) -> Matayos | D32: =IF(COUNTRY_INFO!$T$9:$T$1000="MDA2 (DEC+ALB)", COUNTRY_INFO!$T$9:$T$1000, " ") ->  | I32: 0 | M32: 0
A33: =IF(COUNTRY_INFO!A33=0," ",COUNTRY_INFO!A33) -> Kenya | B33: =IF(COUNTRY_INFO!B33=0," ",COUNTRY_INFO!B33) -> Busia | C33: =IF(COUNTRY_INFO!C33=0," ",COUNTRY_INFO!C33) -> Nambale | D33: =IF(COUNTRY_INFO!$T$9:$T$1000="MDA2 (DEC+ALB)", COUNTRY_INFO!$T$9:$T$1000, " ") ->  | I33: 0 | M33: 0
A34: =IF(COUNTRY_INFO!A34=0," ",COUNTRY_INFO!A34) -> Kenya | B34: =IF(COUNTRY_INFO!B34=0," ",COUNTRY_INFO!B34) -> Busia | C34: =IF(COUNTRY_INFO!C34=0," ",COUNTRY_INFO!C34) -> Teso North | D34: =IF(COUNTRY_INFO!$T$9:$T$1000="MDA2 (DEC+ALB)", COUNTRY_INFO!$T$9:$T$1000, " ") ->  | I34: 0 | M34: 0
A35: =IF(COUNTRY_INFO!A35=0," ",COUNTRY_INFO!A35) -> Kenya | B35: =IF(COUNTRY_INFO!B35=0," ",COUNTRY_INFO!B35) -> Busia | C35: =IF(COUNTRY_INFO!C35=0," ",COUNTRY_INFO!C35) -> Teso South | D35: =IF(COUNTRY_INFO!$T$9:$T$1000="MDA2 (DEC+ALB)", COUNTRY_INFO!$T$9:$T$1000, " ") ->  | I35: 0 | M35: 0
A36: =IF(COUNTRY_INFO!A36=0," ",COUNTRY_INFO!A36) -> Kenya | B36: =IF(COUNTRY_INFO!B36=0," ",COUNTRY_INFO!B36) -> Elgeyo Marakwet | C36: =IF(COUNTRY_INFO!C36=0," ",COUNTRY_INFO!C36) -> Keiyo North | D36: =IF(COUNTRY_INFO!$T$9:$T$1000="MDA2 (DEC+ALB)", COUNTRY_INFO!$T$9:$T$1000, " ") ->  | I36: 0 | M36: 0
A37: =IF(COUNTRY_INFO!A37=0," ",COUNTRY_INFO!A37) -> Kenya | B37: =IF(COUNTRY_INFO!B37=0," ",COUNTRY_INFO!B37) -> Elgeyo Marakwet | C37: =IF(COUNTRY_INFO!C37=0," ",COUNTRY_INFO!C37) -> Keiyo South | D37: =IF(COUNTRY_INFO!$T$9:$T$1000="MDA2 (DEC+ALB)", COUNTRY_INFO!$T$9:$T$1000, " ") ->  | I37: 0 | M37: 0
A38: =IF(COUNTRY_INFO!A38=0," ",COUNTRY_INFO!A38) -> Kenya | B38: =IF(COUNTRY_INFO!B38=0," ",COUNTRY_INFO!B38) -> Elgeyo Marakwet | C38: =IF(COUNTRY_INFO!C38=0," ",COUNTRY_INFO!C38) -> Marakwet East | D38: =IF(COUNTRY_INFO!$T$9:$T$1000="MDA2 (DEC+ALB)", COUNTRY_INFO!$T$9:$T$1000, " ") ->  | I38: 0 | M38: 0
A39: =IF(COUNTRY_INFO!A39=0," ",COUNTRY_INFO!A39) -> Kenya | B39: =IF(COUNTRY_INFO!B39=0," ",COUNTRY_INFO!B39) -> Elgeyo Marakwet | C39: =IF(COUNTRY_INFO!C39=0," ",COUNTRY_INFO!C39) -> Marakwet West | D39: =IF(COUNTRY_INFO!$T$9:$T$1000="MDA2 (DEC+ALB)", COUNTRY_INFO!$T$9:$T$1000, " ") ->  | I39: 0 | M39: 0
A40: =IF(COUNTRY_INFO!A40=0," ",COUNTRY_INFO!A40) -> Kenya | B40: =IF(COUNTRY_INFO!B40=0," ",COUNTRY_INFO!B40) -> Embu | C40: =IF(COUNTRY_INFO!C40=0," ",COUNTRY_INFO!C40) -> Manyatta | D40: =IF(COUNTRY_INFO!$T$9:$T$1000="MDA2 (DEC+ALB)", COUNTRY_INFO!$T$9:$T$1000, " ") ->  | I40: 0 | M40: 0
A41: =IF(COUNTRY_INFO!A41=0," ",COUNTRY_INFO!A41) -> Kenya | B41: =IF(COUNTRY_INFO!B41=0," ",COUNTRY_INFO!B41) -> Embu | C41: =IF(COUNTRY_INFO!C41=0," ",COUNTRY_INFO!C41) -> Mbeere North | D41: =IF(COUNTRY_INFO!$T$9:$T$1000="MDA2 (DEC+ALB)", COUNTRY_INFO!$T$9:$T$1000, " ") ->  | I41: 0 | M41: 0
A42: =IF(COUNTRY_INFO!A42=0," ",COUNTRY_INFO!A42) -> Kenya | B42: =IF(COUNTRY_INFO!B42=0," ",COUNTRY_INFO!B42) -> Embu | C42: =IF(COUNTRY_INFO!C42=0," ",COUNTRY_INFO!C42) -> Mbeere South | D42: =IF(COUNTRY_INFO!$T$9:$T$1000="MDA2 (DEC+ALB)", COUNTRY_INFO!$T$9:$T$1000, " ") ->  | I42: 0 | M42: 0
A43: =IF(COUNTRY_INFO!A43=0," ",COUNTRY_INFO!A43) -> Kenya | B43: =IF(COUNTRY_INFO!B43=0," ",COUNTRY_INFO!B43) -> Embu | C43: =IF(COUNTRY_INFO!C43=0," ",COUNTRY_INFO!C43) -> Runyenjes | D43: =IF(COUNTRY_INFO!$T$9:$T$1000="MDA2 (DEC+ALB)", COUNTRY_INFO!$T$9:$T$1000, " ") ->  | I43: 0 | M43: 0
A44: =IF(COUNTRY_INFO!A44=0," ",COUNTRY_INFO!A44) -> Kenya | B44: =IF(COUNTRY_INFO!B44=0," ",COUNTRY_INFO!B44) -> Garissa | C44: =IF(COUNTRY_INFO!C44=0," ",COUNTRY_INFO!C44) -> Balambala | D44: =IF(COUNTRY_INFO!$T$9:$T$1000="MDA2 (DEC+ALB)", COUNTRY_INFO!$T$9:$T$1000, " ") ->  | I44: 0 | M44: 0
A45: =IF(COUNTRY_INFO!A45=0," ",COUNTRY_INFO!A45) -> Kenya | B45: =IF(COUNTRY_INFO!B45=0," ",COUNTRY_INFO!B45) -> Garissa | C45: =IF(COUNTRY_INFO!C45=0," ",COUNTRY_INFO!C45) -> Dadaab | D45: =IF(COUNTRY_INFO!$T$9:$T$1000="MDA2 (DEC+ALB)", COUNTRY_INFO!$T$9:$T$1000, " ") ->  | I45: 0 | M45: 0
A46: =IF(COUNTRY_INFO!A46=0," ",COUNTRY_INFO!A46) -> Kenya | B46: =IF(COUNTRY_INFO!B46=0," ",COUNTRY_INFO!B46) -> Garissa | C46: =IF(COUNTRY_INFO!C46=0," ",COUNTRY_INFO!C46) -> Fafi | D46: =IF(COUNTRY_INFO!$T$9:$T$1000="MDA2 (DEC+ALB)", COUNTRY_INFO!$T$9:$T$1000, " ") ->  | I46: 0 | M46: 0
A47: =IF(COUNTRY_INFO!A47=0," ",COUNTRY_INFO!A47) -> Kenya | B47: =IF(COUNTRY_INFO!B47=0," ",COUNTRY_INFO!B47) -> Garissa | C47: =IF(COUNTRY_INFO!C47=0," ",COUNTRY_INFO!C47) -> Garisa Township | D47: =IF(COUNTRY_INFO!$T$9:$T$1000="MDA2 (DEC+ALB)", COUNTRY_INFO!$T$9:$T$1000, " ") ->  | I47: 0 | M47: 0
A48: =IF(COUNTRY_INFO!A48=0," ",COUNTRY_INFO!A48) -> Kenya | B48: =IF(COUNTRY_INFO!B48=0," ",COUNTRY_INFO!B48) -> Garissa | C48: =IF(COUNTRY_INFO!C48=0," ",COUNTRY_INFO!C48) -> Ijara | D48: =IF(COUNTRY_INFO!$T$9:$T$1000="MDA2 (DEC+ALB)", COUNTRY_INFO!$T$9:$T$1000, " ") ->  | I48: 0 | M48: 0
A49: =IF(COUNTRY_INFO!A49=0," ",COUNTRY_INFO!A49) -> Kenya | B49: =IF(COUNTRY_INFO!B49=0," ",COUNTRY_INFO!B49) -> Garissa | C49: =IF(COUNTRY_INFO!C49=0," ",COUNTRY_INFO!C49) -> Lagdera | D49: =IF(COUNTRY_INFO!$T$9:$T$1000="MDA2 (DEC+ALB)", COUNTRY_INFO!$T$9:$T$1000, " ") ->  | I49: 0 | M49: 0
A50: =IF(COUNTRY_INFO!A50=0," ",COUNTRY_INFO!A50) -> Kenya | B50: =IF(COUNTRY_INFO!B50=0," ",COUNTRY_INFO!B50) -> Homa Bay | C50: =IF(COUNTRY_INFO!C50=0," ",COUNTRY_INFO!C50) -> Homabay Town | D50: =IF(COUNTRY_INFO!$T$9:$T$1000="MDA2 (DEC+ALB)", COUNTRY_INFO!$T$9:$T$1000, " ") ->  | I50: 0 | M50: 0
A51: =IF(COUNTRY_INFO!A51=0," ",COUNTRY_INFO!A51) -> Kenya | B51: =IF(COUNTRY_INFO!B51=0," ",COUNTRY_INFO!B51) -> Homa Bay | C51: =IF(COUNTRY_INFO!C51=0," ",COUNTRY_INFO!C51) -> Kabondo Kasipul | D51: =IF(COUNTRY_INFO!$T$9:$T$1000="MDA2 (DEC+ALB)", COUNTRY_INFO!$T$9:$T$1000, " ") ->  | I51: 0 | M51: 0
A52: =IF(COUNTRY_INFO!A52=0," ",COUNTRY_INFO!A52) -> Kenya | B52: =IF(COUNTRY_INFO!B52=0," ",COUNTRY_INFO!B52) -> Homa Bay | C52: =IF(COUNTRY_INFO!C52=0," ",COUNTRY_INFO!C52) -> Karachuonyo | D52: =IF(COUNTRY_INFO!$T$9:$T$1000="MDA2 (DEC+ALB)", COUNTRY_INFO!$T$9:$T$1000, " ") ->  | I52: 0 | M52: 0
A53: =IF(COUNTRY_INFO!A53=0," ",COUNTRY_INFO!A53) -> Kenya | B53: =IF(COUNTRY_INFO!B53=0," ",COUNTRY_INFO!B53) -> Homa Bay | C53: =IF(COUNTRY_INFO!C53=0," ",COUNTRY_INFO!C53) -> Kasipul | D53: =IF(COUNTRY_INFO!$T$9:$T$1000="MDA2 (DEC+ALB)", COUNTRY_INFO!$T$9:$T$1000, " ") ->  | I53: 0 | M53: 0
A54: =IF(COUNTRY_INFO!A54=0," ",COUNTRY_INFO!A54) -> Kenya | B54: =IF(COUNTRY_INFO!B54=0," ",COUNTRY_INFO!B54) -> Homa Bay | C54: =IF(COUNTRY_INFO!C54=0," ",COUNTRY_INFO!C54) -> Mbita | D54: =IF(COUNTRY_INFO!$T$9:$T$1000="MDA2 (DEC+ALB)", COUNTRY_INFO!$T$9:$T$1000, " ") ->  | I54: 0 | M54: 0
A55: =IF(COUNTRY_INFO!A55=0," ",COUNTRY_INFO!A55) -> Kenya | B55: =IF(COUNTRY_INFO!B55=0," ",COUNTRY_INFO!B55) -> Homa Bay | C55: =IF(COUNTRY_INFO!C55=0," ",COUNTRY_INFO!C55) -> Ndhiwa | D55: =IF(COUNTRY_INFO!$T$9:$T$1000="MDA2 (DEC+ALB)", COUNTRY_INFO!$T$9:$T$1000, " ") ->  | I55: 0 | M55: 0
A56: =IF(COUNTRY_INFO!A56=0," ",COUNTRY_INFO!A56) -> Kenya | B56: =IF(COUNTRY_INFO!B56=0," ",COUNTRY_INFO!B56) -> Homa Bay | C56: =IF(COUNTRY_INFO!C56=0," ",COUNTRY_INFO!C56) -> Rangwe | D56: =IF(COUNTRY_INFO!$T$9:$T$1000="MDA2 (DEC+ALB)", COUNTRY_INFO!$T$9:$T$1000, " ") ->  | I56: 0 | M56: 0
A57: =IF(COUNTRY_INFO!A57=0," ",COUNTRY_INFO!A57) -> Kenya | B57: =IF(COUNTRY_INFO!B57=0," ",COUNTRY_INFO!B57) -> Homa Bay | C57: =IF(COUNTRY_INFO!C57=0," ",COUNTRY_INFO!C57) -> Suba | D57: =IF(COUNTRY_INFO!$T$9:$T$1000="MDA2 (DEC+ALB)", COUNTRY_INFO!$T$9:$T$1000, " ") ->  | I57: 0 | M57: 0
A58: =IF(COUNTRY_INFO!A58=0," ",COUNTRY_INFO!A58) -> Kenya | B58: =IF(COUNTRY_INFO!B58=0," ",COUNTRY_INFO!B58) -> Isiolo | C58: =IF(COUNTRY_INFO!C58=0," ",COUNTRY_INFO!C58) -> Isiolo North | D58: =IF(COUNTRY_INFO!$T$9:$T$1000="MDA2 (DEC+ALB)", COUNTRY_INFO!$T$9:$T$1000, " ") ->  | I58: 0 | M58: 0
A59: =IF(COUNTRY_INFO!A59=0," ",COUNTRY_INFO!A59) -> Kenya | B59: =IF(COUNTRY_INFO!B59=0," ",COUNTRY_INFO!B59) -> Isiolo | C59: =IF(COUNTRY_INFO!C59=0," ",COUNTRY_INFO!C59) -> Isiolo South | D59: =IF(COUNTRY_INFO!$T$9:$T$1000="MDA2 (DEC+ALB)", COUNTRY_INFO!$T$9:$T$1000, " ") ->  | I59: 0 | M59: 0
A60: =IF(COUNTRY_INFO!A60=0," ",COUNTRY_INFO!A60) -> Kenya | B60: =IF(COUNTRY_INFO!B60=0," ",COUNTRY_INFO!B60) -> Kajiado | C60: =IF(COUNTRY_INFO!C60=0," ",COUNTRY_INFO!C60) -> Kajiado Central | D60: =IF(COUNTRY_INFO!$T$9:$T$1000="MDA2 (DEC+ALB)", COUNTRY_INFO!$T$9:$T$1000, " ") ->  | I60: 0 | M60: 0
A61: =IF(COUNTRY_INFO!A61=0," ",COUNTRY_INFO!A61) -> Kenya | B61: =IF(COUNTRY_INFO!B61=0," ",COUNTRY_INFO!B61) -> Kajiado | C61: =IF(COUNTRY_INFO!C61=0," ",COUNTRY_INFO!C61) -> Kajiado East | D61: =IF(COUNTRY_INFO!$T$9:$T$1000="MDA2 (DEC+ALB)", COUNTRY_INFO!$T$9:$T$1000, " ") ->  | I61: 0 | M61: 0
A62: =IF(COUNTRY_INFO!A62=0," ",COUNTRY_INFO!A62) -> Kenya | B62: =IF(COUNTRY_INFO!B62=0," ",COUNTRY_INFO!B62) -> Kajiado | C62: =IF(COUNTRY_INFO!C62=0," ",COUNTRY_INFO!C62) -> Kajiado North | D62: =IF(COUNTRY_INFO!$T$9:$T$1000="MDA2 (DEC+ALB)", COUNTRY_INFO!$T$9:$T$1000, " ") ->  | I62: 0 | M62: 0
A63: =IF(COUNTRY_INFO!A63=0," ",COUNTRY_INFO!A63) -> Kenya | B63: =IF(COUNTRY_INFO!B63=0," ",COUNTRY_INFO!B63) -> Kajiado | C63: =IF(COUNTRY_INFO!C63=0," ",COUNTRY_INFO!C63) -> Kajiado South | D63: =IF(COUNTRY_INFO!$T$9:$T$1000="MDA2 (DEC+ALB)", COUNTRY_INFO!$T$9:$T$1000, " ") ->  | I63: 0 | M63: 0
A64: =IF(COUNTRY_INFO!A64=0," ",COUNTRY_INFO!A64) -> Kenya | B64: =IF(COUNTRY_INFO!B64=0," ",COUNTRY_INFO!B64) -> Kajiado | C64: =IF(COUNTRY_INFO!C64=0," ",COUNTRY_INFO!C64) -> Kajiado West | D64: =IF(COUNTRY_INFO!$T$9:$T$1000="MDA2 (DEC+ALB)", COUNTRY_INFO!$T$9:$T$1000, " ") ->  | I64: 0 | M64: 0
A65: =IF(COUNTRY_INFO!A65=0," ",COUNTRY_INFO!A65) -> Kenya | B65: =IF(COUNTRY_INFO!B65=0," ",COUNTRY_INFO!B65) -> Kakamega | C65: =IF(COUNTRY_INFO!C65=0," ",COUNTRY_INFO!C65) -> Butere | D65: =IF(COUNTRY_INFO!$T$9:$T$1000="MDA2 (DEC+ALB)", COUNTRY_INFO!$T$9:$T$1000, " ") ->  | I65: 0 | M65: 0
A66: =IF(COUNTRY_INFO!A66=0," ",COUNTRY_INFO!A66) -> Kenya | B66: =IF(COUNTRY_INFO!B66=0," ",COUNTRY_INFO!B66) -> Kakamega | C66: =IF(COUNTRY_INFO!C66=0," ",COUNTRY_INFO!C66) -> Ikolmani | D66: =IF(COUNTRY_INFO!$T$9:$T$1000="MDA2 (DEC+ALB)", COUNTRY_INFO!$T$9:$T$1000, " ") ->  | I66: 0 | M66: 0
A67: =IF(COUNTRY_INFO!A67=0," ",COUNTRY_INFO!A67) -> Kenya | B67: =IF(COUNTRY_INFO!B67=0," ",COUNTRY_INFO!B67) -> Kakamega | C67: =IF(COUNTRY_INFO!C67=0," ",COUNTRY_INFO!C67) -> Khwisero | D67: =IF(COUNTRY_INFO!$T$9:$T$1000="MDA2 (DEC+ALB)", COUNTRY_INFO!$T$9:$T$1000, " ") ->  | I67: 0 | M67: 0
A68: =IF(COUNTRY_INFO!A68=0," ",COUNTRY_INFO!A68) -> Kenya | B68: =IF(COUNTRY_INFO!B68=0," ",COUNTRY_INFO!B68) -> Kakamega | C68: =IF(COUNTRY_INFO!C68=0," ",COUNTRY_INFO!C68) -> Likuyani | D68: =IF(COUNTRY_INFO!$T$9:$T$1000="MDA2 (DEC+ALB)", COUNTRY_INFO!$T$9:$T$1000, " ") ->  | I68: 0 | M68: 0
A69: =IF(COUNTRY_INFO!A69=0," ",COUNTRY_INFO!A69) -> Kenya | B69: =IF(COUNTRY_INFO!B69=0," ",COUNTRY_INFO!B69) -> Kakamega | C69: =IF(COUNTRY_INFO!C69=0," ",COUNTRY_INFO!C69) -> Lugari | D69: =IF(COUNTRY_INFO!$T$9:$T$1000="MDA2 (DEC+ALB)", COUNTRY_INFO!$T$9:$T$1000, " ") ->  | I69: 0 | M69: 0
A70: =IF(COUNTRY_INFO!A70=0," ",COUNTRY_INFO!A70) -> Kenya | B70: =IF(COUNTRY_INFO!B70=0," ",COUNTRY_INFO!B70) -> Kakamega | C70: =IF(COUNTRY_INFO!C70=0," ",COUNTRY_INFO!C70) -> Lurambi | D70: =IF(COUNTRY_INFO!$T$9:$T$1000="MDA2 (DEC+ALB)", COUNTRY_INFO!$T$9:$T$1000, " ") ->  | I70: 0 | M70: 0
A71: =IF(COUNTRY_INFO!A71=0," ",COUNTRY_INFO!A71) -> Kenya | B71: =IF(COUNTRY_INFO!B71=0," ",COUNTRY_INFO!B71) -> Kakamega | C71: =IF(COUNTRY_INFO!C71=0," ",COUNTRY_INFO!C71) -> Malava | D71: =IF(COUNTRY_INFO!$T$9:$T$1000="MDA2 (DEC+ALB)", COUNTRY_INFO!$T$9:$T$1000, " ") ->  | I71: 0 | M71: 0
A72: =IF(COUNTRY_INFO!A72=0," ",COUNTRY_INFO!A72) -> Kenya | B72: =IF(COUNTRY_INFO!B72=0," ",COUNTRY_INFO!B72) -> Kakamega | C72: =IF(COUNTRY_INFO!C72=0," ",COUNTRY_INFO!C72) -> Matungu | D72: =IF(COUNTRY_INFO!$T$9:$T$1000="MDA2 (DEC+ALB)", COUNTRY_INFO!$T$9:$T$1000, " ") ->  | I72: 0 | M72: 0
A73: =IF(COUNTRY_INFO!A73=0," ",COUNTRY_INFO!A73) -> Kenya | B73: =IF(COUNTRY_INFO!B73=0," ",COUNTRY_INFO!B73) -> Kakamega | C73: =IF(COUNTRY_INFO!C73=0," ",COUNTRY_INFO!C73) -> Mumias East | D73: =IF(COUNTRY_INFO!$T$9:$T$1000="MDA2 (DEC+ALB)", COUNTRY_INFO!$T$9:$T$1000, " ") ->  | I73: 0 | M73: 0
A74: =IF(COUNTRY_INFO!A74=0," ",COUNTRY_INFO!A74) -> Kenya | B74: =IF(COUNTRY_INFO!B74=0," ",COUNTRY_INFO!B74) -> Kakamega | C74: =IF(COUNTRY_INFO!C74=0," ",COUNTRY_INFO!C74) -> Mumias West | D74: =IF(COUNTRY_INFO!$T$9:$T$1000="MDA2 (DEC+ALB)", COUNTRY_INFO!$T$9:$T$1000, " ") ->  | I74: =SUM(F74:H74) -> 0 | M74: =SUM(J74:L74) -> 0 | N74: =IF(F74<>0, IF(J74/F74*100=0, "-", J74/F74*100), " ") ->  | O74: =IF(G74<>0, IF(K74/G74*100=0, "-", K74/G74*100), " ") ->  | P74: =IF(H74<>0, IF(L74/H74*100=0, "-", L74/H74*100), " ") ->  | Q74: =IF(I74<>0, IF(M74/I74*100=0, "-", M74/I74*100), " ") -> 
A75: =IF(COUNTRY_INFO!A75=0," ",COUNTRY_INFO!A75) -> Kenya | B75: =IF(COUNTRY_INFO!B75=0," ",COUNTRY_INFO!B75) -> Kakamega | C75: =IF(COUNTRY_INFO!C75=0," ",COUNTRY_INFO!C75) -> Navakholo | D75: =IF(COUNTRY_INFO!$T$9:$T$1000="MDA2 (DEC+ALB)", COUNTRY_INFO!$T$9:$T$1000, " ") ->  | I75: 0 | M75: 0
A76: =IF(COUNTRY_INFO!A76=0," ",COUNTRY_INFO!A76) -> Kenya | B76: =IF(COUNTRY_INFO!B76=0," ",COUNTRY_INFO!B76) -> Kakamega | C76: =IF(COUNTRY_INFO!C76=0," ",COUNTRY_INFO!C76) -> Shinayalu | D76: =IF(COUNTRY_INFO!$T$9:$T$1000="MDA2 (DEC+ALB)", COUNTRY_INFO!$T$9:$T$1000, " ") ->  | I76: 0 | M76: 0
A77: =IF(COUNTRY_INFO!A77=0," ",COUNTRY_INFO!A77) -> Kenya | B77: =IF(COUNTRY_INFO!B77=0," ",COUNTRY_INFO!B77) -> Kericho | C77: =IF(COUNTRY_INFO!C77=0," ",COUNTRY_INFO!C77) -> Ainamoi | D77: =IF(COUNTRY_INFO!$T$9:$T$1000="MDA2 (DEC+ALB)", COUNTRY_INFO!$T$9:$T$1000, " ") ->  | I77: 0 | M77: 0
A78: =IF(COUNTRY_INFO!A78=0," ",COUNTRY_INFO!A78) -> Kenya | B78: =IF(COUNTRY_INFO!B78=0," ",COUNTRY_INFO!B78) -> Kericho | C78: =IF(COUNTRY_INFO!C78=0," ",COUNTRY_INFO!C78) -> Belgut | D78: =IF(COUNTRY_INFO!$T$9:$T$1000="MDA2 (DEC+ALB)", COUNTRY_INFO!$T$9:$T$1000, " ") ->  | I78: 0 | M78: 0
A79: =IF(COUNTRY_INFO!A79=0," ",COUNTRY_INFO!A79) -> Kenya | B79: =IF(COUNTRY_INFO!B79=0," ",COUNTRY_INFO!B79) -> Kericho | C79: =IF(COUNTRY_INFO!C79=0," ",COUNTRY_INFO!C79) -> Bureti | D79: =IF(COUNTRY_INFO!$T$9:$T$1000="MDA2 (DEC+ALB)", COUNTRY_INFO!$T$9:$T$1000, " ") ->  | I79: 0 | M79: 0
A80: =IF(COUNTRY_INFO!A80=0," ",COUNTRY_INFO!A80) -> Kenya | B80: =IF(COUNTRY_INFO!B80=0," ",COUNTRY_INFO!B80) -> Kericho | C80: =IF(COUNTRY_INFO!C80=0," ",COUNTRY_INFO!C80) -> Kipkelion East | D80: =IF(COUNTRY_INFO!$T$9:$T$1000="MDA2 (DEC+ALB)", COUNTRY_INFO!$T$9:$T$1000, " ") ->  | I80: 0 | M80: 0
A81: =IF(COUNTRY_INFO!A81=0," ",COUNTRY_INFO!A81) -> Kenya | B81: =IF(COUNTRY_INFO!B81=0," ",COUNTRY_INFO!B81) -> Kericho | C81: =IF(COUNTRY_INFO!C81=0," ",COUNTRY_INFO!C81) -> Kipkelion West | D81: =IF(COUNTRY_INFO!$T$9:$T$1000="MDA2 (DEC+ALB)", COUNTRY_INFO!$T$9:$T$1000, " ") ->  | I81: 0 | M81: 0
A82: =IF(COUNTRY_INFO!A82=0," ",COUNTRY_INFO!A82) -> Kenya | B82: =IF(COUNTRY_INFO!B82=0," ",COUNTRY_INFO!B82) -> Kericho | C82: =IF(COUNTRY_INFO!C82=0," ",COUNTRY_INFO!C82) -> Sigowet-Soin | D82: =IF(COUNTRY_INFO!$T$9:$T$1000="MDA2 (DEC+ALB)", COUNTRY_INFO!$T$9:$T$1000, " ") ->  | I82: 0 | M82: 0
A83: =IF(COUNTRY_INFO!A83=0," ",COUNTRY_INFO!A83) -> Kenya | B83: =IF(COUNTRY_INFO!B83=0," ",COUNTRY_INFO!B83) -> Kiambu | C83: =IF(COUNTRY_INFO!C83=0," ",COUNTRY_INFO!C83) -> Gatundu North | D83: =IF(COUNTRY_INFO!$T$9:$T$1000="MDA2 (DEC+ALB)", COUNTRY_INFO!$T$9:$T$1000, " ") ->  | I83: 0 | M83: 0
A84: =IF(COUNTRY_INFO!A84=0," ",COUNTRY_INFO!A84) -> Kenya | B84: =IF(COUNTRY_INFO!B84=0," ",COUNTRY_INFO!B84) -> Kiambu | C84: =IF(COUNTRY_INFO!C84=0," ",COUNTRY_INFO!C84) -> Gatundu South | D84: =IF(COUNTRY_INFO!$T$9:$T$1000="MDA2 (DEC+ALB)", COUNTRY_INFO!$T$9:$T$1000, " ") ->  | I84: 0 | M84: 0
A85: =IF(COUNTRY_INFO!A85=0," ",COUNTRY_INFO!A85) -> Kenya | B85: =IF(COUNTRY_INFO!B85=0," ",COUNTRY_INFO!B85) -> Kiambu | C85: =IF(COUNTRY_INFO!C85=0," ",COUNTRY_INFO!C85) -> Githunguri | D85: =IF(COUNTRY_INFO!$T$9:$T$1000="MDA2 (DEC+ALB)", COUNTRY_INFO!$T$9:$T$1000, " ") ->  | I85: 0 | M85: 0
A86: =IF(COUNTRY_INFO!A86=0," ",COUNTRY_INFO!A86) -> Kenya | B86: =IF(COUNTRY_INFO!B86=0," ",COUNTRY_INFO!B86) -> Kiambu | C86: =IF(COUNTRY_INFO!C86=0," ",COUNTRY_INFO!C86) -> Juja | D86: =IF(COUNTRY_INFO!$T$9:$T$1000="MDA2 (DEC+ALB)", COUNTRY_INFO!$T$9:$T$1000, " ") ->  | I86: 0 | M86: 0
A87: =IF(COUNTRY_INFO!A87=0," ",COUNTRY_INFO!A87) -> Kenya | B87: =IF(COUNTRY_INFO!B87=0," ",COUNTRY_INFO!B87) -> Kiambu | C87: =IF(COUNTRY_INFO!C87=0," ",COUNTRY_INFO!C87) -> Kabete | D87: =IF(COUNTRY_INFO!$T$9:$T$1000="MDA2 (DEC+ALB)", COUNTRY_INFO!$T$9:$T$1000, " ") ->  | I87: 0 | M87: 0
A88: =IF(COUNTRY_INFO!A88=0," ",COUNTRY_INFO!A88) -> Kenya | B88: =IF(COUNTRY_INFO!B88=0," ",COUNTRY_INFO!B88) -> Kiambu | C88: =IF(COUNTRY_INFO!C88=0," ",COUNTRY_INFO!C88) -> Kiambaa | D88: =IF(COUNTRY_INFO!$T$9:$T$1000="MDA2 (DEC+ALB)", COUNTRY_INFO!$T$9:$T$1000, " ") ->  | I88: 0 | M88: 0
A89: =IF(COUNTRY_INFO!A89=0," ",COUNTRY_INFO!A89) -> Kenya | B89: =IF(COUNTRY_INFO!B89=0," ",COUNTRY_INFO!B89) -> Kiambu | C89: =IF(COUNTRY_INFO!C89=0," ",COUNTRY_INFO!C89) -> Kiambu | D89: =IF(COUNTRY_INFO!$T$9:$T$1000="MDA2 (DEC+ALB)", COUNTRY_INFO!$T$9:$T$1000, " ") ->  | I89: 0 | M89: 0
A90: =IF(COUNTRY_INFO!A90=0," ",COUNTRY_INFO!A90) -> Kenya | B90: =IF(COUNTRY_INFO!B90=0," ",COUNTRY_INFO!B90) -> Kiambu | C90: =IF(COUNTRY_INFO!C90=0," ",COUNTRY_INFO!C90) -> Kikuyu | D90: =IF(COUNTRY_INFO!$T$9:$T$1000="MDA2 (DEC+ALB)", COUNTRY_INFO!$T$9:$T$1000, " ") ->  | I90: 0 | M90: 0
A91: =IF(COUNTRY_INFO!A91=0," ",COUNTRY_INFO!A91) -> Kenya | B91: =IF(COUNTRY_INFO!B91=0," ",COUNTRY_INFO!B91) -> Kiambu | C91: =IF(COUNTRY_INFO!C91=0," ",COUNTRY_INFO!C91) -> Lari | D91: =IF(COUNTRY_INFO!$T$9:$T$1000="MDA2 (DEC+ALB)", COUNTRY_INFO!$T$9:$T$1000, " ") ->  | I91: 0 | M91: 0
A92: =IF(COUNTRY_INFO!A92=0," ",COUNTRY_INFO!A92) -> Kenya | B92: =IF(COUNTRY_INFO!B92=0," ",COUNTRY_INFO!B92) -> Kiambu | C92: =IF(COUNTRY_INFO!C92=0," ",COUNTRY_INFO!C92) -> Limuru | D92: =IF(COUNTRY_INFO!$T$9:$T$1000="MDA2 (DEC+ALB)", COUNTRY_INFO!$T$9:$T$1000, " ") ->  | I92: 0 | M92: 0
A93: =IF(COUNTRY_INFO!A93=0," ",COUNTRY_INFO!A93) -> Kenya | B93: =IF(COUNTRY_INFO!B93=0," ",COUNTRY_INFO!B93) -> Kiambu | C93: =IF(COUNTRY_INFO!C93=0," ",COUNTRY_INFO!C93) -> Ruiru | D93: =IF(COUNTRY_INFO!$T$9:$T$1000="MDA2 (DEC+ALB)", COUNTRY_INFO!$T$9:$T$1000, " ") ->  | I93: 0 | M93: 0
A94: =IF(COUNTRY_INFO!A94=0," ",COUNTRY_INFO!A94) -> Kenya | B94: =IF(COUNTRY_INFO!B94=0," ",COUNTRY_INFO!B94) -> Kiambu | C94: =IF(COUNTRY_INFO!C94=0," ",COUNTRY_INFO!C94) -> Thika Town | D94: =IF(COUNTRY_INFO!$T$9:$T$1000="MDA2 (DEC+ALB)", COUNTRY_INFO!$T$9:$T$1000, " ") ->  | I94: 0 | M94: 0
A95: =IF(COUNTRY_INFO!A95=0," ",COUNTRY_INFO!A95) -> Kenya | B95: =IF(COUNTRY_INFO!B95=0," ",COUNTRY_INFO!B95) -> Kilifi | C95: =IF(COUNTRY_INFO!C95=0," ",COUNTRY_INFO!C95) -> Ganze | D95: =IF(COUNTRY_INFO!$T$9:$T$1000="MDA2 (DEC+ALB)", COUNTRY_INFO!$T$9:$T$1000, " ") -> MDA2 (DEC+ALB) | E95: 27 November 2018 | F95: 26264 | G95: 49025 | H95: 93674 | I95: 168963 | J95: 19120 | K95: 57680 | L95: 61723 | M95: 138523 | N95: 72.79926896 | O95: 117.654258 | P95: 65.89128253 | Q95: 81.9842214
A96: =IF(COUNTRY_INFO!A96=0," ",COUNTRY_INFO!A96) -> Kenya | B96: =IF(COUNTRY_INFO!B96=0," ",COUNTRY_INFO!B96) -> Kilifi | C96: =IF(COUNTRY_INFO!C96=0," ",COUNTRY_INFO!C96) -> Kaloleni | D96: =IF(COUNTRY_INFO!$T$9:$T$1000="MDA2 (DEC+ALB)", COUNTRY_INFO!$T$9:$T$1000, " ") -> MDA2 (DEC+ALB) | E96: 27 November 2018 | F96: 29351 | G96: 54789 | H96: 104686 | I96: 188826 | J96: 25757 | K96: 87672 | L96: 72297 | M96: 185726 | N96: 87.75510204 | O96: 160.0175218 | P96: 69.06081042 | Q96: 98.35827693
A97: =IF(COUNTRY_INFO!A97=0," ",COUNTRY_INFO!A97) -> Kenya | B97: =IF(COUNTRY_INFO!B97=0," ",COUNTRY_INFO!B97) -> Kilifi | C97: =IF(COUNTRY_INFO!C97=0," ",COUNTRY_INFO!C97) -> Kilifi North | D97: =IF(COUNTRY_INFO!$T$9:$T$1000="MDA2 (DEC+ALB)", COUNTRY_INFO!$T$9:$T$1000, " ") -> MDA2 (DEC+ALB) | E97: 27 November 2018 | F97: 38461 | G97: 71794 | H97: 137178 | I97: 247433 | J97: 26209 | K97: 91361 | L97: 113619 | M97: 231189 | N97: 68.14435402 | O97: 127.2543667 | P97: 82.82596335 | Q97: 93.43499048
A98: =IF(COUNTRY_INFO!A98=0," ",COUNTRY_INFO!A98) -> Kenya | B98: =IF(COUNTRY_INFO!B98=0," ",COUNTRY_INFO!B98) -> Kilifi | C98: =IF(COUNTRY_INFO!C98=0," ",COUNTRY_INFO!C98) -> Kilifi South | D98: =IF(COUNTRY_INFO!$T$9:$T$1000="MDA2 (DEC+ALB)", COUNTRY_INFO!$T$9:$T$1000, " ") -> MDA2 (DEC+ALB) | E98: 27 November 2018 | F98: 32520 | G98: 60705 | H98: 115989 | I98: 209214 | J98: 21031 | K98: 64021 | L98: 88207 | M98: 173259 | N98: 64.67097171 | O98: 105.4624825 | P98: 76.04772866 | Q98: 82.81424761
A99: =IF(COUNTRY_INFO!A99=0," ",COUNTRY_INFO!A99) -> Kenya | B99: =IF(COUNTRY_INFO!B99=0," ",COUNTRY_INFO!B99) -> Kilifi | C99: =IF(COUNTRY_INFO!C99=0," ",COUNTRY_INFO!C99) -> Magarini | D99: =IF(COUNTRY_INFO!$T$9:$T$1000="MDA2 (DEC+ALB)", COUNTRY_INFO!$T$9:$T$1000, " ") -> MDA2 (DEC+ALB) | E99: 27 November 2018 | F99: 33044 | G99: 61682 | H99: 117857 | I99: 212583 | J99: 29629 | K99: 94203 | L99: 87214 | M99: 211046 | N99: 89.66529476 | O99: 152.7236471 | P99: 73.99984727 | Q99: 99.27698828
A100: =IF(COUNTRY_INFO!A100=0," ",COUNTRY_INFO!A100) -> Kenya | B100: =IF(COUNTRY_INFO!B100=0," ",COUNTRY_INFO!B100) -> Kilifi | C100: =IF(COUNTRY_INFO!C100=0," ",COUNTRY_INFO!C100) -> Malindi | D100: =IF(COUNTRY_INFO!$T$9:$T$1000="MDA2 (DEC+ALB)", COUNTRY_INFO!$T$9:$T$1000, " ") -> MDA2 (DEC+ALB) | E100: 27 November 2018 | F100: 30738 | G100: 57378 | H100: 109633 | I100: 197749 | J100: 22546 | K100: 71972 | L100: 78853 | M100: 173371 | N100: 73.34894918 | O100: 125.4348357 | P100: 71.92451178 | Q100: 87.67225119
A101: =IF(COUNTRY_INFO!A101=0," ",COUNTRY_INFO!A101) -> Kenya | B101: =IF(COUNTRY_INFO!B101=0," ",COUNTRY_INFO!B101) -> Kilifi | C101: =IF(COUNTRY_INFO!C101=0," ",COUNTRY_INFO!C101) -> Rabai | D101: =IF(COUNTRY_INFO!$T$9:$T$1000="MDA2 (DEC+ALB)", COUNTRY_INFO!$T$9:$T$1000, " ") -> MDA2 (DEC+ALB) | E101: 27 November 2018 | F101: 18465 | G101: 34468 | H101: 65859 | I101: 118792 | J101: 18672 | K101: 56629 | L101: 73789 | M101: 149090 | N101: 101.1210398 | O101: 164.294418 | P101: 112.0408752 | Q101: 125.5050845
A102: =IF(COUNTRY_INFO!A102=0," ",COUNTRY_INFO!A102) -> Kenya | B102: =IF(COUNTRY_INFO!B102=0," ",COUNTRY_INFO!B102) -> Kirinyaga | C102: =IF(COUNTRY_INFO!C102=0," ",COUNTRY_INFO!C102) -> Gichugu | D102: =IF(COUNTRY_INFO!$T$9:$T$1000="MDA2 (DEC+ALB)", COUNTRY_INFO!$T$9:$T$1000, " ") ->  | I102: 0 | M102: 0
A103: =IF(COUNTRY_INFO!A103=0," ",COUNTRY_INFO!A103) -> Kenya | B103: =IF(COUNTRY_INFO!B103=0," ",COUNTRY_INFO!B103) -> Kirinyaga | C103: =IF(COUNTRY_INFO!C103=0," ",COUNTRY_INFO!C103) -> Kirinyaga Central | D103: =IF(COUNTRY_INFO!$T$9:$T$1000="MDA2 (DEC+ALB)", COUNTRY_INFO!$T$9:$T$1000, " ") ->  | I103: 0 | M103: 0
A104: =IF(COUNTRY_INFO!A104=0," ",COUNTRY_INFO!A104) -> Kenya | B104: =IF(COUNTRY_INFO!B104=0," ",COUNTRY_INFO!B104) -> Kirinyaga | C104: =IF(COUNTRY_INFO!C104=0," ",COUNTRY_INFO!C104) -> Mwea | D104: =IF(COUNTRY_INFO!$T$9:$T$1000="MDA2 (DEC+ALB)", COUNTRY_INFO!$T$9:$T$1000, " ") ->  | I104: 0 | M104: 0
A105: =IF(COUNTRY_INFO!A105=0," ",COUNTRY_INFO!A105) -> Kenya | B105: =IF(COUNTRY_INFO!B105=0," ",COUNTRY_INFO!B105) -> Kirinyaga | C105: =IF(COUNTRY_INFO!C105=0," ",COUNTRY_INFO!C105) -> Ndia | D105: =IF(COUNTRY_INFO!$T$9:$T$1000="MDA2 (DEC+ALB)", COUNTRY_INFO!$T$9:$T$1000, " ") ->  | I105: 0 | M105: 0
A106: =IF(COUNTRY_INFO!A106=0," ",COUNTRY_INFO!A106) -> Kenya | B106: =IF(COUNTRY_INFO!B106=0," ",COUNTRY_INFO!B106) -> Kisii | C106: =IF(COUNTRY_INFO!C106=0," ",COUNTRY_INFO!C106) -> Bobasi | D106: =IF(COUNTRY_INFO!$T$9:$T$1000="MDA2 (DEC+ALB)", COUNTRY_INFO!$T$9:$T$1000, " ") ->  | I106: 0 | M106: 0
A107: =IF(COUNTRY_INFO!A107=0," ",COUNTRY_INFO!A107) -> Kenya | B107: =IF(COUNTRY_INFO!B107=0," ",COUNTRY_INFO!B107) -> Kisii | C107: =IF(COUNTRY_INFO!C107=0," ",COUNTRY_INFO!C107) -> Bomachoge Borabu | D107: =IF(COUNTRY_INFO!$T$9:$T$1000="MDA2 (DEC+ALB)", COUNTRY_INFO!$T$9:$T$1000, " ") ->  | I107: 0 | M107: 0
A108: =IF(COUNTRY_INFO!A108=0," ",COUNTRY_INFO!A108) -> Kenya | B108: =IF(COUNTRY_INFO!B108=0," ",COUNTRY_INFO!B108) -> Kisii | C108: =IF(COUNTRY_INFO!C108=0," ",COUNTRY_INFO!C108) -> Bomachoge Chache | D108: =IF(COUNTRY_INFO!$T$9:$T$1000="MDA2 (DEC+ALB)", COUNTRY_INFO!$T$9:$T$1000, " ") ->  | I108: 0 | M108: 0
A109: =IF(COUNTRY_INFO!A109=0," ",COUNTRY_INFO!A109) -> Kenya | B109: =IF(COUNTRY_INFO!B109=0," ",COUNTRY_INFO!B109) -> Kisii | C109: =IF(COUNTRY_INFO!C109=0," ",COUNTRY_INFO!C109) -> Bonchari | D109: =IF(COUNTRY_INFO!$T$9:$T$1000="MDA2 (DEC+ALB)", COUNTRY_INFO!$T$9:$T$1000, " ") ->  | I109: 0 | M109: 0
A110: =IF(COUNTRY_INFO!A110=0," ",COUNTRY_INFO!A110) -> Kenya | B110: =IF(COUNTRY_INFO!B110=0," ",COUNTRY_INFO!B110) -> Kisii | C110: =IF(COUNTRY_INFO!C110=0," ",COUNTRY_INFO!C110) -> Kitutu Chache North | D110: =IF(COUNTRY_INFO!$T$9:$T$1000="MDA2 (DEC+ALB)", COUNTRY_INFO!$T$9:$T$1000, " ") ->  | I110: 0 | M110: 0
A111: =IF(COUNTRY_INFO!A111=0," ",COUNTRY_INFO!A111) -> Kenya | B111: =IF(COUNTRY_INFO!B111=0," ",COUNTRY_INFO!B111) -> Kisii | C111: =IF(COUNTRY_INFO!C111=0," ",COUNTRY_INFO!C111) -> Kitutu Chache South | D111: =IF(COUNTRY_INFO!$T$9:$T$1000="MDA2 (DEC+ALB)", COUNTRY_INFO!$T$9:$T$1000, " ") ->  | I111: 0 | M111: 0
A112: =IF(COUNTRY_INFO!A112=0," ",COUNTRY_INFO!A112) -> Kenya | B112: =IF(COUNTRY_INFO!B112=0," ",COUNTRY_INFO!B112) -> Kisii | C112: =IF(COUNTRY_INFO!C112=0," ",COUNTRY_INFO!C112) -> Nyaribari Chache | D112: =IF(COUNTRY_INFO!$T$9:$T$1000="MDA2 (DEC+ALB)", COUNTRY_INFO!$T$9:$T$1000, " ") ->  | I112: 0 | M112: 0
A113: =IF(COUNTRY_INFO!A113=0," ",COUNTRY_INFO!A113) -> Kenya | B113: =IF(COUNTRY_INFO!B113=0," ",COUNTRY_INFO!B113) -> Kisii | C113: =IF(COUNTRY_INFO!C113=0," ",COUNTRY_INFO!C113) -> Nyaribari Masaba | D113: =IF(COUNTRY_INFO!$T$9:$T$1000="MDA2 (DEC+ALB)", COUNTRY_INFO!$T$9:$T$1000, " ") ->  | I113: 0 | M113: 0
A114: =IF(COUNTRY_INFO!A114=0," ",COUNTRY_INFO!A114) -> Kenya | B114: =IF(COUNTRY_INFO!B114=0," ",COUNTRY_INFO!B114) -> Kisii | C114: =IF(COUNTRY_INFO!C114=0," ",COUNTRY_INFO!C114) -> South Mugirango | D114: =IF(COUNTRY_INFO!$T$9:$T$1000="MDA2 (DEC+ALB)", COUNTRY_INFO!$T$9:$T$1000, " ") ->  | I114: 0 | M114: 0
A115: =IF(COUNTRY_INFO!A115=0," ",COUNTRY_INFO!A115) -> Kenya | B115: =IF(COUNTRY_INFO!B115=0," ",COUNTRY_INFO!B115) -> Kisumu | C115: =IF(COUNTRY_INFO!C115=0," ",COUNTRY_INFO!C115) -> Kisumu Central | D115: =IF(COUNTRY_INFO!$T$9:$T$1000="MDA2 (DEC+ALB)", COUNTRY_INFO!$T$9:$T$1000, " ") ->  | I115: 0 | M115: 0
A116: =IF(COUNTRY_INFO!A116=0," ",COUNTRY_INFO!A116) -> Kenya | B116: =IF(COUNTRY_INFO!B116=0," ",COUNTRY_INFO!B116) -> Kisumu | C116: =IF(COUNTRY_INFO!C116=0," ",COUNTRY_INFO!C116) -> Kisumu East | D116: =IF(COUNTRY_INFO!$T$9:$T$1000="MDA2 (DEC+ALB)", COUNTRY_INFO!$T$9:$T$1000, " ") ->  | I116: 0 | M116: 0
A117: =IF(COUNTRY_INFO!A117=0," ",COUNTRY_INFO!A117) -> Kenya | B117: =IF(COUNTRY_INFO!B117=0," ",COUNTRY_INFO!B117) -> Kisumu | C117: =IF(COUNTRY_INFO!C117=0," ",COUNTRY_INFO!C117) -> Kisumu West | D117: =IF(COUNTRY_INFO!$T$9:$T$1000="MDA2 (DEC+ALB)", COUNTRY_INFO!$T$9:$T$1000, " ") ->  | I117: 0 | M117: 0
A118: =IF(COUNTRY_INFO!A118=0," ",COUNTRY_INFO!A118) -> Kenya | B118: =IF(COUNTRY_INFO!B118=0," ",COUNTRY_INFO!B118) -> Kisumu | C118: =IF(COUNTRY_INFO!C118=0," ",COUNTRY_INFO!C118) -> Muhoroni | D118: =IF(COUNTRY_INFO!$T$9:$T$1000="MDA2 (DEC+ALB)", COUNTRY_INFO!$T$9:$T$1000, " ") ->  | I118: 0 | M118: 0
A119: =IF(COUNTRY_INFO!A119=0," ",COUNTRY_INFO!A119) -> Kenya | B119: =IF(COUNTRY_INFO!B119=0," ",COUNTRY_INFO!B119) -> Kisumu | C119: =IF(COUNTRY_INFO!C119=0," ",COUNTRY_INFO!C119) -> Nyakach | D119: =IF(COUNTRY_INFO!$T$9:$T$1000="MDA2 (DEC+ALB)", COUNTRY_INFO!$T$9:$T$1000, " ") ->  | I119: 0 | M119: 0
A120: =IF(COUNTRY_INFO!A120=0," ",COUNTRY_INFO!A120) -> Kenya | B120: =IF(COUNTRY_INFO!B120=0," ",COUNTRY_INFO!B120) -> Kisumu | C120: =IF(COUNTRY_INFO!C120=0," ",COUNTRY_INFO!C120) -> Nyando | D120: =IF(COUNTRY_INFO!$T$9:$T$1000="MDA2 (DEC+ALB)", COUNTRY_INFO!$T$9:$T$1000, " ") ->  | I120: 0 | M120: 0
A121: =IF(COUNTRY_INFO!A121=0," ",COUNTRY_INFO!A121) -> Kenya | B121: =IF(COUNTRY_INFO!B121=0," ",COUNTRY_INFO!B121) -> Kisumu | C121: =IF(COUNTRY_INFO!C121=0," ",COUNTRY_INFO!C121) -> Seme | D121: =IF(COUNTRY_INFO!$T$9:$T$1000="MDA2 (DEC+ALB)", COUNTRY_INFO!$T$9:$T$1000, " ") ->  | I121: 0 | M121: 0
A122: =IF(COUNTRY_INFO!A122=0," ",COUNTRY_INFO!A122) -> Kenya | B122: =IF(COUNTRY_INFO!B122=0," ",COUNTRY_INFO!B122) -> Kitui | C122: =IF(COUNTRY_INFO!C122=0," ",COUNTRY_INFO!C122) -> Kitui Central | D122: =IF(COUNTRY_INFO!$T$9:$T$1000="MDA2 (DEC+ALB)", COUNTRY_INFO!$T$9:$T$1000, " ") ->  | I122: 0 | M122: 0
A123: =IF(COUNTRY_INFO!A123=0," ",COUNTRY_INFO!A123) -> Kenya | B123: =IF(COUNTRY_INFO!B123=0," ",COUNTRY_INFO!B123) -> Kitui | C123: =IF(COUNTRY_INFO!C123=0," ",COUNTRY_INFO!C123) -> Kitui East | D123: =IF(COUNTRY_INFO!$T$9:$T$1000="MDA2 (DEC+ALB)", COUNTRY_INFO!$T$9:$T$1000, " ") ->  | I123: 0 | M123: 0
A124: =IF(COUNTRY_INFO!A124=0," ",COUNTRY_INFO!A124) -> Kenya | B124: =IF(COUNTRY_INFO!B124=0," ",COUNTRY_INFO!B124) -> Kitui | C124: =IF(COUNTRY_INFO!C124=0," ",COUNTRY_INFO!C124) -> Kitui Rural | D124: =IF(COUNTRY_INFO!$T$9:$T$1000="MDA2 (DEC+ALB)", COUNTRY_INFO!$T$9:$T$1000, " ") ->  | I124: 0 | M124: 0
A125: =IF(COUNTRY_INFO!A125=0," ",COUNTRY_INFO!A125) -> Kenya | B125: =IF(COUNTRY_INFO!B125=0," ",COUNTRY_INFO!B125) -> Kitui | C125: =IF(COUNTRY_INFO!C125=0," ",COUNTRY_INFO!C125) -> Kitui South | D125: =IF(COUNTRY_INFO!$T$9:$T$1000="MDA2 (DEC+ALB)", COUNTRY_INFO!$T$9:$T$1000, " ") ->  | I125: 0 | M125: 0
A126: =IF(COUNTRY_INFO!A126=0," ",COUNTRY_INFO!A126) -> Kenya | B126: =IF(COUNTRY_INFO!B126=0," ",COUNTRY_INFO!B126) -> Kitui | C126: =IF(COUNTRY_INFO!C126=0," ",COUNTRY_INFO!C126) -> Kitui West | D126: =IF(COUNTRY_INFO!$T$9:$T$1000="MDA2 (DEC+ALB)", COUNTRY_INFO!$T$9:$T$1000, " ") ->  | I126: 0 | M126: 0
A127: =IF(COUNTRY_INFO!A127=0," ",COUNTRY_INFO!A127) -> Kenya | B127: =IF(COUNTRY_INFO!B127=0," ",COUNTRY_INFO!B127) -> Kitui | C127: =IF(COUNTRY_INFO!C127=0," ",COUNTRY_INFO!C127) -> Mwingi Central | D127: =IF(COUNTRY_INFO!$T$9:$T$1000="MDA2 (DEC+ALB)", COUNTRY_INFO!$T$9:$T$1000, " ") ->  | I127: 0 | M127: 0
A128: =IF(COUNTRY_INFO!A128=0," ",COUNTRY_INFO!A128) -> Kenya | B128: =IF(COUNTRY_INFO!B128=0," ",COUNTRY_INFO!B128) -> Kitui | C128: =IF(COUNTRY_INFO!C128=0," ",COUNTRY_INFO!C128) -> Mwingi North | D128: =IF(COUNTRY_INFO!$T$9:$T$1000="MDA2 (DEC+ALB)", COUNTRY_INFO!$T$9:$T$1000, " ") ->  | I128: 0 | M128: 0
A129: =IF(COUNTRY_INFO!A129=0," ",COUNTRY_INFO!A129) -> Kenya | B129: =IF(COUNTRY_INFO!B129=0," ",COUNTRY_INFO!B129) -> Kitui | C129: =IF(COUNTRY_INFO!C129=0," ",COUNTRY_INFO!C129) -> Mwingi West | D129: =IF(COUNTRY_INFO!$T$9:$T$1000="MDA2 (DEC+ALB)", COUNTRY_INFO!$T$9:$T$1000, " ") ->  | I129: 0 | M129: 0
A130: =IF(COUNTRY_INFO!A130=0," ",COUNTRY_INFO!A130) -> Kenya | B130: =IF(COUNTRY_INFO!B130=0," ",COUNTRY_INFO!B130) -> Kwale | C130: =IF(COUNTRY_INFO!C130=0," ",COUNTRY_INFO!C130) -> Kinango | D130: =IF(COUNTRY_INFO!$T$9:$T$1000="MDA2 (DEC+ALB)", COUNTRY_INFO!$T$9:$T$1000, " ") -> MDA2 (DEC+ALB) | E130: 27 November 2018 | F130: 39839 | G130: 74366 | H130: 142092 | I130: 256297 | J130: 30647 | K130: 76938 | L130: 86284 | M130: 193869 | N130: 76.92713171 | O130: 103.4585698 | P130: 60.72403795 | Q130: 75.64232121
A131: =IF(COUNTRY_INFO!A131=0," ",COUNTRY_INFO!A131) -> Kenya | B131: =IF(COUNTRY_INFO!B131=0," ",COUNTRY_INFO!B131) -> Kwale | C131: =IF(COUNTRY_INFO!C131=0," ",COUNTRY_INFO!C131) -> Lunga Lunga | D131: =IF(COUNTRY_INFO!$T$9:$T$1000="MDA2 (DEC+ALB)", COUNTRY_INFO!$T$9:$T$1000, " ") -> MDA2 (DEC+ALB) | E131: 27 November 2018 | F131: 29275 | G131: 54647 | H131: 104414 | I131: 188336 | J131: 20306 | K131: 53575 | L131: 59989 | M131: 133870 | N131: 69.36293766 | O131: 98.03831866 | P131: 57.45302354 | Q131: 71.08040948
A132: =IF(COUNTRY_INFO!A132=0," ",COUNTRY_INFO!A132) -> Kenya | B132: =IF(COUNTRY_INFO!B132=0," ",COUNTRY_INFO!B132) -> Kwale | C132: =IF(COUNTRY_INFO!C132=0," ",COUNTRY_INFO!C132) -> Matuga | D132: =IF(COUNTRY_INFO!$T$9:$T$1000="MDA2 (DEC+ALB)", COUNTRY_INFO!$T$9:$T$1000, " ") -> MDA2 (DEC+ALB) | E132: 27 November 2018 | F132: 28616 | G132: 53417 | H132: 102065 | I132: 184098 | J132: 14481 | K132: 49448 | L132: 71733 | M132: 135662 | N132: 50.60455689 | O132: 92.56978116 | P132: 70.28168324 | Q132: 73.69009984
A133: =IF(COUNTRY_INFO!A133=0," ",COUNTRY_INFO!A133) -> Kenya | B133: =IF(COUNTRY_INFO!B133=0," ",COUNTRY_INFO!B133) -> Kwale | C133: =IF(COUNTRY_INFO!C133=0," ",COUNTRY_INFO!C133) -> Msambweni | D133: =IF(COUNTRY_INFO!$T$9:$T$1000="MDA2 (DEC+ALB)", COUNTRY_INFO!$T$9:$T$1000, " ") -> MDA2 (DEC+ALB) | E133: 27 November 2018 | F133: 25211 | G133: 47060 | H133: 89917 | I133: 162188 | J133: 18721 | K133: 58444 | L133: 87983 | M133: 165148 | N133: 74.25726865 | O133: 124.1903952 | P133: 97.84912753 | Q133: 101.8250425
A134: =IF(COUNTRY_INFO!A134=0," ",COUNTRY_INFO!A134) -> Kenya | B134: =IF(COUNTRY_INFO!B134=0," ",COUNTRY_INFO!B134) -> Laikipia | C134: =IF(COUNTRY_INFO!C134=0," ",COUNTRY_INFO!C134) -> Laikipia East | D134: =IF(COUNTRY_INFO!$T$9:$T$1000="MDA2 (DEC+ALB)", COUNTRY_INFO!$T$9:$T$1000, " ") ->  | I134: 0 | M134: 0
A135: =IF(COUNTRY_INFO!A135=0," ",COUNTRY_INFO!A135) -> Kenya | B135: =IF(COUNTRY_INFO!B135=0," ",COUNTRY_INFO!B135) -> Laikipia | C135: =IF(COUNTRY_INFO!C135=0," ",COUNTRY_INFO!C135) -> Laikipia North | D135: =IF(COUNTRY_INFO!$T$9:$T$1000="MDA2 (DEC+ALB)", COUNTRY_INFO!$T$9:$T$1000, " ") ->  | I135: 0 | M135: 0
A136: =IF(COUNTRY_INFO!A136=0," ",COUNTRY_INFO!A136) -> Kenya | B136: =IF(COUNTRY_INFO!B136=0," ",COUNTRY_INFO!B136) -> Laikipia | C136: =IF(COUNTRY_INFO!C136=0," ",COUNTRY_INFO!C136) -> Laikipia West | D136: =IF(COUNTRY_INFO!$T$9:$T$1000="MDA2 (DEC+ALB)", COUNTRY_INFO!$T$9:$T$1000, " ") ->  | I136: 0 | M136: 0
A137: =IF(COUNTRY_INFO!A137=0," ",COUNTRY_INFO!A137) -> Kenya | B137: =IF(COUNTRY_INFO!B137=0," ",COUNTRY_INFO!B137) -> Lamu | C137: =IF(COUNTRY_INFO!C137=0," ",COUNTRY_INFO!C137) -> Lamu East | D137: =IF(COUNTRY_INFO!$T$9:$T$1000="MDA2 (DEC+ALB)", COUNTRY_INFO!$T$9:$T$1000, " ") -> MDA2 (DEC+ALB) | E137: 27 November 2018 | F137: 3554 | G137: 6633 | H137: 12674 | I137: 22861 | J137: 1478 | K137: 5802 | L137: 12148 | M137: 19428 | N137: 41.58694429 | O137: 87.47173225 | P137: 95.84977119 | Q137: 84.98315909
A138: =IF(COUNTRY_INFO!A138=0," ",COUNTRY_INFO!A138) -> Kenya | B138: =IF(COUNTRY_INFO!B138=0," ",COUNTRY_INFO!B138) -> Lamu | C138: =IF(COUNTRY_INFO!C138=0," ",COUNTRY_INFO!C138) -> Lamu West | D138: =IF(COUNTRY_INFO!$T$9:$T$1000="MDA2 (DEC+ALB)", COUNTRY_INFO!$T$9:$T$1000, " ") -> MDA2 (DEC+ALB) | E138: 27 November 2018 | F138: 15363 | G138: 28677 | H138: 54794 | I138: =SUM(F138:H138) -> 98834 | J138: 7188 | K138: 27649 | L138: 51169 | M138: =SUM(J138:L138) -> 86006 | N138: =IF(F138<>0, IF(J138/F138*100=0, "-", J138/F138*100), " ") -> 46.78773677 | O138: =IF(G138<>0, IF(K138/G138*100=0, "-", K138/G138*100), " ") -> 96.41524567 | P138: =IF(H138<>0, IF(L138/H138*100=0, "-", L138/H138*100), " ") -> 93.38431215 | Q138: =IF(I138<>0, IF(M138/I138*100=0, "-", M138/I138*100), " ") -> 87.02066091
A139: =IF(COUNTRY_INFO!A139=0," ",COUNTRY_INFO!A139) -> Kenya | B139: =IF(COUNTRY_INFO!B139=0," ",COUNTRY_INFO!B139) -> Machakos | C139: =IF(COUNTRY_INFO!C139=0," ",COUNTRY_INFO!C139) -> Kangundo | D139: =IF(COUNTRY_INFO!$T$9:$T$1000="MDA2 (DEC+ALB)", COUNTRY_INFO!$T$9:$T$1000, " ") ->  | I139: 0 | M139: 0
A140: =IF(COUNTRY_INFO!A140=0," ",COUNTRY_INFO!A140) -> Kenya | B140: =IF(COUNTRY_INFO!B140=0," ",COUNTRY_INFO!B140) -> Machakos | C140: =IF(COUNTRY_INFO!C140=0," ",COUNTRY_INFO!C140) -> Kathiani | D140: =IF(COUNTRY_INFO!$T$9:$T$1000="MDA2 (DEC+ALB)", COUNTRY_INFO!$T$9:$T$1000, " ") ->  | I140: 0 | M140: 0
A141: =IF(COUNTRY_INFO!A141=0," ",COUNTRY_INFO!A141) -> Kenya | B141: =IF(COUNTRY_INFO!B141=0," ",COUNTRY_INFO!B141) -> Machakos | C141: =IF(COUNTRY_INFO!C141=0," ",COUNTRY_INFO!C141) -> Machakos Town | D141: =IF(COUNTRY_INFO!$T$9:$T$1000="MDA2 (DEC+ALB)", COUNTRY_INFO!$T$9:$T$1000, " ") ->  | I141: 0 | M141: 0
A142: =IF(COUNTRY_INFO!A142=0," ",COUNTRY_INFO!A142) -> Kenya | B142: =IF(COUNTRY_INFO!B142=0," ",COUNTRY_INFO!B142) -> Machakos | C142: =IF(COUNTRY_INFO!C142=0," ",COUNTRY_INFO!C142) -> Masinga | D142: =IF(COUNTRY_INFO!$T$9:$T$1000="MDA2 (DEC+ALB)", COUNTRY_INFO!$T$9:$T$1000, " ") ->  | I142: 0 | M142: 0
A143: =IF(COUNTRY_INFO!A143=0," ",COUNTRY_INFO!A143) -> Kenya | B143: =IF(COUNTRY_INFO!B143=0," ",COUNTRY_INFO!B143) -> Machakos | C143: =IF(COUNTRY_INFO!C143=0," ",COUNTRY_INFO!C143) -> Matungulu | D143: =IF(COUNTRY_INFO!$T$9:$T$1000="MDA2 (DEC+ALB)", COUNTRY_INFO!$T$9:$T$1000, " ") ->  | I143: 0 | M143: 0
A144: =IF(COUNTRY_INFO!A144=0," ",COUNTRY_INFO!A144) -> Kenya | B144: =IF(COUNTRY_INFO!B144=0," ",COUNTRY_INFO!B144) -> Machakos | C144: =IF(COUNTRY_INFO!C144=0," ",COUNTRY_INFO!C144) -> Mavoko | D144: =IF(COUNTRY_INFO!$T$9:$T$1000="MDA2 (DEC+ALB)", COUNTRY_INFO!$T$9:$T$1000, " ") ->  | I144: 0 | M144: 0
A145: =IF(COUNTRY_INFO!A145=0," ",COUNTRY_INFO!A145) -> Kenya | B145: =IF(COUNTRY_INFO!B145=0," ",COUNTRY_INFO!B145) -> Machakos | C145: =IF(COUNTRY_INFO!C145=0," ",COUNTRY_INFO!C145) -> Mwala | D145: =IF(COUNTRY_INFO!$T$9:$T$1000="MDA2 (DEC+ALB)", COUNTRY_INFO!$T$9:$T$1000, " ") ->  | I145: 0 | M145: 0
A146: =IF(COUNTRY_INFO!A146=0," ",COUNTRY_INFO!A146) -> Kenya | B146: =IF(COUNTRY_INFO!B146=0," ",COUNTRY_INFO!B146) -> Machakos | C146: =IF(COUNTRY_INFO!C146=0," ",COUNTRY_INFO!C146) -> Yatta | D146: =IF(COUNTRY_INFO!$T$9:$T$1000="MDA2 (DEC+ALB)", COUNTRY_INFO!$T$9:$T$1000, " ") ->  | I146: 0 | M146: 0
A147: =IF(COUNTRY_INFO!A147=0," ",COUNTRY_INFO!A147) -> Kenya | B147: =IF(COUNTRY_INFO!B147=0," ",COUNTRY_INFO!B147) -> Makueni | C147: =IF(COUNTRY_INFO!C147=0," ",COUNTRY_INFO!C147) -> Kaiti | D147: =IF(COUNTRY_INFO!$T$9:$T$1000="MDA2 (DEC+ALB)", COUNTRY_INFO!$T$9:$T$1000, " ") ->  | I147: 0 | M147: 0
A148: =IF(COUNTRY_INFO!A148=0," ",COUNTRY_INFO!A148) -> Kenya | B148: =IF(COUNTRY_INFO!B148=0," ",COUNTRY_INFO!B148) -> Makueni | C148: =IF(COUNTRY_INFO!C148=0," ",COUNTRY_INFO!C148) -> Kibwezi East | D148: =IF(COUNTRY_INFO!$T$9:$T$1000="MDA2 (DEC+ALB)", COUNTRY_INFO!$T$9:$T$1000, " ") ->  | I148: 0 | M148: 0
A149: =IF(COUNTRY_INFO!A149=0," ",COUNTRY_INFO!A149) -> Kenya | B149: =IF(COUNTRY_INFO!B149=0," ",COUNTRY_INFO!B149) -> Makueni | C149: =IF(COUNTRY_INFO!C149=0," ",COUNTRY_INFO!C149) -> Kibwezi West | D149: =IF(COUNTRY_INFO!$T$9:$T$1000="MDA2 (DEC+ALB)", COUNTRY_INFO!$T$9:$T$1000, " ") ->  | I149: 0 | M149: 0
A150: =IF(COUNTRY_INFO!A150=0," ",COUNTRY_INFO!A150) -> Kenya | B150: =IF(COUNTRY_INFO!B150=0," ",COUNTRY_INFO!B150) -> Makueni | C150: =IF(COUNTRY_INFO!C150=0," ",COUNTRY_INFO!C150) -> Kilome | D150: =IF(COUNTRY_INFO!$T$9:$T$1000="MDA2 (DEC+ALB)", COUNTRY_INFO!$T$9:$T$1000, " ") ->  | I150: 0 | M150: 0
A151: =IF(COUNTRY_INFO!A151=0," ",COUNTRY_INFO!A151) -> Kenya | B151: =IF(COUNTRY_INFO!B151=0," ",COUNTRY_INFO!B151) -> Makueni | C151: =IF(COUNTRY_INFO!C151=0," ",COUNTRY_INFO!C151) -> Makueni | D151: =IF(COUNTRY_INFO!$T$9:$T$1000="MDA2 (DEC+ALB)", COUNTRY_INFO!$T$9:$T$1000, " ") ->  | I151: 0 | M151: 0
A152: =IF(COUNTRY_INFO!A152=0," ",COUNTRY_INFO!A152) -> Kenya | B152: =IF(COUNTRY_INFO!B152=0," ",COUNTRY_INFO!B152) -> Makueni | C152: =IF(COUNTRY_INFO!C152=0," ",COUNTRY_INFO!C152) -> Mbooni | D152: =IF(COUNTRY_INFO!$T$9:$T$1000="MDA2 (DEC+ALB)", COUNTRY_INFO!$T$9:$T$1000, " ") ->  | I152: 0 | M152: 0
A153: =IF(COUNTRY_INFO!A153=0," ",COUNTRY_INFO!A153) -> Kenya | B153: =IF(COUNTRY_INFO!B153=0," ",COUNTRY_INFO!B153) -> Mandera | C153: =IF(COUNTRY_INFO!C153=0," ",COUNTRY_INFO!C153) -> Banissa | D153: =IF(COUNTRY_INFO!$T$9:$T$1000="MDA2 (DEC+ALB)", COUNTRY_INFO!$T$9:$T$1000, " ") ->  | I153: 0 | M153: 0
A154: =IF(COUNTRY_INFO!A154=0," ",COUNTRY_INFO!A154) -> Kenya | B154: =IF(COUNTRY_INFO!B154=0," ",COUNTRY_INFO!B154) -> Mandera | C154: =IF(COUNTRY_INFO!C154=0," ",COUNTRY_INFO!C154) -> Lafey | D154: =IF(COUNTRY_INFO!$T$9:$T$1000="MDA2 (DEC+ALB)", COUNTRY_INFO!$T$9:$T$1000, " ") ->  | I154: 0 | M154: 0
A155: =IF(COUNTRY_INFO!A155=0," ",COUNTRY_INFO!A155) -> Kenya | B155: =IF(COUNTRY_INFO!B155=0," ",COUNTRY_INFO!B155) -> Mandera | C155: =IF(COUNTRY_INFO!C155=0," ",COUNTRY_INFO!C155) -> Mandera East | D155: =IF(COUNTRY_INFO!$T$9:$T$1000="MDA2 (DEC+ALB)", COUNTRY_INFO!$T$9:$T$1000, " ") ->  | I155: 0 | M155: 0
A156: =IF(COUNTRY_INFO!A156=0," ",COUNTRY_INFO!A156) -> Kenya | B156: =IF(COUNTRY_INFO!B156=0," ",COUNTRY_INFO!B156) -> Mandera | C156: =IF(COUNTRY_INFO!C156=0," ",COUNTRY_INFO!C156) -> Mandera North | D156: =IF(COUNTRY_INFO!$T$9:$T$1000="MDA2 (DEC+ALB)", COUNTRY_INFO!$T$9:$T$1000, " ") ->  | I156: 0 | M156: 0
A157: =IF(COUNTRY_INFO!A157=0," ",COUNTRY_INFO!A157) -> Kenya | B157: =IF(COUNTRY_INFO!B157=0," ",COUNTRY_INFO!B157) -> Mandera | C157: =IF(COUNTRY_INFO!C157=0," ",COUNTRY_INFO!C157) -> Mandera South | D157: =IF(COUNTRY_INFO!$T$9:$T$1000="MDA2 (DEC+ALB)", COUNTRY_INFO!$T$9:$T$1000, " ") ->  | I157: 0 | M157: 0
A158: =IF(COUNTRY_INFO!A158=0," ",COUNTRY_INFO!A158) -> Kenya | B158: =IF(COUNTRY_INFO!B158=0," ",COUNTRY_INFO!B158) -> Mandera | C158: =IF(COUNTRY_INFO!C158=0," ",COUNTRY_INFO!C158) -> Mandera West | D158: =IF(COUNTRY_INFO!$T$9:$T$1000="MDA2 (DEC+ALB)", COUNTRY_INFO!$T$9:$T$1000, " ") ->  | I158: 0 | M158: 0
A159: =IF(COUNTRY_INFO!A159=0," ",COUNTRY_INFO!A159) -> Kenya | B159: =IF(COUNTRY_INFO!B159=0," ",COUNTRY_INFO!B159) -> Marsabit | C159: =IF(COUNTRY_INFO!C159=0," ",COUNTRY_INFO!C159) -> Laisamis | D159: =IF(COUNTRY_INFO!$T$9:$T$1000="MDA2 (DEC+ALB)", COUNTRY_INFO!$T$9:$T$1000, " ") ->  | I159: 0 | M159: 0
A160: =IF(COUNTRY_INFO!A160=0," ",COUNTRY_INFO!A160) -> Kenya | B160: =IF(COUNTRY_INFO!B160=0," ",COUNTRY_INFO!B160) -> Marsabit | C160: =IF(COUNTRY_INFO!C160=0," ",COUNTRY_INFO!C160) -> Moyale | D160: =IF(COUNTRY_INFO!$T$9:$T$1000="MDA2 (DEC+ALB)", COUNTRY_INFO!$T$9:$T$1000, " ") ->  | I160: 0 | M160: 0
A161: =IF(COUNTRY_INFO!A161=0," ",COUNTRY_INFO!A161) -> Kenya | B161: =IF(COUNTRY_INFO!B161=0," ",COUNTRY_INFO!B161) -> Marsabit | C161: =IF(COUNTRY_INFO!C161=0," ",COUNTRY_INFO!C161) -> North Horr | D161: =IF(COUNTRY_INFO!$T$9:$T$1000="MDA2 (DEC+ALB)", COUNTRY_INFO!$T$9:$T$1000, " ") ->  | I161: 0 | M161: 0
A162: =IF(COUNTRY_INFO!A162=0," ",COUNTRY_INFO!A162) -> Kenya | B162: =IF(COUNTRY_INFO!B162=0," ",COUNTRY_INFO!B162) -> Marsabit | C162: =IF(COUNTRY_INFO!C162=0," ",COUNTRY_INFO!C162) -> Saku | D162: =IF(COUNTRY_INFO!$T$9:$T$1000="MDA2 (DEC+ALB)", COUNTRY_INFO!$T$9:$T$1000, " ") ->  | I162: 0 | M162: 0
A163: =IF(COUNTRY_INFO!A163=0," ",COUNTRY_INFO!A163) -> Kenya | B163: =IF(COUNTRY_INFO!B163=0," ",COUNTRY_INFO!B163) -> Meru | C163: =IF(COUNTRY_INFO!C163=0," ",COUNTRY_INFO!C163) -> Buuri | D163: =IF(COUNTRY_INFO!$T$9:$T$1000="MDA2 (DEC+ALB)", COUNTRY_INFO!$T$9:$T$1000, " ") ->  | I163: 0 | M163: 0
A164: =IF(COUNTRY_INFO!A164=0," ",COUNTRY_INFO!A164) -> Kenya | B164: =IF(COUNTRY_INFO!B164=0," ",COUNTRY_INFO!B164) -> Meru | C164: =IF(COUNTRY_INFO!C164=0," ",COUNTRY_INFO!C164) -> Central Imenti | D164: =IF(COUNTRY_INFO!$T$9:$T$1000="MDA2 (DEC+ALB)", COUNTRY_INFO!$T$9:$T$1000, " ") ->  | I164: 0 | M164: 0
A165: =IF(COUNTRY_INFO!A165=0," ",COUNTRY_INFO!A165) -> Kenya | B165: =IF(COUNTRY_INFO!B165=0," ",COUNTRY_INFO!B165) -> Meru | C165: =IF(COUNTRY_INFO!C165=0," ",COUNTRY_INFO!C165) -> Igembe Central | D165: =IF(COUNTRY_INFO!$T$9:$T$1000="MDA2 (DEC+ALB)", COUNTRY_INFO!$T$9:$T$1000, " ") ->  | I165: 0 | M165: 0
A166: =IF(COUNTRY_INFO!A166=0," ",COUNTRY_INFO!A166) -> Kenya | B166: =IF(COUNTRY_INFO!B166=0," ",COUNTRY_INFO!B166) -> Meru | C166: =IF(COUNTRY_INFO!C166=0," ",COUNTRY_INFO!C166) -> Igembe North | D166: =IF(COUNTRY_INFO!$T$9:$T$1000="MDA2 (DEC+ALB)", COUNTRY_INFO!$T$9:$T$1000, " ") ->  | I166: 0 | M166: 0
A167: =IF(COUNTRY_INFO!A167=0," ",COUNTRY_INFO!A167) -> Kenya | B167: =IF(COUNTRY_INFO!B167=0," ",COUNTRY_INFO!B167) -> Meru | C167: =IF(COUNTRY_INFO!C167=0," ",COUNTRY_INFO!C167) -> Igembe South | D167: =IF(COUNTRY_INFO!$T$9:$T$1000="MDA2 (DEC+ALB)", COUNTRY_INFO!$T$9:$T$1000, " ") ->  | I167: 0 | M167: 0
A168: =IF(COUNTRY_INFO!A168=0," ",COUNTRY_INFO!A168) -> Kenya | B168: =IF(COUNTRY_INFO!B168=0," ",COUNTRY_INFO!B168) -> Meru | C168: =IF(COUNTRY_INFO!C168=0," ",COUNTRY_INFO!C168) -> North Imenti | D168: =IF(COUNTRY_INFO!$T$9:$T$1000="MDA2 (DEC+ALB)", COUNTRY_INFO!$T$9:$T$1000, " ") ->  | I168: 0 | M168: 0
A169: =IF(COUNTRY_INFO!A169=0," ",COUNTRY_INFO!A169) -> Kenya | B169: =IF(COUNTRY_INFO!B169=0," ",COUNTRY_INFO!B169) -> Meru | C169: =IF(COUNTRY_INFO!C169=0," ",COUNTRY_INFO!C169) -> South Imenti | D169: =IF(COUNTRY_INFO!$T$9:$T$1000="MDA2 (DEC+ALB)", COUNTRY_INFO!$T$9:$T$1000, " ") ->  | I169: 0 | M169: 0
A170: =IF(COUNTRY_INFO!A170=0," ",COUNTRY_INFO!A170) -> Kenya | B170: =IF(COUNTRY_INFO!B170=0," ",COUNTRY_INFO!B170) -> Meru | C170: =IF(COUNTRY_INFO!C170=0," ",COUNTRY_INFO!C170) -> Tigania East | D170: =IF(COUNTRY_INFO!$T$9:$T$1000="MDA2 (DEC+ALB)", COUNTRY_INFO!$T$9:$T$1000, " ") ->  | I170: 0 | M170: 0
A171: =IF(COUNTRY_INFO!A171=0," ",COUNTRY_INFO!A171) -> Kenya | B171: =IF(COUNTRY_INFO!B171=0," ",COUNTRY_INFO!B171) -> Meru | C171: =IF(COUNTRY_INFO!C171=0," ",COUNTRY_INFO!C171) -> Tigania West | D171: =IF(COUNTRY_INFO!$T$9:$T$1000="MDA2 (DEC+ALB)", COUNTRY_INFO!$T$9:$T$1000, " ") ->  | I171: 0 | M171: 0
A172: =IF(COUNTRY_INFO!A172=0," ",COUNTRY_INFO!A172) -> Kenya | B172: =IF(COUNTRY_INFO!B172=0," ",COUNTRY_INFO!B172) -> Migori | C172: =IF(COUNTRY_INFO!C172=0," ",COUNTRY_INFO!C172) -> Awendo | D172: =IF(COUNTRY_INFO!$T$9:$T$1000="MDA2 (DEC+ALB)", COUNTRY_INFO!$T$9:$T$1000, " ") ->  | I172: 0 | M172: 0
A173: =IF(COUNTRY_INFO!A173=0," ",COUNTRY_INFO!A173) -> Kenya | B173: =IF(COUNTRY_INFO!B173=0," ",COUNTRY_INFO!B173) -> Migori | C173: =IF(COUNTRY_INFO!C173=0," ",COUNTRY_INFO!C173) -> Kuria East | D173: =IF(COUNTRY_INFO!$T$9:$T$1000="MDA2 (DEC+ALB)", COUNTRY_INFO!$T$9:$T$1000, " ") ->  | I173: 0 | M173: 0
A174: =IF(COUNTRY_INFO!A174=0," ",COUNTRY_INFO!A174) -> Kenya | B174: =IF(COUNTRY_INFO!B174=0," ",COUNTRY_INFO!B174) -> Migori | C174: =IF(COUNTRY_INFO!C174=0," ",COUNTRY_INFO!C174) -> Kuria West | D174: =IF(COUNTRY_INFO!$T$9:$T$1000="MDA2 (DEC+ALB)", COUNTRY_INFO!$T$9:$T$1000, " ") ->  | I174: 0 | M174: 0
A175: =IF(COUNTRY_INFO!A175=0," ",COUNTRY_INFO!A175) -> Kenya | B175: =IF(COUNTRY_INFO!B175=0," ",COUNTRY_INFO!B175) -> Migori | C175: =IF(COUNTRY_INFO!C175=0," ",COUNTRY_INFO!C175) -> Nyatike | D175: =IF(COUNTRY_INFO!$T$9:$T$1000="MDA2 (DEC+ALB)", COUNTRY_INFO!$T$9:$T$1000, " ") ->  | I175: 0 | M175: 0
A176: =IF(COUNTRY_INFO!A176=0," ",COUNTRY_INFO!A176) -> Kenya | B176: =IF(COUNTRY_INFO!B176=0," ",COUNTRY_INFO!B176) -> Migori | C176: =IF(COUNTRY_INFO!C176=0," ",COUNTRY_INFO!C176) -> Rongo | D176: =IF(COUNTRY_INFO!$T$9:$T$1000="MDA2 (DEC+ALB)", COUNTRY_INFO!$T$9:$T$1000, " ") ->  | I176: 0 | M176: 0
A177: =IF(COUNTRY_INFO!A177=0," ",COUNTRY_INFO!A177) -> Kenya | B177: =IF(COUNTRY_INFO!B177=0," ",COUNTRY_INFO!B177) -> Migori | C177: =IF(COUNTRY_INFO!C177=0," ",COUNTRY_INFO!C177) -> Suna East | D177: =IF(COUNTRY_INFO!$T$9:$T$1000="MDA2 (DEC+ALB)", COUNTRY_INFO!$T$9:$T$1000, " ") ->  | I177: 0 | M177: 0
A178: =IF(COUNTRY_INFO!A178=0," ",COUNTRY_INFO!A178) -> Kenya | B178: =IF(COUNTRY_INFO!B178=0," ",COUNTRY_INFO!B178) -> Migori | C178: =IF(COUNTRY_INFO!C178=0," ",COUNTRY_INFO!C178) -> Suna West | D178: =IF(COUNTRY_INFO!$T$9:$T$1000="MDA2 (DEC+ALB)", COUNTRY_INFO!$T$9:$T$1000, " ") ->  | I178: 0 | M178: 0
A179: =IF(COUNTRY_INFO!A179=0," ",COUNTRY_INFO!A179) -> Kenya | B179: =IF(COUNTRY_INFO!B179=0," ",COUNTRY_INFO!B179) -> Migori | C179: =IF(COUNTRY_INFO!C179=0," ",COUNTRY_INFO!C179) -> Uriri | D179: =IF(COUNTRY_INFO!$T$9:$T$1000="MDA2 (DEC+ALB)", COUNTRY_INFO!$T$9:$T$1000, " ") ->  | I179: 0 | M179: 0
A180: =IF(COUNTRY_INFO!A180=0," ",COUNTRY_INFO!A180) -> Kenya | B180: =IF(COUNTRY_INFO!B180=0," ",COUNTRY_INFO!B180) -> Mombasa | C180: =IF(COUNTRY_INFO!C180=0," ",COUNTRY_INFO!C180) -> Changamwe | D180: =IF(COUNTRY_INFO!$T$9:$T$1000="MDA2 (DEC+ALB)", COUNTRY_INFO!$T$9:$T$1000, " ") -> MDA2 (DEC+ALB) | E180: 27 November 2018 | F180: 25159 | G180: 46963 | H180: 89733 | I180: 161855 | J180: 14367 | K180: 43592 | L180: 85203 | M180: 143162 | N180: 57.10481339 | O180: 92.82200882 | P180: 94.95169001 | Q180: 88.45077384
A181: =IF(COUNTRY_INFO!A181=0," ",COUNTRY_INFO!A181) -> Kenya | B181: =IF(COUNTRY_INFO!B181=0," ",COUNTRY_INFO!B181) -> Mombasa | C181: =IF(COUNTRY_INFO!C181=0," ",COUNTRY_INFO!C181) -> Jomvu | D181: =IF(COUNTRY_INFO!$T$9:$T$1000="MDA2 (DEC+ALB)", COUNTRY_INFO!$T$9:$T$1000, " ") -> MDA2 (DEC+ALB) | E181: 27 November 2018 | F181: 21983 | G181: 41036 | H181: 78407 | I181: 141426 | J181: 12288 | K181: 40814 | L181: 94394 | M181: 147496 | N181: 55.89773916 | O181: 99.4590116 | P181: 120.3897611 | Q181: 104.2919972
A182: =IF(COUNTRY_INFO!A182=0," ",COUNTRY_INFO!A182) -> Kenya | B182: =IF(COUNTRY_INFO!B182=0," ",COUNTRY_INFO!B182) -> Mombasa | C182: =IF(COUNTRY_INFO!C182=0," ",COUNTRY_INFO!C182) -> Kisauni | D182: =IF(COUNTRY_INFO!$T$9:$T$1000="MDA2 (DEC+ALB)", COUNTRY_INFO!$T$9:$T$1000, " ") -> MDA2 (DEC+ALB) | E182: 27 November 2018 | F182: 36025 | G182: 67247 | H182: 128490 | I182: 231762 | J182: 26132 | K182: 87986 | L182: 106951 | M182: 221069 | N182: 72.53851492 | O182: 130.8400375 | P182: 83.23682777 | Q182: 95.38621517
A183: =IF(COUNTRY_INFO!A183=0," ",COUNTRY_INFO!A183) -> Kenya | B183: =IF(COUNTRY_INFO!B183=0," ",COUNTRY_INFO!B183) -> Mombasa | C183: =IF(COUNTRY_INFO!C183=0," ",COUNTRY_INFO!C183) -> Likoni | D183: =IF(COUNTRY_INFO!$T$9:$T$1000="MDA2 (DEC+ALB)", COUNTRY_INFO!$T$9:$T$1000, " ") -> MDA2 (DEC+ALB) | E183: 27 November 2018 | F183: 31485 | G183: 58772 | H183: 112297 | I183: 202554 | J183: 25331 | K183: 74881 | L183: 110997 | M183: 211209 | N183: 80.45418453 | O183: 127.4093106 | P183: 98.84235554 | Q183: 104.2729346
A184: =IF(COUNTRY_INFO!A184=0," ",COUNTRY_INFO!A184) -> Kenya | B184: =IF(COUNTRY_INFO!B184=0," ",COUNTRY_INFO!B184) -> Mombasa | C184: =IF(COUNTRY_INFO!C184=0," ",COUNTRY_INFO!C184) -> Mvita | D184: =IF(COUNTRY_INFO!$T$9:$T$1000="MDA2 (DEC+ALB)", COUNTRY_INFO!$T$9:$T$1000, " ") -> MDA2 (DEC+ALB) | E184: 27 November 2018 | F184: 26361 | G184: 49207 | H184: 94020 | I184: 169588 | J184: 12828 | K184: 49409 | L184: 129111 | M184: 191348 | N184: 48.66279731 | O184: 100.4105107 | P184: 137.32291 | Q184: 112.8310965
A185: =IF(COUNTRY_INFO!A185=0," ",COUNTRY_INFO!A185) -> Kenya | B185: =IF(COUNTRY_INFO!B185=0," ",COUNTRY_INFO!B185) -> Mombasa | C185: =IF(COUNTRY_INFO!C185=0," ",COUNTRY_INFO!C185) -> Nyali | D185: =IF(COUNTRY_INFO!$T$9:$T$1000="MDA2 (DEC+ALB)", COUNTRY_INFO!$T$9:$T$1000, " ") -> MDA2 (DEC+ALB) | E185: 27 November 2018 | F185: 35154 | G185: 65620 | H185: 125381 | I185: 226155 | J185: 24446 | K185: 77690 | L185: 123417 | M185: 225553 | N185: 69.53973943 | O185: 118.3937824 | P185: 98.43357447 | Q185: 99.73381088
A186: =IF(COUNTRY_INFO!A186=0," ",COUNTRY_INFO!A186) -> Kenya | B186: =IF(COUNTRY_INFO!B186=0," ",COUNTRY_INFO!B186) -> Murang’a | C186: =IF(COUNTRY_INFO!C186=0," ",COUNTRY_INFO!C186) -> Gatanga | D186: =IF(COUNTRY_INFO!$T$9:$T$1000="MDA2 (DEC+ALB)", COUNTRY_INFO!$T$9:$T$1000, " ") ->  | I186: 0 | M186: 0
A187: =IF(COUNTRY_INFO!A187=0," ",COUNTRY_INFO!A187) -> Kenya | B187: =IF(COUNTRY_INFO!B187=0," ",COUNTRY_INFO!B187) -> Murang’a | C187: =IF(COUNTRY_INFO!C187=0," ",COUNTRY_INFO!C187) -> Kandara | D187: =IF(COUNTRY_INFO!$T$9:$T$1000="MDA2 (DEC+ALB)", COUNTRY_INFO!$T$9:$T$1000, " ") ->  | I187: 0 | M187: 0
A188: =IF(COUNTRY_INFO!A188=0," ",COUNTRY_INFO!A188) -> Kenya | B188: =IF(COUNTRY_INFO!B188=0," ",COUNTRY_INFO!B188) -> Murang’a | C188: =IF(COUNTRY_INFO!C188=0," ",COUNTRY_INFO!C188) -> Kangema | D188: =IF(COUNTRY_INFO!$T$9:$T$1000="MDA2 (DEC+ALB)", COUNTRY_INFO!$T$9:$T$1000, " ") ->  | I188: 0 | M188: 0
A189: =IF(COUNTRY_INFO!A189=0," ",COUNTRY_INFO!A189) -> Kenya | B189: =IF(COUNTRY_INFO!B189=0," ",COUNTRY_INFO!B189) -> Murang’a | C189: =IF(COUNTRY_INFO!C189=0," ",COUNTRY_INFO!C189) -> Kigumo | D189: =IF(COUNTRY_INFO!$T$9:$T$1000="MDA2 (DEC+ALB)", COUNTRY_INFO!$T$9:$T$1000, " ") ->  | I189: 0 | M189: 0
A190: =IF(COUNTRY_INFO!A190=0," ",COUNTRY_INFO!A190) -> Kenya | B190: =IF(COUNTRY_INFO!B190=0," ",COUNTRY_INFO!B190) -> Murang’a | C190: =IF(COUNTRY_INFO!C190=0," ",COUNTRY_INFO!C190) -> Kiharu | D190: =IF(COUNTRY_INFO!$T$9:$T$1000="MDA2 (DEC+ALB)", COUNTRY_INFO!$T$9:$T$1000, " ") ->  | I190: 0 | M190: 0
A191: =IF(COUNTRY_INFO!A191=0," ",COUNTRY_INFO!A191) -> Kenya | B191: =IF(COUNTRY_INFO!B191=0," ",COUNTRY_INFO!B191) -> Murang’a | C191: =IF(COUNTRY_INFO!C191=0," ",COUNTRY_INFO!C191) -> Maragwa | D191: =IF(COUNTRY_INFO!$T$9:$T$1000="MDA2 (DEC+ALB)", COUNTRY_INFO!$T$9:$T$1000, " ") ->  | I191: 0 | M191: 0
A192: =IF(COUNTRY_INFO!A192=0," ",COUNTRY_INFO!A192) -> Kenya | B192: =IF(COUNTRY_INFO!B192=0," ",COUNTRY_INFO!B192) -> Murang’a | C192: =IF(COUNTRY_INFO!C192=0," ",COUNTRY_INFO!C192) -> Mathioya | D192: =IF(COUNTRY_INFO!$T$9:$T$1000="MDA2 (DEC+ALB)", COUNTRY_INFO!$T$9:$T$1000, " ") ->  | I192: 0 | M192: 0
A193: =IF(COUNTRY_INFO!A193=0," ",COUNTRY_INFO!A193) -> Kenya | B193: =IF(COUNTRY_INFO!B193=0," ",COUNTRY_INFO!B193) -> Nairobi | C193: =IF(COUNTRY_INFO!C193=0," ",COUNTRY_INFO!C193) -> Dagoretti North | D193: =IF(COUNTRY_INFO!$T$9:$T$1000="MDA2 (DEC+ALB)", COUNTRY_INFO!$T$9:$T$1000, " ") ->  | I193: 0 | M193: 0
A194: =IF(COUNTRY_INFO!A194=0," ",COUNTRY_INFO!A194) -> Kenya | B194: =IF(COUNTRY_INFO!B194=0," ",COUNTRY_INFO!B194) -> Nairobi | C194: =IF(COUNTRY_INFO!C194=0," ",COUNTRY_INFO!C194) -> Dagoretti South | D194: =IF(COUNTRY_INFO!$T$9:$T$1000="MDA2 (DEC+ALB)", COUNTRY_INFO!$T$9:$T$1000, " ") ->  | I194: 0 | M194: 0
A195: =IF(COUNTRY_INFO!A195=0," ",COUNTRY_INFO!A195) -> Kenya | B195: =IF(COUNTRY_INFO!B195=0," ",COUNTRY_INFO!B195) -> Nairobi | C195: =IF(COUNTRY_INFO!C195=0," ",COUNTRY_INFO!C195) -> Embakasi Central | D195: =IF(COUNTRY_INFO!$T$9:$T$1000="MDA2 (DEC+ALB)", COUNTRY_INFO!$T$9:$T$1000, " ") ->  | I195: 0 | M195: 0
A196: =IF(COUNTRY_INFO!A196=0," ",COUNTRY_INFO!A196) -> Kenya | B196: =IF(COUNTRY_INFO!B196=0," ",COUNTRY_INFO!B196) -> Nairobi | C196: =IF(COUNTRY_INFO!C196=0," ",COUNTRY_INFO!C196) -> Embakasi East | D196: =IF(COUNTRY_INFO!$T$9:$T$1000="MDA2 (DEC+ALB)", COUNTRY_INFO!$T$9:$T$1000, " ") ->  | I196: 0 | M196: 0
A197: =IF(COUNTRY_INFO!A197=0," ",COUNTRY_INFO!A197) -> Kenya | B197: =IF(COUNTRY_INFO!B197=0," ",COUNTRY_INFO!B197) -> Nairobi | C197: =IF(COUNTRY_INFO!C197=0," ",COUNTRY_INFO!C197) -> Embakasi North | D197: =IF(COUNTRY_INFO!$T$9:$T$1000="MDA2 (DEC+ALB)", COUNTRY_INFO!$T$9:$T$1000, " ") ->  | I197: 0 | M197: 0
A198: =IF(COUNTRY_INFO!A198=0," ",COUNTRY_INFO!A198) -> Kenya | B198: =IF(COUNTRY_INFO!B198=0," ",COUNTRY_INFO!B198) -> Nairobi | C198: =IF(COUNTRY_INFO!C198=0," ",COUNTRY_INFO!C198) -> Embakasi South | D198: =IF(COUNTRY_INFO!$T$9:$T$1000="MDA2 (DEC+ALB)", COUNTRY_INFO!$T$9:$T$1000, " ") ->  | I198: 0 | M198: 0
A199: =IF(COUNTRY_INFO!A199=0," ",COUNTRY_INFO!A199) -> Kenya | B199: =IF(COUNTRY_INFO!B199=0," ",COUNTRY_INFO!B199) -> Nairobi | C199: =IF(COUNTRY_INFO!C199=0," ",COUNTRY_INFO!C199) -> Embakasi West | D199: =IF(COUNTRY_INFO!$T$9:$T$1000="MDA2 (DEC+ALB)", COUNTRY_INFO!$T$9:$T$1000, " ") ->  | I199: 0 | M199: 0
